{"text_format":"1","workbook":"xlsx","n_sheets":2,"sheets":["Лист5","Металлопроцессинг"],"not_rendered":{"charts":0,"images":0,"macros":1,"external_links":0,"defined_names":0,"comments":0,"pivot_tables":1},"unopened":[],"bounds":{"document_bytes":16777216,"sheet_cells":100000,"rows_first":2000,"rows_last":500,"rows_between":2000,"halvings":0,"cell_chars":16384,"cell_head_chars":4096},"cells_cut":0,"cells_raw":0,"read":"whole","date_system":"1900"}

{"sheet":"Лист5","index":0,"n_rows":63,"n_cols":3,"rows_kept":63,"cut":false,"hidden":false,"merged":[]}
["Месяц отгрузки",1]
[]
[null,"Значения"]
["Названия строк","Сумма по полю Сумма выручки для начисления з/п для куратора, с НДС","Сумма по полю Сумма выручки для начисления з/п для менеджера, с НДС"]
["САНКТ-ПЕТЕРБУРГ"]
["Дауэнгауэр Н.Э."]
["Дауэнгауэр Н.Э.",509106.30000000005,0]
["Ипатов Д.В.",28500,28500]
["Молчанова Е.М.",14810,14810]
["Петров А.Б. (уволен)",900,900]
["Погорелов И.В.",250,250]
["Хабибуллов М.Р.",51093.75,51093.75]
["Зиновьев С.Ю."]
["Зиновьев С.Ю.",58735,0]
["Ипатов Д.В."]
["Ипатов Д.В.",820,0]
["Молчанова Е.М.",12000,12000]
["Ипатова Е.Н."]
["Дауэнгауэр Н.Э.",3662.5,3662.5]
["Ипатов Д.В.",820,820]
["Ипатова Е.Н.",282019.83,0]
["Матросова Л.Ш.",1000,1000]
["Молчанова Е.М.",7500,7500]
["Сафонеев С.А.",8640.0249999999996,8640.0249999999996]
["Степура С.Н.",720,720]
["Матросова Л.Ш."]
["Матросова Л.Ш.",20586,0]
["Степура С.Н.",450,450]
["Молчанова Е.М."]
["Молчанова Е.М.",178040.7,0]
["Степура С.Н.",3120,3120]
["Петров А.Б. (уволен)"]
["Петров А.Б. (уволен)",32684.47,0]
["Погорелов И.В."]
["Дауэнгауэр Н.Э.",2824.05,2824.05]
["Погорелов И.В.",56661,0]
["Степура С.Н.",1000,1000]
["Райская Н.А."]
["Дауэнгауэр Н.Э.",2849.4,2849.4]
["Зиновьев С.Ю.",3150,3150]
["Ипатова Е.Н.",15573.105,15573.105]
["Матросова Л.Ш.",2255,2255]
["Молчанова Е.М.",7445,7445]
["Райская Н.А.",18009.5,0]
["Степура С.Н.",160,160]
["Сафонеев С.А."]
["Дауэнгауэр Н.Э.",3496.5,3496.5]
["Зиновьев С.Ю.",375,375]
["Ипатов Д.В.",28500,28500]
["Райская Н.А.",495,495]
["Сафонеев С.А.",329024.55000000005,0]
["Степура С.Н.",725,725]
["Хабибуллов М.Р.",15002.25,15002.25]
["Степура С.Н."]
["Степура С.Н.",44080,0]
["Хабибуллов М.Р."]
["Дауэнгауэр Н.Э.",22215,22215]
["Ипатова Е.Н.",14997,14997]
["Молчанова Е.М.",669.6,669.6]
["Погорелов И.В.",7491.75,7491.75]
["Степура С.Н.",15002.25,15002.25]
["Хабибуллов М.Р.",352362.5,0]
["Общий итог",2159822.0300000003,277692.18]

{"sheet":"Металлопроцессинг","index":1,"n_rows":184,"n_cols":33,"rows_kept":184,"cut":false,"hidden":false,"merged":[]}
["Месяц отгрузки","Филиал отгрузки","Дивизион отгрузки","Менеджер","Менеджер приказа","Куратор договора","Инициатор+исполнитель","Оборот за месяц по контрагенту","Распределение выручки для Куратора договора","Распределение выручки для Менеджера договора","Сумма выручки для начисления з/п для куратора, с НДС","Сумма выручки для начисления з/п для менеджера, с НДС","Тип производства","Филиал производства","Контрагент","Полное наименование контрагента","Регион контрагента","Регион грузополучателя","Отрасль контрагента","Номенклатура","Клиентское наименование","Количество ед изм","Ед изм","Сумма по позиции","Техническая операция","Станок","Сумма наценки","Количество операций","Количество изделий","Длительность операций","Филиал-заказчик","Дивизион заказчика","Количество металла"]
[1,"САНКТ-ПЕТЕРБУРГ","Центр","Дауэнгауэр Н.Э.","Дауэнгауэр Н.Э.","Дауэнгауэр Н.Э.",{"$f":"IF(Таблица_Металлопроцессинг_детализированный[[#This Row],[Куратор договора]]=Таблица_Металлопроцессинг_детализированный[[#This Row],[Менеджер]],TRUE,FALSE)","v":true},{"$f":"IF(COUNTIFS($A$1:$A1,Таблица_Металлопроцессинг_детализированный[[#This Row],[Месяц отгрузки]],$O$1:$O1,Таблица_Металлопроцессинг_детализированный[[#This Row],[Контрагент]])>0,0,SUMIFS($AA$2:$AA$177,$O$2:$O$177,Таблица_Металлопроцессинг_детализированный[[#This Row],[Контрагент]],$A$2:$A$177,Таблица_Металлопроцессинг_детализированный[[#This Row],[Месяц отгрузки]]))","v":16118.699999999999},{"$f":"IF(Таблица_Металлопроцессинг_детализированный[[#This Row],[Инициатор+исполнитель]],1,IF(Таблица_Металлопроцессинг_детализированный[[#This Row],[Оборот за месяц по контрагенту]]<1000000,0.5,0.7))","v":1},{"$f":"IF(Таблица_Металлопроцессинг_детализированный[[#This Row],[Инициатор+исполнитель]]=TRUE,0,IF(Таблица_Металлопроцессинг_детализированный[[#This Row],[Оборот за месяц по контрагенту]]<1000000,0.5,0.3))","v":0},{"$f":"Таблица_Металлопроцессинг_детализированный[[#This Row],[Сумма наценки]]*Таблица_Металлопроцессинг_детализированный[[#This Row],[Распределение выручки для Куратора договора]]","v":1840.8},{"$f":"IF(Таблица_Металлопроцессинг_детализированный[[#This Row],[Распределение выручки для Менеджера договора]]=1,\"\",Таблица_Металлопроцессинг_детализированный[[#This Row],[Сумма наценки]]*Таблица_Металлопроцессинг_детализированный[[#This Row],[Распределение выручки для Менеджера договора]])","v":0},"Процессинг","САНКТ-ПЕТЕРБУРГ","НГ-ЭНЕРГО","ЗАО \"НГ-Энерго\"",null,null,"Машиностроение","Сталь листовая Х/к., 1.5, 1250x2500, Ст.кп/пс (ТУ 14-106-321-2010)",null,1.18,"т",32237.599999999999,"Порезка листового проката (ножницы)",null,1840.8,1,1.2,null,"САНКТ-ПЕТЕРБУРГ","Центр",1.18]
[1,"САНКТ-ПЕТЕРБУРГ","Центр","Дауэнгауэр Н.Э.","Дауэнгауэр Н.Э.","Дауэнгауэр Н.Э.",{"$f":"IF(Таблица_Металлопроцессинг_детализированный[[#This Row],[Куратор договора]]=Таблица_Металлопроцессинг_детализированный[[#This Row],[Менеджер]],TRUE,FALSE)","v":true},{"$f":"IF(COUNTIFS($A$1:$A2,Таблица_Металлопроцессинг_детализированный[[#This Row],[Месяц отгрузки]],$O$1:$O2,Таблица_Металлопроцессинг_детализированный[[#This Row],[Контрагент]])>0,0,SUMIFS($AA$2:$AA$177,$O$2:$O$177,Таблица_Металлопроцессинг_детализированный[[#This Row],[Контрагент]],$A$2:$A$177,Таблица_Металлопроцессинг_детализированный[[#This Row],[Месяц отгрузки]]))","v":0},{"$f":"IF(Таблица_Металлопроцессинг_детализированный[[#This Row],[Инициатор+исполнитель]],1,IF(Таблица_Металлопроцессинг_детализированный[[#This Row],[Оборот за месяц по контрагенту]]<1000000,0.5,0.7))","v":1},{"$f":"IF(Таблица_Металлопроцессинг_детализированный[[#This Row],[Инициатор+исполнитель]]=TRUE,0,IF(Таблица_Металлопроцессинг_детализированный[[#This Row],[Оборот за месяц по контрагенту]]<1000000,0.5,0.3))","v":0},{"$f":"Таблица_Металлопроцессинг_детализированный[[#This Row],[Сумма наценки]]*Таблица_Металлопроцессинг_детализированный[[#This Row],[Распределение выручки для Куратора договора]]","v":9536.7999999999993},{"$f":"IF(Таблица_Металлопроцессинг_детализированный[[#This Row],[Распределение выручки для Менеджера договора]]=1,\"\",Таблица_Металлопроцессинг_детализированный[[#This Row],[Сумма наценки]]*Таблица_Металлопроцессинг_детализированный[[#This Row],[Распределение выручки для Менеджера договора]])","v":0},"Процессинг","САНКТ-ПЕТЕРБУРГ","НГ-ЭНЕРГО","ЗАО \"НГ-Энерго\"",null,null,"Машиностроение","Сталь листовая Х/к., 2, 1250x2500, Ст.кп/пс (ТУ 14-106-321-2010)",null,7.28,"т",198889.60000000001,"Порезка листового проката (ножницы)",null,9536.7999999999993,1,6.2,null,"САНКТ-ПЕТЕРБУРГ","Центр",7.28]
[1,"САНКТ-ПЕТЕРБУРГ","Центр","Дауэнгауэр Н.Э.","Дауэнгауэр Н.Э.","Дауэнгауэр Н.Э.",{"$f":"IF(Таблица_Металлопроцессинг_детализированный[[#This Row],[Куратор договора]]=Таблица_Металлопроцессинг_детализированный[[#This Row],[Менеджер]],TRUE,FALSE)","v":true},{"$f":"IF(COUNTIFS($A$1:$A3,Таблица_Металлопроцессинг_детализированный[[#This Row],[Месяц отгрузки]],$O$1:$O3,Таблица_Металлопроцессинг_детализированный[[#This Row],[Контрагент]])>0,0,SUMIFS($AA$2:$AA$177,$O$2:$O$177,Таблица_Металлопроцессинг_детализированный[[#This Row],[Контрагент]],$A$2:$A$177,Таблица_Металлопроцессинг_детализированный[[#This Row],[Месяц отгрузки]]))","v":0},{"$f":"IF(Таблица_Металлопроцессинг_детализированный[[#This Row],[Инициатор+исполнитель]],1,IF(Таблица_Металлопроцессинг_детализированный[[#This Row],[Оборот за месяц по контрагенту]]<1000000,0.5,0.7))","v":1},{"$f":"IF(Таблица_Металлопроцессинг_детализированный[[#This Row],[Инициатор+исполнитель]]=TRUE,0,IF(Таблица_Металлопроцессинг_детализированный[[#This Row],[Оборот за месяц по контрагенту]]<1000000,0.5,0.3))","v":0},{"$f":"Таблица_Металлопроцессинг_детализированный[[#This Row],[Сумма наценки]]*Таблица_Металлопроцессинг_детализированный[[#This Row],[Распределение выручки для Куратора договора]]","v":4741.1000000000004},{"$f":"IF(Таблица_Металлопроцессинг_детализированный[[#This Row],[Распределение выручки для Менеджера договора]]=1,\"\",Таблица_Металлопроцессинг_детализированный[[#This Row],[Сумма наценки]]*Таблица_Металлопроцессинг_детализированный[[#This Row],[Распределение выручки для Менеджера договора]])","v":0},"Процессинг","САНКТ-ПЕТЕРБУРГ","НГ-ЭНЕРГО","ЗАО \"НГ-Энерго\"",null,null,"Машиностроение","Уголок стальной г/к равнополочный, 50x5, Ст.сп/пс (ГОСТ 8509-93)",null,5.21,"т",141191,"Порезка (станок ленточнопильный)",null,4741.1000000000004,1,7,null,"САНКТ-ПЕТЕРБУРГ","Центр",5.21]
[1,"САНКТ-ПЕТЕРБУРГ","Центр","Петров А.Б. (уволен)","Петров(С.-П.) А.Б.","Дауэнгауэр Н.Э.",{"$f":"IF(Таблица_Металлопроцессинг_детализированный[[#This Row],[Куратор договора]]=Таблица_Металлопроцессинг_детализированный[[#This Row],[Менеджер]],TRUE,FALSE)","v":false},{"$f":"IF(COUNTIFS($A$1:$A4,Таблица_Металлопроцессинг_детализированный[[#This Row],[Месяц отгрузки]],$O$1:$O4,Таблица_Металлопроцессинг_детализированный[[#This Row],[Контрагент]])>0,0,SUMIFS($AA$2:$AA$177,$O$2:$O$177,Таблица_Металлопроцессинг_детализированный[[#This Row],[Контрагент]],$A$2:$A$177,Таблица_Металлопроцессинг_детализированный[[#This Row],[Месяц отгрузки]]))","v":34484.47},{"$f":"IF(Таблица_Металлопроцессинг_детализированный[[#This Row],[Инициатор+исполнитель]],1,IF(Таблица_Металлопроцессинг_детализированный[[#This Row],[Оборот за месяц по контрагенту]]<1000000,0.5,0.7))","v":0.5},{"$f":"IF(Таблица_Металлопроцессинг_детализированный[[#This Row],[Инициатор+исполнитель]]=TRUE,0,IF(Таблица_Металлопроцессинг_детализированный[[#This Row],[Оборот за месяц по контрагенту]]<1000000,0.5,0.3))","v":0.5},{"$f":"Таблица_Металлопроцессинг_детализированный[[#This Row],[Сумма наценки]]*Таблица_Металлопроцессинг_детализированный[[#This Row],[Распределение выручки для Куратора договора]]","v":900},{"$f":"IF(Таблица_Металлопроцессинг_детализированный[[#This Row],[Распределение выручки для Менеджера договора]]=1,\"\",Таблица_Металлопроцессинг_детализированный[[#This Row],[Сумма наценки]]*Таблица_Металлопроцессинг_детализированный[[#This Row],[Распределение выручки для Менеджера договора]])","v":900},"Из давальческого сырья","САНКТ-ПЕТЕРБУРГ","АСТ СПБ","ЗАО \"АСТ\"",null,null,"Стройиндустрия","Изделие","Каркас поддерживающий  Вариант 3",15,"шт",5618.85,"Ручная сборка и доварка каркаса","IDEA",1800,15,15,1,"САНКТ-ПЕТЕРБУРГ","Центр",0.14799999999999999]
[1,"САНКТ-ПЕТЕРБУРГ","Центр","Петров А.Б. (уволен)","Петров(С.-П.) А.Б.","Петров А.Б. (уволен)",{"$f":"IF(Таблица_Металлопроцессинг_детализированный[[#This Row],[Куратор договора]]=Таблица_Металлопроцессинг_детализированный[[#This Row],[Менеджер]],TRUE,FALSE)","v":true},{"$f":"IF(COUNTIFS($A$1:$A5,Таблица_Металлопроцессинг_детализированный[[#This Row],[Месяц отгрузки]],$O$1:$O5,Таблица_Металлопроцессинг_детализированный[[#This Row],[Контрагент]])>0,0,SUMIFS($AA$2:$AA$177,$O$2:$O$177,Таблица_Металлопроцессинг_детализированный[[#This Row],[Контрагент]],$A$2:$A$177,Таблица_Металлопроцессинг_детализированный[[#This Row],[Месяц отгрузки]]))","v":0},{"$f":"IF(Таблица_Металлопроцессинг_детализированный[[#This Row],[Инициатор+исполнитель]],1,IF(Таблица_Металлопроцессинг_детализированный[[#This Row],[Оборот за месяц по контрагенту]]<1000000,0.5,0.7))","v":1},{"$f":"IF(Таблица_Металлопроцессинг_детализированный[[#This Row],[Инициатор+исполнитель]]=TRUE,0,IF(Таблица_Металлопроцессинг_детализированный[[#This Row],[Оборот за месяц по контрагенту]]<1000000,0.5,0.3))","v":0},{"$f":"Таблица_Металлопроцессинг_детализированный[[#This Row],[Сумма наценки]]*Таблица_Металлопроцессинг_детализированный[[#This Row],[Распределение выручки для Куратора договора]]","v":14791.67},{"$f":"IF(Таблица_Металлопроцессинг_детализированный[[#This Row],[Распределение выручки для Менеджера договора]]=1,\"\",Таблица_Металлопроцессинг_детализированный[[#This Row],[Сумма наценки]]*Таблица_Металлопроцессинг_детализированный[[#This Row],[Распределение выручки для Менеджера договора]])","v":0},"Из давальческого сырья","САНКТ-ПЕТЕРБУРГ","АСТ СПБ","ЗАО \"АСТ\"",null,null,"Стройиндустрия","Изделие","Каркас поддерживающий  Вариант 1",199,"шт",50997.73,"Ручная сборка и доварка каркаса","IDEA",14791.67,199,199,1,"САНКТ-ПЕТЕРБУРГ","Центр",1.444]
[1,"САНКТ-ПЕТЕРБУРГ","Центр","Дауэнгауэр Н.Э.","Дауэнгауэр Н.Э.","Дауэнгауэр Н.Э.",{"$f":"IF(Таблица_Металлопроцессинг_детализированный[[#This Row],[Куратор договора]]=Таблица_Металлопроцессинг_детализированный[[#This Row],[Менеджер]],TRUE,FALSE)","v":true},{"$f":"IF(COUNTIFS($A$1:$A6,Таблица_Металлопроцессинг_детализированный[[#This Row],[Месяц отгрузки]],$O$1:$O6,Таблица_Металлопроцессинг_детализированный[[#This Row],[Контрагент]])>0,0,SUMIFS($AA$2:$AA$177,$O$2:$O$177,Таблица_Металлопроцессинг_детализированный[[#This Row],[Контрагент]],$A$2:$A$177,Таблица_Металлопроцессинг_детализированный[[#This Row],[Месяц отгрузки]]))","v":21321.5},{"$f":"IF(Таблица_Металлопроцессинг_детализированный[[#This Row],[Инициатор+исполнитель]],1,IF(Таблица_Металлопроцессинг_детализированный[[#This Row],[Оборот за месяц по контрагенту]]<1000000,0.5,0.7))","v":1},{"$f":"IF(Таблица_Металлопроцессинг_детализированный[[#This Row],[Инициатор+исполнитель]]=TRUE,0,IF(Таблица_Металлопроцессинг_детализированный[[#This Row],[Оборот за месяц по контрагенту]]<1000000,0.5,0.3))","v":0},{"$f":"Таблица_Металлопроцессинг_детализированный[[#This Row],[Сумма наценки]]*Таблица_Металлопроцессинг_детализированный[[#This Row],[Распределение выручки для Куратора договора]]","v":1650},{"$f":"IF(Таблица_Металлопроцессинг_детализированный[[#This Row],[Распределение выручки для Менеджера договора]]=1,\"\",Таблица_Металлопроцессинг_детализированный[[#This Row],[Сумма наценки]]*Таблица_Металлопроцессинг_детализированный[[#This Row],[Распределение выручки для Менеджера договора]])","v":0},"Процессинг","САНКТ-ПЕТЕРБУРГ","БЗ-СУДОСТРОЕНИЕ","ООО \"Балтийский завод-Судостроение\"",null,null,"Машиностроение","Уголок стальной г/к равнополочный, 25x4, Ст.сп/пс (ГОСТ 8509-93)",null,1.5,"т",41310,"Порезка (станок ленточнопильный)",null,1650,1,1.5,null,"САНКТ-ПЕТЕРБУРГ","Центр",1.5]
[1,"САНКТ-ПЕТЕРБУРГ","Центр","Дауэнгауэр Н.Э.","Дауэнгауэр Н.Э.","Дауэнгауэр Н.Э.",{"$f":"IF(Таблица_Металлопроцессинг_детализированный[[#This Row],[Куратор договора]]=Таблица_Металлопроцессинг_детализированный[[#This Row],[Менеджер]],TRUE,FALSE)","v":true},{"$f":"IF(COUNTIFS($A$1:$A7,Таблица_Металлопроцессинг_детализированный[[#This Row],[Месяц отгрузки]],$O$1:$O7,Таблица_Металлопроцессинг_детализированный[[#This Row],[Контрагент]])>0,0,SUMIFS($AA$2:$AA$177,$O$2:$O$177,Таблица_Металлопроцессинг_детализированный[[#This Row],[Контрагент]],$A$2:$A$177,Таблица_Металлопроцессинг_детализированный[[#This Row],[Месяц отгрузки]]))","v":0},{"$f":"IF(Таблица_Металлопроцессинг_детализированный[[#This Row],[Инициатор+исполнитель]],1,IF(Таблица_Металлопроцессинг_детализированный[[#This Row],[Оборот за месяц по контрагенту]]<1000000,0.5,0.7))","v":1},{"$f":"IF(Таблица_Металлопроцессинг_детализированный[[#This Row],[Инициатор+исполнитель]]=TRUE,0,IF(Таблица_Металлопроцессинг_детализированный[[#This Row],[Оборот за месяц по контрагенту]]<1000000,0.5,0.3))","v":0},{"$f":"Таблица_Металлопроцессинг_детализированный[[#This Row],[Сумма наценки]]*Таблица_Металлопроцессинг_детализированный[[#This Row],[Распределение выручки для Куратора договора]]","v":2475},{"$f":"IF(Таблица_Металлопроцессинг_детализированный[[#This Row],[Распределение выручки для Менеджера договора]]=1,\"\",Таблица_Металлопроцессинг_детализированный[[#This Row],[Сумма наценки]]*Таблица_Металлопроцессинг_детализированный[[#This Row],[Распределение выручки для Менеджера договора]])","v":0},"Процессинг","САНКТ-ПЕТЕРБУРГ","БЗ-СУДОСТРОЕНИЕ","ООО \"Балтийский завод-Судостроение\"",null,null,"Машиностроение","Швеллер стальной г/к, 10П, Ст.сп/пс, н/дл (ГОСТ 535-88/ ГОСТ 535-05)",null,0.99,"т",24294.6,"Порезка (станок ленточнопильный)",null,2475,1,1,null,"САНКТ-ПЕТЕРБУРГ","Центр",0.99]
[1,"САНКТ-ПЕТЕРБУРГ","Центр","Дауэнгауэр Н.Э.","Дауэнгауэр Н.Э.","Дауэнгауэр Н.Э.",{"$f":"IF(Таблица_Металлопроцессинг_детализированный[[#This Row],[Куратор договора]]=Таблица_Металлопроцессинг_детализированный[[#This Row],[Менеджер]],TRUE,FALSE)","v":true},{"$f":"IF(COUNTIFS($A$1:$A8,Таблица_Металлопроцессинг_детализированный[[#This Row],[Месяц отгрузки]],$O$1:$O8,Таблица_Металлопроцессинг_детализированный[[#This Row],[Контрагент]])>0,0,SUMIFS($AA$2:$AA$177,$O$2:$O$177,Таблица_Металлопроцессинг_детализированный[[#This Row],[Контрагент]],$A$2:$A$177,Таблица_Металлопроцессинг_детализированный[[#This Row],[Месяц отгрузки]]))","v":0},{"$f":"IF(Таблица_Металлопроцессинг_детализированный[[#This Row],[Инициатор+исполнитель]],1,IF(Таблица_Металлопроцессинг_детализированный[[#This Row],[Оборот за месяц по контрагенту]]<1000000,0.5,0.7))","v":1},{"$f":"IF(Таблица_Металлопроцессинг_детализированный[[#This Row],[Инициатор+исполнитель]]=TRUE,0,IF(Таблица_Металлопроцессинг_детализированный[[#This Row],[Оборот за месяц по контрагенту]]<1000000,0.5,0.3))","v":0},{"$f":"Таблица_Металлопроцессинг_детализированный[[#This Row],[Сумма наценки]]*Таблица_Металлопроцессинг_детализированный[[#This Row],[Распределение выручки для Куратора договора]]","v":1000},{"$f":"IF(Таблица_Металлопроцессинг_детализированный[[#This Row],[Распределение выручки для Менеджера договора]]=1,\"\",Таблица_Металлопроцессинг_детализированный[[#This Row],[Сумма наценки]]*Таблица_Металлопроцессинг_детализированный[[#This Row],[Распределение выручки для Менеджера договора]])","v":0},"Процессинг","САНКТ-ПЕТЕРБУРГ","БЗ-СУДОСТРОЕНИЕ","ООО \"Балтийский завод-Судостроение\"",null,null,"Машиностроение","Швеллер стальной Г/к., 12П, Ст.сп/пс (ГОСТ 8240-97)",null,2,"т",56420,"Порезка (станок ленточнопильный)",null,1000,1,2,null,"САНКТ-ПЕТЕРБУРГ","Центр",2]
[1,"САНКТ-ПЕТЕРБУРГ","Центр","Дауэнгауэр Н.Э.","Дауэнгауэр Н.Э.","Дауэнгауэр Н.Э.",{"$f":"IF(Таблица_Металлопроцессинг_детализированный[[#This Row],[Куратор договора]]=Таблица_Металлопроцессинг_детализированный[[#This Row],[Менеджер]],TRUE,FALSE)","v":true},{"$f":"IF(COUNTIFS($A$1:$A9,Таблица_Металлопроцессинг_детализированный[[#This Row],[Месяц отгрузки]],$O$1:$O9,Таблица_Металлопроцессинг_детализированный[[#This Row],[Контрагент]])>0,0,SUMIFS($AA$2:$AA$177,$O$2:$O$177,Таблица_Металлопроцессинг_детализированный[[#This Row],[Контрагент]],$A$2:$A$177,Таблица_Металлопроцессинг_детализированный[[#This Row],[Месяц отгрузки]]))","v":0},{"$f":"IF(Таблица_Металлопроцессинг_детализированный[[#This Row],[Инициатор+исполнитель]],1,IF(Таблица_Металлопроцессинг_детализированный[[#This Row],[Оборот за месяц по контрагенту]]<1000000,0.5,0.7))","v":1},{"$f":"IF(Таблица_Металлопроцессинг_детализированный[[#This Row],[Инициатор+исполнитель]]=TRUE,0,IF(Таблица_Металлопроцессинг_детализированный[[#This Row],[Оборот за месяц по контрагенту]]<1000000,0.5,0.3))","v":0},{"$f":"Таблица_Металлопроцессинг_детализированный[[#This Row],[Сумма наценки]]*Таблица_Металлопроцессинг_детализированный[[#This Row],[Распределение выручки для Куратора договора]]","v":2757.5},{"$f":"IF(Таблица_Металлопроцессинг_детализированный[[#This Row],[Распределение выручки для Менеджера договора]]=1,\"\",Таблица_Металлопроцессинг_детализированный[[#This Row],[Сумма наценки]]*Таблица_Металлопроцессинг_детализированный[[#This Row],[Распределение выручки для Менеджера договора]])","v":0},"Процессинг","САНКТ-ПЕТЕРБУРГ","БЗ-СУДОСТРОЕНИЕ","ООО \"Балтийский завод-Судостроение\"",null,null,"Машиностроение","Швеллер стальной Г/к., 14П, Ст.сп/пс (ГОСТ 8240-97)",null,5.5149999999999997,"т",155578.15,"Порезка (станок ленточнопильный)",null,2757.5,1,5.5,null,"САНКТ-ПЕТЕРБУРГ","Центр",5.5149999999999997]
[1,"САНКТ-ПЕТЕРБУРГ","Центр","Дауэнгауэр Н.Э.","Дауэнгауэр Н.Э.","Дауэнгауэр Н.Э.",{"$f":"IF(Таблица_Металлопроцессинг_детализированный[[#This Row],[Куратор договора]]=Таблица_Металлопроцессинг_детализированный[[#This Row],[Менеджер]],TRUE,FALSE)","v":true},{"$f":"IF(COUNTIFS($A$1:$A10,Таблица_Металлопроцессинг_детализированный[[#This Row],[Месяц отгрузки]],$O$1:$O10,Таблица_Металлопроцессинг_детализированный[[#This Row],[Контрагент]])>0,0,SUMIFS($AA$2:$AA$177,$O$2:$O$177,Таблица_Металлопроцессинг_детализированный[[#This Row],[Контрагент]],$A$2:$A$177,Таблица_Металлопроцессинг_детализированный[[#This Row],[Месяц отгрузки]]))","v":0},{"$f":"IF(Таблица_Металлопроцессинг_детализированный[[#This Row],[Инициатор+исполнитель]],1,IF(Таблица_Металлопроцессинг_детализированный[[#This Row],[Оборот за месяц по контрагенту]]<1000000,0.5,0.7))","v":1},{"$f":"IF(Таблица_Металлопроцессинг_детализированный[[#This Row],[Инициатор+исполнитель]]=TRUE,0,IF(Таблица_Металлопроцессинг_детализированный[[#This Row],[Оборот за месяц по контрагенту]]<1000000,0.5,0.3))","v":0},{"$f":"Таблица_Металлопроцессинг_детализированный[[#This Row],[Сумма наценки]]*Таблица_Металлопроцессинг_детализированный[[#This Row],[Распределение выручки для Куратора договора]]","v":2232},{"$f":"IF(Таблица_Металлопроцессинг_детализированный[[#This Row],[Распределение выручки для Менеджера договора]]=1,\"\",Таблица_Металлопроцессинг_детализированный[[#This Row],[Сумма наценки]]*Таблица_Металлопроцессинг_детализированный[[#This Row],[Распределение выручки для Менеджера договора]])","v":0},"Процессинг","САНКТ-ПЕТЕРБУРГ","БЗ-СУДОСТРОЕНИЕ","ООО \"Балтийский завод-Судостроение\"",null,null,"Машиностроение","Уголок стальной г/к равнополочный, 100x10, Ст.сп/пс (ГОСТ 8509-93)",null,7.44,"т",209882.4,"Порезка (станок ленточнопильный)",null,2232,1,9.4139999999999997,null,"САНКТ-ПЕТЕРБУРГ","Центр",7.44]
[1,"САНКТ-ПЕТЕРБУРГ","Центр","Дауэнгауэр Н.Э.","Дауэнгауэр Н.Э.","Дауэнгауэр Н.Э.",{"$f":"IF(Таблица_Металлопроцессинг_детализированный[[#This Row],[Куратор договора]]=Таблица_Металлопроцессинг_детализированный[[#This Row],[Менеджер]],TRUE,FALSE)","v":true},{"$f":"IF(COUNTIFS($A$1:$A11,Таблица_Металлопроцессинг_детализированный[[#This Row],[Месяц отгрузки]],$O$1:$O11,Таблица_Металлопроцессинг_детализированный[[#This Row],[Контрагент]])>0,0,SUMIFS($AA$2:$AA$177,$O$2:$O$177,Таблица_Металлопроцессинг_детализированный[[#This Row],[Контрагент]],$A$2:$A$177,Таблица_Металлопроцессинг_детализированный[[#This Row],[Месяц отгрузки]]))","v":65514},{"$f":"IF(Таблица_Металлопроцессинг_детализированный[[#This Row],[Инициатор+исполнитель]],1,IF(Таблица_Металлопроцессинг_детализированный[[#This Row],[Оборот за месяц по контрагенту]]<1000000,0.5,0.7))","v":1},{"$f":"IF(Таблица_Металлопроцессинг_детализированный[[#This Row],[Инициатор+исполнитель]]=TRUE,0,IF(Таблица_Металлопроцессинг_детализированный[[#This Row],[Оборот за месяц по контрагенту]]<1000000,0.5,0.3))","v":0},{"$f":"Таблица_Металлопроцессинг_детализированный[[#This Row],[Сумма наценки]]*Таблица_Металлопроцессинг_детализированный[[#This Row],[Распределение выручки для Куратора договора]]","v":6090},{"$f":"IF(Таблица_Металлопроцессинг_детализированный[[#This Row],[Распределение выручки для Менеджера договора]]=1,\"\",Таблица_Металлопроцессинг_детализированный[[#This Row],[Сумма наценки]]*Таблица_Металлопроцессинг_детализированный[[#This Row],[Распределение выручки для Менеджера договора]])","v":0},"Процессинг","САНКТ-ПЕТЕРБУРГ","СКМ Фирма","ООО \"Фирма СКМ\"","Ленинградская обл.","Ленинградская обл.","Машиностроение","Сталь листовая Х/к., 1.5, 1250x2500, Ст.кп/пс (ТУ 14-106-321-2010)",null,2.0299999999999998,"т",55459.6,"Порезка листового проката (ножницы)",null,6090,1,2,null,"САНКТ-ПЕТЕРБУРГ","Центр",2.0299999999999998]
[1,"САНКТ-ПЕТЕРБУРГ","Центр","Дауэнгауэр Н.Э.","Дауэнгауэр Н.Э.","Дауэнгауэр Н.Э.",{"$f":"IF(Таблица_Металлопроцессинг_детализированный[[#This Row],[Куратор договора]]=Таблица_Металлопроцессинг_детализированный[[#This Row],[Менеджер]],TRUE,FALSE)","v":true},{"$f":"IF(COUNTIFS($A$1:$A12,Таблица_Металлопроцессинг_детализированный[[#This Row],[Месяц отгрузки]],$O$1:$O12,Таблица_Металлопроцессинг_детализированный[[#This Row],[Контрагент]])>0,0,SUMIFS($AA$2:$AA$177,$O$2:$O$177,Таблица_Металлопроцессинг_детализированный[[#This Row],[Контрагент]],$A$2:$A$177,Таблица_Металлопроцессинг_детализированный[[#This Row],[Месяц отгрузки]]))","v":0},{"$f":"IF(Таблица_Металлопроцессинг_детализированный[[#This Row],[Инициатор+исполнитель]],1,IF(Таблица_Металлопроцессинг_детализированный[[#This Row],[Оборот за месяц по контрагенту]]<1000000,0.5,0.7))","v":1},{"$f":"IF(Таблица_Металлопроцессинг_детализированный[[#This Row],[Инициатор+исполнитель]]=TRUE,0,IF(Таблица_Металлопроцессинг_детализированный[[#This Row],[Оборот за месяц по контрагенту]]<1000000,0.5,0.3))","v":0},{"$f":"Таблица_Металлопроцессинг_детализированный[[#This Row],[Сумма наценки]]*Таблица_Металлопроцессинг_детализированный[[#This Row],[Распределение выручки для Куратора договора]]","v":3600},{"$f":"IF(Таблица_Металлопроцессинг_детализированный[[#This Row],[Распределение выручки для Менеджера договора]]=1,\"\",Таблица_Металлопроцессинг_детализированный[[#This Row],[Сумма наценки]]*Таблица_Металлопроцессинг_детализированный[[#This Row],[Распределение выручки для Менеджера договора]])","v":0},"Процессинг","САНКТ-ПЕТЕРБУРГ","БЗ-СУДОСТРОЕНИЕ","ООО \"Балтийский завод-Судостроение\"",null,null,"Машиностроение","Уголок стальной г/к равнополочный, 63x5, Ст.сп/пс, н/дл (ГОСТ 8509-93)",null,3,"т",75300,"Порезка (станок ленточнопильный)",null,3600,1,3,null,"САНКТ-ПЕТЕРБУРГ","Центр",3]
[1,"САНКТ-ПЕТЕРБУРГ","Центр","Дауэнгауэр Н.Э.","Дауэнгауэр Н.Э.","Дауэнгауэр Н.Э.",{"$f":"IF(Таблица_Металлопроцессинг_детализированный[[#This Row],[Куратор договора]]=Таблица_Металлопроцессинг_детализированный[[#This Row],[Менеджер]],TRUE,FALSE)","v":true},{"$f":"IF(COUNTIFS($A$1:$A13,Таблица_Металлопроцессинг_детализированный[[#This Row],[Месяц отгрузки]],$O$1:$O13,Таблица_Металлопроцессинг_детализированный[[#This Row],[Контрагент]])>0,0,SUMIFS($AA$2:$AA$177,$O$2:$O$177,Таблица_Металлопроцессинг_детализированный[[#This Row],[Контрагент]],$A$2:$A$177,Таблица_Металлопроцессинг_детализированный[[#This Row],[Месяц отгрузки]]))","v":0},{"$f":"IF(Таблица_Металлопроцессинг_детализированный[[#This Row],[Инициатор+исполнитель]],1,IF(Таблица_Металлопроцессинг_детализированный[[#This Row],[Оборот за месяц по контрагенту]]<1000000,0.5,0.7))","v":1},{"$f":"IF(Таблица_Металлопроцессинг_детализированный[[#This Row],[Инициатор+исполнитель]]=TRUE,0,IF(Таблица_Металлопроцессинг_детализированный[[#This Row],[Оборот за месяц по контрагенту]]<1000000,0.5,0.3))","v":0},{"$f":"Таблица_Металлопроцессинг_детализированный[[#This Row],[Сумма наценки]]*Таблица_Металлопроцессинг_детализированный[[#This Row],[Распределение выручки для Куратора договора]]","v":18225},{"$f":"IF(Таблица_Металлопроцессинг_детализированный[[#This Row],[Распределение выручки для Менеджера договора]]=1,\"\",Таблица_Металлопроцессинг_детализированный[[#This Row],[Сумма наценки]]*Таблица_Металлопроцессинг_детализированный[[#This Row],[Распределение выручки для Менеджера договора]])","v":0},"Процессинг","САНКТ-ПЕТЕРБУРГ","СКМ Фирма","ООО \"Фирма СКМ\"","Ленинградская обл.","Ленинградская обл.","Машиностроение","Сталь рулонная х/к, 1.5, 1250, Ст.сп/пс (ТУ 14-106-321-2010)",null,4.05,"т",113359.5,"Порезка листового проката поперечная","CAMU RDC 1500/6",18225,1,5,1,"САНКТ-ПЕТЕРБУРГ","Центр",4.05]
[1,"САНКТ-ПЕТЕРБУРГ","Центр","Ипатова Е.Н.","Ипатова Е.Н.","Ипатова Е.Н.",{"$f":"IF(Таблица_Металлопроцессинг_детализированный[[#This Row],[Куратор договора]]=Таблица_Металлопроцессинг_детализированный[[#This Row],[Менеджер]],TRUE,FALSE)","v":true},{"$f":"IF(COUNTIFS($A$1:$A14,Таблица_Металлопроцессинг_детализированный[[#This Row],[Месяц отгрузки]],$O$1:$O14,Таблица_Металлопроцессинг_детализированный[[#This Row],[Контрагент]])>0,0,SUMIFS($AA$2:$AA$177,$O$2:$O$177,Таблица_Металлопроцессинг_детализированный[[#This Row],[Контрагент]],$A$2:$A$177,Таблица_Металлопроцессинг_детализированный[[#This Row],[Месяц отгрузки]]))","v":61200},{"$f":"IF(Таблица_Металлопроцессинг_детализированный[[#This Row],[Инициатор+исполнитель]],1,IF(Таблица_Металлопроцессинг_детализированный[[#This Row],[Оборот за месяц по контрагенту]]<1000000,0.5,0.7))","v":1},{"$f":"IF(Таблица_Металлопроцессинг_детализированный[[#This Row],[Инициатор+исполнитель]]=TRUE,0,IF(Таблица_Металлопроцессинг_детализированный[[#This Row],[Оборот за месяц по контрагенту]]<1000000,0.5,0.3))","v":0},{"$f":"Таблица_Металлопроцессинг_детализированный[[#This Row],[Сумма наценки]]*Таблица_Металлопроцессинг_детализированный[[#This Row],[Распределение выручки для Куратора договора]]","v":27000},{"$f":"IF(Таблица_Металлопроцессинг_детализированный[[#This Row],[Распределение выручки для Менеджера договора]]=1,\"\",Таблица_Металлопроцессинг_детализированный[[#This Row],[Сумма наценки]]*Таблица_Металлопроцессинг_детализированный[[#This Row],[Распределение выручки для Менеджера договора]])","v":0},"Процессинг","САНКТ-ПЕТЕРБУРГ","НИКОЛЬСКИЙ ЗМК","ООО \"Никольский завод металлоконструкций\"","Ленинградская обл.","Ленинградская обл.","Металлоконструкции","Сталь листовая Г/к., 12, 1500x6000, Ст.сп/пс (ГОСТ 14637)",null,25.5,"т",580635,"Очистка проката (дробь 1,0мм, 0,8мм)","ROSLER",27000,270,8.5,1,"САНКТ-ПЕТЕРБУРГ","Центр",25.5]
[1,"САНКТ-ПЕТЕРБУРГ","Центр","Зиновьев С.Ю.","Зиновьев С.Ю.","Зиновьев С.Ю.",{"$f":"IF(Таблица_Металлопроцессинг_детализированный[[#This Row],[Куратор договора]]=Таблица_Металлопроцессинг_детализированный[[#This Row],[Менеджер]],TRUE,FALSE)","v":true},{"$f":"IF(COUNTIFS($A$1:$A15,Таблица_Металлопроцессинг_детализированный[[#This Row],[Месяц отгрузки]],$O$1:$O15,Таблица_Металлопроцессинг_детализированный[[#This Row],[Контрагент]])>0,0,SUMIFS($AA$2:$AA$177,$O$2:$O$177,Таблица_Металлопроцессинг_детализированный[[#This Row],[Контрагент]],$A$2:$A$177,Таблица_Металлопроцессинг_детализированный[[#This Row],[Месяц отгрузки]]))","v":340},{"$f":"IF(Таблица_Металлопроцессинг_детализированный[[#This Row],[Инициатор+исполнитель]],1,IF(Таблица_Металлопроцессинг_детализированный[[#This Row],[Оборот за месяц по контрагенту]]<1000000,0.5,0.7))","v":1},{"$f":"IF(Таблица_Металлопроцессинг_детализированный[[#This Row],[Инициатор+исполнитель]]=TRUE,0,IF(Таблица_Металлопроцессинг_детализированный[[#This Row],[Оборот за месяц по контрагенту]]<1000000,0.5,0.3))","v":0},{"$f":"Таблица_Металлопроцессинг_детализированный[[#This Row],[Сумма наценки]]*Таблица_Металлопроцессинг_детализированный[[#This Row],[Распределение выручки для Куратора договора]]","v":340},{"$f":"IF(Таблица_Металлопроцессинг_детализированный[[#This Row],[Распределение выручки для Менеджера договора]]=1,\"\",Таблица_Металлопроцессинг_детализированный[[#This Row],[Сумма наценки]]*Таблица_Металлопроцессинг_детализированный[[#This Row],[Распределение выручки для Менеджера договора]])","v":0},"Процессинг","САНКТ-ПЕТЕРБУРГ","Северо-Запад ПГ","ООО \"Промышленная группа \"СЕВЕРО-ЗАПАД\"",null,null,"Металлоторговля","Швеллер стальной Г/к., 8У, Ст.сп/пс (ГОСТ 8240-97)",null,0.16,"т",4336,"Станок ленточнопильный","PEGASUS",340,2,0.16500000000000001,1,"САНКТ-ПЕТЕРБУРГ","Центр",0.16]
[1,"САНКТ-ПЕТЕРБУРГ","Центр","Ипатова Е.Н.","Ипатова Е.Н.","Ипатова Е.Н.",{"$f":"IF(Таблица_Металлопроцессинг_детализированный[[#This Row],[Куратор договора]]=Таблица_Металлопроцессинг_детализированный[[#This Row],[Менеджер]],TRUE,FALSE)","v":true},{"$f":"IF(COUNTIFS($A$1:$A16,Таблица_Металлопроцессинг_детализированный[[#This Row],[Месяц отгрузки]],$O$1:$O16,Таблица_Металлопроцессинг_детализированный[[#This Row],[Контрагент]])>0,0,SUMIFS($AA$2:$AA$177,$O$2:$O$177,Таблица_Металлопроцессинг_детализированный[[#This Row],[Контрагент]],$A$2:$A$177,Таблица_Металлопроцессинг_детализированный[[#This Row],[Месяц отгрузки]]))","v":14476},{"$f":"IF(Таблица_Металлопроцессинг_детализированный[[#This Row],[Инициатор+исполнитель]],1,IF(Таблица_Металлопроцессинг_детализированный[[#This Row],[Оборот за месяц по контрагенту]]<1000000,0.5,0.7))","v":1},{"$f":"IF(Таблица_Металлопроцессинг_детализированный[[#This Row],[Инициатор+исполнитель]]=TRUE,0,IF(Таблица_Металлопроцессинг_детализированный[[#This Row],[Оборот за месяц по контрагенту]]<1000000,0.5,0.3))","v":0},{"$f":"Таблица_Металлопроцессинг_детализированный[[#This Row],[Сумма наценки]]*Таблица_Металлопроцессинг_детализированный[[#This Row],[Распределение выручки для Куратора договора]]","v":500},{"$f":"IF(Таблица_Металлопроцессинг_детализированный[[#This Row],[Распределение выручки для Менеджера договора]]=1,\"\",Таблица_Металлопроцессинг_детализированный[[#This Row],[Сумма наценки]]*Таблица_Металлопроцессинг_детализированный[[#This Row],[Распределение выручки для Менеджера договора]])","v":0},"Процессинг","САНКТ-ПЕТЕРБУРГ","ОЛЛТРЕЙД-НЕВА","ООО\"ОЛЛТРЕЙД-НЕВА\"",null,null,"Металлоторговля","Арматура класс АI, 12, Ст.сп/пс, в бунтах (ГОСТ 5781-82)",null,0.1,"т",2899,"Размотка/резка арматурного проката","MELC 16x4",500,1,0.1,1,"САНКТ-ПЕТЕРБУРГ","Центр",0.1]
[1,"САНКТ-ПЕТЕРБУРГ","Центр","Дауэнгауэр Н.Э.","Дауэнгауэр Н.Э.","Ипатова Е.Н.",{"$f":"IF(Таблица_Металлопроцессинг_детализированный[[#This Row],[Куратор договора]]=Таблица_Металлопроцессинг_детализированный[[#This Row],[Менеджер]],TRUE,FALSE)","v":false},{"$f":"IF(COUNTIFS($A$1:$A17,Таблица_Металлопроцессинг_детализированный[[#This Row],[Месяц отгрузки]],$O$1:$O17,Таблица_Металлопроцессинг_детализированный[[#This Row],[Контрагент]])>0,0,SUMIFS($AA$2:$AA$177,$O$2:$O$177,Таблица_Металлопроцессинг_детализированный[[#This Row],[Контрагент]],$A$2:$A$177,Таблица_Металлопроцессинг_детализированный[[#This Row],[Месяц отгрузки]]))","v":55198.2},{"$f":"IF(Таблица_Металлопроцессинг_детализированный[[#This Row],[Инициатор+исполнитель]],1,IF(Таблица_Металлопроцессинг_детализированный[[#This Row],[Оборот за месяц по контрагенту]]<1000000,0.5,0.7))","v":0.5},{"$f":"IF(Таблица_Металлопроцессинг_детализированный[[#This Row],[Инициатор+исполнитель]]=TRUE,0,IF(Таблица_Металлопроцессинг_детализированный[[#This Row],[Оборот за месяц по контрагенту]]<1000000,0.5,0.3))","v":0.5},{"$f":"Таблица_Металлопроцессинг_детализированный[[#This Row],[Сумма наценки]]*Таблица_Металлопроцессинг_детализированный[[#This Row],[Распределение выручки для Куратора договора]]","v":3662.5},{"$f":"IF(Таблица_Металлопроцессинг_детализированный[[#This Row],[Распределение выручки для Менеджера договора]]=1,\"\",Таблица_Металлопроцессинг_детализированный[[#This Row],[Сумма наценки]]*Таблица_Металлопроцессинг_детализированный[[#This Row],[Распределение выручки для Менеджера договора]])","v":3662.5},"Процессинг","САНКТ-ПЕТЕРБУРГ","НОВАЯ ЭРА","ОАО \"Новая ЭРА\"","г. Санкт-Петербург ","г. Санкт-Петербург ","Машиностроение","Сталь листовая Х/к., 2, 1250x2500, Ст.кп/пс (ТУ 14-106-321-2010)",null,2.93,"т",80047.600000000006,"Порезка листового проката (ножницы)",null,7325,1,3,null,"САНКТ-ПЕТЕРБУРГ","Центр",2.93]
[1,"САНКТ-ПЕТЕРБУРГ","Центр","Дауэнгауэр Н.Э.","Дауэнгауэр Н.Э.","Дауэнгауэр Н.Э.",{"$f":"IF(Таблица_Металлопроцессинг_детализированный[[#This Row],[Куратор договора]]=Таблица_Металлопроцессинг_детализированный[[#This Row],[Менеджер]],TRUE,FALSE)","v":true},{"$f":"IF(COUNTIFS($A$1:$A18,Таблица_Металлопроцессинг_детализированный[[#This Row],[Месяц отгрузки]],$O$1:$O18,Таблица_Металлопроцессинг_детализированный[[#This Row],[Контрагент]])>0,0,SUMIFS($AA$2:$AA$177,$O$2:$O$177,Таблица_Металлопроцессинг_детализированный[[#This Row],[Контрагент]],$A$2:$A$177,Таблица_Металлопроцессинг_детализированный[[#This Row],[Месяц отгрузки]]))","v":0},{"$f":"IF(Таблица_Металлопроцессинг_детализированный[[#This Row],[Инициатор+исполнитель]],1,IF(Таблица_Металлопроцессинг_детализированный[[#This Row],[Оборот за месяц по контрагенту]]<1000000,0.5,0.7))","v":1},{"$f":"IF(Таблица_Металлопроцессинг_детализированный[[#This Row],[Инициатор+исполнитель]]=TRUE,0,IF(Таблица_Металлопроцессинг_детализированный[[#This Row],[Оборот за месяц по контрагенту]]<1000000,0.5,0.3))","v":0},{"$f":"Таблица_Металлопроцессинг_детализированный[[#This Row],[Сумма наценки]]*Таблица_Металлопроцессинг_детализированный[[#This Row],[Распределение выручки для Куратора договора]]","v":5020},{"$f":"IF(Таблица_Металлопроцессинг_детализированный[[#This Row],[Распределение выручки для Менеджера договора]]=1,\"\",Таблица_Металлопроцессинг_детализированный[[#This Row],[Сумма наценки]]*Таблица_Металлопроцессинг_детализированный[[#This Row],[Распределение выручки для Менеджера договора]])","v":0},"Процессинг","САНКТ-ПЕТЕРБУРГ","НОВАЯ ЭРА","ОАО \"Новая ЭРА\"","г. Санкт-Петербург ","г. Санкт-Петербург ","Машиностроение","Сталь листовая Х/к., 1.5, 1250x2500, Ст.кп/пс (ТУ 14-106-321-2010)",null,2,"т",54640,"Порезка листового проката (ножницы)",null,5020,1,2,null,"САНКТ-ПЕТЕРБУРГ","Центр",2]
[1,"САНКТ-ПЕТЕРБУРГ","Центр","Молчанова Е.М.","Молчанова Е.М.","Молчанова Е.М.",{"$f":"IF(Таблица_Металлопроцессинг_детализированный[[#This Row],[Куратор договора]]=Таблица_Металлопроцессинг_детализированный[[#This Row],[Менеджер]],TRUE,FALSE)","v":true},{"$f":"IF(COUNTIFS($A$1:$A19,Таблица_Металлопроцессинг_детализированный[[#This Row],[Месяц отгрузки]],$O$1:$O19,Таблица_Металлопроцессинг_детализированный[[#This Row],[Контрагент]])>0,0,SUMIFS($AA$2:$AA$177,$O$2:$O$177,Таблица_Металлопроцессинг_детализированный[[#This Row],[Контрагент]],$A$2:$A$177,Таблица_Металлопроцессинг_детализированный[[#This Row],[Месяц отгрузки]]))","v":1000},{"$f":"IF(Таблица_Металлопроцессинг_детализированный[[#This Row],[Инициатор+исполнитель]],1,IF(Таблица_Металлопроцессинг_детализированный[[#This Row],[Оборот за месяц по контрагенту]]<1000000,0.5,0.7))","v":1},{"$f":"IF(Таблица_Металлопроцессинг_детализированный[[#This Row],[Инициатор+исполнитель]]=TRUE,0,IF(Таблица_Металлопроцессинг_детализированный[[#This Row],[Оборот за месяц по контрагенту]]<1000000,0.5,0.3))","v":0},{"$f":"Таблица_Металлопроцессинг_детализированный[[#This Row],[Сумма наценки]]*Таблица_Металлопроцессинг_детализированный[[#This Row],[Распределение выручки для Куратора договора]]","v":100},{"$f":"IF(Таблица_Металлопроцессинг_детализированный[[#This Row],[Распределение выручки для Менеджера договора]]=1,\"\",Таблица_Металлопроцессинг_детализированный[[#This Row],[Сумма наценки]]*Таблица_Металлопроцессинг_детализированный[[#This Row],[Распределение выручки для Менеджера договора]])","v":0},"Процессинг","САНКТ-ПЕТЕРБУРГ","НеваБалтСтрой","ООО \"НеваБалтСтрой\"",null,null,"Металлоторговля","Арматура класс АI, 12, Ст.сп/пс, в бунтах (ГОСТ 5781-82)",null,0.1,"т",2899,"Размотка/резка арматурного проката","MELC 16x4",100,1,0.1,1,"САНКТ-ПЕТЕРБУРГ","Центр",0.1]
[1,"САНКТ-ПЕТЕРБУРГ","Центр","Молчанова Е.М.","Молчанова Е.М.","Молчанова Е.М.",{"$f":"IF(Таблица_Металлопроцессинг_детализированный[[#This Row],[Куратор договора]]=Таблица_Металлопроцессинг_детализированный[[#This Row],[Менеджер]],TRUE,FALSE)","v":true},{"$f":"IF(COUNTIFS($A$1:$A20,Таблица_Металлопроцессинг_детализированный[[#This Row],[Месяц отгрузки]],$O$1:$O20,Таблица_Металлопроцессинг_детализированный[[#This Row],[Контрагент]])>0,0,SUMIFS($AA$2:$AA$177,$O$2:$O$177,Таблица_Металлопроцессинг_детализированный[[#This Row],[Контрагент]],$A$2:$A$177,Таблица_Металлопроцессинг_детализированный[[#This Row],[Месяц отгрузки]]))","v":0},{"$f":"IF(Таблица_Металлопроцессинг_детализированный[[#This Row],[Инициатор+исполнитель]],1,IF(Таблица_Металлопроцессинг_детализированный[[#This Row],[Оборот за месяц по контрагенту]]<1000000,0.5,0.7))","v":1},{"$f":"IF(Таблица_Металлопроцессинг_детализированный[[#This Row],[Инициатор+исполнитель]]=TRUE,0,IF(Таблица_Металлопроцессинг_детализированный[[#This Row],[Оборот за месяц по контрагенту]]<1000000,0.5,0.3))","v":0},{"$f":"Таблица_Металлопроцессинг_детализированный[[#This Row],[Сумма наценки]]*Таблица_Металлопроцессинг_детализированный[[#This Row],[Распределение выручки для Куратора договора]]","v":900},{"$f":"IF(Таблица_Металлопроцессинг_детализированный[[#This Row],[Распределение выручки для Менеджера договора]]=1,\"\",Таблица_Металлопроцессинг_детализированный[[#This Row],[Сумма наценки]]*Таблица_Металлопроцессинг_детализированный[[#This Row],[Распределение выручки для Менеджера договора]])","v":0},"Процессинг","САНКТ-ПЕТЕРБУРГ","НеваБалтСтрой","ООО \"НеваБалтСтрой\"",null,null,"Металлоторговля","Арматура класс АI, 8, Ст.сп/пс, в бунтах (ГОСТ5781-82)",null,0.6,"т",16392,"Размотка/резка арматурного проката","MELC 16x4",900,1,0.6,1,"САНКТ-ПЕТЕРБУРГ","Центр",0.6]
[1,"САНКТ-ПЕТЕРБУРГ","Центр","Райская Н.А.","Райская Н.А.","Райская Н.А.",{"$f":"IF(Таблица_Металлопроцессинг_детализированный[[#This Row],[Куратор договора]]=Таблица_Металлопроцессинг_детализированный[[#This Row],[Менеджер]],TRUE,FALSE)","v":true},{"$f":"IF(COUNTIFS($A$1:$A21,Таблица_Металлопроцессинг_детализированный[[#This Row],[Месяц отгрузки]],$O$1:$O21,Таблица_Металлопроцессинг_детализированный[[#This Row],[Контрагент]])>0,0,SUMIFS($AA$2:$AA$177,$O$2:$O$177,Таблица_Металлопроцессинг_детализированный[[#This Row],[Контрагент]],$A$2:$A$177,Таблица_Металлопроцессинг_детализированный[[#This Row],[Месяц отгрузки]]))","v":4672},{"$f":"IF(Таблица_Металлопроцессинг_детализированный[[#This Row],[Инициатор+исполнитель]],1,IF(Таблица_Металлопроцессинг_детализированный[[#This Row],[Оборот за месяц по контрагенту]]<1000000,0.5,0.7))","v":1},{"$f":"IF(Таблица_Металлопроцессинг_детализированный[[#This Row],[Инициатор+исполнитель]]=TRUE,0,IF(Таблица_Металлопроцессинг_детализированный[[#This Row],[Оборот за месяц по контрагенту]]<1000000,0.5,0.3))","v":0},{"$f":"Таблица_Металлопроцессинг_детализированный[[#This Row],[Сумма наценки]]*Таблица_Металлопроцессинг_детализированный[[#This Row],[Распределение выручки для Куратора договора]]","v":3612},{"$f":"IF(Таблица_Металлопроцессинг_детализированный[[#This Row],[Распределение выручки для Менеджера договора]]=1,\"\",Таблица_Металлопроцессинг_детализированный[[#This Row],[Сумма наценки]]*Таблица_Металлопроцессинг_детализированный[[#This Row],[Распределение выручки для Менеджера договора]])","v":0},"Процессинг","САНКТ-ПЕТЕРБУРГ","КонкордМеталл","ООО\"КонкордМеталл\"","г. Санкт-Петербург ","г. Санкт-Петербург ","Металлоторговля","Сталь рулонная Г/к., 3, 1500, Ст.сп/пс (19903)",null,3.01,"т",66521,"Порезка листового проката поперечная","CAMU RDC 1500/6",3612,1,2.98,1,"САНКТ-ПЕТЕРБУРГ","Центр",3.01]
[1,"САНКТ-ПЕТЕРБУРГ","Центр","Погорелов И.В.","Погорелов И.В.","Дауэнгауэр Н.Э.",{"$f":"IF(Таблица_Металлопроцессинг_детализированный[[#This Row],[Куратор договора]]=Таблица_Металлопроцессинг_детализированный[[#This Row],[Менеджер]],TRUE,FALSE)","v":false},{"$f":"IF(COUNTIFS($A$1:$A22,Таблица_Металлопроцессинг_детализированный[[#This Row],[Месяц отгрузки]],$O$1:$O22,Таблица_Металлопроцессинг_детализированный[[#This Row],[Контрагент]])>0,0,SUMIFS($AA$2:$AA$177,$O$2:$O$177,Таблица_Металлопроцессинг_детализированный[[#This Row],[Контрагент]],$A$2:$A$177,Таблица_Металлопроцессинг_детализированный[[#This Row],[Месяц отгрузки]]))","v":500},{"$f":"IF(Таблица_Металлопроцессинг_детализированный[[#This Row],[Инициатор+исполнитель]],1,IF(Таблица_Металлопроцессинг_детализированный[[#This Row],[Оборот за месяц по контрагенту]]<1000000,0.5,0.7))","v":0.5},{"$f":"IF(Таблица_Металлопроцессинг_детализированный[[#This Row],[Инициатор+исполнитель]]=TRUE,0,IF(Таблица_Металлопроцессинг_детализированный[[#This Row],[Оборот за месяц по контрагенту]]<1000000,0.5,0.3))","v":0.5},{"$f":"Таблица_Металлопроцессинг_детализированный[[#This Row],[Сумма наценки]]*Таблица_Металлопроцессинг_детализированный[[#This Row],[Распределение выручки для Куратора договора]]","v":250},{"$f":"IF(Таблица_Металлопроцессинг_детализированный[[#This Row],[Распределение выручки для Менеджера договора]]=1,\"\",Таблица_Металлопроцессинг_детализированный[[#This Row],[Сумма наценки]]*Таблица_Металлопроцессинг_детализированный[[#This Row],[Распределение выручки для Менеджера договора]])","v":250},"Процессинг","САНКТ-ПЕТЕРБУРГ","МКС СПБ","ООО \"Металл Комплект Сервис\"",null,null,"Металлоторговля","Сталь листовая Г/к., 5, 1500x6000, Ст.сп/пс (ГОСТ 14637)",null,0.35,"т",7969.5,"Порезка листового проката (ножницы)","COLGAR CI-34-TR",500,1,0.35,1,"САНКТ-ПЕТЕРБУРГ","Центр",0.35]
[1,"САНКТ-ПЕТЕРБУРГ","Центр","Матросова Л.Ш.","Матросова Л.Ш.","Матросова Л.Ш.",{"$f":"IF(Таблица_Металлопроцессинг_детализированный[[#This Row],[Куратор договора]]=Таблица_Металлопроцессинг_детализированный[[#This Row],[Менеджер]],TRUE,FALSE)","v":true},{"$f":"IF(COUNTIFS($A$1:$A23,Таблица_Металлопроцессинг_детализированный[[#This Row],[Месяц отгрузки]],$O$1:$O23,Таблица_Металлопроцессинг_детализированный[[#This Row],[Контрагент]])>0,0,SUMIFS($AA$2:$AA$177,$O$2:$O$177,Таблица_Металлопроцессинг_детализированный[[#This Row],[Контрагент]],$A$2:$A$177,Таблица_Металлопроцессинг_детализированный[[#This Row],[Месяц отгрузки]]))","v":8656},{"$f":"IF(Таблица_Металлопроцессинг_детализированный[[#This Row],[Инициатор+исполнитель]],1,IF(Таблица_Металлопроцессинг_детализированный[[#This Row],[Оборот за месяц по контрагенту]]<1000000,0.5,0.7))","v":1},{"$f":"IF(Таблица_Металлопроцессинг_детализированный[[#This Row],[Инициатор+исполнитель]]=TRUE,0,IF(Таблица_Металлопроцессинг_детализированный[[#This Row],[Оборот за месяц по контрагенту]]<1000000,0.5,0.3))","v":0},{"$f":"Таблица_Металлопроцессинг_детализированный[[#This Row],[Сумма наценки]]*Таблица_Металлопроцессинг_детализированный[[#This Row],[Распределение выручки для Куратора договора]]","v":6656},{"$f":"IF(Таблица_Металлопроцессинг_детализированный[[#This Row],[Распределение выручки для Менеджера договора]]=1,\"\",Таблица_Металлопроцессинг_детализированный[[#This Row],[Сумма наценки]]*Таблица_Металлопроцессинг_детализированный[[#This Row],[Распределение выручки для Менеджера договора]])","v":0},"Процессинг","САНКТ-ПЕТЕРБУРГ","ТэтаКом","ООО \"ТэтаКом\"","г. Санкт-Петербург ","г. Санкт-Петербург ","Металлоторговля","Сталь листовая Г/к., 16, 1500x6000, Ст.сп/пс (ГОСТ 14637)",null,0.13,"т",3017.3,"Порезка листового проката плазменная PLAZMA","LINEACORD PCL40",6656,52,0.13,1,"САНКТ-ПЕТЕРБУРГ","Центр",0.13]
[1,"САНКТ-ПЕТЕРБУРГ","Центр","Ипатова Е.Н.","Ипатова Е.Н.","Ипатова Е.Н.",{"$f":"IF(Таблица_Металлопроцессинг_детализированный[[#This Row],[Куратор договора]]=Таблица_Металлопроцессинг_детализированный[[#This Row],[Менеджер]],TRUE,FALSE)","v":true},{"$f":"IF(COUNTIFS($A$1:$A24,Таблица_Металлопроцессинг_детализированный[[#This Row],[Месяц отгрузки]],$O$1:$O24,Таблица_Металлопроцессинг_детализированный[[#This Row],[Контрагент]])>0,0,SUMIFS($AA$2:$AA$177,$O$2:$O$177,Таблица_Металлопроцессинг_детализированный[[#This Row],[Контрагент]],$A$2:$A$177,Таблица_Металлопроцессинг_детализированный[[#This Row],[Месяц отгрузки]]))","v":1870},{"$f":"IF(Таблица_Металлопроцессинг_детализированный[[#This Row],[Инициатор+исполнитель]],1,IF(Таблица_Металлопроцессинг_детализированный[[#This Row],[Оборот за месяц по контрагенту]]<1000000,0.5,0.7))","v":1},{"$f":"IF(Таблица_Металлопроцессинг_детализированный[[#This Row],[Инициатор+исполнитель]]=TRUE,0,IF(Таблица_Металлопроцессинг_детализированный[[#This Row],[Оборот за месяц по контрагенту]]<1000000,0.5,0.3))","v":0},{"$f":"Таблица_Металлопроцессинг_детализированный[[#This Row],[Сумма наценки]]*Таблица_Металлопроцессинг_детализированный[[#This Row],[Распределение выручки для Куратора договора]]","v":800},{"$f":"IF(Таблица_Металлопроцессинг_детализированный[[#This Row],[Распределение выручки для Менеджера договора]]=1,\"\",Таблица_Металлопроцессинг_детализированный[[#This Row],[Сумма наценки]]*Таблица_Металлопроцессинг_детализированный[[#This Row],[Распределение выручки для Менеджера договора]])","v":0},"Процессинг","САНКТ-ПЕТЕРБУРГ","ЕВРАЗ Металл Инпром_РОЗНИЦА","ЕВРАЗ Металл Инпром_РОЗНИЦА","Ростовская обл.","Ростовская обл.","Розница","Сталь листовая Г/к. рифленая, 4, 1500x6000, Ст.сп/пс (ГОСТ 8568-77)",null,0.28000000000000003,"т",7495.6,"Порезка листового проката (ножницы)","COLGAR CI-34-TR",800,2,0.28999999999999998,1,"САНКТ-ПЕТЕРБУРГ","Центр",0.28000000000000003]
[1,"САНКТ-ПЕТЕРБУРГ","Центр","Райская Н.А.","Райская Н.А.","Райская Н.А.",{"$f":"IF(Таблица_Металлопроцессинг_детализированный[[#This Row],[Куратор договора]]=Таблица_Металлопроцессинг_детализированный[[#This Row],[Менеджер]],TRUE,FALSE)","v":true},{"$f":"IF(COUNTIFS($A$1:$A25,Таблица_Металлопроцессинг_детализированный[[#This Row],[Месяц отгрузки]],$O$1:$O25,Таблица_Металлопроцессинг_детализированный[[#This Row],[Контрагент]])>0,0,SUMIFS($AA$2:$AA$177,$O$2:$O$177,Таблица_Металлопроцессинг_детализированный[[#This Row],[Контрагент]],$A$2:$A$177,Таблица_Металлопроцессинг_детализированный[[#This Row],[Месяц отгрузки]]))","v":5208},{"$f":"IF(Таблица_Металлопроцессинг_детализированный[[#This Row],[Инициатор+исполнитель]],1,IF(Таблица_Металлопроцессинг_детализированный[[#This Row],[Оборот за месяц по контрагенту]]<1000000,0.5,0.7))","v":1},{"$f":"IF(Таблица_Металлопроцессинг_детализированный[[#This Row],[Инициатор+исполнитель]]=TRUE,0,IF(Таблица_Металлопроцессинг_детализированный[[#This Row],[Оборот за месяц по контрагенту]]<1000000,0.5,0.3))","v":0},{"$f":"Таблица_Металлопроцессинг_детализированный[[#This Row],[Сумма наценки]]*Таблица_Металлопроцессинг_детализированный[[#This Row],[Распределение выручки для Куратора договора]]","v":5208},{"$f":"IF(Таблица_Металлопроцессинг_детализированный[[#This Row],[Распределение выручки для Менеджера договора]]=1,\"\",Таблица_Металлопроцессинг_детализированный[[#This Row],[Сумма наценки]]*Таблица_Металлопроцессинг_детализированный[[#This Row],[Распределение выручки для Менеджера договора]])","v":0},"Процессинг","САНКТ-ПЕТЕРБУРГ","Блок-СПб","ООО \"Блок-СПб\"",null,null,"Металлоторговля","Арматура B500C, 8, Ст.сп/пс , в бунтах(ГОСТ 52544-2006)",null,4.34,"т",113751.4,"Размотка/резка арматурного проката","MELC 16x4",5208,1,4.25,1,"САНКТ-ПЕТЕРБУРГ","Центр",4.34]
[1,"САНКТ-ПЕТЕРБУРГ","Центр","Дауэнгауэр Н.Э.","Дауэнгауэр Н.Э.","Дауэнгауэр Н.Э.",{"$f":"IF(Таблица_Металлопроцессинг_детализированный[[#This Row],[Куратор договора]]=Таблица_Металлопроцессинг_детализированный[[#This Row],[Менеджер]],TRUE,FALSE)","v":true},{"$f":"IF(COUNTIFS($A$1:$A26,Таблица_Металлопроцессинг_детализированный[[#This Row],[Месяц отгрузки]],$O$1:$O26,Таблица_Металлопроцессинг_детализированный[[#This Row],[Контрагент]])>0,0,SUMIFS($AA$2:$AA$177,$O$2:$O$177,Таблица_Металлопроцессинг_детализированный[[#This Row],[Контрагент]],$A$2:$A$177,Таблица_Металлопроцессинг_детализированный[[#This Row],[Месяц отгрузки]]))","v":23135},{"$f":"IF(Таблица_Металлопроцессинг_детализированный[[#This Row],[Инициатор+исполнитель]],1,IF(Таблица_Металлопроцессинг_детализированный[[#This Row],[Оборот за месяц по контрагенту]]<1000000,0.5,0.7))","v":1},{"$f":"IF(Таблица_Металлопроцессинг_детализированный[[#This Row],[Инициатор+исполнитель]]=TRUE,0,IF(Таблица_Металлопроцессинг_детализированный[[#This Row],[Оборот за месяц по контрагенту]]<1000000,0.5,0.3))","v":0},{"$f":"Таблица_Металлопроцессинг_детализированный[[#This Row],[Сумма наценки]]*Таблица_Металлопроцессинг_детализированный[[#This Row],[Распределение выручки для Куратора договора]]","v":23135},{"$f":"IF(Таблица_Металлопроцессинг_детализированный[[#This Row],[Распределение выручки для Менеджера договора]]=1,\"\",Таблица_Металлопроцессинг_детализированный[[#This Row],[Сумма наценки]]*Таблица_Металлопроцессинг_детализированный[[#This Row],[Распределение выручки для Менеджера договора]])","v":0},"Процессинг","САНКТ-ПЕТЕРБУРГ","ЛССМУ-КОМФОРТ","ООО \"ЛенСпецСМУ-Комфорт\"",null,null,"Машиностроение","Сталь листовая Г/к., 5, 1500x6000, Ст.сп/пс (ГОСТ 14637)",null,3.5,"т",79695,"Порезка листового проката (ножницы)",null,23135,1,5.6,null,"САНКТ-ПЕТЕРБУРГ","Центр",3.5]
[1,"САНКТ-ПЕТЕРБУРГ","Центр","Хабибуллов М.Р.","Хабибуллов М.Р.","Хабибуллов М.Р.",{"$f":"IF(Таблица_Металлопроцессинг_детализированный[[#This Row],[Куратор договора]]=Таблица_Металлопроцессинг_детализированный[[#This Row],[Менеджер]],TRUE,FALSE)","v":true},{"$f":"IF(COUNTIFS($A$1:$A27,Таблица_Металлопроцессинг_детализированный[[#This Row],[Месяц отгрузки]],$O$1:$O27,Таблица_Металлопроцессинг_детализированный[[#This Row],[Контрагент]])>0,0,SUMIFS($AA$2:$AA$177,$O$2:$O$177,Таблица_Металлопроцессинг_детализированный[[#This Row],[Контрагент]],$A$2:$A$177,Таблица_Металлопроцессинг_детализированный[[#This Row],[Месяц отгрузки]]))","v":464674.5},{"$f":"IF(Таблица_Металлопроцессинг_детализированный[[#This Row],[Инициатор+исполнитель]],1,IF(Таблица_Металлопроцессинг_детализированный[[#This Row],[Оборот за месяц по контрагенту]]<1000000,0.5,0.7))","v":1},{"$f":"IF(Таблица_Металлопроцессинг_детализированный[[#This Row],[Инициатор+исполнитель]]=TRUE,0,IF(Таблица_Металлопроцессинг_детализированный[[#This Row],[Оборот за месяц по контрагенту]]<1000000,0.5,0.3))","v":0},{"$f":"Таблица_Металлопроцессинг_детализированный[[#This Row],[Сумма наценки]]*Таблица_Металлопроцессинг_детализированный[[#This Row],[Распределение выручки для Куратора договора]]","v":29985},{"$f":"IF(Таблица_Металлопроцессинг_детализированный[[#This Row],[Распределение выручки для Менеджера договора]]=1,\"\",Таблица_Металлопроцессинг_детализированный[[#This Row],[Сумма наценки]]*Таблица_Металлопроцессинг_детализированный[[#This Row],[Распределение выручки для Менеджера договора]])","v":0},"Процессинг","САНКТ-ПЕТЕРБУРГ","АртЛэнд","ООО \"Строительная компания \"АртЛэнд\"",null,null,"Стройиндустрия","Шпунт Ларсена Л5-УМ, С255 (ТУ 14-102-8-2003)",null,19.989999999999998,"т",789605,"Очистка и покраска проката (грунт ЭМЛАК 263)","ROSLER",29985,19.989999999999998,19.989999999999998,1,"САНКТ-ПЕТЕРБУРГ","Центр",19.989999999999998]
[1,"САНКТ-ПЕТЕРБУРГ","Центр","Степура С.Н.","Степура С.Н.","Ипатова Е.Н.",{"$f":"IF(Таблица_Металлопроцессинг_детализированный[[#This Row],[Куратор договора]]=Таблица_Металлопроцессинг_детализированный[[#This Row],[Менеджер]],TRUE,FALSE)","v":false},{"$f":"IF(COUNTIFS($A$1:$A28,Таблица_Металлопроцессинг_детализированный[[#This Row],[Месяц отгрузки]],$O$1:$O28,Таблица_Металлопроцессинг_детализированный[[#This Row],[Контрагент]])>0,0,SUMIFS($AA$2:$AA$177,$O$2:$O$177,Таблица_Металлопроцессинг_детализированный[[#This Row],[Контрагент]],$A$2:$A$177,Таблица_Металлопроцессинг_детализированный[[#This Row],[Месяц отгрузки]]))","v":7680},{"$f":"IF(Таблица_Металлопроцессинг_детализированный[[#This Row],[Инициатор+исполнитель]],1,IF(Таблица_Металлопроцессинг_детализированный[[#This Row],[Оборот за месяц по контрагенту]]<1000000,0.5,0.7))","v":0.5},{"$f":"IF(Таблица_Металлопроцессинг_детализированный[[#This Row],[Инициатор+исполнитель]]=TRUE,0,IF(Таблица_Металлопроцессинг_детализированный[[#This Row],[Оборот за месяц по контрагенту]]<1000000,0.5,0.3))","v":0.5},{"$f":"Таблица_Металлопроцессинг_детализированный[[#This Row],[Сумма наценки]]*Таблица_Металлопроцессинг_детализированный[[#This Row],[Распределение выручки для Куратора договора]]","v":720},{"$f":"IF(Таблица_Металлопроцессинг_детализированный[[#This Row],[Распределение выручки для Менеджера договора]]=1,\"\",Таблица_Металлопроцессинг_детализированный[[#This Row],[Сумма наценки]]*Таблица_Металлопроцессинг_детализированный[[#This Row],[Распределение выручки для Менеджера договора]])","v":720},"Из давальческого сырья","САНКТ-ПЕТЕРБУРГ","САТУРН СПБ","ЗАО \"САТУРН\"",null,null,"Металлоторговля","Изделие","Труба 80х80х5 L=460мм",24,"шт",0,"Станок ленточнопильный","PEGASUS",1440,24,24,1,"САНКТ-ПЕТЕРБУРГ","Центр",0.14499999999999999]
[1,"САНКТ-ПЕТЕРБУРГ","Центр","Молчанова Е.М.","Матросова Л.Ш.","Молчанова Е.М.",{"$f":"IF(Таблица_Металлопроцессинг_детализированный[[#This Row],[Куратор договора]]=Таблица_Металлопроцессинг_детализированный[[#This Row],[Менеджер]],TRUE,FALSE)","v":true},{"$f":"IF(COUNTIFS($A$1:$A29,Таблица_Металлопроцессинг_детализированный[[#This Row],[Месяц отгрузки]],$O$1:$O29,Таблица_Металлопроцессинг_детализированный[[#This Row],[Контрагент]])>0,0,SUMIFS($AA$2:$AA$177,$O$2:$O$177,Таблица_Металлопроцессинг_детализированный[[#This Row],[Контрагент]],$A$2:$A$177,Таблица_Металлопроцессинг_детализированный[[#This Row],[Месяц отгрузки]]))","v":1620},{"$f":"IF(Таблица_Металлопроцессинг_детализированный[[#This Row],[Инициатор+исполнитель]],1,IF(Таблица_Металлопроцессинг_детализированный[[#This Row],[Оборот за месяц по контрагенту]]<1000000,0.5,0.7))","v":1},{"$f":"IF(Таблица_Металлопроцессинг_детализированный[[#This Row],[Инициатор+исполнитель]]=TRUE,0,IF(Таблица_Металлопроцессинг_детализированный[[#This Row],[Оборот за месяц по контрагенту]]<1000000,0.5,0.3))","v":0},{"$f":"Таблица_Металлопроцессинг_детализированный[[#This Row],[Сумма наценки]]*Таблица_Металлопроцессинг_детализированный[[#This Row],[Распределение выручки для Куратора договора]]","v":720},{"$f":"IF(Таблица_Металлопроцессинг_детализированный[[#This Row],[Распределение выручки для Менеджера договора]]=1,\"\",Таблица_Металлопроцессинг_детализированный[[#This Row],[Сумма наценки]]*Таблица_Металлопроцессинг_детализированный[[#This Row],[Распределение выручки для Менеджера договора]])","v":0},"Процессинг","САНКТ-ПЕТЕРБУРГ","Билдинг (Молчанова)","ООО \"Билдинг\"",null,null,"Металлоторговля","Арматура B500C, 10, Ст.сп/пс , в бунтах(ГОСТ 52544-2006)",null,0.9,"т",23589,"Размотка/резка арматурного проката","MELC 16x4",720,1,0.9,1,"САНКТ-ПЕТЕРБУРГ","Центр",0.9]
[1,"САНКТ-ПЕТЕРБУРГ","Центр","Молчанова Е.М.","Матросова Л.Ш.","Молчанова Е.М.",{"$f":"IF(Таблица_Металлопроцессинг_детализированный[[#This Row],[Куратор договора]]=Таблица_Металлопроцессинг_детализированный[[#This Row],[Менеджер]],TRUE,FALSE)","v":true},{"$f":"IF(COUNTIFS($A$1:$A30,Таблица_Металлопроцессинг_детализированный[[#This Row],[Месяц отгрузки]],$O$1:$O30,Таблица_Металлопроцессинг_детализированный[[#This Row],[Контрагент]])>0,0,SUMIFS($AA$2:$AA$177,$O$2:$O$177,Таблица_Металлопроцессинг_детализированный[[#This Row],[Контрагент]],$A$2:$A$177,Таблица_Металлопроцессинг_детализированный[[#This Row],[Месяц отгрузки]]))","v":0},{"$f":"IF(Таблица_Металлопроцессинг_детализированный[[#This Row],[Инициатор+исполнитель]],1,IF(Таблица_Металлопроцессинг_детализированный[[#This Row],[Оборот за месяц по контрагенту]]<1000000,0.5,0.7))","v":1},{"$f":"IF(Таблица_Металлопроцессинг_детализированный[[#This Row],[Инициатор+исполнитель]]=TRUE,0,IF(Таблица_Металлопроцессинг_детализированный[[#This Row],[Оборот за месяц по контрагенту]]<1000000,0.5,0.3))","v":0},{"$f":"Таблица_Металлопроцессинг_детализированный[[#This Row],[Сумма наценки]]*Таблица_Металлопроцессинг_детализированный[[#This Row],[Распределение выручки для Куратора договора]]","v":900},{"$f":"IF(Таблица_Металлопроцессинг_детализированный[[#This Row],[Распределение выручки для Менеджера договора]]=1,\"\",Таблица_Металлопроцессинг_детализированный[[#This Row],[Сумма наценки]]*Таблица_Металлопроцессинг_детализированный[[#This Row],[Распределение выручки для Менеджера договора]])","v":0},"Процессинг","САНКТ-ПЕТЕРБУРГ","Билдинг (Молчанова)","ООО \"Билдинг\"",null,null,"Металлоторговля","Арматура класс АIII (А400), 8, Ст.35ГС, в бунтах (ГОСТ5781-82)",null,1,"т",26770,"Размотка/резка арматурного проката","MELC 16x4",900,1,1,1,"САНКТ-ПЕТЕРБУРГ","Центр",1]
[1,"САНКТ-ПЕТЕРБУРГ","Центр","Степура С.Н.","Степура С.Н.","Погорелов И.В.",{"$f":"IF(Таблица_Металлопроцессинг_детализированный[[#This Row],[Куратор договора]]=Таблица_Металлопроцессинг_детализированный[[#This Row],[Менеджер]],TRUE,FALSE)","v":false},{"$f":"IF(COUNTIFS($A$1:$A31,Таблица_Металлопроцессинг_детализированный[[#This Row],[Месяц отгрузки]],$O$1:$O31,Таблица_Металлопроцессинг_детализированный[[#This Row],[Контрагент]])>0,0,SUMIFS($AA$2:$AA$177,$O$2:$O$177,Таблица_Металлопроцессинг_детализированный[[#This Row],[Контрагент]],$A$2:$A$177,Таблица_Металлопроцессинг_детализированный[[#This Row],[Месяц отгрузки]]))","v":2000},{"$f":"IF(Таблица_Металлопроцессинг_детализированный[[#This Row],[Инициатор+исполнитель]],1,IF(Таблица_Металлопроцессинг_детализированный[[#This Row],[Оборот за месяц по контрагенту]]<1000000,0.5,0.7))","v":0.5},{"$f":"IF(Таблица_Металлопроцессинг_детализированный[[#This Row],[Инициатор+исполнитель]]=TRUE,0,IF(Таблица_Металлопроцессинг_детализированный[[#This Row],[Оборот за месяц по контрагенту]]<1000000,0.5,0.3))","v":0.5},{"$f":"Таблица_Металлопроцессинг_детализированный[[#This Row],[Сумма наценки]]*Таблица_Металлопроцессинг_детализированный[[#This Row],[Распределение выручки для Куратора договора]]","v":1000},{"$f":"IF(Таблица_Металлопроцессинг_детализированный[[#This Row],[Распределение выручки для Менеджера договора]]=1,\"\",Таблица_Металлопроцессинг_детализированный[[#This Row],[Сумма наценки]]*Таблица_Металлопроцессинг_детализированный[[#This Row],[Распределение выручки для Менеджера договора]])","v":1000},"Процессинг","САНКТ-ПЕТЕРБУРГ","БМК-Петербург","ООО \"БМК-Петербург\"",null,null,"Металлоконструкции","Арматура класс АI, 8, Ст.сп/пс, в бунтах (ГОСТ5781-82)",null,1.76,"т",48083.199999999997,"Размотка/резка арматурного проката","MELC 16x4",2000,2,2,1,"САНКТ-ПЕТЕРБУРГ","Центр",1.76]
[1,"САНКТ-ПЕТЕРБУРГ","Центр","Дауэнгауэр Н.Э.","Дауэнгауэр Н.Э.","Дауэнгауэр Н.Э.",{"$f":"IF(Таблица_Металлопроцессинг_детализированный[[#This Row],[Куратор договора]]=Таблица_Металлопроцессинг_детализированный[[#This Row],[Менеджер]],TRUE,FALSE)","v":true},{"$f":"IF(COUNTIFS($A$1:$A32,Таблица_Металлопроцессинг_детализированный[[#This Row],[Месяц отгрузки]],$O$1:$O32,Таблица_Металлопроцессинг_детализированный[[#This Row],[Контрагент]])>0,0,SUMIFS($AA$2:$AA$177,$O$2:$O$177,Таблица_Металлопроцессинг_детализированный[[#This Row],[Контрагент]],$A$2:$A$177,Таблица_Металлопроцессинг_детализированный[[#This Row],[Месяц отгрузки]]))","v":0},{"$f":"IF(Таблица_Металлопроцессинг_детализированный[[#This Row],[Инициатор+исполнитель]],1,IF(Таблица_Металлопроцессинг_детализированный[[#This Row],[Оборот за месяц по контрагенту]]<1000000,0.5,0.7))","v":1},{"$f":"IF(Таблица_Металлопроцессинг_детализированный[[#This Row],[Инициатор+исполнитель]]=TRUE,0,IF(Таблица_Металлопроцессинг_детализированный[[#This Row],[Оборот за месяц по контрагенту]]<1000000,0.5,0.3))","v":0},{"$f":"Таблица_Металлопроцессинг_детализированный[[#This Row],[Сумма наценки]]*Таблица_Металлопроцессинг_детализированный[[#This Row],[Распределение выручки для Куратора договора]]","v":2835},{"$f":"IF(Таблица_Металлопроцессинг_детализированный[[#This Row],[Распределение выручки для Менеджера договора]]=1,\"\",Таблица_Металлопроцессинг_детализированный[[#This Row],[Сумма наценки]]*Таблица_Металлопроцессинг_детализированный[[#This Row],[Распределение выручки для Менеджера договора]])","v":0},"Процессинг","САНКТ-ПЕТЕРБУРГ","БЗ-СУДОСТРОЕНИЕ","ООО \"Балтийский завод-Судостроение\"",null,null,"Машиностроение","Уголок стальной г/к равнополочный, 100x10, Ст.сп/пс (ГОСТ 8509-93)",null,9.4499999999999993,"т",266584.5,"Порезка (станок ленточнопильный)",null,2835,1,9.4139999999999997,null,"САНКТ-ПЕТЕРБУРГ","Центр",9.4499999999999993]
[1,"САНКТ-ПЕТЕРБУРГ","Центр","Дауэнгауэр Н.Э.","Дауэнгауэр Н.Э.","Дауэнгауэр Н.Э.",{"$f":"IF(Таблица_Металлопроцессинг_детализированный[[#This Row],[Куратор договора]]=Таблица_Металлопроцессинг_детализированный[[#This Row],[Менеджер]],TRUE,FALSE)","v":true},{"$f":"IF(COUNTIFS($A$1:$A33,Таблица_Металлопроцессинг_детализированный[[#This Row],[Месяц отгрузки]],$O$1:$O33,Таблица_Металлопроцессинг_детализированный[[#This Row],[Контрагент]])>0,0,SUMIFS($AA$2:$AA$177,$O$2:$O$177,Таблица_Металлопроцессинг_детализированный[[#This Row],[Контрагент]],$A$2:$A$177,Таблица_Металлопроцессинг_детализированный[[#This Row],[Месяц отгрузки]]))","v":0},{"$f":"IF(Таблица_Металлопроцессинг_детализированный[[#This Row],[Инициатор+исполнитель]],1,IF(Таблица_Металлопроцессинг_детализированный[[#This Row],[Оборот за месяц по контрагенту]]<1000000,0.5,0.7))","v":1},{"$f":"IF(Таблица_Металлопроцессинг_детализированный[[#This Row],[Инициатор+исполнитель]]=TRUE,0,IF(Таблица_Металлопроцессинг_детализированный[[#This Row],[Оборот за месяц по контрагенту]]<1000000,0.5,0.3))","v":0},{"$f":"Таблица_Металлопроцессинг_детализированный[[#This Row],[Сумма наценки]]*Таблица_Металлопроцессинг_детализированный[[#This Row],[Распределение выручки для Куратора договора]]","v":4772},{"$f":"IF(Таблица_Металлопроцессинг_детализированный[[#This Row],[Распределение выручки для Менеджера договора]]=1,\"\",Таблица_Металлопроцессинг_детализированный[[#This Row],[Сумма наценки]]*Таблица_Металлопроцессинг_детализированный[[#This Row],[Распределение выручки для Менеджера договора]])","v":0},"Процессинг","САНКТ-ПЕТЕРБУРГ","БЗ-СУДОСТРОЕНИЕ","ООО \"Балтийский завод-Судостроение\"",null,null,"Машиностроение","Уголок стальной г/к равнополочный, 50x5, Ст.сп/пс (ГОСТ 8509-93)",null,11.93,"т",323303,"Порезка (станок ленточнопильный)",null,4772,1,12,null,"САНКТ-ПЕТЕРБУРГ","Центр",11.93]
[1,"САНКТ-ПЕТЕРБУРГ","Центр","Ипатова Е.Н.","Ипатова Е.Н.","Ипатова Е.Н.",{"$f":"IF(Таблица_Металлопроцессинг_детализированный[[#This Row],[Куратор договора]]=Таблица_Металлопроцессинг_детализированный[[#This Row],[Менеджер]],TRUE,FALSE)","v":true},{"$f":"IF(COUNTIFS($A$1:$A34,Таблица_Металлопроцессинг_детализированный[[#This Row],[Месяц отгрузки]],$O$1:$O34,Таблица_Металлопроцессинг_детализированный[[#This Row],[Контрагент]])>0,0,SUMIFS($AA$2:$AA$177,$O$2:$O$177,Таблица_Металлопроцессинг_детализированный[[#This Row],[Контрагент]],$A$2:$A$177,Таблица_Металлопроцессинг_детализированный[[#This Row],[Месяц отгрузки]]))","v":0},{"$f":"IF(Таблица_Металлопроцессинг_детализированный[[#This Row],[Инициатор+исполнитель]],1,IF(Таблица_Металлопроцессинг_детализированный[[#This Row],[Оборот за месяц по контрагенту]]<1000000,0.5,0.7))","v":1},{"$f":"IF(Таблица_Металлопроцессинг_детализированный[[#This Row],[Инициатор+исполнитель]]=TRUE,0,IF(Таблица_Металлопроцессинг_детализированный[[#This Row],[Оборот за месяц по контрагенту]]<1000000,0.5,0.3))","v":0},{"$f":"Таблица_Металлопроцессинг_детализированный[[#This Row],[Сумма наценки]]*Таблица_Металлопроцессинг_детализированный[[#This Row],[Распределение выручки для Куратора договора]]","v":9800},{"$f":"IF(Таблица_Металлопроцессинг_детализированный[[#This Row],[Распределение выручки для Менеджера договора]]=1,\"\",Таблица_Металлопроцессинг_детализированный[[#This Row],[Сумма наценки]]*Таблица_Металлопроцессинг_детализированный[[#This Row],[Распределение выручки для Менеджера договора]])","v":0},"Процессинг","САНКТ-ПЕТЕРБУРГ","ОЛЛТРЕЙД-НЕВА","ООО\"ОЛЛТРЕЙД-НЕВА\"",null,null,"Металлоторговля","Сталь рулонная Х/к., 1.5, 1250, Ст.кп/пс (19904)",null,9.8000000000000007,"т",274302,"Порезка листового проката поперечная","CAMU RDC 1500/6",9800,1,10,1,"САНКТ-ПЕТЕРБУРГ","Центр",9.8000000000000007]
[1,"САНКТ-ПЕТЕРБУРГ","Центр","Степура С.Н.","Степура С.Н.","Молчанова Е.М.",{"$f":"IF(Таблица_Металлопроцессинг_детализированный[[#This Row],[Куратор договора]]=Таблица_Металлопроцессинг_детализированный[[#This Row],[Менеджер]],TRUE,FALSE)","v":false},{"$f":"IF(COUNTIFS($A$1:$A35,Таблица_Металлопроцессинг_детализированный[[#This Row],[Месяц отгрузки]],$O$1:$O35,Таблица_Металлопроцессинг_детализированный[[#This Row],[Контрагент]])>0,0,SUMIFS($AA$2:$AA$177,$O$2:$O$177,Таблица_Металлопроцессинг_детализированный[[#This Row],[Контрагент]],$A$2:$A$177,Таблица_Металлопроцессинг_детализированный[[#This Row],[Месяц отгрузки]]))","v":0},{"$f":"IF(Таблица_Металлопроцессинг_детализированный[[#This Row],[Инициатор+исполнитель]],1,IF(Таблица_Металлопроцессинг_детализированный[[#This Row],[Оборот за месяц по контрагенту]]<1000000,0.5,0.7))","v":0.5},{"$f":"IF(Таблица_Металлопроцессинг_детализированный[[#This Row],[Инициатор+исполнитель]]=TRUE,0,IF(Таблица_Металлопроцессинг_детализированный[[#This Row],[Оборот за месяц по контрагенту]]<1000000,0.5,0.3))","v":0.5},{"$f":"Таблица_Металлопроцессинг_детализированный[[#This Row],[Сумма наценки]]*Таблица_Металлопроцессинг_детализированный[[#This Row],[Распределение выручки для Куратора договора]]","v":3120},{"$f":"IF(Таблица_Металлопроцессинг_детализированный[[#This Row],[Распределение выручки для Менеджера договора]]=1,\"\",Таблица_Металлопроцессинг_детализированный[[#This Row],[Сумма наценки]]*Таблица_Металлопроцессинг_детализированный[[#This Row],[Распределение выручки для Менеджера договора]])","v":3120},"Процессинг","САНКТ-ПЕТЕРБУРГ","САТУРН СПБ","ЗАО \"САТУРН\"",null,null,"Металлоторговля","Сталь листовая Г/к., 8, 1500x6000, Ст.09Г2С (ГОСТ 19281)",null,0.56000000000000005,"т",14369.6,"Порезка листового проката (ножницы)","COLGAR CI-34-TR",6240,48,0.56000000000000005,1,"САНКТ-ПЕТЕРБУРГ","Центр",0.56000000000000005]
[1,"САНКТ-ПЕТЕРБУРГ","Центр","Дауэнгауэр Н.Э.","Дауэнгауэр Н.Э.","Райская Н.А.",{"$f":"IF(Таблица_Металлопроцессинг_детализированный[[#This Row],[Куратор договора]]=Таблица_Металлопроцессинг_детализированный[[#This Row],[Менеджер]],TRUE,FALSE)","v":false},{"$f":"IF(COUNTIFS($A$1:$A36,Таблица_Металлопроцессинг_детализированный[[#This Row],[Месяц отгрузки]],$O$1:$O36,Таблица_Металлопроцессинг_детализированный[[#This Row],[Контрагент]])>0,0,SUMIFS($AA$2:$AA$177,$O$2:$O$177,Таблица_Металлопроцессинг_детализированный[[#This Row],[Контрагент]],$A$2:$A$177,Таблица_Металлопроцессинг_детализированный[[#This Row],[Месяц отгрузки]]))","v":326303.8},{"$f":"IF(Таблица_Металлопроцессинг_детализированный[[#This Row],[Инициатор+исполнитель]],1,IF(Таблица_Металлопроцессинг_детализированный[[#This Row],[Оборот за месяц по контрагенту]]<1000000,0.5,0.7))","v":0.5},{"$f":"IF(Таблица_Металлопроцессинг_детализированный[[#This Row],[Инициатор+исполнитель]]=TRUE,0,IF(Таблица_Металлопроцессинг_детализированный[[#This Row],[Оборот за месяц по контрагенту]]<1000000,0.5,0.3))","v":0.5},{"$f":"Таблица_Металлопроцессинг_детализированный[[#This Row],[Сумма наценки]]*Таблица_Металлопроцессинг_детализированный[[#This Row],[Распределение выручки для Куратора договора]]","v":1485},{"$f":"IF(Таблица_Металлопроцессинг_детализированный[[#This Row],[Распределение выручки для Менеджера договора]]=1,\"\",Таблица_Металлопроцессинг_детализированный[[#This Row],[Сумма наценки]]*Таблица_Металлопроцессинг_детализированный[[#This Row],[Распределение выручки для Менеджера договора]])","v":1485},"Процессинг","САНКТ-ПЕТЕРБУРГ","АМИРА СК","ООО \"Амира-СтальКонструкция\"","Санкт-Петербург ","Санкт-Петербург ","Металлоконструкции","Сталь листовая Г/к., 14, 1500x6000, Ст.09Г2С (ГОСТ 19281)",null,1.98,"т",50806.8,"Порезка листового проката (ножницы)",null,2970,1,4.97,null,"САНКТ-ПЕТЕРБУРГ","Центр",1.98]
[1,"САНКТ-ПЕТЕРБУРГ","Центр","Дауэнгауэр Н.Э.","Дауэнгауэр Н.Э.","Дауэнгауэр Н.Э.",{"$f":"IF(Таблица_Металлопроцессинг_детализированный[[#This Row],[Куратор договора]]=Таблица_Металлопроцессинг_детализированный[[#This Row],[Менеджер]],TRUE,FALSE)","v":true},{"$f":"IF(COUNTIFS($A$1:$A37,Таблица_Металлопроцессинг_детализированный[[#This Row],[Месяц отгрузки]],$O$1:$O37,Таблица_Металлопроцессинг_детализированный[[#This Row],[Контрагент]])>0,0,SUMIFS($AA$2:$AA$177,$O$2:$O$177,Таблица_Металлопроцессинг_детализированный[[#This Row],[Контрагент]],$A$2:$A$177,Таблица_Металлопроцессинг_детализированный[[#This Row],[Месяц отгрузки]]))","v":40822},{"$f":"IF(Таблица_Металлопроцессинг_детализированный[[#This Row],[Инициатор+исполнитель]],1,IF(Таблица_Металлопроцессинг_детализированный[[#This Row],[Оборот за месяц по контрагенту]]<1000000,0.5,0.7))","v":1},{"$f":"IF(Таблица_Металлопроцессинг_детализированный[[#This Row],[Инициатор+исполнитель]]=TRUE,0,IF(Таблица_Металлопроцессинг_детализированный[[#This Row],[Оборот за месяц по контрагенту]]<1000000,0.5,0.3))","v":0},{"$f":"Таблица_Металлопроцессинг_детализированный[[#This Row],[Сумма наценки]]*Таблица_Металлопроцессинг_детализированный[[#This Row],[Распределение выручки для Куратора договора]]","v":17010},{"$f":"IF(Таблица_Металлопроцессинг_детализированный[[#This Row],[Распределение выручки для Менеджера договора]]=1,\"\",Таблица_Металлопроцессинг_детализированный[[#This Row],[Сумма наценки]]*Таблица_Металлопроцессинг_детализированный[[#This Row],[Распределение выручки для Менеджера договора]])","v":0},"Процессинг","САНКТ-ПЕТЕРБУРГ","ОСТ НПП","ЗАО \"НПП ОСТ\"","г. Санкт-Петербург ","г. Санкт-Петербург ","Машиностроение","Сталь листовая Х/к., 0.8, 1250x2500, Ст.08пс (ГОСТ 16523)",null,4.8600000000000003,"т",135496.79999999999,"Порезка листового проката (ножницы)",null,17010,1,4.5,null,"САНКТ-ПЕТЕРБУРГ","Центр",4.8600000000000003]
[1,"САНКТ-ПЕТЕРБУРГ","Центр","Дауэнгауэр Н.Э.","Дауэнгауэр Н.Э.","Дауэнгауэр Н.Э.",{"$f":"IF(Таблица_Металлопроцессинг_детализированный[[#This Row],[Куратор договора]]=Таблица_Металлопроцессинг_детализированный[[#This Row],[Менеджер]],TRUE,FALSE)","v":true},{"$f":"IF(COUNTIFS($A$1:$A38,Таблица_Металлопроцессинг_детализированный[[#This Row],[Месяц отгрузки]],$O$1:$O38,Таблица_Металлопроцессинг_детализированный[[#This Row],[Контрагент]])>0,0,SUMIFS($AA$2:$AA$177,$O$2:$O$177,Таблица_Металлопроцессинг_детализированный[[#This Row],[Контрагент]],$A$2:$A$177,Таблица_Металлопроцессинг_детализированный[[#This Row],[Месяц отгрузки]]))","v":0},{"$f":"IF(Таблица_Металлопроцессинг_детализированный[[#This Row],[Инициатор+исполнитель]],1,IF(Таблица_Металлопроцессинг_детализированный[[#This Row],[Оборот за месяц по контрагенту]]<1000000,0.5,0.7))","v":1},{"$f":"IF(Таблица_Металлопроцессинг_детализированный[[#This Row],[Инициатор+исполнитель]]=TRUE,0,IF(Таблица_Металлопроцессинг_детализированный[[#This Row],[Оборот за месяц по контрагенту]]<1000000,0.5,0.3))","v":0},{"$f":"Таблица_Металлопроцессинг_детализированный[[#This Row],[Сумма наценки]]*Таблица_Металлопроцессинг_детализированный[[#This Row],[Распределение выручки для Куратора договора]]","v":1860},{"$f":"IF(Таблица_Металлопроцессинг_детализированный[[#This Row],[Распределение выручки для Менеджера договора]]=1,\"\",Таблица_Металлопроцессинг_детализированный[[#This Row],[Сумма наценки]]*Таблица_Металлопроцессинг_детализированный[[#This Row],[Распределение выручки для Менеджера договора]])","v":0},"Процессинг","САНКТ-ПЕТЕРБУРГ","ОСТ НПП","ЗАО \"НПП ОСТ\"","г. Санкт-Петербург ","г. Санкт-Петербург ","Машиностроение","Сталь листовая Х/к., 2.5, 1250x2500, Ст.кп/пс (ТУ 14-106-321-2010)",null,0.62,"т",17285.599999999999,"Порезка листового проката (ножницы)",null,1860,1,0.625,null,"САНКТ-ПЕТЕРБУРГ","Центр",0.62]
[1,"САНКТ-ПЕТЕРБУРГ","Центр","Матросова Л.Ш.","Матросова Л.Ш.","Матросова Л.Ш.",{"$f":"IF(Таблица_Металлопроцессинг_детализированный[[#This Row],[Куратор договора]]=Таблица_Металлопроцессинг_детализированный[[#This Row],[Менеджер]],TRUE,FALSE)","v":true},{"$f":"IF(COUNTIFS($A$1:$A39,Таблица_Металлопроцессинг_детализированный[[#This Row],[Месяц отгрузки]],$O$1:$O39,Таблица_Металлопроцессинг_детализированный[[#This Row],[Контрагент]])>0,0,SUMIFS($AA$2:$AA$177,$O$2:$O$177,Таблица_Металлопроцессинг_детализированный[[#This Row],[Контрагент]],$A$2:$A$177,Таблица_Металлопроцессинг_детализированный[[#This Row],[Месяц отгрузки]]))","v":7000},{"$f":"IF(Таблица_Металлопроцессинг_детализированный[[#This Row],[Инициатор+исполнитель]],1,IF(Таблица_Металлопроцессинг_детализированный[[#This Row],[Оборот за месяц по контрагенту]]<1000000,0.5,0.7))","v":1},{"$f":"IF(Таблица_Металлопроцессинг_детализированный[[#This Row],[Инициатор+исполнитель]]=TRUE,0,IF(Таблица_Металлопроцессинг_детализированный[[#This Row],[Оборот за месяц по контрагенту]]<1000000,0.5,0.3))","v":0},{"$f":"Таблица_Металлопроцессинг_детализированный[[#This Row],[Сумма наценки]]*Таблица_Металлопроцессинг_детализированный[[#This Row],[Распределение выручки для Куратора договора]]","v":3500},{"$f":"IF(Таблица_Металлопроцессинг_детализированный[[#This Row],[Распределение выручки для Менеджера договора]]=1,\"\",Таблица_Металлопроцессинг_детализированный[[#This Row],[Сумма наценки]]*Таблица_Металлопроцессинг_детализированный[[#This Row],[Распределение выручки для Менеджера договора]])","v":0},"Процессинг","САНКТ-ПЕТЕРБУРГ","СИРИУС-МК","ООО \"Сириус-МК\"","г. Санкт-Петербург ","г. Санкт-Петербург ","Металлоторговля","Арматура B500C, 10, Ст.сп/пс , в бунтах(ГОСТ 52544-2006)",null,3.5,"т",91735,"Размотка/резка арматурного проката","MELC 16x4",3500,1,3.5,1,"САНКТ-ПЕТЕРБУРГ","Центр",3.5]
[1,"САНКТ-ПЕТЕРБУРГ","Центр","Матросова Л.Ш.","Матросова Л.Ш.","Матросова Л.Ш.",{"$f":"IF(Таблица_Металлопроцессинг_детализированный[[#This Row],[Куратор договора]]=Таблица_Металлопроцессинг_детализированный[[#This Row],[Менеджер]],TRUE,FALSE)","v":true},{"$f":"IF(COUNTIFS($A$1:$A40,Таблица_Металлопроцессинг_детализированный[[#This Row],[Месяц отгрузки]],$O$1:$O40,Таблица_Металлопроцессинг_детализированный[[#This Row],[Контрагент]])>0,0,SUMIFS($AA$2:$AA$177,$O$2:$O$177,Таблица_Металлопроцессинг_детализированный[[#This Row],[Контрагент]],$A$2:$A$177,Таблица_Металлопроцессинг_детализированный[[#This Row],[Месяц отгрузки]]))","v":0},{"$f":"IF(Таблица_Металлопроцессинг_детализированный[[#This Row],[Инициатор+исполнитель]],1,IF(Таблица_Металлопроцессинг_детализированный[[#This Row],[Оборот за месяц по контрагенту]]<1000000,0.5,0.7))","v":1},{"$f":"IF(Таблица_Металлопроцессинг_детализированный[[#This Row],[Инициатор+исполнитель]]=TRUE,0,IF(Таблица_Металлопроцессинг_детализированный[[#This Row],[Оборот за месяц по контрагенту]]<1000000,0.5,0.3))","v":0},{"$f":"Таблица_Металлопроцессинг_детализированный[[#This Row],[Сумма наценки]]*Таблица_Металлопроцессинг_детализированный[[#This Row],[Распределение выручки для Куратора договора]]","v":1500},{"$f":"IF(Таблица_Металлопроцессинг_детализированный[[#This Row],[Распределение выручки для Менеджера договора]]=1,\"\",Таблица_Металлопроцессинг_детализированный[[#This Row],[Сумма наценки]]*Таблица_Металлопроцессинг_детализированный[[#This Row],[Распределение выручки для Менеджера договора]])","v":0},"Процессинг","САНКТ-ПЕТЕРБУРГ","СИРИУС-МК","ООО \"Сириус-МК\"","г. Санкт-Петербург ","г. Санкт-Петербург ","Металлоторговля","Арматура B500C, 8, Ст.сп/пс , в бунтах(ГОСТ 52544-2006)",null,1.5,"т",39315,"Размотка/резка арматурного проката","MELC 16x4",1500,1,1.341,1,"САНКТ-ПЕТЕРБУРГ","Центр",1.5]
[1,"САНКТ-ПЕТЕРБУРГ","Центр","Матросова Л.Ш.","Матросова Л.Ш.","Матросова Л.Ш.",{"$f":"IF(Таблица_Металлопроцессинг_детализированный[[#This Row],[Куратор договора]]=Таблица_Металлопроцессинг_детализированный[[#This Row],[Менеджер]],TRUE,FALSE)","v":true},{"$f":"IF(COUNTIFS($A$1:$A41,Таблица_Металлопроцессинг_детализированный[[#This Row],[Месяц отгрузки]],$O$1:$O41,Таблица_Металлопроцессинг_детализированный[[#This Row],[Контрагент]])>0,0,SUMIFS($AA$2:$AA$177,$O$2:$O$177,Таблица_Металлопроцессинг_детализированный[[#This Row],[Контрагент]],$A$2:$A$177,Таблица_Металлопроцессинг_детализированный[[#This Row],[Месяц отгрузки]]))","v":0},{"$f":"IF(Таблица_Металлопроцессинг_детализированный[[#This Row],[Инициатор+исполнитель]],1,IF(Таблица_Металлопроцессинг_детализированный[[#This Row],[Оборот за месяц по контрагенту]]<1000000,0.5,0.7))","v":1},{"$f":"IF(Таблица_Металлопроцессинг_детализированный[[#This Row],[Инициатор+исполнитель]]=TRUE,0,IF(Таблица_Металлопроцессинг_детализированный[[#This Row],[Оборот за месяц по контрагенту]]<1000000,0.5,0.3))","v":0},{"$f":"Таблица_Металлопроцессинг_детализированный[[#This Row],[Сумма наценки]]*Таблица_Металлопроцессинг_детализированный[[#This Row],[Распределение выручки для Куратора договора]]","v":2000},{"$f":"IF(Таблица_Металлопроцессинг_детализированный[[#This Row],[Распределение выручки для Менеджера договора]]=1,\"\",Таблица_Металлопроцессинг_детализированный[[#This Row],[Сумма наценки]]*Таблица_Металлопроцессинг_детализированный[[#This Row],[Распределение выручки для Менеджера договора]])","v":0},"Процессинг","САНКТ-ПЕТЕРБУРГ","СИРИУС-МК","ООО \"Сириус-МК\"","г. Санкт-Петербург ","г. Санкт-Петербург ","Металлоторговля","Арматура класс АI, 8, Ст.сп/пс, в бунтах (ГОСТ5781-82)",null,2,"т",54640,"Размотка/резка арматурного проката","MELC 16x4",2000,1,0.33,1,"САНКТ-ПЕТЕРБУРГ","Центр",2]
[1,"САНКТ-ПЕТЕРБУРГ","Центр","Ипатова Е.Н.","Ипатова Е.Н.","Ипатова Е.Н.",{"$f":"IF(Таблица_Металлопроцессинг_детализированный[[#This Row],[Куратор договора]]=Таблица_Металлопроцессинг_детализированный[[#This Row],[Менеджер]],TRUE,FALSE)","v":true},{"$f":"IF(COUNTIFS($A$1:$A42,Таблица_Металлопроцессинг_детализированный[[#This Row],[Месяц отгрузки]],$O$1:$O42,Таблица_Металлопроцессинг_детализированный[[#This Row],[Контрагент]])>0,0,SUMIFS($AA$2:$AA$177,$O$2:$O$177,Таблица_Металлопроцессинг_детализированный[[#This Row],[Контрагент]],$A$2:$A$177,Таблица_Металлопроцессинг_детализированный[[#This Row],[Месяц отгрузки]]))","v":3224},{"$f":"IF(Таблица_Металлопроцессинг_детализированный[[#This Row],[Инициатор+исполнитель]],1,IF(Таблица_Металлопроцессинг_детализированный[[#This Row],[Оборот за месяц по контрагенту]]<1000000,0.5,0.7))","v":1},{"$f":"IF(Таблица_Металлопроцессинг_детализированный[[#This Row],[Инициатор+исполнитель]]=TRUE,0,IF(Таблица_Металлопроцессинг_детализированный[[#This Row],[Оборот за месяц по контрагенту]]<1000000,0.5,0.3))","v":0},{"$f":"Таблица_Металлопроцессинг_детализированный[[#This Row],[Сумма наценки]]*Таблица_Металлопроцессинг_детализированный[[#This Row],[Распределение выручки для Куратора договора]]","v":3224},{"$f":"IF(Таблица_Металлопроцессинг_детализированный[[#This Row],[Распределение выручки для Менеджера договора]]=1,\"\",Таблица_Металлопроцессинг_детализированный[[#This Row],[Сумма наценки]]*Таблица_Металлопроцессинг_детализированный[[#This Row],[Распределение выручки для Менеджера договора]])","v":0},"Процессинг","САНКТ-ПЕТЕРБУРГ","ПетроКомплект","ООО\"ПетроКомплект\"","г. Санкт-Петербург ","г. Санкт-Петербург ","Металлоторговля","Арматура B500C, 10, Ст.сп/пс , в бунтах(ГОСТ 52544-2006)",null,2.48,"т",65000.800000000003,"Размотка/резка арматурного проката","MELC 16x4",3224,1,3.0659999999999998,1,"САНКТ-ПЕТЕРБУРГ","Центр",2.48]
[1,"САНКТ-ПЕТЕРБУРГ","Центр","Хабибуллов М.Р.","Хабибуллов М.Р.","Хабибуллов М.Р.",{"$f":"IF(Таблица_Металлопроцессинг_детализированный[[#This Row],[Куратор договора]]=Таблица_Металлопроцессинг_детализированный[[#This Row],[Менеджер]],TRUE,FALSE)","v":true},{"$f":"IF(COUNTIFS($A$1:$A43,Таблица_Металлопроцессинг_детализированный[[#This Row],[Месяц отгрузки]],$O$1:$O43,Таблица_Металлопроцессинг_детализированный[[#This Row],[Контрагент]])>0,0,SUMIFS($AA$2:$AA$177,$O$2:$O$177,Таблица_Металлопроцессинг_детализированный[[#This Row],[Контрагент]],$A$2:$A$177,Таблица_Металлопроцессинг_детализированный[[#This Row],[Месяц отгрузки]]))","v":0},{"$f":"IF(Таблица_Металлопроцессинг_детализированный[[#This Row],[Инициатор+исполнитель]],1,IF(Таблица_Металлопроцессинг_детализированный[[#This Row],[Оборот за месяц по контрагенту]]<1000000,0.5,0.7))","v":1},{"$f":"IF(Таблица_Металлопроцессинг_детализированный[[#This Row],[Инициатор+исполнитель]]=TRUE,0,IF(Таблица_Металлопроцессинг_детализированный[[#This Row],[Оборот за месяц по контрагенту]]<1000000,0.5,0.3))","v":0},{"$f":"Таблица_Металлопроцессинг_детализированный[[#This Row],[Сумма наценки]]*Таблица_Металлопроцессинг_детализированный[[#This Row],[Распределение выручки для Куратора договора]]","v":29938.5},{"$f":"IF(Таблица_Металлопроцессинг_детализированный[[#This Row],[Распределение выручки для Менеджера договора]]=1,\"\",Таблица_Металлопроцессинг_детализированный[[#This Row],[Сумма наценки]]*Таблица_Металлопроцессинг_детализированный[[#This Row],[Распределение выручки для Менеджера договора]])","v":0},"Процессинг","САНКТ-ПЕТЕРБУРГ","АртЛэнд","ООО \"Строительная компания \"АртЛэнд\"",null,null,"Стройиндустрия","Шпунт Ларсена Л5-УМ, С255 (ТУ 14-102-8-2003)",null,19.959,"т",788380.5,"Очистка и покраска проката (грунт ЭМЛАК 263)","ROSLER",29938.5,19.959,19.959,1,"САНКТ-ПЕТЕРБУРГ","Центр",19.959]
[1,"САНКТ-ПЕТЕРБУРГ","Центр","Степура С.Н.","Степура С.Н.","Степура С.Н.",{"$f":"IF(Таблица_Металлопроцессинг_детализированный[[#This Row],[Куратор договора]]=Таблица_Металлопроцессинг_детализированный[[#This Row],[Менеджер]],TRUE,FALSE)","v":true},{"$f":"IF(COUNTIFS($A$1:$A44,Таблица_Металлопроцессинг_детализированный[[#This Row],[Месяц отгрузки]],$O$1:$O44,Таблица_Металлопроцессинг_детализированный[[#This Row],[Контрагент]])>0,0,SUMIFS($AA$2:$AA$177,$O$2:$O$177,Таблица_Металлопроцессинг_детализированный[[#This Row],[Контрагент]],$A$2:$A$177,Таблица_Металлопроцессинг_детализированный[[#This Row],[Месяц отгрузки]]))","v":1300},{"$f":"IF(Таблица_Металлопроцессинг_детализированный[[#This Row],[Инициатор+исполнитель]],1,IF(Таблица_Металлопроцессинг_детализированный[[#This Row],[Оборот за месяц по контрагенту]]<1000000,0.5,0.7))","v":1},{"$f":"IF(Таблица_Металлопроцессинг_детализированный[[#This Row],[Инициатор+исполнитель]]=TRUE,0,IF(Таблица_Металлопроцессинг_детализированный[[#This Row],[Оборот за месяц по контрагенту]]<1000000,0.5,0.3))","v":0},{"$f":"Таблица_Металлопроцессинг_детализированный[[#This Row],[Сумма наценки]]*Таблица_Металлопроцессинг_детализированный[[#This Row],[Распределение выручки для Куратора договора]]","v":1300},{"$f":"IF(Таблица_Металлопроцессинг_детализированный[[#This Row],[Распределение выручки для Менеджера договора]]=1,\"\",Таблица_Металлопроцессинг_детализированный[[#This Row],[Сумма наценки]]*Таблица_Металлопроцессинг_детализированный[[#This Row],[Распределение выручки для Менеджера договора]])","v":0},"Процессинг","САНКТ-ПЕТЕРБУРГ","ЭРА СПБ","ОАО \"ЭлектроРадиоАвтоматика\"",null,null,"Машиностроение","Сталь листовая Г/к., 10, 1500x6000, Ст.09Г2С (ГОСТ 19281)",null,0.05,"т",1283,"Порезка листового проката плазменная PLAZMA","LINEACORD PCL40",1300,1,0.04,1,"САНКТ-ПЕТЕРБУРГ","Центр",0.05]
[1,"САНКТ-ПЕТЕРБУРГ","Центр","Дауэнгауэр Н.Э.","Дауэнгауэр Н.Э.","Дауэнгауэр Н.Э.",{"$f":"IF(Таблица_Металлопроцессинг_детализированный[[#This Row],[Куратор договора]]=Таблица_Металлопроцессинг_детализированный[[#This Row],[Менеджер]],TRUE,FALSE)","v":true},{"$f":"IF(COUNTIFS($A$1:$A45,Таблица_Металлопроцессинг_детализированный[[#This Row],[Месяц отгрузки]],$O$1:$O45,Таблица_Металлопроцессинг_детализированный[[#This Row],[Контрагент]])>0,0,SUMIFS($AA$2:$AA$177,$O$2:$O$177,Таблица_Металлопроцессинг_детализированный[[#This Row],[Контрагент]],$A$2:$A$177,Таблица_Металлопроцессинг_детализированный[[#This Row],[Месяц отгрузки]]))","v":0},{"$f":"IF(Таблица_Металлопроцессинг_детализированный[[#This Row],[Инициатор+исполнитель]],1,IF(Таблица_Металлопроцессинг_детализированный[[#This Row],[Оборот за месяц по контрагенту]]<1000000,0.5,0.7))","v":1},{"$f":"IF(Таблица_Металлопроцессинг_детализированный[[#This Row],[Инициатор+исполнитель]]=TRUE,0,IF(Таблица_Металлопроцессинг_детализированный[[#This Row],[Оборот за месяц по контрагенту]]<1000000,0.5,0.3))","v":0},{"$f":"Таблица_Металлопроцессинг_детализированный[[#This Row],[Сумма наценки]]*Таблица_Металлопроцессинг_детализированный[[#This Row],[Распределение выручки для Куратора договора]]","v":87635},{"$f":"IF(Таблица_Металлопроцессинг_детализированный[[#This Row],[Распределение выручки для Менеджера договора]]=1,\"\",Таблица_Металлопроцессинг_детализированный[[#This Row],[Сумма наценки]]*Таблица_Металлопроцессинг_детализированный[[#This Row],[Распределение выручки для Менеджера договора]])","v":0},"Процессинг","САНКТ-ПЕТЕРБУРГ","АМИРА СК","ООО \"Амира-СтальКонструкция\"","Санкт-Петербург ","Санкт-Петербург ","Металлоконструкции","Сталь рулонная Г/к., 4, 1500, Ст.сп/пс (19903)",null,10.31,"т",231253.3,"Порезка листового проката поперечная","CAMU RDC 1500/6",87635,1,1.4,1,"САНКТ-ПЕТЕРБУРГ","Центр",10.31]
[1,"САНКТ-ПЕТЕРБУРГ","Центр","Дауэнгауэр Н.Э.","Дауэнгауэр Н.Э.","Дауэнгауэр Н.Э.",{"$f":"IF(Таблица_Металлопроцессинг_детализированный[[#This Row],[Куратор договора]]=Таблица_Металлопроцессинг_детализированный[[#This Row],[Менеджер]],TRUE,FALSE)","v":true},{"$f":"IF(COUNTIFS($A$1:$A46,Таблица_Металлопроцессинг_детализированный[[#This Row],[Месяц отгрузки]],$O$1:$O46,Таблица_Металлопроцессинг_детализированный[[#This Row],[Контрагент]])>0,0,SUMIFS($AA$2:$AA$177,$O$2:$O$177,Таблица_Металлопроцессинг_детализированный[[#This Row],[Контрагент]],$A$2:$A$177,Таблица_Металлопроцессинг_детализированный[[#This Row],[Месяц отгрузки]]))","v":0},{"$f":"IF(Таблица_Металлопроцессинг_детализированный[[#This Row],[Инициатор+исполнитель]],1,IF(Таблица_Металлопроцессинг_детализированный[[#This Row],[Оборот за месяц по контрагенту]]<1000000,0.5,0.7))","v":1},{"$f":"IF(Таблица_Металлопроцессинг_детализированный[[#This Row],[Инициатор+исполнитель]]=TRUE,0,IF(Таблица_Металлопроцессинг_детализированный[[#This Row],[Оборот за месяц по контрагенту]]<1000000,0.5,0.3))","v":0},{"$f":"Таблица_Металлопроцессинг_детализированный[[#This Row],[Сумма наценки]]*Таблица_Металлопроцессинг_детализированный[[#This Row],[Распределение выручки для Куратора договора]]","v":23120},{"$f":"IF(Таблица_Металлопроцессинг_детализированный[[#This Row],[Распределение выручки для Менеджера договора]]=1,\"\",Таблица_Металлопроцессинг_детализированный[[#This Row],[Сумма наценки]]*Таблица_Металлопроцессинг_детализированный[[#This Row],[Распределение выручки для Менеджера договора]])","v":0},"Процессинг","САНКТ-ПЕТЕРБУРГ","АМИРА СК","ООО \"Амира-СтальКонструкция\"","Санкт-Петербург ","Санкт-Петербург ","Металлоконструкции","Сталь рулонная Г/к., 4, 1500, Ст.сп/пс (19903)",null,2.72,"т",61009.599999999999,"Порезка листового проката поперечная","CAMU RDC 1500/6",23120,1,1.4,1,"САНКТ-ПЕТЕРБУРГ","Центр",2.72]
[1,"САНКТ-ПЕТЕРБУРГ","Центр","Ипатова Е.Н.","Ипатова Е.Н.","Ипатова Е.Н.",{"$f":"IF(Таблица_Металлопроцессинг_детализированный[[#This Row],[Куратор договора]]=Таблица_Металлопроцессинг_детализированный[[#This Row],[Менеджер]],TRUE,FALSE)","v":true},{"$f":"IF(COUNTIFS($A$1:$A47,Таблица_Металлопроцессинг_детализированный[[#This Row],[Месяц отгрузки]],$O$1:$O47,Таблица_Металлопроцессинг_детализированный[[#This Row],[Контрагент]])>0,0,SUMIFS($AA$2:$AA$177,$O$2:$O$177,Таблица_Металлопроцессинг_детализированный[[#This Row],[Контрагент]],$A$2:$A$177,Таблица_Металлопроцессинг_детализированный[[#This Row],[Месяц отгрузки]]))","v":0},{"$f":"IF(Таблица_Металлопроцессинг_детализированный[[#This Row],[Инициатор+исполнитель]],1,IF(Таблица_Металлопроцессинг_детализированный[[#This Row],[Оборот за месяц по контрагенту]]<1000000,0.5,0.7))","v":1},{"$f":"IF(Таблица_Металлопроцессинг_детализированный[[#This Row],[Инициатор+исполнитель]]=TRUE,0,IF(Таблица_Металлопроцессинг_детализированный[[#This Row],[Оборот за месяц по контрагенту]]<1000000,0.5,0.3))","v":0},{"$f":"Таблица_Металлопроцессинг_детализированный[[#This Row],[Сумма наценки]]*Таблица_Металлопроцессинг_детализированный[[#This Row],[Распределение выручки для Куратора договора]]","v":25200},{"$f":"IF(Таблица_Металлопроцессинг_детализированный[[#This Row],[Распределение выручки для Менеджера договора]]=1,\"\",Таблица_Металлопроцессинг_детализированный[[#This Row],[Сумма наценки]]*Таблица_Металлопроцессинг_детализированный[[#This Row],[Распределение выручки для Менеджера договора]])","v":0},"Процессинг","САНКТ-ПЕТЕРБУРГ","НИКОЛЬСКИЙ ЗМК","ООО \"Никольский завод металлоконструкций\"","Ленинградская обл.","Ленинградская обл.","Металлоконструкции","Сталь листовая Г/к., 12, 1500x6000, Ст.сп/пс (ГОСТ 14637)",null,23.57,"т",536688.9,"Очистка проката (дробь 1,0мм, 0,8мм)","ROSLER",25200,252,8.5,1,"САНКТ-ПЕТЕРБУРГ","Центр",23.57]
[1,"САНКТ-ПЕТЕРБУРГ","Центр","Ипатов Д.В.","Ипатов Д.В.","Ипатов Д.В.",{"$f":"IF(Таблица_Металлопроцессинг_детализированный[[#This Row],[Куратор договора]]=Таблица_Металлопроцессинг_детализированный[[#This Row],[Менеджер]],TRUE,FALSE)","v":true},{"$f":"IF(COUNTIFS($A$1:$A48,Таблица_Металлопроцессинг_детализированный[[#This Row],[Месяц отгрузки]],$O$1:$O48,Таблица_Металлопроцессинг_детализированный[[#This Row],[Контрагент]])>0,0,SUMIFS($AA$2:$AA$177,$O$2:$O$177,Таблица_Металлопроцессинг_детализированный[[#This Row],[Контрагент]],$A$2:$A$177,Таблица_Металлопроцессинг_детализированный[[#This Row],[Месяц отгрузки]]))","v":1220},{"$f":"IF(Таблица_Металлопроцессинг_детализированный[[#This Row],[Инициатор+исполнитель]],1,IF(Таблица_Металлопроцессинг_детализированный[[#This Row],[Оборот за месяц по контрагенту]]<1000000,0.5,0.7))","v":1},{"$f":"IF(Таблица_Металлопроцессинг_детализированный[[#This Row],[Инициатор+исполнитель]]=TRUE,0,IF(Таблица_Металлопроцессинг_детализированный[[#This Row],[Оборот за месяц по контрагенту]]<1000000,0.5,0.3))","v":0},{"$f":"Таблица_Металлопроцессинг_детализированный[[#This Row],[Сумма наценки]]*Таблица_Металлопроцессинг_детализированный[[#This Row],[Распределение выручки для Куратора договора]]","v":420},{"$f":"IF(Таблица_Металлопроцессинг_детализированный[[#This Row],[Распределение выручки для Менеджера договора]]=1,\"\",Таблица_Металлопроцессинг_детализированный[[#This Row],[Сумма наценки]]*Таблица_Металлопроцессинг_детализированный[[#This Row],[Распределение выручки для Менеджера договора]])","v":0},"Процессинг","САНКТ-ПЕТЕРБУРГ","Трансбетон СПб","ООО \"Трансбетон\"",null,null,"Стройиндустрия","Арматура B500C, 10, Ст.сп/пс , в бунтах(ГОСТ 52544-2006)",null,0.21,"т",5504.1,"Размотка/резка арматурного проката","MELC 16x4",420,1,0.1,1,"САНКТ-ПЕТЕРБУРГ","Центр",0.21]
[1,"САНКТ-ПЕТЕРБУРГ","Центр","Ипатов Д.В.","Ипатов Д.В.","Ипатов Д.В.",{"$f":"IF(Таблица_Металлопроцессинг_детализированный[[#This Row],[Куратор договора]]=Таблица_Металлопроцессинг_детализированный[[#This Row],[Менеджер]],TRUE,FALSE)","v":true},{"$f":"IF(COUNTIFS($A$1:$A49,Таблица_Металлопроцессинг_детализированный[[#This Row],[Месяц отгрузки]],$O$1:$O49,Таблица_Металлопроцессинг_детализированный[[#This Row],[Контрагент]])>0,0,SUMIFS($AA$2:$AA$177,$O$2:$O$177,Таблица_Металлопроцессинг_детализированный[[#This Row],[Контрагент]],$A$2:$A$177,Таблица_Металлопроцессинг_детализированный[[#This Row],[Месяц отгрузки]]))","v":0},{"$f":"IF(Таблица_Металлопроцессинг_детализированный[[#This Row],[Инициатор+исполнитель]],1,IF(Таблица_Металлопроцессинг_детализированный[[#This Row],[Оборот за месяц по контрагенту]]<1000000,0.5,0.7))","v":1},{"$f":"IF(Таблица_Металлопроцессинг_детализированный[[#This Row],[Инициатор+исполнитель]]=TRUE,0,IF(Таблица_Металлопроцессинг_детализированный[[#This Row],[Оборот за месяц по контрагенту]]<1000000,0.5,0.3))","v":0},{"$f":"Таблица_Металлопроцессинг_детализированный[[#This Row],[Сумма наценки]]*Таблица_Металлопроцессинг_детализированный[[#This Row],[Распределение выручки для Куратора договора]]","v":400},{"$f":"IF(Таблица_Металлопроцессинг_детализированный[[#This Row],[Распределение выручки для Менеджера договора]]=1,\"\",Таблица_Металлопроцессинг_детализированный[[#This Row],[Сумма наценки]]*Таблица_Металлопроцессинг_детализированный[[#This Row],[Распределение выручки для Менеджера договора]])","v":0},"Процессинг","САНКТ-ПЕТЕРБУРГ","Трансбетон СПб","ООО \"Трансбетон\"",null,null,"Стройиндустрия","Арматура А400С/А500С, 16, Ст.сп/пс, н/дл (СТО АСЧМ 7-93 / ТУ 14-1-5254-94)",null,0.2,"т",4908,"Размотка/резка арматурного проката","MELC 16x4",400,1,0.2,1,"САНКТ-ПЕТЕРБУРГ","Центр",0.2]
[1,"САНКТ-ПЕТЕРБУРГ","Центр","Ипатов Д.В.","Ипатов Д.В.","Ипатова Е.Н.",{"$f":"IF(Таблица_Металлопроцессинг_детализированный[[#This Row],[Куратор договора]]=Таблица_Металлопроцессинг_детализированный[[#This Row],[Менеджер]],TRUE,FALSE)","v":false},{"$f":"IF(COUNTIFS($A$1:$A50,Таблица_Металлопроцессинг_детализированный[[#This Row],[Месяц отгрузки]],$O$1:$O50,Таблица_Металлопроцессинг_детализированный[[#This Row],[Контрагент]])>0,0,SUMIFS($AA$2:$AA$177,$O$2:$O$177,Таблица_Металлопроцессинг_детализированный[[#This Row],[Контрагент]],$A$2:$A$177,Таблица_Металлопроцессинг_детализированный[[#This Row],[Месяц отгрузки]]))","v":0},{"$f":"IF(Таблица_Металлопроцессинг_детализированный[[#This Row],[Инициатор+исполнитель]],1,IF(Таблица_Металлопроцессинг_детализированный[[#This Row],[Оборот за месяц по контрагенту]]<1000000,0.5,0.7))","v":0.5},{"$f":"IF(Таблица_Металлопроцессинг_детализированный[[#This Row],[Инициатор+исполнитель]]=TRUE,0,IF(Таблица_Металлопроцессинг_детализированный[[#This Row],[Оборот за месяц по контрагенту]]<1000000,0.5,0.3))","v":0.5},{"$f":"Таблица_Металлопроцессинг_детализированный[[#This Row],[Сумма наценки]]*Таблица_Металлопроцессинг_детализированный[[#This Row],[Распределение выручки для Куратора договора]]","v":200},{"$f":"IF(Таблица_Металлопроцессинг_детализированный[[#This Row],[Распределение выручки для Менеджера договора]]=1,\"\",Таблица_Металлопроцессинг_детализированный[[#This Row],[Сумма наценки]]*Таблица_Металлопроцессинг_детализированный[[#This Row],[Распределение выручки для Менеджера договора]])","v":200},"Процессинг","САНКТ-ПЕТЕРБУРГ","Трансбетон СПб","ООО \"Трансбетон\"",null,null,"Стройиндустрия","Арматура А400С/А500С, 25, Ст.сп/пс (СТО АСЧМ 7-93 / ТУ 14-1-5254-94)",null,0.2,"т",5220,"Размотка/резка арматурного проката","MELC 16x4",400,1,0.3,1,"САНКТ-ПЕТЕРБУРГ","Центр",0.2]
[1,"САНКТ-ПЕТЕРБУРГ","Центр","Ипатова Е.Н.","Ипатова Е.Н.","Ипатова Е.Н.",{"$f":"IF(Таблица_Металлопроцессинг_детализированный[[#This Row],[Куратор договора]]=Таблица_Металлопроцессинг_детализированный[[#This Row],[Менеджер]],TRUE,FALSE)","v":true},{"$f":"IF(COUNTIFS($A$1:$A51,Таблица_Металлопроцессинг_детализированный[[#This Row],[Месяц отгрузки]],$O$1:$O51,Таблица_Металлопроцессинг_детализированный[[#This Row],[Контрагент]])>0,0,SUMIFS($AA$2:$AA$177,$O$2:$O$177,Таблица_Металлопроцессинг_детализированный[[#This Row],[Контрагент]],$A$2:$A$177,Таблица_Металлопроцессинг_детализированный[[#This Row],[Месяц отгрузки]]))","v":0},{"$f":"IF(Таблица_Металлопроцессинг_детализированный[[#This Row],[Инициатор+исполнитель]],1,IF(Таблица_Металлопроцессинг_детализированный[[#This Row],[Оборот за месяц по контрагенту]]<1000000,0.5,0.7))","v":1},{"$f":"IF(Таблица_Металлопроцессинг_детализированный[[#This Row],[Инициатор+исполнитель]]=TRUE,0,IF(Таблица_Металлопроцессинг_детализированный[[#This Row],[Оборот за месяц по контрагенту]]<1000000,0.5,0.3))","v":0},{"$f":"Таблица_Металлопроцессинг_детализированный[[#This Row],[Сумма наценки]]*Таблица_Металлопроцессинг_детализированный[[#This Row],[Распределение выручки для Куратора договора]]","v":4176},{"$f":"IF(Таблица_Металлопроцессинг_детализированный[[#This Row],[Распределение выручки для Менеджера договора]]=1,\"\",Таблица_Металлопроцессинг_детализированный[[#This Row],[Сумма наценки]]*Таблица_Металлопроцессинг_детализированный[[#This Row],[Распределение выручки для Менеджера договора]])","v":0},"Процессинг","САНКТ-ПЕТЕРБУРГ","ОЛЛТРЕЙД-НЕВА","ООО\"ОЛЛТРЕЙД-НЕВА\"",null,null,"Металлоторговля","Сталь рулонная Г/к., 1.5, 1250, Ст.сп/пс (19903)",null,4.6399999999999997,"т",118505.60000000001,"Порезка листового проката поперечная","CAMU RDC 1500/6",4176,1,4.45,1,"САНКТ-ПЕТЕРБУРГ","Центр",4.6399999999999997]
[1,"САНКТ-ПЕТЕРБУРГ","Центр","Ипатов Д.В.","Ипатов Д.В.","Ипатова Е.Н.",{"$f":"IF(Таблица_Металлопроцессинг_детализированный[[#This Row],[Куратор договора]]=Таблица_Металлопроцессинг_детализированный[[#This Row],[Менеджер]],TRUE,FALSE)","v":false},{"$f":"IF(COUNTIFS($A$1:$A52,Таблица_Металлопроцессинг_детализированный[[#This Row],[Месяц отгрузки]],$O$1:$O52,Таблица_Металлопроцессинг_детализированный[[#This Row],[Контрагент]])>0,0,SUMIFS($AA$2:$AA$177,$O$2:$O$177,Таблица_Металлопроцессинг_детализированный[[#This Row],[Контрагент]],$A$2:$A$177,Таблица_Металлопроцессинг_детализированный[[#This Row],[Месяц отгрузки]]))","v":1240},{"$f":"IF(Таблица_Металлопроцессинг_детализированный[[#This Row],[Инициатор+исполнитель]],1,IF(Таблица_Металлопроцессинг_детализированный[[#This Row],[Оборот за месяц по контрагенту]]<1000000,0.5,0.7))","v":0.5},{"$f":"IF(Таблица_Металлопроцессинг_детализированный[[#This Row],[Инициатор+исполнитель]]=TRUE,0,IF(Таблица_Металлопроцессинг_детализированный[[#This Row],[Оборот за месяц по контрагенту]]<1000000,0.5,0.3))","v":0.5},{"$f":"Таблица_Металлопроцессинг_детализированный[[#This Row],[Сумма наценки]]*Таблица_Металлопроцессинг_детализированный[[#This Row],[Распределение выручки для Куратора договора]]","v":620},{"$f":"IF(Таблица_Металлопроцессинг_детализированный[[#This Row],[Распределение выручки для Менеджера договора]]=1,\"\",Таблица_Металлопроцессинг_детализированный[[#This Row],[Сумма наценки]]*Таблица_Металлопроцессинг_детализированный[[#This Row],[Распределение выручки для Менеджера договора]])","v":620},"Процессинг","САНКТ-ПЕТЕРБУРГ","Панорама Оконный завод СПб","ООО \"Панорама. Оконный завод\"",null,null,"Другое","Уголок стальной г/к равнополочный, 75x6, Ст.сп/пс (ГОСТ 8509-93)",null,0.15,"т",4131,"Станок ленточнопильный","PEGASUS",1240,8,0.17,1,"САНКТ-ПЕТЕРБУРГ","Центр",0.15]
[1,"САНКТ-ПЕТЕРБУРГ","Центр","Хабибуллов М.Р.","Хабибуллов М.Р.","Хабибуллов М.Р.",{"$f":"IF(Таблица_Металлопроцессинг_детализированный[[#This Row],[Куратор договора]]=Таблица_Металлопроцессинг_детализированный[[#This Row],[Менеджер]],TRUE,FALSE)","v":true},{"$f":"IF(COUNTIFS($A$1:$A53,Таблица_Металлопроцессинг_детализированный[[#This Row],[Месяц отгрузки]],$O$1:$O53,Таблица_Металлопроцессинг_детализированный[[#This Row],[Контрагент]])>0,0,SUMIFS($AA$2:$AA$177,$O$2:$O$177,Таблица_Металлопроцессинг_детализированный[[#This Row],[Контрагент]],$A$2:$A$177,Таблица_Металлопроцессинг_детализированный[[#This Row],[Месяц отгрузки]]))","v":0},{"$f":"IF(Таблица_Металлопроцессинг_детализированный[[#This Row],[Инициатор+исполнитель]],1,IF(Таблица_Металлопроцессинг_детализированный[[#This Row],[Оборот за месяц по контрагенту]]<1000000,0.5,0.7))","v":1},{"$f":"IF(Таблица_Металлопроцессинг_детализированный[[#This Row],[Инициатор+исполнитель]]=TRUE,0,IF(Таблица_Металлопроцессинг_детализированный[[#This Row],[Оборот за месяц по контрагенту]]<1000000,0.5,0.3))","v":0},{"$f":"Таблица_Металлопроцессинг_детализированный[[#This Row],[Сумма наценки]]*Таблица_Металлопроцессинг_детализированный[[#This Row],[Распределение выручки для Куратора договора]]","v":29883},{"$f":"IF(Таблица_Металлопроцессинг_детализированный[[#This Row],[Распределение выручки для Менеджера договора]]=1,\"\",Таблица_Металлопроцессинг_детализированный[[#This Row],[Сумма наценки]]*Таблица_Металлопроцессинг_детализированный[[#This Row],[Распределение выручки для Менеджера договора]])","v":0},"Процессинг","САНКТ-ПЕТЕРБУРГ","АртЛэнд","ООО \"Строительная компания \"АртЛэнд\"",null,null,"Стройиндустрия","Шпунт Ларсена Л5-УМ, С255 (ТУ 14-102-8-2003)",null,19.922000000000001,"т",786919,"Очистка и покраска проката (грунт ЭМЛАК 263)","ROSLER",29883,19.922000000000001,19.922000000000001,1,"САНКТ-ПЕТЕРБУРГ","Центр",19.922000000000001]
[1,"САНКТ-ПЕТЕРБУРГ","Центр","Сафонеев С.А.","Сафонеев С.А.","Ипатова Е.Н.",{"$f":"IF(Таблица_Металлопроцессинг_детализированный[[#This Row],[Куратор договора]]=Таблица_Металлопроцессинг_детализированный[[#This Row],[Менеджер]],TRUE,FALSE)","v":false},{"$f":"IF(COUNTIFS($A$1:$A54,Таблица_Металлопроцессинг_детализированный[[#This Row],[Месяц отгрузки]],$O$1:$O54,Таблица_Металлопроцессинг_детализированный[[#This Row],[Контрагент]])>0,0,SUMIFS($AA$2:$AA$177,$O$2:$O$177,Таблица_Металлопроцессинг_детализированный[[#This Row],[Контрагент]],$A$2:$A$177,Таблица_Металлопроцессинг_детализированный[[#This Row],[Месяц отгрузки]]))","v":343784.60000000003},{"$f":"IF(Таблица_Металлопроцессинг_детализированный[[#This Row],[Инициатор+исполнитель]],1,IF(Таблица_Металлопроцессинг_детализированный[[#This Row],[Оборот за месяц по контрагенту]]<1000000,0.5,0.7))","v":0.5},{"$f":"IF(Таблица_Металлопроцессинг_детализированный[[#This Row],[Инициатор+исполнитель]]=TRUE,0,IF(Таблица_Металлопроцессинг_детализированный[[#This Row],[Оборот за месяц по контрагенту]]<1000000,0.5,0.3))","v":0.5},{"$f":"Таблица_Металлопроцессинг_детализированный[[#This Row],[Сумма наценки]]*Таблица_Металлопроцессинг_детализированный[[#This Row],[Распределение выручки для Куратора договора]]","v":8640.0249999999996},{"$f":"IF(Таблица_Металлопроцессинг_детализированный[[#This Row],[Распределение выручки для Менеджера договора]]=1,\"\",Таблица_Металлопроцессинг_детализированный[[#This Row],[Сумма наценки]]*Таблица_Металлопроцессинг_детализированный[[#This Row],[Распределение выручки для Менеджера договора]])","v":8640.0249999999996},"Из давальческого сырья","САНКТ-ПЕТЕРБУРГ","НЕВА-МЕТАЛЛТРЭЙД ООО","ООО \"Нева-МеталлТрэйд\"","г. Санкт-Петербург ","г. Санкт-Петербург ","Машиностроение","Изделие","Сталь листовая РСД32, 18*2000*8000",13.56,"т",0,"Очистка и покраска проката (грунт HEMPEL)","ROSLER",17280.05,13.56,13.56,1,"САНКТ-ПЕТЕРБУРГ","Центр",13.56]
[1,"САНКТ-ПЕТЕРБУРГ","Центр","Сафонеев С.А.","Сафонеев С.А.","Сафонеев С.А.",{"$f":"IF(Таблица_Металлопроцессинг_детализированный[[#This Row],[Куратор договора]]=Таблица_Металлопроцессинг_детализированный[[#This Row],[Менеджер]],TRUE,FALSE)","v":true},{"$f":"IF(COUNTIFS($A$1:$A55,Таблица_Металлопроцессинг_детализированный[[#This Row],[Месяц отгрузки]],$O$1:$O55,Таблица_Металлопроцессинг_детализированный[[#This Row],[Контрагент]])>0,0,SUMIFS($AA$2:$AA$177,$O$2:$O$177,Таблица_Металлопроцессинг_детализированный[[#This Row],[Контрагент]],$A$2:$A$177,Таблица_Металлопроцессинг_детализированный[[#This Row],[Месяц отгрузки]]))","v":1920},{"$f":"IF(Таблица_Металлопроцессинг_детализированный[[#This Row],[Инициатор+исполнитель]],1,IF(Таблица_Металлопроцессинг_детализированный[[#This Row],[Оборот за месяц по контрагенту]]<1000000,0.5,0.7))","v":1},{"$f":"IF(Таблица_Металлопроцессинг_детализированный[[#This Row],[Инициатор+исполнитель]]=TRUE,0,IF(Таблица_Металлопроцессинг_детализированный[[#This Row],[Оборот за месяц по контрагенту]]<1000000,0.5,0.3))","v":0},{"$f":"Таблица_Металлопроцессинг_детализированный[[#This Row],[Сумма наценки]]*Таблица_Металлопроцессинг_детализированный[[#This Row],[Распределение выручки для Куратора договора]]","v":1920},{"$f":"IF(Таблица_Металлопроцессинг_детализированный[[#This Row],[Распределение выручки для Менеджера договора]]=1,\"\",Таблица_Металлопроцессинг_детализированный[[#This Row],[Сумма наценки]]*Таблица_Металлопроцессинг_детализированный[[#This Row],[Распределение выручки для Менеджера договора]])","v":0},"Из давальческого сырья","САНКТ-ПЕТЕРБУРГ","ФЕНИКС НПО","Научно-производственное объединение \"Феникс\"","Санкт-Петербург ","Санкт-Петербург ","Машиностроение","Изделие","Плазмення резка",16,"п/м",0,"Порезка листового проката плазменная PLAZMA","LINEACORD PCL40",1920,16,16,1,"САНКТ-ПЕТЕРБУРГ","Центр",0.183]
[1,"САНКТ-ПЕТЕРБУРГ","Центр","Дауэнгауэр Н.Э.","Дауэнгауэр Н.Э.","Дауэнгауэр Н.Э.",{"$f":"IF(Таблица_Металлопроцессинг_детализированный[[#This Row],[Куратор договора]]=Таблица_Металлопроцессинг_детализированный[[#This Row],[Менеджер]],TRUE,FALSE)","v":true},{"$f":"IF(COUNTIFS($A$1:$A56,Таблица_Металлопроцессинг_детализированный[[#This Row],[Месяц отгрузки]],$O$1:$O56,Таблица_Металлопроцессинг_детализированный[[#This Row],[Контрагент]])>0,0,SUMIFS($AA$2:$AA$177,$O$2:$O$177,Таблица_Металлопроцессинг_детализированный[[#This Row],[Контрагент]],$A$2:$A$177,Таблица_Металлопроцессинг_детализированный[[#This Row],[Месяц отгрузки]]))","v":0},{"$f":"IF(Таблица_Металлопроцессинг_детализированный[[#This Row],[Инициатор+исполнитель]],1,IF(Таблица_Металлопроцессинг_детализированный[[#This Row],[Оборот за месяц по контрагенту]]<1000000,0.5,0.7))","v":1},{"$f":"IF(Таблица_Металлопроцессинг_детализированный[[#This Row],[Инициатор+исполнитель]]=TRUE,0,IF(Таблица_Металлопроцессинг_детализированный[[#This Row],[Оборот за месяц по контрагенту]]<1000000,0.5,0.3))","v":0},{"$f":"Таблица_Металлопроцессинг_детализированный[[#This Row],[Сумма наценки]]*Таблица_Металлопроцессинг_детализированный[[#This Row],[Распределение выручки для Куратора договора]]","v":17775},{"$f":"IF(Таблица_Металлопроцессинг_детализированный[[#This Row],[Распределение выручки для Менеджера договора]]=1,\"\",Таблица_Металлопроцессинг_детализированный[[#This Row],[Сумма наценки]]*Таблица_Металлопроцессинг_детализированный[[#This Row],[Распределение выручки для Менеджера договора]])","v":0},"Процессинг","САНКТ-ПЕТЕРБУРГ","СКМ Фирма","ООО \"Фирма СКМ\"","Ленинградская обл.","Ленинградская обл.","Машиностроение","Сталь рулонная Х/к., 1.5, 1250, Ст.кп/пс (19904)",null,3.95,"т",110560.5,"Порезка листового проката поперечная","CAMU RDC 1500/6",17775,1,4,1,"САНКТ-ПЕТЕРБУРГ","Центр",3.95]
[1,"САНКТ-ПЕТЕРБУРГ","Центр","Райская Н.А.","Хабибуллов М.Р.","Райская Н.А.",{"$f":"IF(Таблица_Металлопроцессинг_детализированный[[#This Row],[Куратор договора]]=Таблица_Металлопроцессинг_детализированный[[#This Row],[Менеджер]],TRUE,FALSE)","v":true},{"$f":"IF(COUNTIFS($A$1:$A57,Таблица_Металлопроцессинг_детализированный[[#This Row],[Месяц отгрузки]],$O$1:$O57,Таблица_Металлопроцессинг_детализированный[[#This Row],[Контрагент]])>0,0,SUMIFS($AA$2:$AA$177,$O$2:$O$177,Таблица_Металлопроцессинг_детализированный[[#This Row],[Контрагент]],$A$2:$A$177,Таблица_Металлопроцессинг_детализированный[[#This Row],[Месяц отгрузки]]))","v":6139.5},{"$f":"IF(Таблица_Металлопроцессинг_детализированный[[#This Row],[Инициатор+исполнитель]],1,IF(Таблица_Металлопроцессинг_детализированный[[#This Row],[Оборот за месяц по контрагенту]]<1000000,0.5,0.7))","v":1},{"$f":"IF(Таблица_Металлопроцессинг_детализированный[[#This Row],[Инициатор+исполнитель]]=TRUE,0,IF(Таблица_Металлопроцессинг_детализированный[[#This Row],[Оборот за месяц по контрагенту]]<1000000,0.5,0.3))","v":0},{"$f":"Таблица_Металлопроцессинг_детализированный[[#This Row],[Сумма наценки]]*Таблица_Металлопроцессинг_детализированный[[#This Row],[Распределение выручки для Куратора договора]]","v":6139.5},{"$f":"IF(Таблица_Металлопроцессинг_детализированный[[#This Row],[Распределение выручки для Менеджера договора]]=1,\"\",Таблица_Металлопроцессинг_детализированный[[#This Row],[Сумма наценки]]*Таблица_Металлопроцессинг_детализированный[[#This Row],[Распределение выручки для Менеджера договора]])","v":0},"Из давальческого сырья","САНКТ-ПЕТЕРБУРГ","СтройТехИмпорт","ООО \"СтройТехИмпорт\"",null,null,"Стройиндустрия","Шпунт Ларсена Л5-УМ, С255 (ТУ 14-102-8-2010)",null,4.093,"т",0,"Очистка и покраска проката (грунт ЭМЛАК 263)","ROSLER",6139.5,4.093,4.093,1,"САНКТ-ПЕТЕРБУРГ","Центр",4.093]
[1,"САНКТ-ПЕТЕРБУРГ","Центр","Матросова Л.Ш.","Матросова Л.Ш.","Ипатова Е.Н.",{"$f":"IF(Таблица_Металлопроцессинг_детализированный[[#This Row],[Куратор договора]]=Таблица_Металлопроцессинг_детализированный[[#This Row],[Менеджер]],TRUE,FALSE)","v":false},{"$f":"IF(COUNTIFS($A$1:$A58,Таблица_Металлопроцессинг_детализированный[[#This Row],[Месяц отгрузки]],$O$1:$O58,Таблица_Металлопроцессинг_детализированный[[#This Row],[Контрагент]])>0,0,SUMIFS($AA$2:$AA$177,$O$2:$O$177,Таблица_Металлопроцессинг_детализированный[[#This Row],[Контрагент]],$A$2:$A$177,Таблица_Металлопроцессинг_детализированный[[#This Row],[Месяц отгрузки]]))","v":0},{"$f":"IF(Таблица_Металлопроцессинг_детализированный[[#This Row],[Инициатор+исполнитель]],1,IF(Таблица_Металлопроцессинг_детализированный[[#This Row],[Оборот за месяц по контрагенту]]<1000000,0.5,0.7))","v":0.5},{"$f":"IF(Таблица_Металлопроцессинг_детализированный[[#This Row],[Инициатор+исполнитель]]=TRUE,0,IF(Таблица_Металлопроцессинг_детализированный[[#This Row],[Оборот за месяц по контрагенту]]<1000000,0.5,0.3))","v":0.5},{"$f":"Таблица_Металлопроцессинг_детализированный[[#This Row],[Сумма наценки]]*Таблица_Металлопроцессинг_детализированный[[#This Row],[Распределение выручки для Куратора договора]]","v":1000},{"$f":"IF(Таблица_Металлопроцессинг_детализированный[[#This Row],[Распределение выручки для Менеджера договора]]=1,\"\",Таблица_Металлопроцессинг_детализированный[[#This Row],[Сумма наценки]]*Таблица_Металлопроцессинг_детализированный[[#This Row],[Распределение выручки для Менеджера договора]])","v":1000},"Процессинг","САНКТ-ПЕТЕРБУРГ","ТэтаКом","ООО \"ТэтаКом\"","г. Санкт-Петербург ","г. Санкт-Петербург ","Металлоторговля","Сталь рулонная Г/к., 3, 1500, Ст.сп/пс (19903)",null,1.69,"т",37349,"Порезка листового проката поперечная","CAMU RDC 1500/6",2000,1,1.71,1,"САНКТ-ПЕТЕРБУРГ","Центр",1.69]
[1,"САНКТ-ПЕТЕРБУРГ","Центр","Молчанова Е.М.","Молчанова Е.М.","Дауэнгауэр Н.Э.",{"$f":"IF(Таблица_Металлопроцессинг_детализированный[[#This Row],[Куратор договора]]=Таблица_Металлопроцессинг_детализированный[[#This Row],[Менеджер]],TRUE,FALSE)","v":false},{"$f":"IF(COUNTIFS($A$1:$A59,Таблица_Металлопроцессинг_детализированный[[#This Row],[Месяц отгрузки]],$O$1:$O59,Таблица_Металлопроцессинг_детализированный[[#This Row],[Контрагент]])>0,0,SUMIFS($AA$2:$AA$177,$O$2:$O$177,Таблица_Металлопроцессинг_детализированный[[#This Row],[Контрагент]],$A$2:$A$177,Таблица_Металлопроцессинг_детализированный[[#This Row],[Месяц отгрузки]]))","v":164940},{"$f":"IF(Таблица_Металлопроцессинг_детализированный[[#This Row],[Инициатор+исполнитель]],1,IF(Таблица_Металлопроцессинг_детализированный[[#This Row],[Оборот за месяц по контрагенту]]<1000000,0.5,0.7))","v":0.5},{"$f":"IF(Таблица_Металлопроцессинг_детализированный[[#This Row],[Инициатор+исполнитель]]=TRUE,0,IF(Таблица_Металлопроцессинг_детализированный[[#This Row],[Оборот за месяц по контрагенту]]<1000000,0.5,0.3))","v":0.5},{"$f":"Таблица_Металлопроцессинг_детализированный[[#This Row],[Сумма наценки]]*Таблица_Металлопроцессинг_детализированный[[#This Row],[Распределение выручки для Куратора договора]]","v":7590},{"$f":"IF(Таблица_Металлопроцессинг_детализированный[[#This Row],[Распределение выручки для Менеджера договора]]=1,\"\",Таблица_Металлопроцессинг_детализированный[[#This Row],[Сумма наценки]]*Таблица_Металлопроцессинг_детализированный[[#This Row],[Распределение выручки для Менеджера договора]])","v":7590},"Из давальческого сырья","САНКТ-ПЕТЕРБУРГ","НЕВСКИЙ МЕТАЛЛ (СПб)","ООО \"НЕВСКИЙ МЕТАЛЛ\"",null,null,"Металлоторговля","Изделие","ПВЛ 406 дробь+эмлак обе стороны листа",1.28,"т",0,"Очистка и покраска проката (грунт ЭМЛАК 263)","ROSLER",15180,138,138,1,"САНКТ-ПЕТЕРБУРГ","Центр",1.28]
[1,"САНКТ-ПЕТЕРБУРГ","Центр","Молчанова Е.М.","Молчанова Е.М.","Райская Н.А.",{"$f":"IF(Таблица_Металлопроцессинг_детализированный[[#This Row],[Куратор договора]]=Таблица_Металлопроцессинг_детализированный[[#This Row],[Менеджер]],TRUE,FALSE)","v":false},{"$f":"IF(COUNTIFS($A$1:$A60,Таблица_Металлопроцессинг_детализированный[[#This Row],[Месяц отгрузки]],$O$1:$O60,Таблица_Металлопроцессинг_детализированный[[#This Row],[Контрагент]])>0,0,SUMIFS($AA$2:$AA$177,$O$2:$O$177,Таблица_Металлопроцессинг_детализированный[[#This Row],[Контрагент]],$A$2:$A$177,Таблица_Металлопроцессинг_детализированный[[#This Row],[Месяц отгрузки]]))","v":0},{"$f":"IF(Таблица_Металлопроцессинг_детализированный[[#This Row],[Инициатор+исполнитель]],1,IF(Таблица_Металлопроцессинг_детализированный[[#This Row],[Оборот за месяц по контрагенту]]<1000000,0.5,0.7))","v":0.5},{"$f":"IF(Таблица_Металлопроцессинг_детализированный[[#This Row],[Инициатор+исполнитель]]=TRUE,0,IF(Таблица_Металлопроцессинг_детализированный[[#This Row],[Оборот за месяц по контрагенту]]<1000000,0.5,0.3))","v":0.5},{"$f":"Таблица_Металлопроцессинг_детализированный[[#This Row],[Сумма наценки]]*Таблица_Металлопроцессинг_детализированный[[#This Row],[Распределение выручки для Куратора договора]]","v":5060},{"$f":"IF(Таблица_Металлопроцессинг_детализированный[[#This Row],[Распределение выручки для Менеджера договора]]=1,\"\",Таблица_Металлопроцессинг_детализированный[[#This Row],[Сумма наценки]]*Таблица_Металлопроцессинг_детализированный[[#This Row],[Распределение выручки для Менеджера договора]])","v":5060},"Из давальческого сырья","САНКТ-ПЕТЕРБУРГ","НЕВСКИЙ МЕТАЛЛ (СПб)","ООО \"НЕВСКИЙ МЕТАЛЛ\"",null,null,"Металлоторговля","Изделие","полоса 4*70*3000 дробь+эмлак с обеих сторон",1.33,"т",0,"Очистка и покраска проката (грунт ЭМЛАК 263)","ROSLER",10120,92,92,1,"САНКТ-ПЕТЕРБУРГ","Центр",1.33]
[1,"САНКТ-ПЕТЕРБУРГ","Центр","Молчанова Е.М.","Матросова Л.Ш.","Молчанова Е.М.",{"$f":"IF(Таблица_Металлопроцессинг_детализированный[[#This Row],[Куратор договора]]=Таблица_Металлопроцессинг_детализированный[[#This Row],[Менеджер]],TRUE,FALSE)","v":true},{"$f":"IF(COUNTIFS($A$1:$A61,Таблица_Металлопроцессинг_детализированный[[#This Row],[Месяц отгрузки]],$O$1:$O61,Таблица_Металлопроцессинг_детализированный[[#This Row],[Контрагент]])>0,0,SUMIFS($AA$2:$AA$177,$O$2:$O$177,Таблица_Металлопроцессинг_детализированный[[#This Row],[Контрагент]],$A$2:$A$177,Таблица_Металлопроцессинг_детализированный[[#This Row],[Месяц отгрузки]]))","v":0},{"$f":"IF(Таблица_Металлопроцессинг_детализированный[[#This Row],[Инициатор+исполнитель]],1,IF(Таблица_Металлопроцессинг_детализированный[[#This Row],[Оборот за месяц по контрагенту]]<1000000,0.5,0.7))","v":1},{"$f":"IF(Таблица_Металлопроцессинг_детализированный[[#This Row],[Инициатор+исполнитель]]=TRUE,0,IF(Таблица_Металлопроцессинг_детализированный[[#This Row],[Оборот за месяц по контрагенту]]<1000000,0.5,0.3))","v":0},{"$f":"Таблица_Металлопроцессинг_детализированный[[#This Row],[Сумма наценки]]*Таблица_Металлопроцессинг_детализированный[[#This Row],[Распределение выручки для Куратора договора]]","v":300},{"$f":"IF(Таблица_Металлопроцессинг_детализированный[[#This Row],[Распределение выручки для Менеджера договора]]=1,\"\",Таблица_Металлопроцессинг_детализированный[[#This Row],[Сумма наценки]]*Таблица_Металлопроцессинг_детализированный[[#This Row],[Распределение выручки для Менеджера договора]])","v":0},"Процессинг","САНКТ-ПЕТЕРБУРГ","НЕВСКИЙ МЕТАЛЛ (СПб)","ООО \"НЕВСКИЙ МЕТАЛЛ\"",null,null,"Металлоторговля","Арматура класс АI, 12, Ст.сп/пс, в бунтах (ГОСТ 5781-82)",null,0.3,"т",8697,"Размотка/резка арматурного проката","MELC 16x4",300,1,0.3,1,"САНКТ-ПЕТЕРБУРГ","Центр",0.3]
[1,"САНКТ-ПЕТЕРБУРГ","Центр","Молчанова Е.М.","Матросова Л.Ш.","Ипатова Е.Н.",{"$f":"IF(Таблица_Металлопроцессинг_детализированный[[#This Row],[Куратор договора]]=Таблица_Металлопроцессинг_детализированный[[#This Row],[Менеджер]],TRUE,FALSE)","v":false},{"$f":"IF(COUNTIFS($A$1:$A62,Таблица_Металлопроцессинг_детализированный[[#This Row],[Месяц отгрузки]],$O$1:$O62,Таблица_Металлопроцессинг_детализированный[[#This Row],[Контрагент]])>0,0,SUMIFS($AA$2:$AA$177,$O$2:$O$177,Таблица_Металлопроцессинг_детализированный[[#This Row],[Контрагент]],$A$2:$A$177,Таблица_Металлопроцессинг_детализированный[[#This Row],[Месяц отгрузки]]))","v":0},{"$f":"IF(Таблица_Металлопроцессинг_детализированный[[#This Row],[Инициатор+исполнитель]],1,IF(Таблица_Металлопроцессинг_детализированный[[#This Row],[Оборот за месяц по контрагенту]]<1000000,0.5,0.7))","v":0.5},{"$f":"IF(Таблица_Металлопроцессинг_детализированный[[#This Row],[Инициатор+исполнитель]]=TRUE,0,IF(Таблица_Металлопроцессинг_детализированный[[#This Row],[Оборот за месяц по контрагенту]]<1000000,0.5,0.3))","v":0.5},{"$f":"Таблица_Металлопроцессинг_детализированный[[#This Row],[Сумма наценки]]*Таблица_Металлопроцессинг_детализированный[[#This Row],[Распределение выручки для Куратора договора]]","v":7500},{"$f":"IF(Таблица_Металлопроцессинг_детализированный[[#This Row],[Распределение выручки для Менеджера договора]]=1,\"\",Таблица_Металлопроцессинг_детализированный[[#This Row],[Сумма наценки]]*Таблица_Металлопроцессинг_детализированный[[#This Row],[Распределение выручки для Менеджера договора]])","v":7500},"Из давальческого сырья","САНКТ-ПЕТЕРБУРГ","НЕВСКИЙ МЕТАЛЛ (СПб)","ООО \"НЕВСКИЙ МЕТАЛЛ\"",null,null,"Металлоторговля","Изделие","тр. 168*10 HEMPEL",9.5500000000000007,"т",0,"Очистка и покраска проката (грунт HEMPEL)","ROSLER",15000,125,105,1,"САНКТ-ПЕТЕРБУРГ","Центр",9.5500000000000007]
[1,"САНКТ-ПЕТЕРБУРГ","Центр","Молчанова Е.М.","Матросова Л.Ш.","Ипатов Д.В.",{"$f":"IF(Таблица_Металлопроцессинг_детализированный[[#This Row],[Куратор договора]]=Таблица_Металлопроцессинг_детализированный[[#This Row],[Менеджер]],TRUE,FALSE)","v":false},{"$f":"IF(COUNTIFS($A$1:$A63,Таблица_Металлопроцессинг_детализированный[[#This Row],[Месяц отгрузки]],$O$1:$O63,Таблица_Металлопроцессинг_детализированный[[#This Row],[Контрагент]])>0,0,SUMIFS($AA$2:$AA$177,$O$2:$O$177,Таблица_Металлопроцессинг_детализированный[[#This Row],[Контрагент]],$A$2:$A$177,Таблица_Металлопроцессинг_детализированный[[#This Row],[Месяц отгрузки]]))","v":0},{"$f":"IF(Таблица_Металлопроцессинг_детализированный[[#This Row],[Инициатор+исполнитель]],1,IF(Таблица_Металлопроцессинг_детализированный[[#This Row],[Оборот за месяц по контрагенту]]<1000000,0.5,0.7))","v":0.5},{"$f":"IF(Таблица_Металлопроцессинг_детализированный[[#This Row],[Инициатор+исполнитель]]=TRUE,0,IF(Таблица_Металлопроцессинг_детализированный[[#This Row],[Оборот за месяц по контрагенту]]<1000000,0.5,0.3))","v":0.5},{"$f":"Таблица_Металлопроцессинг_детализированный[[#This Row],[Сумма наценки]]*Таблица_Металлопроцессинг_детализированный[[#This Row],[Распределение выручки для Куратора договора]]","v":12000},{"$f":"IF(Таблица_Металлопроцессинг_детализированный[[#This Row],[Распределение выручки для Менеджера договора]]=1,\"\",Таблица_Металлопроцессинг_детализированный[[#This Row],[Сумма наценки]]*Таблица_Металлопроцессинг_детализированный[[#This Row],[Распределение выручки для Менеджера договора]])","v":12000},"Из давальческого сырья","САНКТ-ПЕТЕРБУРГ","НЕВСКИЙ МЕТАЛЛ (СПб)","ООО \"НЕВСКИЙ МЕТАЛЛ\"",null,null,"Металлоторговля","Изделие","тр. 76*4 HEMPEL",6.2,"т",0,"Очистка и покраска проката (грунт HEMPEL)","ROSLER",24000,200,186,1,"САНКТ-ПЕТЕРБУРГ","Центр",6.2]
[1,"САНКТ-ПЕТЕРБУРГ","Центр","Сафонеев С.А.","Сафонеев С.А.","Сафонеев С.А.",{"$f":"IF(Таблица_Металлопроцессинг_детализированный[[#This Row],[Куратор договора]]=Таблица_Металлопроцессинг_детализированный[[#This Row],[Менеджер]],TRUE,FALSE)","v":true},{"$f":"IF(COUNTIFS($A$1:$A64,Таблица_Металлопроцессинг_детализированный[[#This Row],[Месяц отгрузки]],$O$1:$O64,Таблица_Металлопроцессинг_детализированный[[#This Row],[Контрагент]])>0,0,SUMIFS($AA$2:$AA$177,$O$2:$O$177,Таблица_Металлопроцессинг_детализированный[[#This Row],[Контрагент]],$A$2:$A$177,Таблица_Металлопроцессинг_детализированный[[#This Row],[Месяц отгрузки]]))","v":600},{"$f":"IF(Таблица_Металлопроцессинг_детализированный[[#This Row],[Инициатор+исполнитель]],1,IF(Таблица_Металлопроцессинг_детализированный[[#This Row],[Оборот за месяц по контрагенту]]<1000000,0.5,0.7))","v":1},{"$f":"IF(Таблица_Металлопроцессинг_детализированный[[#This Row],[Инициатор+исполнитель]]=TRUE,0,IF(Таблица_Металлопроцессинг_детализированный[[#This Row],[Оборот за месяц по контрагенту]]<1000000,0.5,0.3))","v":0},{"$f":"Таблица_Металлопроцессинг_детализированный[[#This Row],[Сумма наценки]]*Таблица_Металлопроцессинг_детализированный[[#This Row],[Распределение выручки для Куратора договора]]","v":600},{"$f":"IF(Таблица_Металлопроцессинг_детализированный[[#This Row],[Распределение выручки для Менеджера договора]]=1,\"\",Таблица_Металлопроцессинг_детализированный[[#This Row],[Сумма наценки]]*Таблица_Металлопроцессинг_детализированный[[#This Row],[Распределение выручки для Менеджера договора]])","v":0},"Процессинг","САНКТ-ПЕТЕРБУРГ","ГЕСЕР ЗАО СПБ","ЗАО \"Гесер\"","Ленинградская обл.","Ленинградская обл.","Машиностроение","Швеллер стальной г/к, 16У, Ст.С255 (ГОСТ 27772-88)",null,0.35199999999999998,"т",9929.92,"Станок ленточнопильный","PEGASUS",600,2,0.35199999999999998,1,"САНКТ-ПЕТЕРБУРГ","Центр",0.35199999999999998]
[1,"САНКТ-ПЕТЕРБУРГ","Центр","Хабибуллов М.Р.","Хабибуллов М.Р.","Дауэнгауэр Н.Э.",{"$f":"IF(Таблица_Металлопроцессинг_детализированный[[#This Row],[Куратор договора]]=Таблица_Металлопроцессинг_детализированный[[#This Row],[Менеджер]],TRUE,FALSE)","v":false},{"$f":"IF(COUNTIFS($A$1:$A65,Таблица_Металлопроцессинг_детализированный[[#This Row],[Месяц отгрузки]],$O$1:$O65,Таблица_Металлопроцессинг_детализированный[[#This Row],[Контрагент]])>0,0,SUMIFS($AA$2:$AA$177,$O$2:$O$177,Таблица_Металлопроцессинг_детализированный[[#This Row],[Контрагент]],$A$2:$A$177,Таблица_Металлопроцессинг_детализированный[[#This Row],[Месяц отгрузки]]))","v":0},{"$f":"IF(Таблица_Металлопроцессинг_детализированный[[#This Row],[Инициатор+исполнитель]],1,IF(Таблица_Металлопроцессинг_детализированный[[#This Row],[Оборот за месяц по контрагенту]]<1000000,0.5,0.7))","v":0.5},{"$f":"IF(Таблица_Металлопроцессинг_детализированный[[#This Row],[Инициатор+исполнитель]]=TRUE,0,IF(Таблица_Металлопроцессинг_детализированный[[#This Row],[Оборот за месяц по контрагенту]]<1000000,0.5,0.3))","v":0.5},{"$f":"Таблица_Металлопроцессинг_детализированный[[#This Row],[Сумма наценки]]*Таблица_Металлопроцессинг_детализированный[[#This Row],[Распределение выручки для Куратора договора]]","v":14991},{"$f":"IF(Таблица_Металлопроцессинг_детализированный[[#This Row],[Распределение выручки для Менеджера договора]]=1,\"\",Таблица_Металлопроцессинг_детализированный[[#This Row],[Сумма наценки]]*Таблица_Металлопроцессинг_детализированный[[#This Row],[Распределение выручки для Менеджера договора]])","v":14991},"Процессинг","САНКТ-ПЕТЕРБУРГ","АртЛэнд","ООО \"Строительная компания \"АртЛэнд\"",null,null,"Стройиндустрия","Шпунт Ларсена Л5-УМ, С255 (ТУ 14-102-8-2003)",null,19.988,"т",789526,"Очистка и покраска проката (грунт ЭМЛАК 263)","ROSLER",29982,19.988,61.65,1,"САНКТ-ПЕТЕРБУРГ","Центр",19.988]
[1,"САНКТ-ПЕТЕРБУРГ","Центр","Молчанова Е.М.","Молчанова Е.М.","Молчанова Е.М.",{"$f":"IF(Таблица_Металлопроцессинг_детализированный[[#This Row],[Куратор договора]]=Таблица_Металлопроцессинг_детализированный[[#This Row],[Менеджер]],TRUE,FALSE)","v":true},{"$f":"IF(COUNTIFS($A$1:$A66,Таблица_Металлопроцессинг_детализированный[[#This Row],[Месяц отгрузки]],$O$1:$O66,Таблица_Металлопроцессинг_детализированный[[#This Row],[Контрагент]])>0,0,SUMIFS($AA$2:$AA$177,$O$2:$O$177,Таблица_Металлопроцессинг_детализированный[[#This Row],[Контрагент]],$A$2:$A$177,Таблица_Металлопроцессинг_детализированный[[#This Row],[Месяц отгрузки]]))","v":0},{"$f":"IF(Таблица_Металлопроцессинг_детализированный[[#This Row],[Инициатор+исполнитель]],1,IF(Таблица_Металлопроцессинг_детализированный[[#This Row],[Оборот за месяц по контрагенту]]<1000000,0.5,0.7))","v":1},{"$f":"IF(Таблица_Металлопроцессинг_детализированный[[#This Row],[Инициатор+исполнитель]]=TRUE,0,IF(Таблица_Металлопроцессинг_детализированный[[#This Row],[Оборот за месяц по контрагенту]]<1000000,0.5,0.3))","v":0},{"$f":"Таблица_Металлопроцессинг_детализированный[[#This Row],[Сумма наценки]]*Таблица_Металлопроцессинг_детализированный[[#This Row],[Распределение выручки для Куратора договора]]","v":1980},{"$f":"IF(Таблица_Металлопроцессинг_детализированный[[#This Row],[Распределение выручки для Менеджера договора]]=1,\"\",Таблица_Металлопроцессинг_детализированный[[#This Row],[Сумма наценки]]*Таблица_Металлопроцессинг_детализированный[[#This Row],[Распределение выручки для Менеджера договора]])","v":0},"Из давальческого сырья","САНКТ-ПЕТЕРБУРГ","НЕВСКИЙ МЕТАЛЛ (СПб)","ООО \"НЕВСКИЙ МЕТАЛЛ\"",null,null,"Металлоторговля","Изделие","тр. 89*4 HEMPEL",0.503,"т",0,"Очистка и покраска проката (грунт HEMPEL)","ROSLER",1980,16.5,16.5,1,"САНКТ-ПЕТЕРБУРГ","Центр",0.503]
[1,"САНКТ-ПЕТЕРБУРГ","Центр","Погорелов И.В.","Погорелов И.В.","Погорелов И.В.",{"$f":"IF(Таблица_Металлопроцессинг_детализированный[[#This Row],[Куратор договора]]=Таблица_Металлопроцессинг_детализированный[[#This Row],[Менеджер]],TRUE,FALSE)","v":true},{"$f":"IF(COUNTIFS($A$1:$A67,Таблица_Металлопроцессинг_детализированный[[#This Row],[Месяц отгрузки]],$O$1:$O67,Таблица_Металлопроцессинг_детализированный[[#This Row],[Контрагент]])>0,0,SUMIFS($AA$2:$AA$177,$O$2:$O$177,Таблица_Металлопроцессинг_детализированный[[#This Row],[Контрагент]],$A$2:$A$177,Таблица_Металлопроцессинг_детализированный[[#This Row],[Месяц отгрузки]]))","v":19085},{"$f":"IF(Таблица_Металлопроцессинг_детализированный[[#This Row],[Инициатор+исполнитель]],1,IF(Таблица_Металлопроцессинг_детализированный[[#This Row],[Оборот за месяц по контрагенту]]<1000000,0.5,0.7))","v":1},{"$f":"IF(Таблица_Металлопроцессинг_детализированный[[#This Row],[Инициатор+исполнитель]]=TRUE,0,IF(Таблица_Металлопроцессинг_детализированный[[#This Row],[Оборот за месяц по контрагенту]]<1000000,0.5,0.3))","v":0},{"$f":"Таблица_Металлопроцессинг_детализированный[[#This Row],[Сумма наценки]]*Таблица_Металлопроцессинг_детализированный[[#This Row],[Распределение выручки для Куратора договора]]","v":11408},{"$f":"IF(Таблица_Металлопроцессинг_детализированный[[#This Row],[Распределение выручки для Менеджера договора]]=1,\"\",Таблица_Металлопроцессинг_детализированный[[#This Row],[Сумма наценки]]*Таблица_Металлопроцессинг_детализированный[[#This Row],[Распределение выручки для Менеджера договора]])","v":0},"Процессинг","САНКТ-ПЕТЕРБУРГ","АЛЬЯНС ПРОФИТ","ООО \"Альянс ПРОФИТ\"",null,null,"Металлоконструкции","Сталь листовая Х/к., 0.8, 1250x2500, Ст.08пс (ГОСТ 16523)",null,14.26,"т",397568.8,"Порезка листового проката (ножницы)",null,11408,1,14.2,null,"САНКТ-ПЕТЕРБУРГ","Центр",14.26]
[1,"САНКТ-ПЕТЕРБУРГ","Центр","Погорелов И.В.","Погорелов И.В.","Погорелов И.В.",{"$f":"IF(Таблица_Металлопроцессинг_детализированный[[#This Row],[Куратор договора]]=Таблица_Металлопроцессинг_детализированный[[#This Row],[Менеджер]],TRUE,FALSE)","v":true},{"$f":"IF(COUNTIFS($A$1:$A68,Таблица_Металлопроцессинг_детализированный[[#This Row],[Месяц отгрузки]],$O$1:$O68,Таблица_Металлопроцессинг_детализированный[[#This Row],[Контрагент]])>0,0,SUMIFS($AA$2:$AA$177,$O$2:$O$177,Таблица_Металлопроцессинг_детализированный[[#This Row],[Контрагент]],$A$2:$A$177,Таблица_Металлопроцессинг_детализированный[[#This Row],[Месяц отгрузки]]))","v":0},{"$f":"IF(Таблица_Металлопроцессинг_детализированный[[#This Row],[Инициатор+исполнитель]],1,IF(Таблица_Металлопроцессинг_детализированный[[#This Row],[Оборот за месяц по контрагенту]]<1000000,0.5,0.7))","v":1},{"$f":"IF(Таблица_Металлопроцессинг_детализированный[[#This Row],[Инициатор+исполнитель]]=TRUE,0,IF(Таблица_Металлопроцессинг_детализированный[[#This Row],[Оборот за месяц по контрагенту]]<1000000,0.5,0.3))","v":0},{"$f":"Таблица_Металлопроцессинг_детализированный[[#This Row],[Сумма наценки]]*Таблица_Металлопроцессинг_детализированный[[#This Row],[Распределение выручки для Куратора договора]]","v":1416},{"$f":"IF(Таблица_Металлопроцессинг_детализированный[[#This Row],[Распределение выручки для Менеджера договора]]=1,\"\",Таблица_Металлопроцессинг_детализированный[[#This Row],[Сумма наценки]]*Таблица_Металлопроцессинг_детализированный[[#This Row],[Распределение выручки для Менеджера договора]])","v":0},"Процессинг","САНКТ-ПЕТЕРБУРГ","АЛЬЯНС ПРОФИТ","ООО \"Альянс ПРОФИТ\"",null,null,"Металлоконструкции","Сталь листовая Х/к., 1, 1250x2500, Ст.кп/пс (ГОСТ 16523)",null,1.18,"т",32768.6,"Порезка листового проката (ножницы)",null,1416,1,1.2,null,"САНКТ-ПЕТЕРБУРГ","Центр",1.18]
[1,"САНКТ-ПЕТЕРБУРГ","Центр","Погорелов И.В.","Погорелов И.В.","Погорелов И.В.",{"$f":"IF(Таблица_Металлопроцессинг_детализированный[[#This Row],[Куратор договора]]=Таблица_Металлопроцессинг_детализированный[[#This Row],[Менеджер]],TRUE,FALSE)","v":true},{"$f":"IF(COUNTIFS($A$1:$A69,Таблица_Металлопроцессинг_детализированный[[#This Row],[Месяц отгрузки]],$O$1:$O69,Таблица_Металлопроцессинг_детализированный[[#This Row],[Контрагент]])>0,0,SUMIFS($AA$2:$AA$177,$O$2:$O$177,Таблица_Металлопроцессинг_детализированный[[#This Row],[Контрагент]],$A$2:$A$177,Таблица_Металлопроцессинг_детализированный[[#This Row],[Месяц отгрузки]]))","v":0},{"$f":"IF(Таблица_Металлопроцессинг_детализированный[[#This Row],[Инициатор+исполнитель]],1,IF(Таблица_Металлопроцессинг_детализированный[[#This Row],[Оборот за месяц по контрагенту]]<1000000,0.5,0.7))","v":1},{"$f":"IF(Таблица_Металлопроцессинг_детализированный[[#This Row],[Инициатор+исполнитель]]=TRUE,0,IF(Таблица_Металлопроцессинг_детализированный[[#This Row],[Оборот за месяц по контрагенту]]<1000000,0.5,0.3))","v":0},{"$f":"Таблица_Металлопроцессинг_детализированный[[#This Row],[Сумма наценки]]*Таблица_Металлопроцессинг_детализированный[[#This Row],[Распределение выручки для Куратора договора]]","v":1500},{"$f":"IF(Таблица_Металлопроцессинг_детализированный[[#This Row],[Распределение выручки для Менеджера договора]]=1,\"\",Таблица_Металлопроцессинг_детализированный[[#This Row],[Сумма наценки]]*Таблица_Металлопроцессинг_детализированный[[#This Row],[Распределение выручки для Менеджера договора]])","v":0},"Процессинг","САНКТ-ПЕТЕРБУРГ","АЛЬЯНС ПРОФИТ","ООО \"Альянс ПРОФИТ\"",null,null,"Металлоконструкции","Сталь листовая Х/к., 1.5, 1250x2500, Ст.кп/пс (ТУ 14-106-321-2010)",null,1,"т",26990,"Порезка листового проката (ножницы)",null,1500,1,1,null,"САНКТ-ПЕТЕРБУРГ","Центр",1]
[1,"САНКТ-ПЕТЕРБУРГ","Центр","Погорелов И.В.","Погорелов И.В.","Погорелов И.В.",{"$f":"IF(Таблица_Металлопроцессинг_детализированный[[#This Row],[Куратор договора]]=Таблица_Металлопроцессинг_детализированный[[#This Row],[Менеджер]],TRUE,FALSE)","v":true},{"$f":"IF(COUNTIFS($A$1:$A70,Таблица_Металлопроцессинг_детализированный[[#This Row],[Месяц отгрузки]],$O$1:$O70,Таблица_Металлопроцессинг_детализированный[[#This Row],[Контрагент]])>0,0,SUMIFS($AA$2:$AA$177,$O$2:$O$177,Таблица_Металлопроцессинг_детализированный[[#This Row],[Контрагент]],$A$2:$A$177,Таблица_Металлопроцессинг_детализированный[[#This Row],[Месяц отгрузки]]))","v":0},{"$f":"IF(Таблица_Металлопроцессинг_детализированный[[#This Row],[Инициатор+исполнитель]],1,IF(Таблица_Металлопроцессинг_детализированный[[#This Row],[Оборот за месяц по контрагенту]]<1000000,0.5,0.7))","v":1},{"$f":"IF(Таблица_Металлопроцессинг_детализированный[[#This Row],[Инициатор+исполнитель]]=TRUE,0,IF(Таблица_Металлопроцессинг_детализированный[[#This Row],[Оборот за месяц по контрагенту]]<1000000,0.5,0.3))","v":0},{"$f":"Таблица_Металлопроцессинг_детализированный[[#This Row],[Сумма наценки]]*Таблица_Металлопроцессинг_детализированный[[#This Row],[Распределение выручки для Куратора договора]]","v":1185},{"$f":"IF(Таблица_Металлопроцессинг_детализированный[[#This Row],[Распределение выручки для Менеджера договора]]=1,\"\",Таблица_Металлопроцессинг_детализированный[[#This Row],[Сумма наценки]]*Таблица_Металлопроцессинг_детализированный[[#This Row],[Распределение выручки для Менеджера договора]])","v":0},"Процессинг","САНКТ-ПЕТЕРБУРГ","АЛЬЯНС ПРОФИТ","ООО \"Альянс ПРОФИТ\"",null,null,"Металлоконструкции","Сталь листовая Х/к., 2, 1250x2500, Ст.кп/пс (ТУ 14-106-321-2010)",null,0.79,"т",21148.3,"Порезка листового проката (ножницы)",null,1185,1,0.8,null,"САНКТ-ПЕТЕРБУРГ","Центр",0.79]
[1,"САНКТ-ПЕТЕРБУРГ","Центр","Погорелов И.В.","Погорелов И.В.","Погорелов И.В.",{"$f":"IF(Таблица_Металлопроцессинг_детализированный[[#This Row],[Куратор договора]]=Таблица_Металлопроцессинг_детализированный[[#This Row],[Менеджер]],TRUE,FALSE)","v":true},{"$f":"IF(COUNTIFS($A$1:$A71,Таблица_Металлопроцессинг_детализированный[[#This Row],[Месяц отгрузки]],$O$1:$O71,Таблица_Металлопроцессинг_детализированный[[#This Row],[Контрагент]])>0,0,SUMIFS($AA$2:$AA$177,$O$2:$O$177,Таблица_Металлопроцессинг_детализированный[[#This Row],[Контрагент]],$A$2:$A$177,Таблица_Металлопроцессинг_детализированный[[#This Row],[Месяц отгрузки]]))","v":0},{"$f":"IF(Таблица_Металлопроцессинг_детализированный[[#This Row],[Инициатор+исполнитель]],1,IF(Таблица_Металлопроцессинг_детализированный[[#This Row],[Оборот за месяц по контрагенту]]<1000000,0.5,0.7))","v":1},{"$f":"IF(Таблица_Металлопроцессинг_детализированный[[#This Row],[Инициатор+исполнитель]]=TRUE,0,IF(Таблица_Металлопроцессинг_детализированный[[#This Row],[Оборот за месяц по контрагенту]]<1000000,0.5,0.3))","v":0},{"$f":"Таблица_Металлопроцессинг_детализированный[[#This Row],[Сумма наценки]]*Таблица_Металлопроцессинг_детализированный[[#This Row],[Распределение выручки для Куратора договора]]","v":3576},{"$f":"IF(Таблица_Металлопроцессинг_детализированный[[#This Row],[Распределение выручки для Менеджера договора]]=1,\"\",Таблица_Металлопроцессинг_детализированный[[#This Row],[Сумма наценки]]*Таблица_Металлопроцессинг_детализированный[[#This Row],[Распределение выручки для Менеджера договора]])","v":0},"Процессинг","САНКТ-ПЕТЕРБУРГ","АЛЬЯНС ПРОФИТ","ООО \"Альянс ПРОФИТ\"",null,null,"Металлоконструкции","Сталь листовая Х/к., 3, 1250x2500, Ст.кп/пс (ТУ 14-106-321-2010)",null,2.98,"т",79774.600000000006,"Порезка листового проката (ножницы)",null,3576,1,3,null,"САНКТ-ПЕТЕРБУРГ","Центр",2.98]
[1,"САНКТ-ПЕТЕРБУРГ","Центр","Погорелов И.В.","Погорелов И.В.","Погорелов И.В.",{"$f":"IF(Таблица_Металлопроцессинг_детализированный[[#This Row],[Куратор договора]]=Таблица_Металлопроцессинг_детализированный[[#This Row],[Менеджер]],TRUE,FALSE)","v":true},{"$f":"IF(COUNTIFS($A$1:$A72,Таблица_Металлопроцессинг_детализированный[[#This Row],[Месяц отгрузки]],$O$1:$O72,Таблица_Металлопроцессинг_детализированный[[#This Row],[Контрагент]])>0,0,SUMIFS($AA$2:$AA$177,$O$2:$O$177,Таблица_Металлопроцессинг_детализированный[[#This Row],[Контрагент]],$A$2:$A$177,Таблица_Металлопроцессинг_детализированный[[#This Row],[Месяц отгрузки]]))","v":14570},{"$f":"IF(Таблица_Металлопроцессинг_детализированный[[#This Row],[Инициатор+исполнитель]],1,IF(Таблица_Металлопроцессинг_детализированный[[#This Row],[Оборот за месяц по контрагенту]]<1000000,0.5,0.7))","v":1},{"$f":"IF(Таблица_Металлопроцессинг_детализированный[[#This Row],[Инициатор+исполнитель]]=TRUE,0,IF(Таблица_Металлопроцессинг_детализированный[[#This Row],[Оборот за месяц по контрагенту]]<1000000,0.5,0.3))","v":0},{"$f":"Таблица_Металлопроцессинг_детализированный[[#This Row],[Сумма наценки]]*Таблица_Металлопроцессинг_детализированный[[#This Row],[Распределение выручки для Куратора договора]]","v":4082},{"$f":"IF(Таблица_Металлопроцессинг_детализированный[[#This Row],[Распределение выручки для Менеджера договора]]=1,\"\",Таблица_Металлопроцессинг_детализированный[[#This Row],[Сумма наценки]]*Таблица_Металлопроцессинг_детализированный[[#This Row],[Распределение выручки для Менеджера договора]])","v":0},"Процессинг","САНКТ-ПЕТЕРБУРГ","СОТЭКС","ООО \"СОТЭКС\"",null,null,"Стройиндустрия","Арматура А500С, 12, Ст.сп/пс (ГОСТ 52544-2006)",null,15.7,"т",404589,"Порезка (станок ленточнопильный)",null,4082,1,16,null,"САНКТ-ПЕТЕРБУРГ","Центр",15.7]
[1,"САНКТ-ПЕТЕРБУРГ","Центр","Хабибуллов М.Р.","Хабибуллов М.Р.","Хабибуллов М.Р.",{"$f":"IF(Таблица_Металлопроцессинг_детализированный[[#This Row],[Куратор договора]]=Таблица_Металлопроцессинг_детализированный[[#This Row],[Менеджер]],TRUE,FALSE)","v":true},{"$f":"IF(COUNTIFS($A$1:$A73,Таблица_Металлопроцессинг_детализированный[[#This Row],[Месяц отгрузки]],$O$1:$O73,Таблица_Металлопроцессинг_детализированный[[#This Row],[Контрагент]])>0,0,SUMIFS($AA$2:$AA$177,$O$2:$O$177,Таблица_Металлопроцессинг_детализированный[[#This Row],[Контрагент]],$A$2:$A$177,Таблица_Металлопроцессинг_детализированный[[#This Row],[Месяц отгрузки]]))","v":0},{"$f":"IF(Таблица_Металлопроцессинг_детализированный[[#This Row],[Инициатор+исполнитель]],1,IF(Таблица_Металлопроцессинг_детализированный[[#This Row],[Оборот за месяц по контрагенту]]<1000000,0.5,0.7))","v":1},{"$f":"IF(Таблица_Металлопроцессинг_детализированный[[#This Row],[Инициатор+исполнитель]]=TRUE,0,IF(Таблица_Металлопроцессинг_детализированный[[#This Row],[Оборот за месяц по контрагенту]]<1000000,0.5,0.3))","v":0},{"$f":"Таблица_Металлопроцессинг_детализированный[[#This Row],[Сумма наценки]]*Таблица_Металлопроцессинг_детализированный[[#This Row],[Распределение выручки для Куратора договора]]","v":30036},{"$f":"IF(Таблица_Металлопроцессинг_детализированный[[#This Row],[Распределение выручки для Менеджера договора]]=1,\"\",Таблица_Металлопроцессинг_детализированный[[#This Row],[Сумма наценки]]*Таблица_Металлопроцессинг_детализированный[[#This Row],[Распределение выручки для Менеджера договора]])","v":0},"Процессинг","САНКТ-ПЕТЕРБУРГ","АртЛэнд","ООО \"Строительная компания \"АртЛэнд\"",null,null,"Стройиндустрия","Шпунт Ларсена Л5-УМ, С255 (ТУ 14-102-8-2003)",null,20.024000000000001,"т",790948,"Очистка и покраска проката (грунт ЭМЛАК 263)","ROSLER",30036,20.024000000000001,61.65,1,"САНКТ-ПЕТЕРБУРГ","Центр",20.024000000000001]
[1,"САНКТ-ПЕТЕРБУРГ","Центр","Дауэнгауэр Н.Э.","Дауэнгауэр Н.Э.","Дауэнгауэр Н.Э.",{"$f":"IF(Таблица_Металлопроцессинг_детализированный[[#This Row],[Куратор договора]]=Таблица_Металлопроцессинг_детализированный[[#This Row],[Менеджер]],TRUE,FALSE)","v":true},{"$f":"IF(COUNTIFS($A$1:$A74,Таблица_Металлопроцессинг_детализированный[[#This Row],[Месяц отгрузки]],$O$1:$O74,Таблица_Металлопроцессинг_детализированный[[#This Row],[Контрагент]])>0,0,SUMIFS($AA$2:$AA$177,$O$2:$O$177,Таблица_Металлопроцессинг_детализированный[[#This Row],[Контрагент]],$A$2:$A$177,Таблица_Металлопроцессинг_детализированный[[#This Row],[Месяц отгрузки]]))","v":0},{"$f":"IF(Таблица_Металлопроцессинг_детализированный[[#This Row],[Инициатор+исполнитель]],1,IF(Таблица_Металлопроцессинг_детализированный[[#This Row],[Оборот за месяц по контрагенту]]<1000000,0.5,0.7))","v":1},{"$f":"IF(Таблица_Металлопроцессинг_детализированный[[#This Row],[Инициатор+исполнитель]]=TRUE,0,IF(Таблица_Металлопроцессинг_детализированный[[#This Row],[Оборот за месяц по контрагенту]]<1000000,0.5,0.3))","v":0},{"$f":"Таблица_Металлопроцессинг_детализированный[[#This Row],[Сумма наценки]]*Таблица_Металлопроцессинг_детализированный[[#This Row],[Распределение выручки для Куратора договора]]","v":2838.1},{"$f":"IF(Таблица_Металлопроцессинг_детализированный[[#This Row],[Распределение выручки для Менеджера договора]]=1,\"\",Таблица_Металлопроцессинг_детализированный[[#This Row],[Сумма наценки]]*Таблица_Металлопроцессинг_детализированный[[#This Row],[Распределение выручки для Менеджера договора]])","v":0},"Процессинг","САНКТ-ПЕТЕРБУРГ","НОВАЯ ЭРА","ОАО \"Новая ЭРА\"","г. Санкт-Петербург ","г. Санкт-Петербург ","Машиностроение","Сталь листовая Х/к., 1.5, 1250x2500, Ст.кп/пс (ТУ 14-106-321-2010)",null,1.01,"т",27259.9,"Порезка листового проката (ножницы)",null,2838.1,1,1,null,"САНКТ-ПЕТЕРБУРГ","Центр",1.01]
[1,"САНКТ-ПЕТЕРБУРГ","Центр","Дауэнгауэр Н.Э.","Дауэнгауэр Н.Э.","Погорелов И.В.",{"$f":"IF(Таблица_Металлопроцессинг_детализированный[[#This Row],[Куратор договора]]=Таблица_Металлопроцессинг_детализированный[[#This Row],[Менеджер]],TRUE,FALSE)","v":false},{"$f":"IF(COUNTIFS($A$1:$A75,Таблица_Металлопроцессинг_детализированный[[#This Row],[Месяц отгрузки]],$O$1:$O75,Таблица_Металлопроцессинг_детализированный[[#This Row],[Контрагент]])>0,0,SUMIFS($AA$2:$AA$177,$O$2:$O$177,Таблица_Металлопроцессинг_детализированный[[#This Row],[Контрагент]],$A$2:$A$177,Таблица_Металлопроцессинг_детализированный[[#This Row],[Месяц отгрузки]]))","v":0},{"$f":"IF(Таблица_Металлопроцессинг_детализированный[[#This Row],[Инициатор+исполнитель]],1,IF(Таблица_Металлопроцессинг_детализированный[[#This Row],[Оборот за месяц по контрагенту]]<1000000,0.5,0.7))","v":0.5},{"$f":"IF(Таблица_Металлопроцессинг_детализированный[[#This Row],[Инициатор+исполнитель]]=TRUE,0,IF(Таблица_Металлопроцессинг_детализированный[[#This Row],[Оборот за месяц по контрагенту]]<1000000,0.5,0.3))","v":0.5},{"$f":"Таблица_Металлопроцессинг_детализированный[[#This Row],[Сумма наценки]]*Таблица_Металлопроцессинг_детализированный[[#This Row],[Распределение выручки для Куратора договора]]","v":2824.05},{"$f":"IF(Таблица_Металлопроцессинг_детализированный[[#This Row],[Распределение выручки для Менеджера договора]]=1,\"\",Таблица_Металлопроцессинг_детализированный[[#This Row],[Сумма наценки]]*Таблица_Металлопроцессинг_детализированный[[#This Row],[Распределение выручки для Менеджера договора]])","v":2824.05},"Процессинг","САНКТ-ПЕТЕРБУРГ","НОВАЯ ЭРА","ОАО \"Новая ЭРА\"","г. Санкт-Петербург ","г. Санкт-Петербург ","Машиностроение","Сталь листовая Х/к., 1.5, 1250x2500, Ст.кп/пс (ТУ 14-106-321-2010)",null,2.0099999999999998,"т",54249.9,"Порезка листового проката (ножницы)",null,5648.1,1,2,null,"САНКТ-ПЕТЕРБУРГ","Центр",2.0099999999999998]
[1,"САНКТ-ПЕТЕРБУРГ","Центр","Дауэнгауэр Н.Э.","Дауэнгауэр Н.Э.","Хабибуллов М.Р.",{"$f":"IF(Таблица_Металлопроцессинг_детализированный[[#This Row],[Куратор договора]]=Таблица_Металлопроцессинг_детализированный[[#This Row],[Менеджер]],TRUE,FALSE)","v":false},{"$f":"IF(COUNTIFS($A$1:$A76,Таблица_Металлопроцессинг_детализированный[[#This Row],[Месяц отгрузки]],$O$1:$O76,Таблица_Металлопроцессинг_детализированный[[#This Row],[Контрагент]])>0,0,SUMIFS($AA$2:$AA$177,$O$2:$O$177,Таблица_Металлопроцессинг_детализированный[[#This Row],[Контрагент]],$A$2:$A$177,Таблица_Металлопроцессинг_детализированный[[#This Row],[Месяц отгрузки]]))","v":0},{"$f":"IF(Таблица_Металлопроцессинг_детализированный[[#This Row],[Инициатор+исполнитель]],1,IF(Таблица_Металлопроцессинг_детализированный[[#This Row],[Оборот за месяц по контрагенту]]<1000000,0.5,0.7))","v":0.5},{"$f":"IF(Таблица_Металлопроцессинг_детализированный[[#This Row],[Инициатор+исполнитель]]=TRUE,0,IF(Таблица_Металлопроцессинг_детализированный[[#This Row],[Оборот за месяц по контрагенту]]<1000000,0.5,0.3))","v":0.5},{"$f":"Таблица_Металлопроцессинг_детализированный[[#This Row],[Сумма наценки]]*Таблица_Металлопроцессинг_детализированный[[#This Row],[Распределение выручки для Куратора договора]]","v":4365},{"$f":"IF(Таблица_Металлопроцессинг_детализированный[[#This Row],[Распределение выручки для Менеджера договора]]=1,\"\",Таблица_Металлопроцессинг_детализированный[[#This Row],[Сумма наценки]]*Таблица_Металлопроцессинг_детализированный[[#This Row],[Распределение выручки для Менеджера договора]])","v":4365},"Процессинг","САНКТ-ПЕТЕРБУРГ","НОВАЯ ЭРА","ОАО \"Новая ЭРА\"","г. Санкт-Петербург ","г. Санкт-Петербург ","Машиностроение","Сталь листовая Х/к., 2, 1250x2500, Ст.кп/пс (ТУ 14-106-321-2010)",null,2.91,"т",77900.7,"Порезка листового проката (ножницы)",null,8730,1,3,null,"САНКТ-ПЕТЕРБУРГ","Центр",2.91]
[1,"САНКТ-ПЕТЕРБУРГ","Центр","Ипатов Д.В.","Ипатов Д.В.","Дауэнгауэр Н.Э.",{"$f":"IF(Таблица_Металлопроцессинг_детализированный[[#This Row],[Куратор договора]]=Таблица_Металлопроцессинг_детализированный[[#This Row],[Менеджер]],TRUE,FALSE)","v":false},{"$f":"IF(COUNTIFS($A$1:$A77,Таблица_Металлопроцессинг_детализированный[[#This Row],[Месяц отгрузки]],$O$1:$O77,Таблица_Металлопроцессинг_детализированный[[#This Row],[Контрагент]])>0,0,SUMIFS($AA$2:$AA$177,$O$2:$O$177,Таблица_Металлопроцессинг_детализированный[[#This Row],[Контрагент]],$A$2:$A$177,Таблица_Металлопроцессинг_детализированный[[#This Row],[Месяц отгрузки]]))","v":114000},{"$f":"IF(Таблица_Металлопроцессинг_детализированный[[#This Row],[Инициатор+исполнитель]],1,IF(Таблица_Металлопроцессинг_детализированный[[#This Row],[Оборот за месяц по контрагенту]]<1000000,0.5,0.7))","v":0.5},{"$f":"IF(Таблица_Металлопроцессинг_детализированный[[#This Row],[Инициатор+исполнитель]]=TRUE,0,IF(Таблица_Металлопроцессинг_детализированный[[#This Row],[Оборот за месяц по контрагенту]]<1000000,0.5,0.3))","v":0.5},{"$f":"Таблица_Металлопроцессинг_детализированный[[#This Row],[Сумма наценки]]*Таблица_Металлопроцессинг_детализированный[[#This Row],[Распределение выручки для Куратора договора]]","v":28500},{"$f":"IF(Таблица_Металлопроцессинг_детализированный[[#This Row],[Распределение выручки для Менеджера договора]]=1,\"\",Таблица_Металлопроцессинг_детализированный[[#This Row],[Сумма наценки]]*Таблица_Металлопроцессинг_детализированный[[#This Row],[Распределение выручки для Менеджера договора]])","v":28500},"Из давальческого сырья","САНКТ-ПЕТЕРБУРГ","СК БалтМонтажСтрой","ООО \"СК БалтМонтажСтрой\"","Ленинградская обл.","Ленинградская обл.","Стройиндустрия","Труба стальная профильная, 160x160x4, Ст.сп/пс (ГОСТ 30245-03)",null,20,"т",0,"Очистка и покраска проката (грунт ЭМЛАК 263)","ROSLER",57000,475,475,1,"САНКТ-ПЕТЕРБУРГ","Центр",20]
[1,"САНКТ-ПЕТЕРБУРГ","Центр","Дауэнгауэр Н.Э.","Дауэнгауэр Н.Э.","Дауэнгауэр Н.Э.",{"$f":"IF(Таблица_Металлопроцессинг_детализированный[[#This Row],[Куратор договора]]=Таблица_Металлопроцессинг_детализированный[[#This Row],[Менеджер]],TRUE,FALSE)","v":true},{"$f":"IF(COUNTIFS($A$1:$A78,Таблица_Металлопроцессинг_детализированный[[#This Row],[Месяц отгрузки]],$O$1:$O78,Таблица_Металлопроцессинг_детализированный[[#This Row],[Контрагент]])>0,0,SUMIFS($AA$2:$AA$177,$O$2:$O$177,Таблица_Металлопроцессинг_детализированный[[#This Row],[Контрагент]],$A$2:$A$177,Таблица_Металлопроцессинг_детализированный[[#This Row],[Месяц отгрузки]]))","v":800},{"$f":"IF(Таблица_Металлопроцессинг_детализированный[[#This Row],[Инициатор+исполнитель]],1,IF(Таблица_Металлопроцессинг_детализированный[[#This Row],[Оборот за месяц по контрагенту]]<1000000,0.5,0.7))","v":1},{"$f":"IF(Таблица_Металлопроцессинг_детализированный[[#This Row],[Инициатор+исполнитель]]=TRUE,0,IF(Таблица_Металлопроцессинг_детализированный[[#This Row],[Оборот за месяц по контрагенту]]<1000000,0.5,0.3))","v":0},{"$f":"Таблица_Металлопроцессинг_детализированный[[#This Row],[Сумма наценки]]*Таблица_Металлопроцессинг_детализированный[[#This Row],[Распределение выручки для Куратора договора]]","v":800},{"$f":"IF(Таблица_Металлопроцессинг_детализированный[[#This Row],[Распределение выручки для Менеджера договора]]=1,\"\",Таблица_Металлопроцессинг_детализированный[[#This Row],[Сумма наценки]]*Таблица_Металлопроцессинг_детализированный[[#This Row],[Распределение выручки для Менеджера договора]])","v":0},"Процессинг","САНКТ-ПЕТЕРБУРГ","ПРОВЕНТУС (Н.Э.)","ООО \"ПРОВЕНТУС\"",null,null,"Машиностроение","Сталь листовая Г/к., 4, 1500x6000, Ст.сп/пс (ГОСТ 14637)",null,0.11,"т",2492.6,"Порезка листового проката (ножницы)",null,800,4,0.16300000000000001,null,"САНКТ-ПЕТЕРБУРГ","Центр",0.11]
[1,"САНКТ-ПЕТЕРБУРГ","Центр","Молчанова Е.М.","Матросова Л.Ш.","Дауэнгауэр Н.Э.",{"$f":"IF(Таблица_Металлопроцессинг_детализированный[[#This Row],[Куратор договора]]=Таблица_Металлопроцессинг_детализированный[[#This Row],[Менеджер]],TRUE,FALSE)","v":false},{"$f":"IF(COUNTIFS($A$1:$A79,Таблица_Металлопроцессинг_детализированный[[#This Row],[Месяц отгрузки]],$O$1:$O79,Таблица_Металлопроцессинг_детализированный[[#This Row],[Контрагент]])>0,0,SUMIFS($AA$2:$AA$177,$O$2:$O$177,Таблица_Металлопроцессинг_детализированный[[#This Row],[Контрагент]],$A$2:$A$177,Таблица_Металлопроцессинг_детализированный[[#This Row],[Месяц отгрузки]]))","v":2740},{"$f":"IF(Таблица_Металлопроцессинг_детализированный[[#This Row],[Инициатор+исполнитель]],1,IF(Таблица_Металлопроцессинг_детализированный[[#This Row],[Оборот за месяц по контрагенту]]<1000000,0.5,0.7))","v":0.5},{"$f":"IF(Таблица_Металлопроцессинг_детализированный[[#This Row],[Инициатор+исполнитель]]=TRUE,0,IF(Таблица_Металлопроцессинг_детализированный[[#This Row],[Оборот за месяц по контрагенту]]<1000000,0.5,0.3))","v":0.5},{"$f":"Таблица_Металлопроцессинг_детализированный[[#This Row],[Сумма наценки]]*Таблица_Металлопроцессинг_детализированный[[#This Row],[Распределение выручки для Куратора договора]]","v":1370},{"$f":"IF(Таблица_Металлопроцессинг_детализированный[[#This Row],[Распределение выручки для Менеджера договора]]=1,\"\",Таблица_Металлопроцессинг_детализированный[[#This Row],[Сумма наценки]]*Таблица_Металлопроцессинг_детализированный[[#This Row],[Распределение выручки для Менеджера договора]])","v":1370},"Процессинг","САНКТ-ПЕТЕРБУРГ","Меркурий СПб","ООО \"Меркурий\"",null,null,"Металлоторговля","Арматура B500C, 10, Ст.сп/пс , в бунтах(ГОСТ 52544-2006)",null,2.74,"т",70308.399999999994,"Размотка/резка арматурного проката","MELC 16x4",2740,1,3,1,"САНКТ-ПЕТЕРБУРГ","Центр",2.74]
[1,"САНКТ-ПЕТЕРБУРГ","Центр","Хабибуллов М.Р.","Хабибуллов М.Р.","Хабибуллов М.Р.",{"$f":"IF(Таблица_Металлопроцессинг_детализированный[[#This Row],[Куратор договора]]=Таблица_Металлопроцессинг_детализированный[[#This Row],[Менеджер]],TRUE,FALSE)","v":true},{"$f":"IF(COUNTIFS($A$1:$A80,Таблица_Металлопроцессинг_детализированный[[#This Row],[Месяц отгрузки]],$O$1:$O80,Таблица_Металлопроцессинг_детализированный[[#This Row],[Контрагент]])>0,0,SUMIFS($AA$2:$AA$177,$O$2:$O$177,Таблица_Металлопроцессинг_детализированный[[#This Row],[Контрагент]],$A$2:$A$177,Таблица_Металлопроцессинг_детализированный[[#This Row],[Месяц отгрузки]]))","v":0},{"$f":"IF(Таблица_Металлопроцессинг_детализированный[[#This Row],[Инициатор+исполнитель]],1,IF(Таблица_Металлопроцессинг_детализированный[[#This Row],[Оборот за месяц по контрагенту]]<1000000,0.5,0.7))","v":1},{"$f":"IF(Таблица_Металлопроцессинг_детализированный[[#This Row],[Инициатор+исполнитель]]=TRUE,0,IF(Таблица_Металлопроцессинг_детализированный[[#This Row],[Оборот за месяц по контрагенту]]<1000000,0.5,0.3))","v":0},{"$f":"Таблица_Металлопроцессинг_детализированный[[#This Row],[Сумма наценки]]*Таблица_Металлопроцессинг_детализированный[[#This Row],[Распределение выручки для Куратора договора]]","v":30031.5},{"$f":"IF(Таблица_Металлопроцессинг_детализированный[[#This Row],[Распределение выручки для Менеджера договора]]=1,\"\",Таблица_Металлопроцессинг_детализированный[[#This Row],[Сумма наценки]]*Таблица_Металлопроцессинг_детализированный[[#This Row],[Распределение выручки для Менеджера договора]])","v":0},"Процессинг","САНКТ-ПЕТЕРБУРГ","АртЛэнд","ООО \"Строительная компания \"АртЛэнд\"",null,null,"Стройиндустрия","Шпунт Ларсена Л5-УМ, С255 (ТУ 14-102-8-2003)",null,20.021000000000001,"т",790829.5,"Очистка и покраска проката (грунт ЭМЛАК 263)","ROSLER",30031.5,20.021000000000001,20.021000000000001,1,"САНКТ-ПЕТЕРБУРГ","Центр",20.021000000000001]
[1,"САНКТ-ПЕТЕРБУРГ","Центр","Погорелов И.В.","Погорелов И.В.","Погорелов И.В.",{"$f":"IF(Таблица_Металлопроцессинг_детализированный[[#This Row],[Куратор договора]]=Таблица_Металлопроцессинг_детализированный[[#This Row],[Менеджер]],TRUE,FALSE)","v":true},{"$f":"IF(COUNTIFS($A$1:$A81,Таблица_Металлопроцессинг_детализированный[[#This Row],[Месяц отгрузки]],$O$1:$O81,Таблица_Металлопроцессинг_детализированный[[#This Row],[Контрагент]])>0,0,SUMIFS($AA$2:$AA$177,$O$2:$O$177,Таблица_Металлопроцессинг_детализированный[[#This Row],[Контрагент]],$A$2:$A$177,Таблица_Металлопроцессинг_детализированный[[#This Row],[Месяц отгрузки]]))","v":0},{"$f":"IF(Таблица_Металлопроцессинг_детализированный[[#This Row],[Инициатор+исполнитель]],1,IF(Таблица_Металлопроцессинг_детализированный[[#This Row],[Оборот за месяц по контрагенту]]<1000000,0.5,0.7))","v":1},{"$f":"IF(Таблица_Металлопроцессинг_детализированный[[#This Row],[Инициатор+исполнитель]]=TRUE,0,IF(Таблица_Металлопроцессинг_детализированный[[#This Row],[Оборот за месяц по контрагенту]]<1000000,0.5,0.3))","v":0},{"$f":"Таблица_Металлопроцессинг_детализированный[[#This Row],[Сумма наценки]]*Таблица_Металлопроцессинг_детализированный[[#This Row],[Распределение выручки для Куратора договора]]","v":10488},{"$f":"IF(Таблица_Металлопроцессинг_детализированный[[#This Row],[Распределение выручки для Менеджера договора]]=1,\"\",Таблица_Металлопроцессинг_детализированный[[#This Row],[Сумма наценки]]*Таблица_Металлопроцессинг_детализированный[[#This Row],[Распределение выручки для Менеджера договора]])","v":0},"Процессинг","САНКТ-ПЕТЕРБУРГ","СОТЭКС","ООО \"СОТЭКС\"",null,null,"Стройиндустрия","Арматура класс АI, 6, Ст.сп/пс, в бунтах (ГОСТ5781-82)",null,5.52,"т",138000,"Размотка/резка арматурного проката","MELC 16x4",10488,1,68,1,"САНКТ-ПЕТЕРБУРГ","Центр",5.52]
[1,"САНКТ-ПЕТЕРБУРГ","Центр","Сафонеев С.А.","Сафонеев С.А.","Сафонеев С.А.",{"$f":"IF(Таблица_Металлопроцессинг_детализированный[[#This Row],[Куратор договора]]=Таблица_Металлопроцессинг_детализированный[[#This Row],[Менеджер]],TRUE,FALSE)","v":true},{"$f":"IF(COUNTIFS($A$1:$A82,Таблица_Металлопроцессинг_детализированный[[#This Row],[Месяц отгрузки]],$O$1:$O82,Таблица_Металлопроцессинг_детализированный[[#This Row],[Контрагент]])>0,0,SUMIFS($AA$2:$AA$177,$O$2:$O$177,Таблица_Металлопроцессинг_детализированный[[#This Row],[Контрагент]],$A$2:$A$177,Таблица_Металлопроцессинг_детализированный[[#This Row],[Месяц отгрузки]]))","v":0},{"$f":"IF(Таблица_Металлопроцессинг_детализированный[[#This Row],[Инициатор+исполнитель]],1,IF(Таблица_Металлопроцессинг_детализированный[[#This Row],[Оборот за месяц по контрагенту]]<1000000,0.5,0.7))","v":1},{"$f":"IF(Таблица_Металлопроцессинг_детализированный[[#This Row],[Инициатор+исполнитель]]=TRUE,0,IF(Таблица_Металлопроцессинг_детализированный[[#This Row],[Оборот за месяц по контрагенту]]<1000000,0.5,0.3))","v":0},{"$f":"Таблица_Металлопроцессинг_детализированный[[#This Row],[Сумма наценки]]*Таблица_Металлопроцессинг_детализированный[[#This Row],[Распределение выручки для Куратора договора]]","v":25920.080000000002},{"$f":"IF(Таблица_Металлопроцессинг_детализированный[[#This Row],[Распределение выручки для Менеджера договора]]=1,\"\",Таблица_Металлопроцессинг_детализированный[[#This Row],[Сумма наценки]]*Таблица_Металлопроцессинг_детализированный[[#This Row],[Распределение выручки для Менеджера договора]])","v":0},"Из давальческого сырья","САНКТ-ПЕТЕРБУРГ","НЕВА-МЕТАЛЛТРЭЙД ООО","ООО \"Нева-МеталлТрэйд\"","г. Санкт-Петербург ","г. Санкт-Петербург ","Машиностроение","Изделие","Судосталь, РСД32, 14х2000х8000",15.821999999999999,"т",0,"Очистка и покраска проката (грунт HEMPEL)","ROSLER",25920.080000000002,15.821999999999999,15.821999999999999,1,"САНКТ-ПЕТЕРБУРГ","Центр",15.821999999999999]
[1,"САНКТ-ПЕТЕРБУРГ","Центр","Сафонеев С.А.","Сафонеев С.А.","Сафонеев С.А.",{"$f":"IF(Таблица_Металлопроцессинг_детализированный[[#This Row],[Куратор договора]]=Таблица_Металлопроцессинг_детализированный[[#This Row],[Менеджер]],TRUE,FALSE)","v":true},{"$f":"IF(COUNTIFS($A$1:$A83,Таблица_Металлопроцессинг_детализированный[[#This Row],[Месяц отгрузки]],$O$1:$O83,Таблица_Металлопроцессинг_детализированный[[#This Row],[Контрагент]])>0,0,SUMIFS($AA$2:$AA$177,$O$2:$O$177,Таблица_Металлопроцессинг_детализированный[[#This Row],[Контрагент]],$A$2:$A$177,Таблица_Металлопроцессинг_детализированный[[#This Row],[Месяц отгрузки]]))","v":0},{"$f":"IF(Таблица_Металлопроцессинг_детализированный[[#This Row],[Инициатор+исполнитель]],1,IF(Таблица_Металлопроцессинг_детализированный[[#This Row],[Оборот за месяц по контрагенту]]<1000000,0.5,0.7))","v":1},{"$f":"IF(Таблица_Металлопроцессинг_детализированный[[#This Row],[Инициатор+исполнитель]]=TRUE,0,IF(Таблица_Металлопроцессинг_детализированный[[#This Row],[Оборот за месяц по контрагенту]]<1000000,0.5,0.3))","v":0},{"$f":"Таблица_Металлопроцессинг_детализированный[[#This Row],[Сумма наценки]]*Таблица_Металлопроцессинг_детализированный[[#This Row],[Распределение выручки для Куратора договора]]","v":5760.02},{"$f":"IF(Таблица_Металлопроцессинг_детализированный[[#This Row],[Распределение выручки для Менеджера договора]]=1,\"\",Таблица_Металлопроцессинг_детализированный[[#This Row],[Сумма наценки]]*Таблица_Металлопроцессинг_детализированный[[#This Row],[Распределение выручки для Менеджера договора]])","v":0},"Из давальческого сырья","САНКТ-ПЕТЕРБУРГ","НЕВА-МЕТАЛЛТРЭЙД ООО","ООО \"Нева-МеталлТрэйд\"","г. Санкт-Петербург ","г. Санкт-Петербург ","Машиностроение","Изделие","Судосталь, РСД32, 20*2000*8000",5.024,"т",0,"Очистка и покраска проката (грунт HEMPEL)","ROSLER",5760.02,5.024,5.024,1,"САНКТ-ПЕТЕРБУРГ","Центр",5.024]
[1,"САНКТ-ПЕТЕРБУРГ","Центр","Матросова Л.Ш.","Матросова Л.Ш.","Матросова Л.Ш.",{"$f":"IF(Таблица_Металлопроцессинг_детализированный[[#This Row],[Куратор договора]]=Таблица_Металлопроцессинг_детализированный[[#This Row],[Менеджер]],TRUE,FALSE)","v":true},{"$f":"IF(COUNTIFS($A$1:$A84,Таблица_Металлопроцессинг_детализированный[[#This Row],[Месяц отгрузки]],$O$1:$O84,Таблица_Металлопроцессинг_детализированный[[#This Row],[Контрагент]])>0,0,SUMIFS($AA$2:$AA$177,$O$2:$O$177,Таблица_Металлопроцессинг_детализированный[[#This Row],[Контрагент]],$A$2:$A$177,Таблица_Металлопроцессинг_детализированный[[#This Row],[Месяц отгрузки]]))","v":0},{"$f":"IF(Таблица_Металлопроцессинг_детализированный[[#This Row],[Инициатор+исполнитель]],1,IF(Таблица_Металлопроцессинг_детализированный[[#This Row],[Оборот за месяц по контрагенту]]<1000000,0.5,0.7))","v":1},{"$f":"IF(Таблица_Металлопроцессинг_детализированный[[#This Row],[Инициатор+исполнитель]]=TRUE,0,IF(Таблица_Металлопроцессинг_детализированный[[#This Row],[Оборот за месяц по контрагенту]]<1000000,0.5,0.3))","v":0},{"$f":"Таблица_Металлопроцессинг_детализированный[[#This Row],[Сумма наценки]]*Таблица_Металлопроцессинг_детализированный[[#This Row],[Распределение выручки для Куратора договора]]","v":1070},{"$f":"IF(Таблица_Металлопроцессинг_детализированный[[#This Row],[Распределение выручки для Менеджера договора]]=1,\"\",Таблица_Металлопроцессинг_детализированный[[#This Row],[Сумма наценки]]*Таблица_Металлопроцессинг_детализированный[[#This Row],[Распределение выручки для Менеджера договора]])","v":0},"Процессинг","САНКТ-ПЕТЕРБУРГ","ЕВРАЗ Металл Инпром_РОЗНИЦА","ЕВРАЗ Металл Инпром_РОЗНИЦА","Ростовская обл.","Ростовская обл.","Розница","Сталь листовая Г/к., 20, 1500x6000, Ст.сп/пс (ГОСТ 14637)",null,0.05,"т",1205,"Порезка листового проката плазменная PLAZMA","LINEACORD PCL40",1070,4.28,0.05,1,"САНКТ-ПЕТЕРБУРГ","Центр",0.05]
[1,"САНКТ-ПЕТЕРБУРГ","Центр","Сафонеев С.А.","Сафонеев С.А.","Сафонеев С.А.",{"$f":"IF(Таблица_Металлопроцессинг_детализированный[[#This Row],[Куратор договора]]=Таблица_Металлопроцессинг_детализированный[[#This Row],[Менеджер]],TRUE,FALSE)","v":true},{"$f":"IF(COUNTIFS($A$1:$A85,Таблица_Металлопроцессинг_детализированный[[#This Row],[Месяц отгрузки]],$O$1:$O85,Таблица_Металлопроцессинг_детализированный[[#This Row],[Контрагент]])>0,0,SUMIFS($AA$2:$AA$177,$O$2:$O$177,Таблица_Металлопроцессинг_детализированный[[#This Row],[Контрагент]],$A$2:$A$177,Таблица_Металлопроцессинг_детализированный[[#This Row],[Месяц отгрузки]]))","v":0},{"$f":"IF(Таблица_Металлопроцессинг_детализированный[[#This Row],[Инициатор+исполнитель]],1,IF(Таблица_Металлопроцессинг_детализированный[[#This Row],[Оборот за месяц по контрагенту]]<1000000,0.5,0.7))","v":1},{"$f":"IF(Таблица_Металлопроцессинг_детализированный[[#This Row],[Инициатор+исполнитель]]=TRUE,0,IF(Таблица_Металлопроцессинг_детализированный[[#This Row],[Оборот за месяц по контрагенту]]<1000000,0.5,0.3))","v":0},{"$f":"Таблица_Металлопроцессинг_детализированный[[#This Row],[Сумма наценки]]*Таблица_Металлопроцессинг_детализированный[[#This Row],[Распределение выручки для Куратора договора]]","v":6235.2},{"$f":"IF(Таблица_Металлопроцессинг_детализированный[[#This Row],[Распределение выручки для Менеджера договора]]=1,\"\",Таблица_Металлопроцессинг_детализированный[[#This Row],[Сумма наценки]]*Таблица_Металлопроцессинг_детализированный[[#This Row],[Распределение выручки для Менеджера договора]])","v":0},"Из давальческого сырья","САНКТ-ПЕТЕРБУРГ","НЕВА-МЕТАЛЛТРЭЙД ООО","ООО \"Нева-МеталлТрэйд\"","г. Санкт-Петербург ","г. Санкт-Петербург ","Машиностроение","Изделие","Полособульб, РСВ, №12, 6000",1.732,"т",0,"Очистка и покраска проката (грунт HEMPEL)","ROSLER",6235.2,1.732,1.732,1,"САНКТ-ПЕТЕРБУРГ","Центр",1.732]
[1,"САНКТ-ПЕТЕРБУРГ","Центр","Сафонеев С.А.","Сафонеев С.А.","Сафонеев С.А.",{"$f":"IF(Таблица_Металлопроцессинг_детализированный[[#This Row],[Куратор договора]]=Таблица_Металлопроцессинг_детализированный[[#This Row],[Менеджер]],TRUE,FALSE)","v":true},{"$f":"IF(COUNTIFS($A$1:$A86,Таблица_Металлопроцессинг_детализированный[[#This Row],[Месяц отгрузки]],$O$1:$O86,Таблица_Металлопроцессинг_детализированный[[#This Row],[Контрагент]])>0,0,SUMIFS($AA$2:$AA$177,$O$2:$O$177,Таблица_Металлопроцессинг_детализированный[[#This Row],[Контрагент]],$A$2:$A$177,Таблица_Металлопроцессинг_детализированный[[#This Row],[Месяц отгрузки]]))","v":0},{"$f":"IF(Таблица_Металлопроцессинг_детализированный[[#This Row],[Инициатор+исполнитель]],1,IF(Таблица_Металлопроцессинг_детализированный[[#This Row],[Оборот за месяц по контрагенту]]<1000000,0.5,0.7))","v":1},{"$f":"IF(Таблица_Металлопроцессинг_детализированный[[#This Row],[Инициатор+исполнитель]]=TRUE,0,IF(Таблица_Металлопроцессинг_детализированный[[#This Row],[Оборот за месяц по контрагенту]]<1000000,0.5,0.3))","v":0},{"$f":"Таблица_Металлопроцессинг_детализированный[[#This Row],[Сумма наценки]]*Таблица_Металлопроцессинг_детализированный[[#This Row],[Распределение выручки для Куратора договора]]","v":50232.35},{"$f":"IF(Таблица_Металлопроцессинг_детализированный[[#This Row],[Распределение выручки для Менеджера договора]]=1,\"\",Таблица_Металлопроцессинг_детализированный[[#This Row],[Сумма наценки]]*Таблица_Металлопроцессинг_детализированный[[#This Row],[Распределение выручки для Менеджера договора]])","v":0},"Из давальческого сырья","САНКТ-ПЕТЕРБУРГ","НЕВА-МЕТАЛЛТРЭЙД ООО","ООО \"Нева-МеталлТрэйд\"","г. Санкт-Петербург ","г. Санкт-Петербург ","Машиностроение","Изделие","Полособульб, РСВ, №14а, 6000",15.647,"т",0,"Очистка и покраска проката (грунт HEMPEL)","ROSLER",50232.35,15.647,15.647,1,"САНКТ-ПЕТЕРБУРГ","Центр",15.647]
[1,"САНКТ-ПЕТЕРБУРГ","Центр","Сафонеев С.А.","Сафонеев С.А.","Сафонеев С.А.",{"$f":"IF(Таблица_Металлопроцессинг_детализированный[[#This Row],[Куратор договора]]=Таблица_Металлопроцессинг_детализированный[[#This Row],[Менеджер]],TRUE,FALSE)","v":true},{"$f":"IF(COUNTIFS($A$1:$A87,Таблица_Металлопроцессинг_детализированный[[#This Row],[Месяц отгрузки]],$O$1:$O87,Таблица_Металлопроцессинг_детализированный[[#This Row],[Контрагент]])>0,0,SUMIFS($AA$2:$AA$177,$O$2:$O$177,Таблица_Металлопроцессинг_детализированный[[#This Row],[Контрагент]],$A$2:$A$177,Таблица_Металлопроцессинг_детализированный[[#This Row],[Месяц отгрузки]]))","v":0},{"$f":"IF(Таблица_Металлопроцессинг_детализированный[[#This Row],[Инициатор+исполнитель]],1,IF(Таблица_Металлопроцессинг_детализированный[[#This Row],[Оборот за месяц по контрагенту]]<1000000,0.5,0.7))","v":1},{"$f":"IF(Таблица_Металлопроцессинг_детализированный[[#This Row],[Инициатор+исполнитель]]=TRUE,0,IF(Таблица_Металлопроцессинг_детализированный[[#This Row],[Оборот за месяц по контрагенту]]<1000000,0.5,0.3))","v":0},{"$f":"Таблица_Металлопроцессинг_детализированный[[#This Row],[Сумма наценки]]*Таблица_Металлопроцессинг_детализированный[[#This Row],[Распределение выручки для Куратора договора]]","v":10988.46},{"$f":"IF(Таблица_Металлопроцессинг_детализированный[[#This Row],[Распределение выручки для Менеджера договора]]=1,\"\",Таблица_Металлопроцессинг_детализированный[[#This Row],[Сумма наценки]]*Таблица_Металлопроцессинг_детализированный[[#This Row],[Распределение выручки для Менеджера договора]])","v":0},"Из давальческого сырья","САНКТ-ПЕТЕРБУРГ","НЕВА-МЕТАЛЛТРЭЙД ООО","ООО \"Нева-МеталлТрэйд\"","г. Санкт-Петербург ","г. Санкт-Петербург ","Машиностроение","Изделие","Полособульб, РСД32 №18б, 6000",4.1310000000000002,"т",0,"Очистка и покраска проката (грунт HEMPEL)","ROSLER",10988.46,4.1310000000000002,4.1310000000000002,1,"САНКТ-ПЕТЕРБУРГ","Центр",4.1310000000000002]
[1,"САНКТ-ПЕТЕРБУРГ","Центр","Дауэнгауэр Н.Э.","Дауэнгауэр Н.Э.","Сафонеев С.А.",{"$f":"IF(Таблица_Металлопроцессинг_детализированный[[#This Row],[Куратор договора]]=Таблица_Металлопроцессинг_детализированный[[#This Row],[Менеджер]],TRUE,FALSE)","v":false},{"$f":"IF(COUNTIFS($A$1:$A88,Таблица_Металлопроцессинг_детализированный[[#This Row],[Месяц отгрузки]],$O$1:$O88,Таблица_Металлопроцессинг_детализированный[[#This Row],[Контрагент]])>0,0,SUMIFS($AA$2:$AA$177,$O$2:$O$177,Таблица_Металлопроцессинг_детализированный[[#This Row],[Контрагент]],$A$2:$A$177,Таблица_Металлопроцессинг_детализированный[[#This Row],[Месяц отгрузки]]))","v":0},{"$f":"IF(Таблица_Металлопроцессинг_детализированный[[#This Row],[Инициатор+исполнитель]],1,IF(Таблица_Металлопроцессинг_детализированный[[#This Row],[Оборот за месяц по контрагенту]]<1000000,0.5,0.7))","v":0.5},{"$f":"IF(Таблица_Металлопроцессинг_детализированный[[#This Row],[Инициатор+исполнитель]]=TRUE,0,IF(Таблица_Металлопроцессинг_детализированный[[#This Row],[Оборот за месяц по контрагенту]]<1000000,0.5,0.3))","v":0.5},{"$f":"Таблица_Металлопроцессинг_детализированный[[#This Row],[Сумма наценки]]*Таблица_Металлопроцессинг_детализированный[[#This Row],[Распределение выручки для Куратора договора]]","v":3076.5},{"$f":"IF(Таблица_Металлопроцессинг_детализированный[[#This Row],[Распределение выручки для Менеджера договора]]=1,\"\",Таблица_Металлопроцессинг_детализированный[[#This Row],[Сумма наценки]]*Таблица_Металлопроцессинг_детализированный[[#This Row],[Распределение выручки для Менеджера договора]])","v":3076.5},"Процессинг","САНКТ-ПЕТЕРБУРГ","НОВАЯ ЭРА","ОАО \"Новая ЭРА\"","г. Санкт-Петербург ","г. Санкт-Петербург ","Машиностроение","Сталь рулонная х/к, 3, 1250, Ст.сп/пс (ТУ 14-106-321-2010)",null,2.93,"т",85907.6,"Порезка листового проката поперечная","CAMU RDC 1500/6",6153,1,3,1,"САНКТ-ПЕТЕРБУРГ","Центр",2.93]
[1,"САНКТ-ПЕТЕРБУРГ","Центр","Степура С.Н.","Степура С.Н.","Матросова Л.Ш.",{"$f":"IF(Таблица_Металлопроцессинг_детализированный[[#This Row],[Куратор договора]]=Таблица_Металлопроцессинг_детализированный[[#This Row],[Менеджер]],TRUE,FALSE)","v":false},{"$f":"IF(COUNTIFS($A$1:$A89,Таблица_Металлопроцессинг_детализированный[[#This Row],[Месяц отгрузки]],$O$1:$O89,Таблица_Металлопроцессинг_детализированный[[#This Row],[Контрагент]])>0,0,SUMIFS($AA$2:$AA$177,$O$2:$O$177,Таблица_Металлопроцессинг_детализированный[[#This Row],[Контрагент]],$A$2:$A$177,Таблица_Металлопроцессинг_детализированный[[#This Row],[Месяц отгрузки]]))","v":1700},{"$f":"IF(Таблица_Металлопроцессинг_детализированный[[#This Row],[Инициатор+исполнитель]],1,IF(Таблица_Металлопроцессинг_детализированный[[#This Row],[Оборот за месяц по контрагенту]]<1000000,0.5,0.7))","v":0.5},{"$f":"IF(Таблица_Металлопроцессинг_детализированный[[#This Row],[Инициатор+исполнитель]]=TRUE,0,IF(Таблица_Металлопроцессинг_детализированный[[#This Row],[Оборот за месяц по контрагенту]]<1000000,0.5,0.3))","v":0.5},{"$f":"Таблица_Металлопроцессинг_детализированный[[#This Row],[Сумма наценки]]*Таблица_Металлопроцессинг_детализированный[[#This Row],[Распределение выручки для Куратора договора]]","v":450},{"$f":"IF(Таблица_Металлопроцессинг_детализированный[[#This Row],[Распределение выручки для Менеджера договора]]=1,\"\",Таблица_Металлопроцессинг_детализированный[[#This Row],[Сумма наценки]]*Таблица_Металлопроцессинг_детализированный[[#This Row],[Распределение выручки для Менеджера договора]])","v":450},"Процессинг","САНКТ-ПЕТЕРБУРГ","Металлосфера","ООО \"Металлосфера\"",null,null,"Металлоторговля","Сталь листовая Г/к., 10, 1500x6000, Ст.сп/пс (ГОСТ 14637)",null,0.38,"т",8523.4,"Порезка листового проката (ножницы)","COLGAR CI-34-TR",900,1,0.39,1,"САНКТ-ПЕТЕРБУРГ","Центр",0.38]
[1,"САНКТ-ПЕТЕРБУРГ","Центр","Степура С.Н.","Степура С.Н.","Сафонеев С.А.",{"$f":"IF(Таблица_Металлопроцессинг_детализированный[[#This Row],[Куратор договора]]=Таблица_Металлопроцессинг_детализированный[[#This Row],[Менеджер]],TRUE,FALSE)","v":false},{"$f":"IF(COUNTIFS($A$1:$A90,Таблица_Металлопроцессинг_детализированный[[#This Row],[Месяц отгрузки]],$O$1:$O90,Таблица_Металлопроцессинг_детализированный[[#This Row],[Контрагент]])>0,0,SUMIFS($AA$2:$AA$177,$O$2:$O$177,Таблица_Металлопроцессинг_детализированный[[#This Row],[Контрагент]],$A$2:$A$177,Таблица_Металлопроцессинг_детализированный[[#This Row],[Месяц отгрузки]]))","v":0},{"$f":"IF(Таблица_Металлопроцессинг_детализированный[[#This Row],[Инициатор+исполнитель]],1,IF(Таблица_Металлопроцессинг_детализированный[[#This Row],[Оборот за месяц по контрагенту]]<1000000,0.5,0.7))","v":0.5},{"$f":"IF(Таблица_Металлопроцессинг_детализированный[[#This Row],[Инициатор+исполнитель]]=TRUE,0,IF(Таблица_Металлопроцессинг_детализированный[[#This Row],[Оборот за месяц по контрагенту]]<1000000,0.5,0.3))","v":0.5},{"$f":"Таблица_Металлопроцессинг_детализированный[[#This Row],[Сумма наценки]]*Таблица_Металлопроцессинг_детализированный[[#This Row],[Распределение выручки для Куратора договора]]","v":400},{"$f":"IF(Таблица_Металлопроцессинг_детализированный[[#This Row],[Распределение выручки для Менеджера договора]]=1,\"\",Таблица_Металлопроцессинг_детализированный[[#This Row],[Сумма наценки]]*Таблица_Металлопроцессинг_детализированный[[#This Row],[Распределение выручки для Менеджера договора]])","v":400},"Процессинг","САНКТ-ПЕТЕРБУРГ","Металлосфера","ООО \"Металлосфера\"",null,null,"Металлоторговля","Сталь листовая Г/к., 8, 1500x6000, Ст.сп/пс (ГОСТ 14637)",null,0.2,"т",4486,"Порезка листового проката (ножницы)","COLGAR CI-34-TR",800,1,0.21,1,"САНКТ-ПЕТЕРБУРГ","Центр",0.2]
[1,"САНКТ-ПЕТЕРБУРГ","Центр","Хабибуллов М.Р.","Хабибуллов М.Р.","Сафонеев С.А.",{"$f":"IF(Таблица_Металлопроцессинг_детализированный[[#This Row],[Куратор договора]]=Таблица_Металлопроцессинг_детализированный[[#This Row],[Менеджер]],TRUE,FALSE)","v":false},{"$f":"IF(COUNTIFS($A$1:$A91,Таблица_Металлопроцессинг_детализированный[[#This Row],[Месяц отгрузки]],$O$1:$O91,Таблица_Металлопроцессинг_детализированный[[#This Row],[Контрагент]])>0,0,SUMIFS($AA$2:$AA$177,$O$2:$O$177,Таблица_Металлопроцессинг_детализированный[[#This Row],[Контрагент]],$A$2:$A$177,Таблица_Металлопроцессинг_детализированный[[#This Row],[Месяц отгрузки]]))","v":0},{"$f":"IF(Таблица_Металлопроцессинг_детализированный[[#This Row],[Инициатор+исполнитель]],1,IF(Таблица_Металлопроцессинг_детализированный[[#This Row],[Оборот за месяц по контрагенту]]<1000000,0.5,0.7))","v":0.5},{"$f":"IF(Таблица_Металлопроцессинг_детализированный[[#This Row],[Инициатор+исполнитель]]=TRUE,0,IF(Таблица_Металлопроцессинг_детализированный[[#This Row],[Оборот за месяц по контрагенту]]<1000000,0.5,0.3))","v":0.5},{"$f":"Таблица_Металлопроцессинг_детализированный[[#This Row],[Сумма наценки]]*Таблица_Металлопроцессинг_детализированный[[#This Row],[Распределение выручки для Куратора договора]]","v":15002.25},{"$f":"IF(Таблица_Металлопроцессинг_детализированный[[#This Row],[Распределение выручки для Менеджера договора]]=1,\"\",Таблица_Металлопроцессинг_детализированный[[#This Row],[Сумма наценки]]*Таблица_Металлопроцессинг_детализированный[[#This Row],[Распределение выручки для Менеджера договора]])","v":15002.25},"Процессинг","САНКТ-ПЕТЕРБУРГ","АртЛэнд","ООО \"Строительная компания \"АртЛэнд\"",null,null,"Стройиндустрия","Шпунт Ларсена Л5-УМ, С255 (ТУ 14-102-8-2003)",null,20.003,"т",790118.5,"Очистка и покраска проката (грунт ЭМЛАК 263)","ROSLER",30004.5,20.003,20.003,1,"САНКТ-ПЕТЕРБУРГ","Центр",20.003]
[1,"САНКТ-ПЕТЕРБУРГ","Центр","Матросова Л.Ш.","Сафонеев С.А.","Матросова Л.Ш.",{"$f":"IF(Таблица_Металлопроцессинг_детализированный[[#This Row],[Куратор договора]]=Таблица_Металлопроцессинг_детализированный[[#This Row],[Менеджер]],TRUE,FALSE)","v":true},{"$f":"IF(COUNTIFS($A$1:$A92,Таблица_Металлопроцессинг_детализированный[[#This Row],[Месяц отгрузки]],$O$1:$O92,Таблица_Металлопроцессинг_детализированный[[#This Row],[Контрагент]])>0,0,SUMIFS($AA$2:$AA$177,$O$2:$O$177,Таблица_Металлопроцессинг_детализированный[[#This Row],[Контрагент]],$A$2:$A$177,Таблица_Металлопроцессинг_детализированный[[#This Row],[Месяц отгрузки]]))","v":1300},{"$f":"IF(Таблица_Металлопроцессинг_детализированный[[#This Row],[Инициатор+исполнитель]],1,IF(Таблица_Металлопроцессинг_детализированный[[#This Row],[Оборот за месяц по контрагенту]]<1000000,0.5,0.7))","v":1},{"$f":"IF(Таблица_Металлопроцессинг_детализированный[[#This Row],[Инициатор+исполнитель]]=TRUE,0,IF(Таблица_Металлопроцессинг_детализированный[[#This Row],[Оборот за месяц по контрагенту]]<1000000,0.5,0.3))","v":0},{"$f":"Таблица_Металлопроцессинг_детализированный[[#This Row],[Сумма наценки]]*Таблица_Металлопроцессинг_детализированный[[#This Row],[Распределение выручки для Куратора договора]]","v":1300},{"$f":"IF(Таблица_Металлопроцессинг_детализированный[[#This Row],[Распределение выручки для Менеджера договора]]=1,\"\",Таблица_Металлопроцессинг_детализированный[[#This Row],[Сумма наценки]]*Таблица_Металлопроцессинг_детализированный[[#This Row],[Распределение выручки для Менеджера договора]])","v":0},"Процессинг","САНКТ-ПЕТЕРБУРГ","НИКОС","ООО \"НИКОС\"",null,null,"Металлоконструкции","Швеллер стальной Г/к., 10П, Ст.сп/пс, н/дл (ГОСТ 8240-97)",null,0.54,"т",13251.6,"Станок ленточнопильный","PEGASUS",1300,13,0.54,1,"САНКТ-ПЕТЕРБУРГ","Центр",0.54]
[1,"САНКТ-ПЕТЕРБУРГ","Центр","Ипатова Е.Н.","Ипатова Е.Н.","Ипатова Е.Н.",{"$f":"IF(Таблица_Металлопроцессинг_детализированный[[#This Row],[Куратор договора]]=Таблица_Металлопроцессинг_детализированный[[#This Row],[Менеджер]],TRUE,FALSE)","v":true},{"$f":"IF(COUNTIFS($A$1:$A93,Таблица_Металлопроцессинг_детализированный[[#This Row],[Месяц отгрузки]],$O$1:$O93,Таблица_Металлопроцессинг_детализированный[[#This Row],[Контрагент]])>0,0,SUMIFS($AA$2:$AA$177,$O$2:$O$177,Таблица_Металлопроцессинг_детализированный[[#This Row],[Контрагент]],$A$2:$A$177,Таблица_Металлопроцессинг_детализированный[[#This Row],[Месяц отгрузки]]))","v":0},{"$f":"IF(Таблица_Металлопроцессинг_детализированный[[#This Row],[Инициатор+исполнитель]],1,IF(Таблица_Металлопроцессинг_детализированный[[#This Row],[Оборот за месяц по контрагенту]]<1000000,0.5,0.7))","v":1},{"$f":"IF(Таблица_Металлопроцессинг_детализированный[[#This Row],[Инициатор+исполнитель]]=TRUE,0,IF(Таблица_Металлопроцессинг_детализированный[[#This Row],[Оборот за месяц по контрагенту]]<1000000,0.5,0.3))","v":0},{"$f":"Таблица_Металлопроцессинг_детализированный[[#This Row],[Сумма наценки]]*Таблица_Металлопроцессинг_детализированный[[#This Row],[Распределение выручки для Куратора договора]]","v":9000},{"$f":"IF(Таблица_Металлопроцессинг_детализированный[[#This Row],[Распределение выручки для Менеджера договора]]=1,\"\",Таблица_Металлопроцессинг_детализированный[[#This Row],[Сумма наценки]]*Таблица_Металлопроцессинг_детализированный[[#This Row],[Распределение выручки для Менеджера договора]])","v":0},"Процессинг","САНКТ-ПЕТЕРБУРГ","НИКОЛЬСКИЙ ЗМК","ООО \"Никольский завод металлоконструкций\"","Ленинградская обл.","Ленинградская обл.","Металлоконструкции","Сталь листовая Г/к., 12, 1500x6000, Ст.сп/пс (ГОСТ 14637)",null,8.4700000000000006,"т",189982.1,"Очистка проката (дробь 1,0мм, 0,8мм)","ROSLER",9000,90,8.5,1,"САНКТ-ПЕТЕРБУРГ","Центр",8.4700000000000006]
[1,"САНКТ-ПЕТЕРБУРГ","Центр","Дауэнгауэр Н.Э.","Дауэнгауэр Н.Э.","Дауэнгауэр Н.Э.",{"$f":"IF(Таблица_Металлопроцессинг_детализированный[[#This Row],[Куратор договора]]=Таблица_Металлопроцессинг_детализированный[[#This Row],[Менеджер]],TRUE,FALSE)","v":true},{"$f":"IF(COUNTIFS($A$1:$A94,Таблица_Металлопроцессинг_детализированный[[#This Row],[Месяц отгрузки]],$O$1:$O94,Таблица_Металлопроцессинг_детализированный[[#This Row],[Контрагент]])>0,0,SUMIFS($AA$2:$AA$177,$O$2:$O$177,Таблица_Металлопроцессинг_детализированный[[#This Row],[Контрагент]],$A$2:$A$177,Таблица_Металлопроцессинг_детализированный[[#This Row],[Месяц отгрузки]]))","v":0},{"$f":"IF(Таблица_Металлопроцессинг_детализированный[[#This Row],[Инициатор+исполнитель]],1,IF(Таблица_Металлопроцессинг_детализированный[[#This Row],[Оборот за месяц по контрагенту]]<1000000,0.5,0.7))","v":1},{"$f":"IF(Таблица_Металлопроцессинг_детализированный[[#This Row],[Инициатор+исполнитель]]=TRUE,0,IF(Таблица_Металлопроцессинг_детализированный[[#This Row],[Оборот за месяц по контрагенту]]<1000000,0.5,0.3))","v":0},{"$f":"Таблица_Металлопроцессинг_детализированный[[#This Row],[Сумма наценки]]*Таблица_Металлопроцессинг_детализированный[[#This Row],[Распределение выручки для Куратора договора]]","v":15232},{"$f":"IF(Таблица_Металлопроцессинг_детализированный[[#This Row],[Распределение выручки для Менеджера договора]]=1,\"\",Таблица_Металлопроцессинг_детализированный[[#This Row],[Сумма наценки]]*Таблица_Металлопроцессинг_детализированный[[#This Row],[Распределение выручки для Менеджера договора]])","v":0},"Процессинг","САНКТ-ПЕТЕРБУРГ","ОСТ НПП","ЗАО \"НПП ОСТ\"","г. Санкт-Петербург ","г. Санкт-Петербург ","Машиностроение","Сталь листовая Х/к., 0.8, 1250x2500, Ст.08пс (ГОСТ 16523)",null,4.4800000000000004,"т",124902.39999999999,"Порезка листового проката (ножницы)",null,15232,1,4.4800000000000004,null,"САНКТ-ПЕТЕРБУРГ","Центр",4.4800000000000004]
[1,"САНКТ-ПЕТЕРБУРГ","Центр","Дауэнгауэр Н.Э.","Дауэнгауэр Н.Э.","Дауэнгауэр Н.Э.",{"$f":"IF(Таблица_Металлопроцессинг_детализированный[[#This Row],[Куратор договора]]=Таблица_Металлопроцессинг_детализированный[[#This Row],[Менеджер]],TRUE,FALSE)","v":true},{"$f":"IF(COUNTIFS($A$1:$A95,Таблица_Металлопроцессинг_детализированный[[#This Row],[Месяц отгрузки]],$O$1:$O95,Таблица_Металлопроцессинг_детализированный[[#This Row],[Контрагент]])>0,0,SUMIFS($AA$2:$AA$177,$O$2:$O$177,Таблица_Металлопроцессинг_детализированный[[#This Row],[Контрагент]],$A$2:$A$177,Таблица_Металлопроцессинг_детализированный[[#This Row],[Месяц отгрузки]]))","v":0},{"$f":"IF(Таблица_Металлопроцессинг_детализированный[[#This Row],[Инициатор+исполнитель]],1,IF(Таблица_Металлопроцессинг_детализированный[[#This Row],[Оборот за месяц по контрагенту]]<1000000,0.5,0.7))","v":1},{"$f":"IF(Таблица_Металлопроцессинг_детализированный[[#This Row],[Инициатор+исполнитель]]=TRUE,0,IF(Таблица_Металлопроцессинг_детализированный[[#This Row],[Оборот за месяц по контрагенту]]<1000000,0.5,0.3))","v":0},{"$f":"Таблица_Металлопроцессинг_детализированный[[#This Row],[Сумма наценки]]*Таблица_Металлопроцессинг_детализированный[[#This Row],[Распределение выручки для Куратора договора]]","v":6720},{"$f":"IF(Таблица_Металлопроцессинг_детализированный[[#This Row],[Распределение выручки для Менеджера договора]]=1,\"\",Таблица_Металлопроцессинг_детализированный[[#This Row],[Сумма наценки]]*Таблица_Металлопроцессинг_детализированный[[#This Row],[Распределение выручки для Менеджера договора]])","v":0},"Процессинг","САНКТ-ПЕТЕРБУРГ","ОСТ НПП","ЗАО \"НПП ОСТ\"","г. Санкт-Петербург ","г. Санкт-Петербург ","Машиностроение","Сталь листовая Х/к., 2, 1250x2500, Ст.кп/пс (ТУ 14-106-321-2010)",null,1.92,"т",51398.400000000001,"Порезка листового проката (ножницы)",null,6720,1,2,null,"САНКТ-ПЕТЕРБУРГ","Центр",1.92]
[1,"САНКТ-ПЕТЕРБУРГ","Центр","Сафонеев С.А.","Сафонеев С.А.","Сафонеев С.А.",{"$f":"IF(Таблица_Металлопроцессинг_детализированный[[#This Row],[Куратор договора]]=Таблица_Металлопроцессинг_детализированный[[#This Row],[Менеджер]],TRUE,FALSE)","v":true},{"$f":"IF(COUNTIFS($A$1:$A96,Таблица_Металлопроцессинг_детализированный[[#This Row],[Месяц отгрузки]],$O$1:$O96,Таблица_Металлопроцессинг_детализированный[[#This Row],[Контрагент]])>0,0,SUMIFS($AA$2:$AA$177,$O$2:$O$177,Таблица_Металлопроцессинг_детализированный[[#This Row],[Контрагент]],$A$2:$A$177,Таблица_Металлопроцессинг_детализированный[[#This Row],[Месяц отгрузки]]))","v":0},{"$f":"IF(Таблица_Металлопроцессинг_детализированный[[#This Row],[Инициатор+исполнитель]],1,IF(Таблица_Металлопроцессинг_детализированный[[#This Row],[Оборот за месяц по контрагенту]]<1000000,0.5,0.7))","v":1},{"$f":"IF(Таблица_Металлопроцессинг_детализированный[[#This Row],[Инициатор+исполнитель]]=TRUE,0,IF(Таблица_Металлопроцессинг_детализированный[[#This Row],[Оборот за месяц по контрагенту]]<1000000,0.5,0.3))","v":0},{"$f":"Таблица_Металлопроцессинг_детализированный[[#This Row],[Сумма наценки]]*Таблица_Металлопроцессинг_детализированный[[#This Row],[Распределение выручки для Куратора договора]]","v":21021.81},{"$f":"IF(Таблица_Металлопроцессинг_детализированный[[#This Row],[Распределение выручки для Менеджера договора]]=1,\"\",Таблица_Металлопроцессинг_детализированный[[#This Row],[Сумма наценки]]*Таблица_Металлопроцессинг_детализированный[[#This Row],[Распределение выручки для Менеджера договора]])","v":0},"Из давальческого сырья","САНКТ-ПЕТЕРБУРГ","НЕВА-МЕТАЛЛТРЭЙД ООО","ООО \"Нева-МеталлТрэйд\"","г. Санкт-Петербург ","г. Санкт-Петербург ","Машиностроение","Изделие","Полособульб, РСВ, №14б, 6000",6.351,"т",0,"Очистка и покраска проката (грунт HEMPEL)","ROSLER",21021.81,6.351,6.351,1,"САНКТ-ПЕТЕРБУРГ","Центр",6.351]
[1,"САНКТ-ПЕТЕРБУРГ","Центр","Сафонеев С.А.","Сафонеев С.А.","Сафонеев С.А.",{"$f":"IF(Таблица_Металлопроцессинг_детализированный[[#This Row],[Куратор договора]]=Таблица_Металлопроцессинг_детализированный[[#This Row],[Менеджер]],TRUE,FALSE)","v":true},{"$f":"IF(COUNTIFS($A$1:$A97,Таблица_Металлопроцессинг_детализированный[[#This Row],[Месяц отгрузки]],$O$1:$O97,Таблица_Металлопроцессинг_детализированный[[#This Row],[Контрагент]])>0,0,SUMIFS($AA$2:$AA$177,$O$2:$O$177,Таблица_Металлопроцессинг_детализированный[[#This Row],[Контрагент]],$A$2:$A$177,Таблица_Металлопроцессинг_детализированный[[#This Row],[Месяц отгрузки]]))","v":0},{"$f":"IF(Таблица_Металлопроцессинг_детализированный[[#This Row],[Инициатор+исполнитель]],1,IF(Таблица_Металлопроцессинг_детализированный[[#This Row],[Оборот за месяц по контрагенту]]<1000000,0.5,0.7))","v":1},{"$f":"IF(Таблица_Металлопроцессинг_детализированный[[#This Row],[Инициатор+исполнитель]]=TRUE,0,IF(Таблица_Металлопроцессинг_детализированный[[#This Row],[Оборот за месяц по контрагенту]]<1000000,0.5,0.3))","v":0},{"$f":"Таблица_Металлопроцессинг_детализированный[[#This Row],[Сумма наценки]]*Таблица_Металлопроцессинг_детализированный[[#This Row],[Распределение выручки для Куратора договора]]","v":16115},{"$f":"IF(Таблица_Металлопроцессинг_детализированный[[#This Row],[Распределение выручки для Менеджера договора]]=1,\"\",Таблица_Металлопроцессинг_детализированный[[#This Row],[Сумма наценки]]*Таблица_Металлопроцессинг_детализированный[[#This Row],[Распределение выручки для Менеджера договора]])","v":0},"Из давальческого сырья","САНКТ-ПЕТЕРБУРГ","НЕВА-МЕТАЛЛТРЭЙД ООО","ООО \"Нева-МеталлТрэйд\"","г. Санкт-Петербург ","г. Санкт-Петербург ","Машиностроение","Изделие","Полособульб, РСВ, №16а, 6000",5.5,"т",0,"Очистка и покраска проката (грунт HEMPEL)","ROSLER",16115,5.5,5.5,1,"САНКТ-ПЕТЕРБУРГ","Центр",5.5]
[1,"САНКТ-ПЕТЕРБУРГ","Центр","Сафонеев С.А.","Сафонеев С.А.","Сафонеев С.А.",{"$f":"IF(Таблица_Металлопроцессинг_детализированный[[#This Row],[Куратор договора]]=Таблица_Металлопроцессинг_детализированный[[#This Row],[Менеджер]],TRUE,FALSE)","v":true},{"$f":"IF(COUNTIFS($A$1:$A98,Таблица_Металлопроцессинг_детализированный[[#This Row],[Месяц отгрузки]],$O$1:$O98,Таблица_Металлопроцессинг_детализированный[[#This Row],[Контрагент]])>0,0,SUMIFS($AA$2:$AA$177,$O$2:$O$177,Таблица_Металлопроцессинг_детализированный[[#This Row],[Контрагент]],$A$2:$A$177,Таблица_Металлопроцессинг_детализированный[[#This Row],[Месяц отгрузки]]))","v":0},{"$f":"IF(Таблица_Металлопроцессинг_детализированный[[#This Row],[Инициатор+исполнитель]],1,IF(Таблица_Металлопроцессинг_детализированный[[#This Row],[Оборот за месяц по контрагенту]]<1000000,0.5,0.7))","v":1},{"$f":"IF(Таблица_Металлопроцессинг_детализированный[[#This Row],[Инициатор+исполнитель]]=TRUE,0,IF(Таблица_Металлопроцессинг_детализированный[[#This Row],[Оборот за месяц по контрагенту]]<1000000,0.5,0.3))","v":0},{"$f":"Таблица_Металлопроцессинг_детализированный[[#This Row],[Сумма наценки]]*Таблица_Металлопроцессинг_детализированный[[#This Row],[Распределение выручки для Куратора договора]]","v":17875.2},{"$f":"IF(Таблица_Металлопроцессинг_детализированный[[#This Row],[Распределение выручки для Менеджера договора]]=1,\"\",Таблица_Металлопроцессинг_детализированный[[#This Row],[Сумма наценки]]*Таблица_Металлопроцессинг_детализированный[[#This Row],[Распределение выручки для Менеджера договора]])","v":0},"Из давальческого сырья","САНКТ-ПЕТЕРБУРГ","НЕВА-МЕТАЛЛТРЭЙД ООО","ООО \"Нева-МеталлТрэйд\"","г. Санкт-Петербург ","г. Санкт-Петербург ","Машиностроение","Изделие","Полособульб, РСД32, №18а, 6000",6.72,"т",0,"Очистка и покраска проката (грунт HEMPEL)","ROSLER",17875.2,6.72,6.72,1,"САНКТ-ПЕТЕРБУРГ","Центр",6.72]
[1,"САНКТ-ПЕТЕРБУРГ","Центр","Степура С.Н.","Степура С.Н.","Сафонеев С.А.",{"$f":"IF(Таблица_Металлопроцессинг_детализированный[[#This Row],[Куратор договора]]=Таблица_Металлопроцессинг_детализированный[[#This Row],[Менеджер]],TRUE,FALSE)","v":false},{"$f":"IF(COUNTIFS($A$1:$A99,Таблица_Металлопроцессинг_детализированный[[#This Row],[Месяц отгрузки]],$O$1:$O99,Таблица_Металлопроцессинг_детализированный[[#This Row],[Контрагент]])>0,0,SUMIFS($AA$2:$AA$177,$O$2:$O$177,Таблица_Металлопроцессинг_детализированный[[#This Row],[Контрагент]],$A$2:$A$177,Таблица_Металлопроцессинг_детализированный[[#This Row],[Месяц отгрузки]]))","v":650},{"$f":"IF(Таблица_Металлопроцессинг_детализированный[[#This Row],[Инициатор+исполнитель]],1,IF(Таблица_Металлопроцессинг_детализированный[[#This Row],[Оборот за месяц по контрагенту]]<1000000,0.5,0.7))","v":0.5},{"$f":"IF(Таблица_Металлопроцессинг_детализированный[[#This Row],[Инициатор+исполнитель]]=TRUE,0,IF(Таблица_Металлопроцессинг_детализированный[[#This Row],[Оборот за месяц по контрагенту]]<1000000,0.5,0.3))","v":0.5},{"$f":"Таблица_Металлопроцессинг_детализированный[[#This Row],[Сумма наценки]]*Таблица_Металлопроцессинг_детализированный[[#This Row],[Распределение выручки для Куратора договора]]","v":325},{"$f":"IF(Таблица_Металлопроцессинг_детализированный[[#This Row],[Распределение выручки для Менеджера договора]]=1,\"\",Таблица_Металлопроцессинг_детализированный[[#This Row],[Сумма наценки]]*Таблица_Металлопроцессинг_детализированный[[#This Row],[Распределение выручки для Менеджера договора]])","v":325},"Процессинг","САНКТ-ПЕТЕРБУРГ","СТАЛЬТЕХ","ООО\"СТАЛЬТЕХ\"","г. Санкт-Петербург ","г. Санкт-Петербург ","Машиностроение","Сталь рулонная Г/к., 4, 1500, Ст.сп/пс (19903)",null,0.06,"т",1345.8,"Порезка листового проката (ножницы)","COLGAR CI-34-TR",650,1,0.06,1,"САНКТ-ПЕТЕРБУРГ","Центр",0.06]
[1,"САНКТ-ПЕТЕРБУРГ","Центр","Ипатов Д.В.","Ипатов Д.В.","Сафонеев С.А.",{"$f":"IF(Таблица_Металлопроцессинг_детализированный[[#This Row],[Куратор договора]]=Таблица_Металлопроцессинг_детализированный[[#This Row],[Менеджер]],TRUE,FALSE)","v":false},{"$f":"IF(COUNTIFS($A$1:$A100,Таблица_Металлопроцессинг_детализированный[[#This Row],[Месяц отгрузки]],$O$1:$O100,Таблица_Металлопроцессинг_детализированный[[#This Row],[Контрагент]])>0,0,SUMIFS($AA$2:$AA$177,$O$2:$O$177,Таблица_Металлопроцессинг_детализированный[[#This Row],[Контрагент]],$A$2:$A$177,Таблица_Металлопроцессинг_детализированный[[#This Row],[Месяц отгрузки]]))","v":0},{"$f":"IF(Таблица_Металлопроцессинг_детализированный[[#This Row],[Инициатор+исполнитель]],1,IF(Таблица_Металлопроцессинг_детализированный[[#This Row],[Оборот за месяц по контрагенту]]<1000000,0.5,0.7))","v":0.5},{"$f":"IF(Таблица_Металлопроцессинг_детализированный[[#This Row],[Инициатор+исполнитель]]=TRUE,0,IF(Таблица_Металлопроцессинг_детализированный[[#This Row],[Оборот за месяц по контрагенту]]<1000000,0.5,0.3))","v":0.5},{"$f":"Таблица_Металлопроцессинг_детализированный[[#This Row],[Сумма наценки]]*Таблица_Металлопроцессинг_детализированный[[#This Row],[Распределение выручки для Куратора договора]]","v":28500},{"$f":"IF(Таблица_Металлопроцессинг_детализированный[[#This Row],[Распределение выручки для Менеджера договора]]=1,\"\",Таблица_Металлопроцессинг_детализированный[[#This Row],[Сумма наценки]]*Таблица_Металлопроцессинг_детализированный[[#This Row],[Распределение выручки для Менеджера договора]])","v":28500},"Из давальческого сырья","САНКТ-ПЕТЕРБУРГ","СК БалтМонтажСтрой","ООО \"СК БалтМонтажСтрой\"","Ленинградская обл.","Ленинградская обл.","Стройиндустрия","Труба стальная профильная, 160x160x4, Ст.сп/пс (ГОСТ 30245-03)",null,20,"т",0,"Очистка и покраска проката (грунт ЭМЛАК 263)","ROSLER",57000,475,475,1,"САНКТ-ПЕТЕРБУРГ","Центр",20]
[1,"САНКТ-ПЕТЕРБУРГ","Центр","Погорелов И.В.","Погорелов И.В.","Погорелов И.В.",{"$f":"IF(Таблица_Металлопроцессинг_детализированный[[#This Row],[Куратор договора]]=Таблица_Металлопроцессинг_детализированный[[#This Row],[Менеджер]],TRUE,FALSE)","v":true},{"$f":"IF(COUNTIFS($A$1:$A101,Таблица_Металлопроцессинг_детализированный[[#This Row],[Месяц отгрузки]],$O$1:$O101,Таблица_Металлопроцессинг_детализированный[[#This Row],[Контрагент]])>0,0,SUMIFS($AA$2:$AA$177,$O$2:$O$177,Таблица_Металлопроцессинг_детализированный[[#This Row],[Контрагент]],$A$2:$A$177,Таблица_Металлопроцессинг_детализированный[[#This Row],[Месяц отгрузки]]))","v":1950},{"$f":"IF(Таблица_Металлопроцессинг_детализированный[[#This Row],[Инициатор+исполнитель]],1,IF(Таблица_Металлопроцессинг_детализированный[[#This Row],[Оборот за месяц по контрагенту]]<1000000,0.5,0.7))","v":1},{"$f":"IF(Таблица_Металлопроцессинг_детализированный[[#This Row],[Инициатор+исполнитель]]=TRUE,0,IF(Таблица_Металлопроцессинг_детализированный[[#This Row],[Оборот за месяц по контрагенту]]<1000000,0.5,0.3))","v":0},{"$f":"Таблица_Металлопроцессинг_детализированный[[#This Row],[Сумма наценки]]*Таблица_Металлопроцессинг_детализированный[[#This Row],[Распределение выручки для Куратора договора]]","v":1950},{"$f":"IF(Таблица_Металлопроцессинг_детализированный[[#This Row],[Распределение выручки для Менеджера договора]]=1,\"\",Таблица_Металлопроцессинг_детализированный[[#This Row],[Сумма наценки]]*Таблица_Металлопроцессинг_детализированный[[#This Row],[Распределение выручки для Менеджера договора]])","v":0},"Процессинг","САНКТ-ПЕТЕРБУРГ","РОС-СЕРВИС","ООО \"РОС-сервис\"",null,null,"Металлоторговля","Сталь рулонная Г/к., 3, 1500, Ст.09Г2С (19903)",null,1.3,"т",35958,"Порезка листового проката поперечная","CAMU RDC 1500/6",1950,1,1.3,1,"САНКТ-ПЕТЕРБУРГ","Центр",1.3]
[1,"САНКТ-ПЕТЕРБУРГ","Центр","Сафонеев С.А.","Сафонеев С.А.","Сафонеев С.А.",{"$f":"IF(Таблица_Металлопроцессинг_детализированный[[#This Row],[Куратор договора]]=Таблица_Металлопроцессинг_детализированный[[#This Row],[Менеджер]],TRUE,FALSE)","v":true},{"$f":"IF(COUNTIFS($A$1:$A102,Таблица_Металлопроцессинг_детализированный[[#This Row],[Месяц отгрузки]],$O$1:$O102,Таблица_Металлопроцессинг_детализированный[[#This Row],[Контрагент]])>0,0,SUMIFS($AA$2:$AA$177,$O$2:$O$177,Таблица_Металлопроцессинг_детализированный[[#This Row],[Контрагент]],$A$2:$A$177,Таблица_Металлопроцессинг_детализированный[[#This Row],[Месяц отгрузки]]))","v":0},{"$f":"IF(Таблица_Металлопроцессинг_детализированный[[#This Row],[Инициатор+исполнитель]],1,IF(Таблица_Металлопроцессинг_детализированный[[#This Row],[Оборот за месяц по контрагенту]]<1000000,0.5,0.7))","v":1},{"$f":"IF(Таблица_Металлопроцессинг_детализированный[[#This Row],[Инициатор+исполнитель]]=TRUE,0,IF(Таблица_Металлопроцессинг_детализированный[[#This Row],[Оборот за месяц по контрагенту]]<1000000,0.5,0.3))","v":0},{"$f":"Таблица_Металлопроцессинг_детализированный[[#This Row],[Сумма наценки]]*Таблица_Металлопроцессинг_детализированный[[#This Row],[Распределение выручки для Куратора договора]]","v":54257.62},{"$f":"IF(Таблица_Металлопроцессинг_детализированный[[#This Row],[Распределение выручки для Менеджера договора]]=1,\"\",Таблица_Металлопроцессинг_детализированный[[#This Row],[Сумма наценки]]*Таблица_Металлопроцессинг_детализированный[[#This Row],[Распределение выручки для Менеджера договора]])","v":0},"Из давальческого сырья","САНКТ-ПЕТЕРБУРГ","НЕВА-МЕТАЛЛТРЭЙД ООО","ООО \"Нева-МеталлТрэйд\"","г. Санкт-Петербург ","г. Санкт-Петербург ","Машиностроение","Изделие","Полособульб, РСД32, №20а",22.664000000000001,"т",0,"Очистка и покраска проката (грунт HEMPEL)","ROSLER",54257.62,22.664000000000001,22.664000000000001,1,"САНКТ-ПЕТЕРБУРГ","Центр",22.664000000000001]
[1,"САНКТ-ПЕТЕРБУРГ","Центр","Райская Н.А.","Райская Н.А.","Райская Н.А.",{"$f":"IF(Таблица_Металлопроцессинг_детализированный[[#This Row],[Куратор договора]]=Таблица_Металлопроцессинг_детализированный[[#This Row],[Менеджер]],TRUE,FALSE)","v":true},{"$f":"IF(COUNTIFS($A$1:$A103,Таблица_Металлопроцессинг_детализированный[[#This Row],[Месяц отгрузки]],$O$1:$O103,Таблица_Металлопроцессинг_детализированный[[#This Row],[Контрагент]])>0,0,SUMIFS($AA$2:$AA$177,$O$2:$O$177,Таблица_Металлопроцессинг_детализированный[[#This Row],[Контрагент]],$A$2:$A$177,Таблица_Металлопроцессинг_детализированный[[#This Row],[Месяц отгрузки]]))","v":1990},{"$f":"IF(Таблица_Металлопроцессинг_детализированный[[#This Row],[Инициатор+исполнитель]],1,IF(Таблица_Металлопроцессинг_детализированный[[#This Row],[Оборот за месяц по контрагенту]]<1000000,0.5,0.7))","v":1},{"$f":"IF(Таблица_Металлопроцессинг_детализированный[[#This Row],[Инициатор+исполнитель]]=TRUE,0,IF(Таблица_Металлопроцессинг_детализированный[[#This Row],[Оборот за месяц по контрагенту]]<1000000,0.5,0.3))","v":0},{"$f":"Таблица_Металлопроцессинг_детализированный[[#This Row],[Сумма наценки]]*Таблица_Металлопроцессинг_детализированный[[#This Row],[Распределение выручки для Куратора договора]]","v":1990},{"$f":"IF(Таблица_Металлопроцессинг_детализированный[[#This Row],[Распределение выручки для Менеджера договора]]=1,\"\",Таблица_Металлопроцессинг_детализированный[[#This Row],[Сумма наценки]]*Таблица_Металлопроцессинг_детализированный[[#This Row],[Распределение выручки для Менеджера договора]])","v":0},"Процессинг","САНКТ-ПЕТЕРБУРГ","СЗЭСС","СПб ф-л ОАО СЗЭСС УПТК и РС",null,null,"Стройиндустрия","Арматура класс АI, 10, Ст.сп/пс, в бунтах (ГОСТ5781-82)",null,1.99,"т",54366.8,"Размотка/резка арматурного проката","MELC 16x4",1990,1,2,1,"САНКТ-ПЕТЕРБУРГ","Центр",1.99]
[1,"САНКТ-ПЕТЕРБУРГ","Центр","Райская Н.А.","Райская Н.А.","Райская Н.А.",{"$f":"IF(Таблица_Металлопроцессинг_детализированный[[#This Row],[Куратор договора]]=Таблица_Металлопроцессинг_детализированный[[#This Row],[Менеджер]],TRUE,FALSE)","v":true},{"$f":"IF(COUNTIFS($A$1:$A104,Таблица_Металлопроцессинг_детализированный[[#This Row],[Месяц отгрузки]],$O$1:$O104,Таблица_Металлопроцессинг_детализированный[[#This Row],[Контрагент]])>0,0,SUMIFS($AA$2:$AA$177,$O$2:$O$177,Таблица_Металлопроцессинг_детализированный[[#This Row],[Контрагент]],$A$2:$A$177,Таблица_Металлопроцессинг_детализированный[[#This Row],[Месяц отгрузки]]))","v":0},{"$f":"IF(Таблица_Металлопроцессинг_детализированный[[#This Row],[Инициатор+исполнитель]],1,IF(Таблица_Металлопроцессинг_детализированный[[#This Row],[Оборот за месяц по контрагенту]]<1000000,0.5,0.7))","v":1},{"$f":"IF(Таблица_Металлопроцессинг_детализированный[[#This Row],[Инициатор+исполнитель]]=TRUE,0,IF(Таблица_Металлопроцессинг_детализированный[[#This Row],[Оборот за месяц по контрагенту]]<1000000,0.5,0.3))","v":0},{"$f":"Таблица_Металлопроцессинг_детализированный[[#This Row],[Сумма наценки]]*Таблица_Металлопроцессинг_детализированный[[#This Row],[Распределение выручки для Куратора договора]]","v":620},{"$f":"IF(Таблица_Металлопроцессинг_детализированный[[#This Row],[Распределение выручки для Менеджера договора]]=1,\"\",Таблица_Металлопроцессинг_детализированный[[#This Row],[Сумма наценки]]*Таблица_Металлопроцессинг_детализированный[[#This Row],[Распределение выручки для Менеджера договора]])","v":0},"Процессинг","САНКТ-ПЕТЕРБУРГ","КонкордМеталл","ООО\"КонкордМеталл\"","г. Санкт-Петербург ","г. Санкт-Петербург ","Металлоторговля","Балка двутавровая, 30Ш1, С245/С255 (СТО АСЧМ 20-93)",null,1.3879999999999999,"т",58740.160000000003,"Станок ленточнопильный","PEGASUS",620,2,1.387,1,"САНКТ-ПЕТЕРБУРГ","Центр",1.3879999999999999]
[1,"САНКТ-ПЕТЕРБУРГ","Центр","Райская Н.А.","Райская Н.А.","Райская Н.А.",{"$f":"IF(Таблица_Металлопроцессинг_детализированный[[#This Row],[Куратор договора]]=Таблица_Металлопроцессинг_детализированный[[#This Row],[Менеджер]],TRUE,FALSE)","v":true},{"$f":"IF(COUNTIFS($A$1:$A105,Таблица_Металлопроцессинг_детализированный[[#This Row],[Месяц отгрузки]],$O$1:$O105,Таблица_Металлопроцессинг_детализированный[[#This Row],[Контрагент]])>0,0,SUMIFS($AA$2:$AA$177,$O$2:$O$177,Таблица_Металлопроцессинг_детализированный[[#This Row],[Контрагент]],$A$2:$A$177,Таблица_Металлопроцессинг_детализированный[[#This Row],[Месяц отгрузки]]))","v":0},{"$f":"IF(Таблица_Металлопроцессинг_детализированный[[#This Row],[Инициатор+исполнитель]],1,IF(Таблица_Металлопроцессинг_детализированный[[#This Row],[Оборот за месяц по контрагенту]]<1000000,0.5,0.7))","v":1},{"$f":"IF(Таблица_Металлопроцессинг_детализированный[[#This Row],[Инициатор+исполнитель]]=TRUE,0,IF(Таблица_Металлопроцессинг_детализированный[[#This Row],[Оборот за месяц по контрагенту]]<1000000,0.5,0.3))","v":0},{"$f":"Таблица_Металлопроцессинг_детализированный[[#This Row],[Сумма наценки]]*Таблица_Металлопроцессинг_детализированный[[#This Row],[Распределение выручки для Куратора договора]]","v":440},{"$f":"IF(Таблица_Металлопроцессинг_детализированный[[#This Row],[Распределение выручки для Менеджера договора]]=1,\"\",Таблица_Металлопроцессинг_детализированный[[#This Row],[Сумма наценки]]*Таблица_Металлопроцессинг_детализированный[[#This Row],[Распределение выручки для Менеджера договора]])","v":0},"Процессинг","САНКТ-ПЕТЕРБУРГ","КонкордМеталл","ООО\"КонкордМеталл\"","г. Санкт-Петербург ","г. Санкт-Петербург ","Металлоторговля","Швеллер стальной г/к, 20У, С255 (ГОСТ 27772-88)",null,0.17,"т",5117,"Станок ленточнопильный","PEGASUS",440,4,0.16900000000000001,1,"САНКТ-ПЕТЕРБУРГ","Центр",0.17]
[1,"САНКТ-ПЕТЕРБУРГ","Центр","Хабибуллов М.Р.","Хабибуллов М.Р.","Хабибуллов М.Р.",{"$f":"IF(Таблица_Металлопроцессинг_детализированный[[#This Row],[Куратор договора]]=Таблица_Металлопроцессинг_детализированный[[#This Row],[Менеджер]],TRUE,FALSE)","v":true},{"$f":"IF(COUNTIFS($A$1:$A106,Таблица_Металлопроцессинг_детализированный[[#This Row],[Месяц отгрузки]],$O$1:$O106,Таблица_Металлопроцессинг_детализированный[[#This Row],[Контрагент]])>0,0,SUMIFS($AA$2:$AA$177,$O$2:$O$177,Таблица_Металлопроцессинг_детализированный[[#This Row],[Контрагент]],$A$2:$A$177,Таблица_Металлопроцессинг_детализированный[[#This Row],[Месяц отгрузки]]))","v":0},{"$f":"IF(Таблица_Металлопроцессинг_детализированный[[#This Row],[Инициатор+исполнитель]],1,IF(Таблица_Металлопроцессинг_детализированный[[#This Row],[Оборот за месяц по контрагенту]]<1000000,0.5,0.7))","v":1},{"$f":"IF(Таблица_Металлопроцессинг_детализированный[[#This Row],[Инициатор+исполнитель]]=TRUE,0,IF(Таблица_Металлопроцессинг_детализированный[[#This Row],[Оборот за месяц по контрагенту]]<1000000,0.5,0.3))","v":0},{"$f":"Таблица_Металлопроцессинг_детализированный[[#This Row],[Сумма наценки]]*Таблица_Металлопроцессинг_детализированный[[#This Row],[Распределение выручки для Куратора договора]]","v":29863.5},{"$f":"IF(Таблица_Металлопроцессинг_детализированный[[#This Row],[Распределение выручки для Менеджера договора]]=1,\"\",Таблица_Металлопроцессинг_детализированный[[#This Row],[Сумма наценки]]*Таблица_Металлопроцессинг_детализированный[[#This Row],[Распределение выручки для Менеджера договора]])","v":0},"Процессинг","САНКТ-ПЕТЕРБУРГ","АртЛэнд","ООО \"Строительная компания \"АртЛэнд\"",null,null,"Стройиндустрия","Шпунт Ларсена Л5-УМ, С255 (ТУ 14-102-8-2003)",null,19.908999999999999,"т",786405.5,"Очистка и покраска проката (грунт ЭМЛАК 263)","ROSLER",29863.5,19.908999999999999,36.526000000000003,1,"САНКТ-ПЕТЕРБУРГ","Центр",19.908999999999999]
[1,"САНКТ-ПЕТЕРБУРГ","Центр","Дауэнгауэр Н.Э.","Дауэнгауэр Н.Э.","Дауэнгауэр Н.Э.",{"$f":"IF(Таблица_Металлопроцессинг_детализированный[[#This Row],[Куратор договора]]=Таблица_Металлопроцессинг_детализированный[[#This Row],[Менеджер]],TRUE,FALSE)","v":true},{"$f":"IF(COUNTIFS($A$1:$A107,Таблица_Металлопроцессинг_детализированный[[#This Row],[Месяц отгрузки]],$O$1:$O107,Таблица_Металлопроцессинг_детализированный[[#This Row],[Контрагент]])>0,0,SUMIFS($AA$2:$AA$177,$O$2:$O$177,Таблица_Металлопроцессинг_детализированный[[#This Row],[Контрагент]],$A$2:$A$177,Таблица_Металлопроцессинг_детализированный[[#This Row],[Месяц отгрузки]]))","v":0},{"$f":"IF(Таблица_Металлопроцессинг_детализированный[[#This Row],[Инициатор+исполнитель]],1,IF(Таблица_Металлопроцессинг_детализированный[[#This Row],[Оборот за месяц по контрагенту]]<1000000,0.5,0.7))","v":1},{"$f":"IF(Таблица_Металлопроцессинг_детализированный[[#This Row],[Инициатор+исполнитель]]=TRUE,0,IF(Таблица_Металлопроцессинг_детализированный[[#This Row],[Оборот за месяц по контрагенту]]<1000000,0.5,0.3))","v":0},{"$f":"Таблица_Металлопроцессинг_детализированный[[#This Row],[Сумма наценки]]*Таблица_Металлопроцессинг_детализированный[[#This Row],[Распределение выручки для Куратора договора]]","v":1695},{"$f":"IF(Таблица_Металлопроцессинг_детализированный[[#This Row],[Распределение выручки для Менеджера договора]]=1,\"\",Таблица_Металлопроцессинг_детализированный[[#This Row],[Сумма наценки]]*Таблица_Металлопроцессинг_детализированный[[#This Row],[Распределение выручки для Менеджера договора]])","v":0},"Процессинг","САНКТ-ПЕТЕРБУРГ","АМИРА СК","ООО \"Амира-СтальКонструкция\"","Санкт-Петербург ","Санкт-Петербург ","Металлоконструкции","Сталь листовая Г/к., 16, 1500x6000, Ст.09Г2С (ГОСТ 19281)",null,1.1299999999999999,"т",28995.8,"Порезка листового проката (ножницы)",null,1695,1,1.1299999999999999,null,"САНКТ-ПЕТЕРБУРГ","Центр",1.1299999999999999]
[1,"САНКТ-ПЕТЕРБУРГ","Центр","Дауэнгауэр Н.Э.","Дауэнгауэр Н.Э.","Сафонеев С.А.",{"$f":"IF(Таблица_Металлопроцессинг_детализированный[[#This Row],[Куратор договора]]=Таблица_Металлопроцессинг_детализированный[[#This Row],[Менеджер]],TRUE,FALSE)","v":false},{"$f":"IF(COUNTIFS($A$1:$A108,Таблица_Металлопроцессинг_детализированный[[#This Row],[Месяц отгрузки]],$O$1:$O108,Таблица_Металлопроцессинг_детализированный[[#This Row],[Контрагент]])>0,0,SUMIFS($AA$2:$AA$177,$O$2:$O$177,Таблица_Металлопроцессинг_детализированный[[#This Row],[Контрагент]],$A$2:$A$177,Таблица_Металлопроцессинг_детализированный[[#This Row],[Месяц отгрузки]]))","v":0},{"$f":"IF(Таблица_Металлопроцессинг_детализированный[[#This Row],[Инициатор+исполнитель]],1,IF(Таблица_Металлопроцессинг_детализированный[[#This Row],[Оборот за месяц по контрагенту]]<1000000,0.5,0.7))","v":0.5},{"$f":"IF(Таблица_Металлопроцессинг_детализированный[[#This Row],[Инициатор+исполнитель]]=TRUE,0,IF(Таблица_Металлопроцессинг_детализированный[[#This Row],[Оборот за месяц по контрагенту]]<1000000,0.5,0.3))","v":0.5},{"$f":"Таблица_Металлопроцессинг_детализированный[[#This Row],[Сумма наценки]]*Таблица_Металлопроцессинг_детализированный[[#This Row],[Распределение выручки для Куратора договора]]","v":420},{"$f":"IF(Таблица_Металлопроцессинг_детализированный[[#This Row],[Распределение выручки для Менеджера договора]]=1,\"\",Таблица_Металлопроцессинг_детализированный[[#This Row],[Сумма наценки]]*Таблица_Металлопроцессинг_детализированный[[#This Row],[Распределение выручки для Менеджера договора]])","v":420},"Процессинг","САНКТ-ПЕТЕРБУРГ","АМИРА СК","ООО \"Амира-СтальКонструкция\"","Санкт-Петербург ","Санкт-Петербург ","Металлоконструкции","Сталь листовая Г/к., 4, 1500x6000, Ст.сп/пс (ГОСТ 14637)",null,1.4,"т",31724,"Порезка листового проката (ножницы)",null,840,1,1.4,null,"САНКТ-ПЕТЕРБУРГ","Центр",1.4]
[1,"САНКТ-ПЕТЕРБУРГ","Центр","Райская Н.А.","Райская Н.А.","Сафонеев С.А.",{"$f":"IF(Таблица_Металлопроцессинг_детализированный[[#This Row],[Куратор договора]]=Таблица_Металлопроцессинг_детализированный[[#This Row],[Менеджер]],TRUE,FALSE)","v":false},{"$f":"IF(COUNTIFS($A$1:$A109,Таблица_Металлопроцессинг_детализированный[[#This Row],[Месяц отгрузки]],$O$1:$O109,Таблица_Металлопроцессинг_детализированный[[#This Row],[Контрагент]])>0,0,SUMIFS($AA$2:$AA$177,$O$2:$O$177,Таблица_Металлопроцессинг_детализированный[[#This Row],[Контрагент]],$A$2:$A$177,Таблица_Металлопроцессинг_детализированный[[#This Row],[Месяц отгрузки]]))","v":990},{"$f":"IF(Таблица_Металлопроцессинг_детализированный[[#This Row],[Инициатор+исполнитель]],1,IF(Таблица_Металлопроцессинг_детализированный[[#This Row],[Оборот за месяц по контрагенту]]<1000000,0.5,0.7))","v":0.5},{"$f":"IF(Таблица_Металлопроцессинг_детализированный[[#This Row],[Инициатор+исполнитель]]=TRUE,0,IF(Таблица_Металлопроцессинг_детализированный[[#This Row],[Оборот за месяц по контрагенту]]<1000000,0.5,0.3))","v":0.5},{"$f":"Таблица_Металлопроцессинг_детализированный[[#This Row],[Сумма наценки]]*Таблица_Металлопроцессинг_детализированный[[#This Row],[Распределение выручки для Куратора договора]]","v":495},{"$f":"IF(Таблица_Металлопроцессинг_детализированный[[#This Row],[Распределение выручки для Менеджера договора]]=1,\"\",Таблица_Металлопроцессинг_детализированный[[#This Row],[Сумма наценки]]*Таблица_Металлопроцессинг_детализированный[[#This Row],[Распределение выручки для Менеджера договора]])","v":495},"Процессинг","САНКТ-ПЕТЕРБУРГ","ГАРАНТ-СЕРВИС СПб","ООО \"ГАРАНТ-СЕРВИС\"",null,null,"Металлоторговля","Арматура класс АI, 8, Ст.сп/пс, в бунтах (ГОСТ5781-82)",null,0.55000000000000004,"т",14113,"Размотка/резка арматурного проката","MELC 16x4",990,1,0.55000000000000004,1,"САНКТ-ПЕТЕРБУРГ","Центр",0.55000000000000004]
[1,"САНКТ-ПЕТЕРБУРГ","Центр","Сафонеев С.А.","Сафонеев С.А.","Сафонеев С.А.",{"$f":"IF(Таблица_Металлопроцессинг_детализированный[[#This Row],[Куратор договора]]=Таблица_Металлопроцессинг_детализированный[[#This Row],[Менеджер]],TRUE,FALSE)","v":true},{"$f":"IF(COUNTIFS($A$1:$A110,Таблица_Металлопроцессинг_детализированный[[#This Row],[Месяц отгрузки]],$O$1:$O110,Таблица_Металлопроцессинг_детализированный[[#This Row],[Контрагент]])>0,0,SUMIFS($AA$2:$AA$177,$O$2:$O$177,Таблица_Металлопроцессинг_детализированный[[#This Row],[Контрагент]],$A$2:$A$177,Таблица_Металлопроцессинг_детализированный[[#This Row],[Месяц отгрузки]]))","v":0},{"$f":"IF(Таблица_Металлопроцессинг_детализированный[[#This Row],[Инициатор+исполнитель]],1,IF(Таблица_Металлопроцессинг_детализированный[[#This Row],[Оборот за месяц по контрагенту]]<1000000,0.5,0.7))","v":1},{"$f":"IF(Таблица_Металлопроцессинг_детализированный[[#This Row],[Инициатор+исполнитель]]=TRUE,0,IF(Таблица_Металлопроцессинг_детализированный[[#This Row],[Оборот за месяц по контрагенту]]<1000000,0.5,0.3))","v":0},{"$f":"Таблица_Металлопроцессинг_детализированный[[#This Row],[Сумма наценки]]*Таблица_Металлопроцессинг_детализированный[[#This Row],[Распределение выручки для Куратора договора]]","v":50850.95},{"$f":"IF(Таблица_Металлопроцессинг_детализированный[[#This Row],[Распределение выручки для Менеджера договора]]=1,\"\",Таблица_Металлопроцессинг_детализированный[[#This Row],[Сумма наценки]]*Таблица_Металлопроцессинг_детализированный[[#This Row],[Распределение выручки для Менеджера договора]])","v":0},"Из давальческого сырья","САНКТ-ПЕТЕРБУРГ","НЕВА-МЕТАЛЛТРЭЙД ООО","ООО \"Нева-МеталлТрэйд\"","г. Санкт-Петербург ","г. Санкт-Петербург ","Машиностроение","Изделие","Полособульб, РСД32, №20а",21.241,"т",0,"Очистка и покраска проката (грунт HEMPEL)","ROSLER",50850.95,21.241,21.241,1,"САНКТ-ПЕТЕРБУРГ","Центр",21.241]
[1,"САНКТ-ПЕТЕРБУРГ","Центр","Зиновьев С.Ю.","Зиновьев С.Ю.","Зиновьев С.Ю.",{"$f":"IF(Таблица_Металлопроцессинг_детализированный[[#This Row],[Куратор договора]]=Таблица_Металлопроцессинг_детализированный[[#This Row],[Менеджер]],TRUE,FALSE)","v":true},{"$f":"IF(COUNTIFS($A$1:$A111,Таблица_Металлопроцессинг_детализированный[[#This Row],[Месяц отгрузки]],$O$1:$O111,Таблица_Металлопроцессинг_детализированный[[#This Row],[Контрагент]])>0,0,SUMIFS($AA$2:$AA$177,$O$2:$O$177,Таблица_Металлопроцессинг_детализированный[[#This Row],[Контрагент]],$A$2:$A$177,Таблица_Металлопроцессинг_детализированный[[#This Row],[Месяц отгрузки]]))","v":54720},{"$f":"IF(Таблица_Металлопроцессинг_детализированный[[#This Row],[Инициатор+исполнитель]],1,IF(Таблица_Металлопроцессинг_детализированный[[#This Row],[Оборот за месяц по контрагенту]]<1000000,0.5,0.7))","v":1},{"$f":"IF(Таблица_Металлопроцессинг_детализированный[[#This Row],[Инициатор+исполнитель]]=TRUE,0,IF(Таблица_Металлопроцессинг_детализированный[[#This Row],[Оборот за месяц по контрагенту]]<1000000,0.5,0.3))","v":0},{"$f":"Таблица_Металлопроцессинг_детализированный[[#This Row],[Сумма наценки]]*Таблица_Металлопроцессинг_детализированный[[#This Row],[Распределение выручки для Куратора договора]]","v":20320},{"$f":"IF(Таблица_Металлопроцессинг_детализированный[[#This Row],[Распределение выручки для Менеджера договора]]=1,\"\",Таблица_Металлопроцессинг_детализированный[[#This Row],[Сумма наценки]]*Таблица_Металлопроцессинг_детализированный[[#This Row],[Распределение выручки для Менеджера договора]])","v":0},"Из давальческого сырья","САНКТ-ПЕТЕРБУРГ","Птицефабрика Роскар","ЗАО \"Птицефабрика Роскар\"","Ленинградская обл.","Ленинградская обл.","Другое","Изделие","Профильная труба 100х60х4",3.6960000000000002,"т",0,"Очистка и покраска проката (грунт ЭМЛАК 263)","ROSLER",20320,127,3.6960000000000002,1,"САНКТ-ПЕТЕРБУРГ","Центр",3.6959999999999997]
[1,"САНКТ-ПЕТЕРБУРГ","Центр","Зиновьев С.Ю.","Зиновьев С.Ю.","Зиновьев С.Ю.",{"$f":"IF(Таблица_Металлопроцессинг_детализированный[[#This Row],[Куратор договора]]=Таблица_Металлопроцессинг_детализированный[[#This Row],[Менеджер]],TRUE,FALSE)","v":true},{"$f":"IF(COUNTIFS($A$1:$A112,Таблица_Металлопроцессинг_детализированный[[#This Row],[Месяц отгрузки]],$O$1:$O112,Таблица_Металлопроцессинг_детализированный[[#This Row],[Контрагент]])>0,0,SUMIFS($AA$2:$AA$177,$O$2:$O$177,Таблица_Металлопроцессинг_детализированный[[#This Row],[Контрагент]],$A$2:$A$177,Таблица_Металлопроцессинг_детализированный[[#This Row],[Месяц отгрузки]]))","v":0},{"$f":"IF(Таблица_Металлопроцессинг_детализированный[[#This Row],[Инициатор+исполнитель]],1,IF(Таблица_Металлопроцессинг_детализированный[[#This Row],[Оборот за месяц по контрагенту]]<1000000,0.5,0.7))","v":1},{"$f":"IF(Таблица_Металлопроцессинг_детализированный[[#This Row],[Инициатор+исполнитель]]=TRUE,0,IF(Таблица_Металлопроцессинг_детализированный[[#This Row],[Оборот за месяц по контрагенту]]<1000000,0.5,0.3))","v":0},{"$f":"Таблица_Металлопроцессинг_детализированный[[#This Row],[Сумма наценки]]*Таблица_Металлопроцессинг_детализированный[[#This Row],[Распределение выручки для Куратора договора]]","v":30400},{"$f":"IF(Таблица_Металлопроцессинг_детализированный[[#This Row],[Распределение выручки для Менеджера договора]]=1,\"\",Таблица_Металлопроцессинг_детализированный[[#This Row],[Сумма наценки]]*Таблица_Металлопроцессинг_детализированный[[#This Row],[Распределение выручки для Менеджера договора]])","v":0},"Из давальческого сырья","САНКТ-ПЕТЕРБУРГ","Птицефабрика Роскар","ЗАО \"Птицефабрика Роскар\"","Ленинградская обл.","Ленинградская обл.","Другое","Изделие","Профильная труба 50х50х3",4.0449999999999999,"т",0,"Очистка и покраска проката (грунт ЭМЛАК 263)","ROSLER",30400,190,4.0449999999999999,1,"САНКТ-ПЕТЕРБУРГ","Центр",4.0449999999999999]
[1,"САНКТ-ПЕТЕРБУРГ","Центр","Зиновьев С.Ю.","Зиновьев С.Ю.","Зиновьев С.Ю.",{"$f":"IF(Таблица_Металлопроцессинг_детализированный[[#This Row],[Куратор договора]]=Таблица_Металлопроцессинг_детализированный[[#This Row],[Менеджер]],TRUE,FALSE)","v":true},{"$f":"IF(COUNTIFS($A$1:$A113,Таблица_Металлопроцессинг_детализированный[[#This Row],[Месяц отгрузки]],$O$1:$O113,Таблица_Металлопроцессинг_детализированный[[#This Row],[Контрагент]])>0,0,SUMIFS($AA$2:$AA$177,$O$2:$O$177,Таблица_Металлопроцессинг_детализированный[[#This Row],[Контрагент]],$A$2:$A$177,Таблица_Металлопроцессинг_детализированный[[#This Row],[Месяц отгрузки]]))","v":0},{"$f":"IF(Таблица_Металлопроцессинг_детализированный[[#This Row],[Инициатор+исполнитель]],1,IF(Таблица_Металлопроцессинг_детализированный[[#This Row],[Оборот за месяц по контрагенту]]<1000000,0.5,0.7))","v":1},{"$f":"IF(Таблица_Металлопроцессинг_детализированный[[#This Row],[Инициатор+исполнитель]]=TRUE,0,IF(Таблица_Металлопроцессинг_детализированный[[#This Row],[Оборот за месяц по контрагенту]]<1000000,0.5,0.3))","v":0},{"$f":"Таблица_Металлопроцессинг_детализированный[[#This Row],[Сумма наценки]]*Таблица_Металлопроцессинг_детализированный[[#This Row],[Распределение выручки для Куратора договора]]","v":4000},{"$f":"IF(Таблица_Металлопроцессинг_детализированный[[#This Row],[Распределение выручки для Менеджера договора]]=1,\"\",Таблица_Металлопроцессинг_детализированный[[#This Row],[Сумма наценки]]*Таблица_Металлопроцессинг_детализированный[[#This Row],[Распределение выручки для Менеджера договора]])","v":0},"Из давальческого сырья","САНКТ-ПЕТЕРБУРГ","Птицефабрика Роскар","ЗАО \"Птицефабрика Роскар\"","Ленинградская обл.","Ленинградская обл.","Другое","Изделие","Профильная труба 60х60х3",0.68,"т",0,"Очистка и покраска проката (грунт ЭМЛАК 263)","ROSLER",4000,25,0.68,1,"САНКТ-ПЕТЕРБУРГ","Центр",0.68]
[1,"САНКТ-ПЕТЕРБУРГ","Центр","Дауэнгауэр Н.Э.","Дауэнгауэр Н.Э.","Дауэнгауэр Н.Э.",{"$f":"IF(Таблица_Металлопроцессинг_детализированный[[#This Row],[Куратор договора]]=Таблица_Металлопроцессинг_детализированный[[#This Row],[Менеджер]],TRUE,FALSE)","v":true},{"$f":"IF(COUNTIFS($A$1:$A114,Таблица_Металлопроцессинг_детализированный[[#This Row],[Месяц отгрузки]],$O$1:$O114,Таблица_Металлопроцессинг_детализированный[[#This Row],[Контрагент]])>0,0,SUMIFS($AA$2:$AA$177,$O$2:$O$177,Таблица_Металлопроцессинг_детализированный[[#This Row],[Контрагент]],$A$2:$A$177,Таблица_Металлопроцессинг_детализированный[[#This Row],[Месяц отгрузки]]))","v":0},{"$f":"IF(Таблица_Металлопроцессинг_детализированный[[#This Row],[Инициатор+исполнитель]],1,IF(Таблица_Металлопроцессинг_детализированный[[#This Row],[Оборот за месяц по контрагенту]]<1000000,0.5,0.7))","v":1},{"$f":"IF(Таблица_Металлопроцессинг_детализированный[[#This Row],[Инициатор+исполнитель]]=TRUE,0,IF(Таблица_Металлопроцессинг_детализированный[[#This Row],[Оборот за месяц по контрагенту]]<1000000,0.5,0.3))","v":0},{"$f":"Таблица_Металлопроцессинг_детализированный[[#This Row],[Сумма наценки]]*Таблица_Металлопроцессинг_детализированный[[#This Row],[Распределение выручки для Куратора договора]]","v":11400},{"$f":"IF(Таблица_Металлопроцессинг_детализированный[[#This Row],[Распределение выручки для Менеджера договора]]=1,\"\",Таблица_Металлопроцессинг_детализированный[[#This Row],[Сумма наценки]]*Таблица_Металлопроцессинг_детализированный[[#This Row],[Распределение выручки для Менеджера договора]])","v":0},"Процессинг","САНКТ-ПЕТЕРБУРГ","НОВАЯ ЭРА","ОАО \"Новая ЭРА\"","г. Санкт-Петербург ","г. Санкт-Петербург ","Машиностроение","Сталь листовая Х/к., 3, 1250x2500, Ст.кп/пс (ТУ 14-106-321-2010)",null,3,"т",80310,"Порезка листового проката (ножницы)",null,11400,1,3,null,"САНКТ-ПЕТЕРБУРГ","Центр",3]
[1,"САНКТ-ПЕТЕРБУРГ","Центр","Дауэнгауэр Н.Э.","Дауэнгауэр Н.Э.","Дауэнгауэр Н.Э.",{"$f":"IF(Таблица_Металлопроцессинг_детализированный[[#This Row],[Куратор договора]]=Таблица_Металлопроцессинг_детализированный[[#This Row],[Менеджер]],TRUE,FALSE)","v":true},{"$f":"IF(COUNTIFS($A$1:$A115,Таблица_Металлопроцессинг_детализированный[[#This Row],[Месяц отгрузки]],$O$1:$O115,Таблица_Металлопроцессинг_детализированный[[#This Row],[Контрагент]])>0,0,SUMIFS($AA$2:$AA$177,$O$2:$O$177,Таблица_Металлопроцессинг_детализированный[[#This Row],[Контрагент]],$A$2:$A$177,Таблица_Металлопроцессинг_детализированный[[#This Row],[Месяц отгрузки]]))","v":0},{"$f":"IF(Таблица_Металлопроцессинг_детализированный[[#This Row],[Инициатор+исполнитель]],1,IF(Таблица_Металлопроцессинг_детализированный[[#This Row],[Оборот за месяц по контрагенту]]<1000000,0.5,0.7))","v":1},{"$f":"IF(Таблица_Металлопроцессинг_детализированный[[#This Row],[Инициатор+исполнитель]]=TRUE,0,IF(Таблица_Металлопроцессинг_детализированный[[#This Row],[Оборот за месяц по контрагенту]]<1000000,0.5,0.3))","v":0},{"$f":"Таблица_Металлопроцессинг_детализированный[[#This Row],[Сумма наценки]]*Таблица_Металлопроцессинг_детализированный[[#This Row],[Распределение выручки для Куратора договора]]","v":8084},{"$f":"IF(Таблица_Металлопроцессинг_детализированный[[#This Row],[Распределение выручки для Менеджера договора]]=1,\"\",Таблица_Металлопроцессинг_детализированный[[#This Row],[Сумма наценки]]*Таблица_Металлопроцессинг_детализированный[[#This Row],[Распределение выручки для Менеджера договора]])","v":0},"Процессинг","САНКТ-ПЕТЕРБУРГ","НОВАЯ ЭРА","ОАО \"Новая ЭРА\"","г. Санкт-Петербург ","г. Санкт-Петербург ","Машиностроение","Сталь листовая Х/к., 3, 1250x2500, Ст.кп/пс (ТУ 14-106-321-2010)",null,1.88,"т",50327.6,"Порезка листового проката (ножницы)",null,8084,1,1.88,null,"САНКТ-ПЕТЕРБУРГ","Центр",1.88]
[1,"САНКТ-ПЕТЕРБУРГ","Центр","Дауэнгауэр Н.Э.","Дауэнгауэр Н.Э.","Дауэнгауэр Н.Э.",{"$f":"IF(Таблица_Металлопроцессинг_детализированный[[#This Row],[Куратор договора]]=Таблица_Металлопроцессинг_детализированный[[#This Row],[Менеджер]],TRUE,FALSE)","v":true},{"$f":"IF(COUNTIFS($A$1:$A116,Таблица_Металлопроцессинг_детализированный[[#This Row],[Месяц отгрузки]],$O$1:$O116,Таблица_Металлопроцессинг_детализированный[[#This Row],[Контрагент]])>0,0,SUMIFS($AA$2:$AA$177,$O$2:$O$177,Таблица_Металлопроцессинг_детализированный[[#This Row],[Контрагент]],$A$2:$A$177,Таблица_Металлопроцессинг_детализированный[[#This Row],[Месяц отгрузки]]))","v":0},{"$f":"IF(Таблица_Металлопроцессинг_детализированный[[#This Row],[Инициатор+исполнитель]],1,IF(Таблица_Металлопроцессинг_детализированный[[#This Row],[Оборот за месяц по контрагенту]]<1000000,0.5,0.7))","v":1},{"$f":"IF(Таблица_Металлопроцессинг_детализированный[[#This Row],[Инициатор+исполнитель]]=TRUE,0,IF(Таблица_Металлопроцессинг_детализированный[[#This Row],[Оборот за месяц по контрагенту]]<1000000,0.5,0.3))","v":0},{"$f":"Таблица_Металлопроцессинг_детализированный[[#This Row],[Сумма наценки]]*Таблица_Металлопроцессинг_детализированный[[#This Row],[Распределение выручки для Куратора договора]]","v":82195},{"$f":"IF(Таблица_Металлопроцессинг_детализированный[[#This Row],[Распределение выручки для Менеджера договора]]=1,\"\",Таблица_Металлопроцессинг_детализированный[[#This Row],[Сумма наценки]]*Таблица_Металлопроцессинг_детализированный[[#This Row],[Распределение выручки для Менеджера договора]])","v":0},"Процессинг","САНКТ-ПЕТЕРБУРГ","АМИРА СК","ООО \"Амира-СтальКонструкция\"","Санкт-Петербург ","Санкт-Петербург ","Металлоконструкции","Сталь рулонная Г/к., 3, 1250, Ст.сп/пс (19903)",null,9.67,"т",213707,"Порезка листового проката поперечная","CAMU RDC 1500/6",82195,1,9.1199999999999992,1,"САНКТ-ПЕТЕРБУРГ","Центр",9.67]
[1,"САНКТ-ПЕТЕРБУРГ","Центр","Хабибуллов М.Р.","Хабибуллов М.Р.","Хабибуллов М.Р.",{"$f":"IF(Таблица_Металлопроцессинг_детализированный[[#This Row],[Куратор договора]]=Таблица_Металлопроцессинг_детализированный[[#This Row],[Менеджер]],TRUE,FALSE)","v":true},{"$f":"IF(COUNTIFS($A$1:$A117,Таблица_Металлопроцессинг_детализированный[[#This Row],[Месяц отгрузки]],$O$1:$O117,Таблица_Металлопроцессинг_детализированный[[#This Row],[Контрагент]])>0,0,SUMIFS($AA$2:$AA$177,$O$2:$O$177,Таблица_Металлопроцессинг_детализированный[[#This Row],[Контрагент]],$A$2:$A$177,Таблица_Металлопроцессинг_детализированный[[#This Row],[Месяц отгрузки]]))","v":0},{"$f":"IF(Таблица_Металлопроцессинг_детализированный[[#This Row],[Инициатор+исполнитель]],1,IF(Таблица_Металлопроцессинг_детализированный[[#This Row],[Оборот за месяц по контрагенту]]<1000000,0.5,0.7))","v":1},{"$f":"IF(Таблица_Металлопроцессинг_детализированный[[#This Row],[Инициатор+исполнитель]]=TRUE,0,IF(Таблица_Металлопроцессинг_детализированный[[#This Row],[Оборот за месяц по контрагенту]]<1000000,0.5,0.3))","v":0},{"$f":"Таблица_Металлопроцессинг_детализированный[[#This Row],[Сумма наценки]]*Таблица_Металлопроцессинг_детализированный[[#This Row],[Распределение выручки для Куратора договора]]","v":30006},{"$f":"IF(Таблица_Металлопроцессинг_детализированный[[#This Row],[Распределение выручки для Менеджера договора]]=1,\"\",Таблица_Металлопроцессинг_детализированный[[#This Row],[Сумма наценки]]*Таблица_Металлопроцессинг_детализированный[[#This Row],[Распределение выручки для Менеджера договора]])","v":0},"Процессинг","САНКТ-ПЕТЕРБУРГ","АртЛэнд","ООО \"Строительная компания \"АртЛэнд\"",null,null,"Стройиндустрия","Шпунт Ларсена Л5-УМ, С255 (ТУ 14-102-8-2003)",null,20.004000000000001,"т",790158,"Очистка и покраска проката (грунт ЭМЛАК 263)","ROSLER",30006,20.004000000000001,20.004000000000001,1,"САНКТ-ПЕТЕРБУРГ","Центр",20.004000000000001]
[1,"САНКТ-ПЕТЕРБУРГ","Центр","Дауэнгауэр Н.Э.","Дауэнгауэр Н.Э.","Райская Н.А.",{"$f":"IF(Таблица_Металлопроцессинг_детализированный[[#This Row],[Куратор договора]]=Таблица_Металлопроцессинг_детализированный[[#This Row],[Менеджер]],TRUE,FALSE)","v":false},{"$f":"IF(COUNTIFS($A$1:$A118,Таблица_Металлопроцессинг_детализированный[[#This Row],[Месяц отгрузки]],$O$1:$O118,Таблица_Металлопроцессинг_детализированный[[#This Row],[Контрагент]])>0,0,SUMIFS($AA$2:$AA$177,$O$2:$O$177,Таблица_Металлопроцессинг_детализированный[[#This Row],[Контрагент]],$A$2:$A$177,Таблица_Металлопроцессинг_детализированный[[#This Row],[Месяц отгрузки]]))","v":0},{"$f":"IF(Таблица_Металлопроцессинг_детализированный[[#This Row],[Инициатор+исполнитель]],1,IF(Таблица_Металлопроцессинг_детализированный[[#This Row],[Оборот за месяц по контрагенту]]<1000000,0.5,0.7))","v":0.5},{"$f":"IF(Таблица_Металлопроцессинг_детализированный[[#This Row],[Инициатор+исполнитель]]=TRUE,0,IF(Таблица_Металлопроцессинг_детализированный[[#This Row],[Оборот за месяц по контрагенту]]<1000000,0.5,0.3))","v":0.5},{"$f":"Таблица_Металлопроцессинг_детализированный[[#This Row],[Сумма наценки]]*Таблица_Металлопроцессинг_детализированный[[#This Row],[Распределение выручки для Куратора договора]]","v":1364.4},{"$f":"IF(Таблица_Металлопроцессинг_детализированный[[#This Row],[Распределение выручки для Менеджера договора]]=1,\"\",Таблица_Металлопроцессинг_детализированный[[#This Row],[Сумма наценки]]*Таблица_Металлопроцессинг_детализированный[[#This Row],[Распределение выручки для Менеджера договора]])","v":1364.4},"Процессинг","МОСКВА","АМИРА СК","ООО \"Амира-СтальКонструкция\"","Санкт-Петербург ","Санкт-Петербург ","Металлоконструкции","Сталь листовая Г/к., 16, 1500x6000, Ст.09Г2С (ГОСТ 19281)",null,2.274,"т",58350.84,"Порезка листового проката (ножницы)",null,2728.8,1,2.2599999999999998,null,"САНКТ-ПЕТЕРБУРГ","Центр",2.274]
[1,"САНКТ-ПЕТЕРБУРГ","Центр","Дауэнгауэр Н.Э.","Дауэнгауэр Н.Э.","Хабибуллов М.Р.",{"$f":"IF(Таблица_Металлопроцессинг_детализированный[[#This Row],[Куратор договора]]=Таблица_Металлопроцессинг_детализированный[[#This Row],[Менеджер]],TRUE,FALSE)","v":false},{"$f":"IF(COUNTIFS($A$1:$A119,Таблица_Металлопроцессинг_детализированный[[#This Row],[Месяц отгрузки]],$O$1:$O119,Таблица_Металлопроцессинг_детализированный[[#This Row],[Контрагент]])>0,0,SUMIFS($AA$2:$AA$177,$O$2:$O$177,Таблица_Металлопроцессинг_детализированный[[#This Row],[Контрагент]],$A$2:$A$177,Таблица_Металлопроцессинг_детализированный[[#This Row],[Месяц отгрузки]]))","v":0},{"$f":"IF(Таблица_Металлопроцессинг_детализированный[[#This Row],[Инициатор+исполнитель]],1,IF(Таблица_Металлопроцессинг_детализированный[[#This Row],[Оборот за месяц по контрагенту]]<1000000,0.5,0.7))","v":0.5},{"$f":"IF(Таблица_Металлопроцессинг_детализированный[[#This Row],[Инициатор+исполнитель]]=TRUE,0,IF(Таблица_Металлопроцессинг_детализированный[[#This Row],[Оборот за месяц по контрагенту]]<1000000,0.5,0.3))","v":0.5},{"$f":"Таблица_Металлопроцессинг_детализированный[[#This Row],[Сумма наценки]]*Таблица_Металлопроцессинг_детализированный[[#This Row],[Распределение выручки для Куратора договора]]","v":2856},{"$f":"IF(Таблица_Металлопроцессинг_детализированный[[#This Row],[Распределение выручки для Менеджера договора]]=1,\"\",Таблица_Металлопроцессинг_детализированный[[#This Row],[Сумма наценки]]*Таблица_Металлопроцессинг_детализированный[[#This Row],[Распределение выручки для Менеджера договора]])","v":2856},"Процессинг","МОСКВА","АМИРА СК","ООО \"Амира-СтальКонструкция\"","Санкт-Петербург ","Санкт-Петербург ","Металлоконструкции","Сталь листовая Г/к., 20, 1500x6000, Ст.09Г2С (ГОСТ 19281)",null,2.8559999999999999,"т",73284.960000000006,"Порезка листового проката (ножницы)",null,5712,1,2.8559999999999999,null,"САНКТ-ПЕТЕРБУРГ","Центр",2.8559999999999999]
[1,"САНКТ-ПЕТЕРБУРГ","Центр","Матросова Л.Ш.","Матросова Л.Ш.","Матросова Л.Ш.",{"$f":"IF(Таблица_Металлопроцессинг_детализированный[[#This Row],[Куратор договора]]=Таблица_Металлопроцессинг_детализированный[[#This Row],[Менеджер]],TRUE,FALSE)","v":true},{"$f":"IF(COUNTIFS($A$1:$A120,Таблица_Металлопроцессинг_детализированный[[#This Row],[Месяц отгрузки]],$O$1:$O120,Таблица_Металлопроцессинг_детализированный[[#This Row],[Контрагент]])>0,0,SUMIFS($AA$2:$AA$177,$O$2:$O$177,Таблица_Металлопроцессинг_детализированный[[#This Row],[Контрагент]],$A$2:$A$177,Таблица_Металлопроцессинг_детализированный[[#This Row],[Месяц отгрузки]]))","v":8530},{"$f":"IF(Таблица_Металлопроцессинг_детализированный[[#This Row],[Инициатор+исполнитель]],1,IF(Таблица_Металлопроцессинг_детализированный[[#This Row],[Оборот за месяц по контрагенту]]<1000000,0.5,0.7))","v":1},{"$f":"IF(Таблица_Металлопроцессинг_детализированный[[#This Row],[Инициатор+исполнитель]]=TRUE,0,IF(Таблица_Металлопроцессинг_детализированный[[#This Row],[Оборот за месяц по контрагенту]]<1000000,0.5,0.3))","v":0},{"$f":"Таблица_Металлопроцессинг_детализированный[[#This Row],[Сумма наценки]]*Таблица_Металлопроцессинг_детализированный[[#This Row],[Распределение выручки для Куратора договора]]","v":4020},{"$f":"IF(Таблица_Металлопроцессинг_детализированный[[#This Row],[Распределение выручки для Менеджера договора]]=1,\"\",Таблица_Металлопроцессинг_детализированный[[#This Row],[Сумма наценки]]*Таблица_Металлопроцессинг_детализированный[[#This Row],[Распределение выручки для Менеджера договора]])","v":0},"Процессинг","САНКТ-ПЕТЕРБУРГ","Металлсоюз Спб","ООО \"Металлсоюз\"",null,null,"Металлоторговля","Арматура B500C, 8, Ст.сп/пс , в бунтах(ГОСТ 52544-2006)",null,4.0199999999999996,"т",103153.2,"Размотка/резка арматурного проката","MELC 16x4",4020,1,10,1,"САНКТ-ПЕТЕРБУРГ","Центр",4.0199999999999996]
[1,"САНКТ-ПЕТЕРБУРГ","Центр","Матросова Л.Ш.","Матросова Л.Ш.","Райская Н.А.",{"$f":"IF(Таблица_Металлопроцессинг_детализированный[[#This Row],[Куратор договора]]=Таблица_Металлопроцессинг_детализированный[[#This Row],[Менеджер]],TRUE,FALSE)","v":false},{"$f":"IF(COUNTIFS($A$1:$A121,Таблица_Металлопроцессинг_детализированный[[#This Row],[Месяц отгрузки]],$O$1:$O121,Таблица_Металлопроцессинг_детализированный[[#This Row],[Контрагент]])>0,0,SUMIFS($AA$2:$AA$177,$O$2:$O$177,Таблица_Металлопроцессинг_детализированный[[#This Row],[Контрагент]],$A$2:$A$177,Таблица_Металлопроцессинг_детализированный[[#This Row],[Месяц отгрузки]]))","v":0},{"$f":"IF(Таблица_Металлопроцессинг_детализированный[[#This Row],[Инициатор+исполнитель]],1,IF(Таблица_Металлопроцессинг_детализированный[[#This Row],[Оборот за месяц по контрагенту]]<1000000,0.5,0.7))","v":0.5},{"$f":"IF(Таблица_Металлопроцессинг_детализированный[[#This Row],[Инициатор+исполнитель]]=TRUE,0,IF(Таблица_Металлопроцессинг_детализированный[[#This Row],[Оборот за месяц по контрагенту]]<1000000,0.5,0.3))","v":0.5},{"$f":"Таблица_Металлопроцессинг_детализированный[[#This Row],[Сумма наценки]]*Таблица_Металлопроцессинг_детализированный[[#This Row],[Распределение выручки для Куратора договора]]","v":2255},{"$f":"IF(Таблица_Металлопроцессинг_детализированный[[#This Row],[Распределение выручки для Менеджера договора]]=1,\"\",Таблица_Металлопроцессинг_детализированный[[#This Row],[Сумма наценки]]*Таблица_Металлопроцессинг_детализированный[[#This Row],[Распределение выручки для Менеджера договора]])","v":2255},"Процессинг","САНКТ-ПЕТЕРБУРГ","Металлсоюз Спб","ООО \"Металлсоюз\"",null,null,"Металлоторговля","Арматура B500C, 8, Ст.сп/пс , в бунтах(ГОСТ 52544-2006)",null,4.51,"т",115726.6,"Размотка/резка арматурного проката","MELC 16x4",4510,1,0,1,"САНКТ-ПЕТЕРБУРГ","Центр",4.51]
[1,"САНКТ-ПЕТЕРБУРГ","Центр","Матросова Л.Ш.","Матросова Л.Ш.","Матросова Л.Ш.",{"$f":"IF(Таблица_Металлопроцессинг_детализированный[[#This Row],[Куратор договора]]=Таблица_Металлопроцессинг_детализированный[[#This Row],[Менеджер]],TRUE,FALSE)","v":true},{"$f":"IF(COUNTIFS($A$1:$A122,Таблица_Металлопроцессинг_детализированный[[#This Row],[Месяц отгрузки]],$O$1:$O122,Таблица_Металлопроцессинг_детализированный[[#This Row],[Контрагент]])>0,0,SUMIFS($AA$2:$AA$177,$O$2:$O$177,Таблица_Металлопроцессинг_детализированный[[#This Row],[Контрагент]],$A$2:$A$177,Таблица_Металлопроцессинг_детализированный[[#This Row],[Месяц отгрузки]]))","v":540},{"$f":"IF(Таблица_Металлопроцессинг_детализированный[[#This Row],[Инициатор+исполнитель]],1,IF(Таблица_Металлопроцессинг_детализированный[[#This Row],[Оборот за месяц по контрагенту]]<1000000,0.5,0.7))","v":1},{"$f":"IF(Таблица_Металлопроцессинг_детализированный[[#This Row],[Инициатор+исполнитель]]=TRUE,0,IF(Таблица_Металлопроцессинг_детализированный[[#This Row],[Оборот за месяц по контрагенту]]<1000000,0.5,0.3))","v":0},{"$f":"Таблица_Металлопроцессинг_детализированный[[#This Row],[Сумма наценки]]*Таблица_Металлопроцессинг_детализированный[[#This Row],[Распределение выручки для Куратора договора]]","v":540},{"$f":"IF(Таблица_Металлопроцессинг_детализированный[[#This Row],[Распределение выручки для Менеджера договора]]=1,\"\",Таблица_Металлопроцессинг_детализированный[[#This Row],[Сумма наценки]]*Таблица_Металлопроцессинг_детализированный[[#This Row],[Распределение выручки для Менеджера договора]])","v":0},"Процессинг","САНКТ-ПЕТЕРБУРГ","ФЕРРОАРТ","ООО \"ФЕРРОАРТ\"",null,null,"Металлоконструкции","Швеллер стальной г/к, 27У, С255 (ГОСТ 27772-88)",null,0.66500000000000004,"т",22457.05,"Станок ленточнопильный","PEGASUS",540,2,0.67400000000000004,1,"САНКТ-ПЕТЕРБУРГ","Центр",0.66500000000000004]
[1,"САНКТ-ПЕТЕРБУРГ","Центр","Сафонеев С.А.","Сафонеев С.А.","Сафонеев С.А.",{"$f":"IF(Таблица_Металлопроцессинг_детализированный[[#This Row],[Куратор договора]]=Таблица_Металлопроцессинг_детализированный[[#This Row],[Менеджер]],TRUE,FALSE)","v":true},{"$f":"IF(COUNTIFS($A$1:$A123,Таблица_Металлопроцессинг_детализированный[[#This Row],[Месяц отгрузки]],$O$1:$O123,Таблица_Металлопроцессинг_детализированный[[#This Row],[Контрагент]])>0,0,SUMIFS($AA$2:$AA$177,$O$2:$O$177,Таблица_Металлопроцессинг_детализированный[[#This Row],[Контрагент]],$A$2:$A$177,Таблица_Металлопроцессинг_детализированный[[#This Row],[Месяц отгрузки]]))","v":0},{"$f":"IF(Таблица_Металлопроцессинг_детализированный[[#This Row],[Инициатор+исполнитель]],1,IF(Таблица_Металлопроцессинг_детализированный[[#This Row],[Оборот за месяц по контрагенту]]<1000000,0.5,0.7))","v":1},{"$f":"IF(Таблица_Металлопроцессинг_детализированный[[#This Row],[Инициатор+исполнитель]]=TRUE,0,IF(Таблица_Металлопроцессинг_детализированный[[#This Row],[Оборот за месяц по контрагенту]]<1000000,0.5,0.3))","v":0},{"$f":"Таблица_Металлопроцессинг_детализированный[[#This Row],[Сумма наценки]]*Таблица_Металлопроцессинг_детализированный[[#This Row],[Распределение выручки для Куратора договора]]","v":41866.769999999997},{"$f":"IF(Таблица_Металлопроцессинг_детализированный[[#This Row],[Распределение выручки для Менеджера договора]]=1,\"\",Таблица_Металлопроцессинг_детализированный[[#This Row],[Сумма наценки]]*Таблица_Металлопроцессинг_детализированный[[#This Row],[Распределение выручки для Менеджера договора]])","v":0},"Из давальческого сырья","САНКТ-ПЕТЕРБУРГ","НЕВА-МЕТАЛЛТРЭЙД ООО","ООО \"Нева-МеталлТрэйд\"","г. Санкт-Петербург ","г. Санкт-Петербург ","Машиностроение","Изделие","Полособульб РСД32 №16а, 6000мм",14.289,"т",0,"Очистка и покраска проката (грунт HEMPEL)","ROSLER",41866.769999999997,14.289,14.289,1,"САНКТ-ПЕТЕРБУРГ","Центр",14.289]
[1,"САНКТ-ПЕТЕРБУРГ","Центр","Сафонеев С.А.","Сафонеев С.А.","Сафонеев С.А.",{"$f":"IF(Таблица_Металлопроцессинг_детализированный[[#This Row],[Куратор договора]]=Таблица_Металлопроцессинг_детализированный[[#This Row],[Менеджер]],TRUE,FALSE)","v":true},{"$f":"IF(COUNTIFS($A$1:$A124,Таблица_Металлопроцессинг_детализированный[[#This Row],[Месяц отгрузки]],$O$1:$O124,Таблица_Металлопроцессинг_детализированный[[#This Row],[Контрагент]])>0,0,SUMIFS($AA$2:$AA$177,$O$2:$O$177,Таблица_Металлопроцессинг_детализированный[[#This Row],[Контрагент]],$A$2:$A$177,Таблица_Металлопроцессинг_детализированный[[#This Row],[Месяц отгрузки]]))","v":0},{"$f":"IF(Таблица_Металлопроцессинг_детализированный[[#This Row],[Инициатор+исполнитель]],1,IF(Таблица_Металлопроцессинг_детализированный[[#This Row],[Оборот за месяц по контрагенту]]<1000000,0.5,0.7))","v":1},{"$f":"IF(Таблица_Металлопроцессинг_детализированный[[#This Row],[Инициатор+исполнитель]]=TRUE,0,IF(Таблица_Металлопроцессинг_детализированный[[#This Row],[Оборот за месяц по контрагенту]]<1000000,0.5,0.3))","v":0},{"$f":"Таблица_Металлопроцессинг_детализированный[[#This Row],[Сумма наценки]]*Таблица_Металлопроцессинг_детализированный[[#This Row],[Распределение выручки для Куратора договора]]","v":13564.4},{"$f":"IF(Таблица_Металлопроцессинг_детализированный[[#This Row],[Распределение выручки для Менеджера договора]]=1,\"\",Таблица_Металлопроцессинг_детализированный[[#This Row],[Сумма наценки]]*Таблица_Металлопроцессинг_детализированный[[#This Row],[Распределение выручки для Менеджера договора]])","v":0},"Из давальческого сырья","САНКТ-ПЕТЕРБУРГ","НЕВА-МЕТАЛЛТРЭЙД ООО","ООО \"Нева-МеталлТрэйд\"","г. Санкт-Петербург ","г. Санкт-Петербург ","Машиностроение","Изделие","Полособульб РСД32 №20а, 6000мм",5.6660000000000004,"т",0,"Очистка и покраска проката (грунт HEMPEL)","ROSLER",13564.4,5.6660000000000004,5.6660000000000004,1,"САНКТ-ПЕТЕРБУРГ","Центр",5.6660000000000004]
[1,"САНКТ-ПЕТЕРБУРГ","Центр","Сафонеев С.А.","Сафонеев С.А.","Сафонеев С.А.",{"$f":"IF(Таблица_Металлопроцессинг_детализированный[[#This Row],[Куратор договора]]=Таблица_Металлопроцессинг_детализированный[[#This Row],[Менеджер]],TRUE,FALSE)","v":true},{"$f":"IF(COUNTIFS($A$1:$A125,Таблица_Металлопроцессинг_детализированный[[#This Row],[Месяц отгрузки]],$O$1:$O125,Таблица_Металлопроцессинг_детализированный[[#This Row],[Контрагент]])>0,0,SUMIFS($AA$2:$AA$177,$O$2:$O$177,Таблица_Металлопроцессинг_детализированный[[#This Row],[Контрагент]],$A$2:$A$177,Таблица_Металлопроцессинг_детализированный[[#This Row],[Месяц отгрузки]]))","v":0},{"$f":"IF(Таблица_Металлопроцессинг_детализированный[[#This Row],[Инициатор+исполнитель]],1,IF(Таблица_Металлопроцессинг_детализированный[[#This Row],[Оборот за месяц по контрагенту]]<1000000,0.5,0.7))","v":1},{"$f":"IF(Таблица_Металлопроцессинг_детализированный[[#This Row],[Инициатор+исполнитель]]=TRUE,0,IF(Таблица_Металлопроцессинг_детализированный[[#This Row],[Оборот за месяц по контрагенту]]<1000000,0.5,0.3))","v":0},{"$f":"Таблица_Металлопроцессинг_детализированный[[#This Row],[Сумма наценки]]*Таблица_Металлопроцессинг_детализированный[[#This Row],[Распределение выручки для Куратора договора]]","v":7333.79},{"$f":"IF(Таблица_Металлопроцессинг_детализированный[[#This Row],[Распределение выручки для Менеджера договора]]=1,\"\",Таблица_Металлопроцессинг_детализированный[[#This Row],[Сумма наценки]]*Таблица_Металлопроцессинг_детализированный[[#This Row],[Распределение выручки для Менеджера договора]])","v":0},"Из давальческого сырья","САНКТ-ПЕТЕРБУРГ","НЕВА-МЕТАЛЛТРЭЙД ООО","ООО \"Нева-МеталлТрэйд\"","г. Санкт-Петербург ","г. Санкт-Петербург ","Машиностроение","Изделие","Полособьульб РСД32 №16б, 6000мм",2.5030000000000001,"т",0,"Очистка и покраска проката (грунт HEMPEL)","ROSLER",7333.79,2.5030000000000001,2.5030000000000001,1,"САНКТ-ПЕТЕРБУРГ","Центр",2.5030000000000001]
[1,"САНКТ-ПЕТЕРБУРГ","Центр","Сафонеев С.А.","Сафонеев С.А.","Сафонеев С.А.",{"$f":"IF(Таблица_Металлопроцессинг_детализированный[[#This Row],[Куратор договора]]=Таблица_Металлопроцессинг_детализированный[[#This Row],[Менеджер]],TRUE,FALSE)","v":true},{"$f":"IF(COUNTIFS($A$1:$A126,Таблица_Металлопроцессинг_детализированный[[#This Row],[Месяц отгрузки]],$O$1:$O126,Таблица_Металлопроцессинг_детализированный[[#This Row],[Контрагент]])>0,0,SUMIFS($AA$2:$AA$177,$O$2:$O$177,Таблица_Металлопроцессинг_детализированный[[#This Row],[Контрагент]],$A$2:$A$177,Таблица_Металлопроцессинг_детализированный[[#This Row],[Месяц отгрузки]]))","v":0},{"$f":"IF(Таблица_Металлопроцессинг_детализированный[[#This Row],[Инициатор+исполнитель]],1,IF(Таблица_Металлопроцессинг_детализированный[[#This Row],[Оборот за месяц по контрагенту]]<1000000,0.5,0.7))","v":1},{"$f":"IF(Таблица_Металлопроцессинг_детализированный[[#This Row],[Инициатор+исполнитель]]=TRUE,0,IF(Таблица_Металлопроцессинг_детализированный[[#This Row],[Оборот за месяц по контрагенту]]<1000000,0.5,0.3))","v":0},{"$f":"Таблица_Металлопроцессинг_детализированный[[#This Row],[Сумма наценки]]*Таблица_Металлопроцессинг_детализированный[[#This Row],[Распределение выручки для Куратора договора]]","v":4482.8999999999996},{"$f":"IF(Таблица_Металлопроцессинг_детализированный[[#This Row],[Распределение выручки для Менеджера договора]]=1,\"\",Таблица_Металлопроцессинг_детализированный[[#This Row],[Сумма наценки]]*Таблица_Металлопроцессинг_детализированный[[#This Row],[Распределение выручки для Менеджера договора]])","v":0},"Из давальческого сырья","САНКТ-ПЕТЕРБУРГ","НЕВА-МЕТАЛЛТРЭЙД ООО","ООО \"Нева-МеталлТрэйд\"","г. Санкт-Петербург ","г. Санкт-Петербург ","Машиностроение","Изделие","Полособульб РСД32, №16а, L=6000",1.53,"т",0,"Очистка и покраска проката (грунт HEMPEL)","ROSLER",4482.8999999999996,1.53,1.53,1,"САНКТ-ПЕТЕРБУРГ","Центр",1.53]
[1,"САНКТ-ПЕТЕРБУРГ","Центр","Молчанова Е.М.","Молчанова Е.М.","Молчанова Е.М.",{"$f":"IF(Таблица_Металлопроцессинг_детализированный[[#This Row],[Куратор договора]]=Таблица_Металлопроцессинг_детализированный[[#This Row],[Менеджер]],TRUE,FALSE)","v":true},{"$f":"IF(COUNTIFS($A$1:$A127,Таблица_Металлопроцессинг_детализированный[[#This Row],[Месяц отгрузки]],$O$1:$O127,Таблица_Металлопроцессинг_детализированный[[#This Row],[Контрагент]])>0,0,SUMIFS($AA$2:$AA$177,$O$2:$O$177,Таблица_Металлопроцессинг_детализированный[[#This Row],[Контрагент]],$A$2:$A$177,Таблица_Металлопроцессинг_детализированный[[#This Row],[Месяц отгрузки]]))","v":0},{"$f":"IF(Таблица_Металлопроцессинг_детализированный[[#This Row],[Инициатор+исполнитель]],1,IF(Таблица_Металлопроцессинг_детализированный[[#This Row],[Оборот за месяц по контрагенту]]<1000000,0.5,0.7))","v":1},{"$f":"IF(Таблица_Металлопроцессинг_детализированный[[#This Row],[Инициатор+исполнитель]]=TRUE,0,IF(Таблица_Металлопроцессинг_детализированный[[#This Row],[Оборот за месяц по контрагенту]]<1000000,0.5,0.3))","v":0},{"$f":"Таблица_Металлопроцессинг_детализированный[[#This Row],[Сумма наценки]]*Таблица_Металлопроцессинг_детализированный[[#This Row],[Распределение выручки для Куратора договора]]","v":33900},{"$f":"IF(Таблица_Металлопроцессинг_детализированный[[#This Row],[Распределение выручки для Менеджера договора]]=1,\"\",Таблица_Металлопроцессинг_детализированный[[#This Row],[Сумма наценки]]*Таблица_Металлопроцессинг_детализированный[[#This Row],[Распределение выручки для Менеджера договора]])","v":0},"Процессинг","САНКТ-ПЕТЕРБУРГ","НЕВСКИЙ МЕТАЛЛ (СПб)","ООО \"НЕВСКИЙ МЕТАЛЛ\"",null,null,"Металлоторговля","Сталь рулонная Г/к., 4, 1500, Ст.сп/пс (19903)",null,2.9,"т",65047,"Порезка листового проката (ножницы)","COLGAR CI-34-TR",33900,452,2.9,1,"САНКТ-ПЕТЕРБУРГ","Центр",2.9]
[1,"САНКТ-ПЕТЕРБУРГ","Центр","Хабибуллов М.Р.","Хабибуллов М.Р.","Хабибуллов М.Р.",{"$f":"IF(Таблица_Металлопроцессинг_детализированный[[#This Row],[Куратор договора]]=Таблица_Металлопроцессинг_детализированный[[#This Row],[Менеджер]],TRUE,FALSE)","v":true},{"$f":"IF(COUNTIFS($A$1:$A128,Таблица_Металлопроцессинг_детализированный[[#This Row],[Месяц отгрузки]],$O$1:$O128,Таблица_Металлопроцессинг_детализированный[[#This Row],[Контрагент]])>0,0,SUMIFS($AA$2:$AA$177,$O$2:$O$177,Таблица_Металлопроцессинг_детализированный[[#This Row],[Контрагент]],$A$2:$A$177,Таблица_Металлопроцессинг_детализированный[[#This Row],[Месяц отгрузки]]))","v":0},{"$f":"IF(Таблица_Металлопроцессинг_детализированный[[#This Row],[Инициатор+исполнитель]],1,IF(Таблица_Металлопроцессинг_детализированный[[#This Row],[Оборот за месяц по контрагенту]]<1000000,0.5,0.7))","v":1},{"$f":"IF(Таблица_Металлопроцессинг_детализированный[[#This Row],[Инициатор+исполнитель]]=TRUE,0,IF(Таблица_Металлопроцессинг_детализированный[[#This Row],[Оборот за месяц по контрагенту]]<1000000,0.5,0.3))","v":0},{"$f":"Таблица_Металлопроцессинг_детализированный[[#This Row],[Сумма наценки]]*Таблица_Металлопроцессинг_детализированный[[#This Row],[Распределение выручки для Куратора договора]]","v":29982},{"$f":"IF(Таблица_Металлопроцессинг_детализированный[[#This Row],[Распределение выручки для Менеджера договора]]=1,\"\",Таблица_Металлопроцессинг_детализированный[[#This Row],[Сумма наценки]]*Таблица_Металлопроцессинг_детализированный[[#This Row],[Распределение выручки для Менеджера договора]])","v":0},"Процессинг","САНКТ-ПЕТЕРБУРГ","АртЛэнд","ООО \"Строительная компания \"АртЛэнд\"",null,null,"Стройиндустрия","Шпунт Ларсена Л5-УМ, С255 (ТУ 14-102-8-2003)",null,19.988,"т",789526,"Очистка и покраска проката (грунт ЭМЛАК 263)","ROSLER",29982,19.988,66.224000000000004,1,"САНКТ-ПЕТЕРБУРГ","Центр",19.988]
[1,"САНКТ-ПЕТЕРБУРГ","Центр","Молчанова Е.М.","Молчанова Е.М.","Молчанова Е.М.",{"$f":"IF(Таблица_Металлопроцессинг_детализированный[[#This Row],[Куратор договора]]=Таблица_Металлопроцессинг_детализированный[[#This Row],[Менеджер]],TRUE,FALSE)","v":true},{"$f":"IF(COUNTIFS($A$1:$A129,Таблица_Металлопроцессинг_детализированный[[#This Row],[Месяц отгрузки]],$O$1:$O129,Таблица_Металлопроцессинг_детализированный[[#This Row],[Контрагент]])>0,0,SUMIFS($AA$2:$AA$177,$O$2:$O$177,Таблица_Металлопроцессинг_детализированный[[#This Row],[Контрагент]],$A$2:$A$177,Таблица_Металлопроцессинг_детализированный[[#This Row],[Месяц отгрузки]]))","v":12124.2},{"$f":"IF(Таблица_Металлопроцессинг_детализированный[[#This Row],[Инициатор+исполнитель]],1,IF(Таблица_Металлопроцессинг_детализированный[[#This Row],[Оборот за месяц по контрагенту]]<1000000,0.5,0.7))","v":1},{"$f":"IF(Таблица_Металлопроцессинг_детализированный[[#This Row],[Инициатор+исполнитель]]=TRUE,0,IF(Таблица_Металлопроцессинг_детализированный[[#This Row],[Оборот за месяц по контрагенту]]<1000000,0.5,0.3))","v":0},{"$f":"Таблица_Металлопроцессинг_детализированный[[#This Row],[Сумма наценки]]*Таблица_Металлопроцессинг_детализированный[[#This Row],[Распределение выручки для Куратора договора]]","v":3090},{"$f":"IF(Таблица_Металлопроцессинг_детализированный[[#This Row],[Распределение выручки для Менеджера договора]]=1,\"\",Таблица_Металлопроцессинг_детализированный[[#This Row],[Сумма наценки]]*Таблица_Металлопроцессинг_детализированный[[#This Row],[Распределение выручки для Менеджера договора]])","v":0},"Процессинг","САНКТ-ПЕТЕРБУРГ","ПСМ-25","ООО \"ПромСтройМонтаж - 25\"",null,null,"Стройиндустрия","Арматура B500C, 10, Ст.сп/пс , в бунтах(ГОСТ 52544-2006)",null,2.06,"т",52859.6,"Размотка/резка арматурного проката","MELC 16x4",3090,1,2,1,"САНКТ-ПЕТЕРБУРГ","Центр",2.06]
[1,"САНКТ-ПЕТЕРБУРГ","Центр","Молчанова Е.М.","Молчанова Е.М.","Молчанова Е.М.",{"$f":"IF(Таблица_Металлопроцессинг_детализированный[[#This Row],[Куратор договора]]=Таблица_Металлопроцессинг_детализированный[[#This Row],[Менеджер]],TRUE,FALSE)","v":true},{"$f":"IF(COUNTIFS($A$1:$A130,Таблица_Металлопроцессинг_детализированный[[#This Row],[Месяц отгрузки]],$O$1:$O130,Таблица_Металлопроцессинг_детализированный[[#This Row],[Контрагент]])>0,0,SUMIFS($AA$2:$AA$177,$O$2:$O$177,Таблица_Металлопроцессинг_детализированный[[#This Row],[Контрагент]],$A$2:$A$177,Таблица_Металлопроцессинг_детализированный[[#This Row],[Месяц отгрузки]]))","v":0},{"$f":"IF(Таблица_Металлопроцессинг_детализированный[[#This Row],[Инициатор+исполнитель]],1,IF(Таблица_Металлопроцессинг_детализированный[[#This Row],[Оборот за месяц по контрагенту]]<1000000,0.5,0.7))","v":1},{"$f":"IF(Таблица_Металлопроцессинг_детализированный[[#This Row],[Инициатор+исполнитель]]=TRUE,0,IF(Таблица_Металлопроцессинг_детализированный[[#This Row],[Оборот за месяц по контрагенту]]<1000000,0.5,0.3))","v":0},{"$f":"Таблица_Металлопроцессинг_детализированный[[#This Row],[Сумма наценки]]*Таблица_Металлопроцессинг_детализированный[[#This Row],[Распределение выручки для Куратора договора]]","v":2925},{"$f":"IF(Таблица_Металлопроцессинг_детализированный[[#This Row],[Распределение выручки для Менеджера договора]]=1,\"\",Таблица_Металлопроцессинг_детализированный[[#This Row],[Сумма наценки]]*Таблица_Металлопроцессинг_детализированный[[#This Row],[Распределение выручки для Менеджера договора]])","v":0},"Процессинг","САНКТ-ПЕТЕРБУРГ","ПСМ-25","ООО \"ПромСтройМонтаж - 25\"",null,null,"Стройиндустрия","Арматура класс АI, 8, Ст.сп/пс, в бунтах (ГОСТ5781-82)",null,1.95,"т",50037,"Размотка/резка арматурного проката","MELC 16x4",2925,1,2,1,"САНКТ-ПЕТЕРБУРГ","Центр",1.95]
[1,"САНКТ-ПЕТЕРБУРГ","Центр","Молчанова Е.М.","Молчанова Е.М.","Райская Н.А.",{"$f":"IF(Таблица_Металлопроцессинг_детализированный[[#This Row],[Куратор договора]]=Таблица_Металлопроцессинг_детализированный[[#This Row],[Менеджер]],TRUE,FALSE)","v":false},{"$f":"IF(COUNTIFS($A$1:$A131,Таблица_Металлопроцессинг_детализированный[[#This Row],[Месяц отгрузки]],$O$1:$O131,Таблица_Металлопроцессинг_детализированный[[#This Row],[Контрагент]])>0,0,SUMIFS($AA$2:$AA$177,$O$2:$O$177,Таблица_Металлопроцессинг_детализированный[[#This Row],[Контрагент]],$A$2:$A$177,Таблица_Металлопроцессинг_детализированный[[#This Row],[Месяц отгрузки]]))","v":0},{"$f":"IF(Таблица_Металлопроцессинг_детализированный[[#This Row],[Инициатор+исполнитель]],1,IF(Таблица_Металлопроцессинг_детализированный[[#This Row],[Оборот за месяц по контрагенту]]<1000000,0.5,0.7))","v":0.5},{"$f":"IF(Таблица_Металлопроцессинг_детализированный[[#This Row],[Инициатор+исполнитель]]=TRUE,0,IF(Таблица_Металлопроцессинг_детализированный[[#This Row],[Оборот за месяц по контрагенту]]<1000000,0.5,0.3))","v":0.5},{"$f":"Таблица_Металлопроцессинг_детализированный[[#This Row],[Сумма наценки]]*Таблица_Металлопроцессинг_детализированный[[#This Row],[Распределение выручки для Куратора договора]]","v":2385},{"$f":"IF(Таблица_Металлопроцессинг_детализированный[[#This Row],[Распределение выручки для Менеджера договора]]=1,\"\",Таблица_Металлопроцессинг_детализированный[[#This Row],[Сумма наценки]]*Таблица_Металлопроцессинг_детализированный[[#This Row],[Распределение выручки для Менеджера договора]])","v":2385},"Процессинг","САНКТ-ПЕТЕРБУРГ","ПСМ-25","ООО \"ПромСтройМонтаж - 25\"",null,null,"Стройиндустрия","Арматура класс АIII (А400), 8, Ст.35ГС, в бунтах (ГОСТ5781-82)",null,3.18,"т",83347.8,"Размотка/резка арматурного проката","MELC 16x4",4770,1,3,1,"САНКТ-ПЕТЕРБУРГ","Центр",3.18]
[1,"САНКТ-ПЕТЕРБУРГ","Центр","Молчанова Е.М.","Молчанова Е.М.","Хабибуллов М.Р.",{"$f":"IF(Таблица_Металлопроцессинг_детализированный[[#This Row],[Куратор договора]]=Таблица_Металлопроцессинг_детализированный[[#This Row],[Менеджер]],TRUE,FALSE)","v":false},{"$f":"IF(COUNTIFS($A$1:$A132,Таблица_Металлопроцессинг_детализированный[[#This Row],[Месяц отгрузки]],$O$1:$O132,Таблица_Металлопроцессинг_детализированный[[#This Row],[Контрагент]])>0,0,SUMIFS($AA$2:$AA$177,$O$2:$O$177,Таблица_Металлопроцессинг_детализированный[[#This Row],[Контрагент]],$A$2:$A$177,Таблица_Металлопроцессинг_детализированный[[#This Row],[Месяц отгрузки]]))","v":0},{"$f":"IF(Таблица_Металлопроцессинг_детализированный[[#This Row],[Инициатор+исполнитель]],1,IF(Таблица_Металлопроцессинг_детализированный[[#This Row],[Оборот за месяц по контрагенту]]<1000000,0.5,0.7))","v":0.5},{"$f":"IF(Таблица_Металлопроцессинг_детализированный[[#This Row],[Инициатор+исполнитель]]=TRUE,0,IF(Таблица_Металлопроцессинг_детализированный[[#This Row],[Оборот за месяц по контрагенту]]<1000000,0.5,0.3))","v":0.5},{"$f":"Таблица_Металлопроцессинг_детализированный[[#This Row],[Сумма наценки]]*Таблица_Металлопроцессинг_детализированный[[#This Row],[Распределение выручки для Куратора договора]]","v":669.6},{"$f":"IF(Таблица_Металлопроцессинг_детализированный[[#This Row],[Распределение выручки для Менеджера договора]]=1,\"\",Таблица_Металлопроцессинг_детализированный[[#This Row],[Сумма наценки]]*Таблица_Металлопроцессинг_детализированный[[#This Row],[Распределение выручки для Менеджера договора]])","v":669.6},"Процессинг","САНКТ-ПЕТЕРБУРГ","ПСМ-25","ООО \"ПромСтройМонтаж - 25\"",null,null,"Стройиндустрия","Катанка, 6.5, Ст.08Г2С (ТУ 14-1-4782-90)",null,0.48,"т",12796.8,"Размотка/резка арматурного проката","MELC 16x4",1339.2,1,0.55000000000000004,1,"САНКТ-ПЕТЕРБУРГ","Центр",0.48]
[1,"САНКТ-ПЕТЕРБУРГ","Центр","Хабибуллов М.Р.","Хабибуллов М.Р.","Дауэнгауэр Н.Э.",{"$f":"IF(Таблица_Металлопроцессинг_детализированный[[#This Row],[Куратор договора]]=Таблица_Металлопроцессинг_детализированный[[#This Row],[Менеджер]],TRUE,FALSE)","v":false},{"$f":"IF(COUNTIFS($A$1:$A133,Таблица_Металлопроцессинг_детализированный[[#This Row],[Месяц отгрузки]],$O$1:$O133,Таблица_Металлопроцессинг_детализированный[[#This Row],[Контрагент]])>0,0,SUMIFS($AA$2:$AA$177,$O$2:$O$177,Таблица_Металлопроцессинг_детализированный[[#This Row],[Контрагент]],$A$2:$A$177,Таблица_Металлопроцессинг_детализированный[[#This Row],[Месяц отгрузки]]))","v":124850},{"$f":"IF(Таблица_Металлопроцессинг_детализированный[[#This Row],[Инициатор+исполнитель]],1,IF(Таблица_Металлопроцессинг_детализированный[[#This Row],[Оборот за месяц по контрагенту]]<1000000,0.5,0.7))","v":0.5},{"$f":"IF(Таблица_Металлопроцессинг_детализированный[[#This Row],[Инициатор+исполнитель]]=TRUE,0,IF(Таблица_Металлопроцессинг_детализированный[[#This Row],[Оборот за месяц по контрагенту]]<1000000,0.5,0.3))","v":0.5},{"$f":"Таблица_Металлопроцессинг_детализированный[[#This Row],[Сумма наценки]]*Таблица_Металлопроцессинг_детализированный[[#This Row],[Распределение выручки для Куратора договора]]","v":21105},{"$f":"IF(Таблица_Металлопроцессинг_детализированный[[#This Row],[Распределение выручки для Менеджера договора]]=1,\"\",Таблица_Металлопроцессинг_детализированный[[#This Row],[Сумма наценки]]*Таблица_Металлопроцессинг_детализированный[[#This Row],[Распределение выручки для Менеджера договора]])","v":21105},"Процессинг","САНКТ-ПЕТЕРБУРГ","РОССИНКОМ","ООО \"Строительная инновационная компания \"РОССИНКОМ\"",null,null,"Стройиндустрия","Шпунт Ларсена Л5-УМ, С255 (ТУ 0925-008-00186269-2012)",null,21.105,"т",833436.45,"Очистка и покраска проката (грунт HEMPEL)","ROSLER",42210,21.105,60.28,1,"САНКТ-ПЕТЕРБУРГ","Центр",21.105]
[1,"САНКТ-ПЕТЕРБУРГ","Центр","Молчанова Е.М.","Молчанова Е.М.","Дауэнгауэр Н.Э.",{"$f":"IF(Таблица_Металлопроцессинг_детализированный[[#This Row],[Куратор договора]]=Таблица_Металлопроцессинг_детализированный[[#This Row],[Менеджер]],TRUE,FALSE)","v":false},{"$f":"IF(COUNTIFS($A$1:$A134,Таблица_Металлопроцессинг_детализированный[[#This Row],[Месяц отгрузки]],$O$1:$O134,Таблица_Металлопроцессинг_детализированный[[#This Row],[Контрагент]])>0,0,SUMIFS($AA$2:$AA$177,$O$2:$O$177,Таблица_Металлопроцессинг_детализированный[[#This Row],[Контрагент]],$A$2:$A$177,Таблица_Металлопроцессинг_детализированный[[#This Row],[Месяц отгрузки]]))","v":11700},{"$f":"IF(Таблица_Металлопроцессинг_детализированный[[#This Row],[Инициатор+исполнитель]],1,IF(Таблица_Металлопроцессинг_детализированный[[#This Row],[Оборот за месяц по контрагенту]]<1000000,0.5,0.7))","v":0.5},{"$f":"IF(Таблица_Металлопроцессинг_детализированный[[#This Row],[Инициатор+исполнитель]]=TRUE,0,IF(Таблица_Металлопроцессинг_детализированный[[#This Row],[Оборот за месяц по контрагенту]]<1000000,0.5,0.3))","v":0.5},{"$f":"Таблица_Металлопроцессинг_детализированный[[#This Row],[Сумма наценки]]*Таблица_Металлопроцессинг_детализированный[[#This Row],[Распределение выручки для Куратора договора]]","v":5850},{"$f":"IF(Таблица_Металлопроцессинг_детализированный[[#This Row],[Распределение выручки для Менеджера договора]]=1,\"\",Таблица_Металлопроцессинг_детализированный[[#This Row],[Сумма наценки]]*Таблица_Металлопроцессинг_детализированный[[#This Row],[Распределение выручки для Менеджера договора]])","v":5850},"Процессинг","САНКТ-ПЕТЕРБУРГ","Трест 68 ЗАО","ЗАО \"Трест 68\"","г. Санкт-Петербург ","г. Санкт-Петербург ","Стройиндустрия","Сталь листовая Г/к. рифленая, 4, 1500x6000, Ст.сп/пс (ГОСТ 8568-77)",null,1.54,"т",40871.599999999999,"Порезка листового проката (ножницы)","COLGAR CI-34-TR",11700,78,1.5,1,"САНКТ-ПЕТЕРБУРГ","Центр",1.54]
[1,"САНКТ-ПЕТЕРБУРГ","Центр","Хабибуллов М.Р.","Хабибуллов М.Р.","Хабибуллов М.Р.",{"$f":"IF(Таблица_Металлопроцессинг_детализированный[[#This Row],[Куратор договора]]=Таблица_Металлопроцессинг_детализированный[[#This Row],[Менеджер]],TRUE,FALSE)","v":true},{"$f":"IF(COUNTIFS($A$1:$A135,Таблица_Металлопроцессинг_детализированный[[#This Row],[Месяц отгрузки]],$O$1:$O135,Таблица_Металлопроцессинг_детализированный[[#This Row],[Контрагент]])>0,0,SUMIFS($AA$2:$AA$177,$O$2:$O$177,Таблица_Металлопроцессинг_детализированный[[#This Row],[Контрагент]],$A$2:$A$177,Таблица_Металлопроцессинг_детализированный[[#This Row],[Месяц отгрузки]]))","v":0},{"$f":"IF(Таблица_Металлопроцессинг_детализированный[[#This Row],[Инициатор+исполнитель]],1,IF(Таблица_Металлопроцессинг_детализированный[[#This Row],[Оборот за месяц по контрагенту]]<1000000,0.5,0.7))","v":1},{"$f":"IF(Таблица_Металлопроцессинг_детализированный[[#This Row],[Инициатор+исполнитель]]=TRUE,0,IF(Таблица_Металлопроцессинг_детализированный[[#This Row],[Оборот за месяц по контрагенту]]<1000000,0.5,0.3))","v":0},{"$f":"Таблица_Металлопроцессинг_детализированный[[#This Row],[Сумма наценки]]*Таблица_Металлопроцессинг_детализированный[[#This Row],[Распределение выручки для Куратора договора]]","v":29997},{"$f":"IF(Таблица_Металлопроцессинг_детализированный[[#This Row],[Распределение выручки для Менеджера договора]]=1,\"\",Таблица_Металлопроцессинг_детализированный[[#This Row],[Сумма наценки]]*Таблица_Металлопроцессинг_детализированный[[#This Row],[Распределение выручки для Менеджера договора]])","v":0},"Процессинг","САНКТ-ПЕТЕРБУРГ","АртЛэнд","ООО \"Строительная компания \"АртЛэнд\"",null,null,"Стройиндустрия","Шпунт Ларсена Л5-УМ, С255 (ТУ 14-102-8-2003)",null,19.998000000000001,"т",789921,"Очистка и покраска проката (грунт ЭМЛАК 263)","ROSLER",29997,19.998000000000001,19.998000000000001,2,"САНКТ-ПЕТЕРБУРГ","Центр",19.998000000000001]
[1,"САНКТ-ПЕТЕРБУРГ","Центр","Степура С.Н.","Степура С.Н.","Степура С.Н.",{"$f":"IF(Таблица_Металлопроцессинг_детализированный[[#This Row],[Куратор договора]]=Таблица_Металлопроцессинг_детализированный[[#This Row],[Менеджер]],TRUE,FALSE)","v":true},{"$f":"IF(COUNTIFS($A$1:$A136,Таблица_Металлопроцессинг_детализированный[[#This Row],[Месяц отгрузки]],$O$1:$O136,Таблица_Металлопроцессинг_детализированный[[#This Row],[Контрагент]])>0,0,SUMIFS($AA$2:$AA$177,$O$2:$O$177,Таблица_Металлопроцессинг_детализированный[[#This Row],[Контрагент]],$A$2:$A$177,Таблица_Металлопроцессинг_детализированный[[#This Row],[Месяц отгрузки]]))","v":17950},{"$f":"IF(Таблица_Металлопроцессинг_детализированный[[#This Row],[Инициатор+исполнитель]],1,IF(Таблица_Металлопроцессинг_детализированный[[#This Row],[Оборот за месяц по контрагенту]]<1000000,0.5,0.7))","v":1},{"$f":"IF(Таблица_Металлопроцессинг_детализированный[[#This Row],[Инициатор+исполнитель]]=TRUE,0,IF(Таблица_Металлопроцессинг_детализированный[[#This Row],[Оборот за месяц по контрагенту]]<1000000,0.5,0.3))","v":0},{"$f":"Таблица_Металлопроцессинг_детализированный[[#This Row],[Сумма наценки]]*Таблица_Металлопроцессинг_детализированный[[#This Row],[Распределение выручки для Куратора договора]]","v":12480},{"$f":"IF(Таблица_Металлопроцессинг_детализированный[[#This Row],[Распределение выручки для Менеджера договора]]=1,\"\",Таблица_Металлопроцессинг_детализированный[[#This Row],[Сумма наценки]]*Таблица_Металлопроцессинг_детализированный[[#This Row],[Распределение выручки для Менеджера договора]])","v":0},"Процессинг","САНКТ-ПЕТЕРБУРГ","СФИНКС","ООО \"Сфинкс\"","Ленинградская обл.","Ленинградская обл.","Стройиндустрия","Сталь листовая Г/к., 16, 1500x6000, Ст.сп/пс (ГОСТ 14637)",null,1.1299999999999999,"т",26227.3,"Порезка листового проката (ножницы)","COLGAR CI-34-TR",12480,78,1.1299999999999999,1,"САНКТ-ПЕТЕРБУРГ","Центр",1.1299999999999999]
[1,"САНКТ-ПЕТЕРБУРГ","Центр","Степура С.Н.","Степура С.Н.","Степура С.Н.",{"$f":"IF(Таблица_Металлопроцессинг_детализированный[[#This Row],[Куратор договора]]=Таблица_Металлопроцессинг_детализированный[[#This Row],[Менеджер]],TRUE,FALSE)","v":true},{"$f":"IF(COUNTIFS($A$1:$A137,Таблица_Металлопроцессинг_детализированный[[#This Row],[Месяц отгрузки]],$O$1:$O137,Таблица_Металлопроцессинг_детализированный[[#This Row],[Контрагент]])>0,0,SUMIFS($AA$2:$AA$177,$O$2:$O$177,Таблица_Металлопроцессинг_детализированный[[#This Row],[Контрагент]],$A$2:$A$177,Таблица_Металлопроцессинг_детализированный[[#This Row],[Месяц отгрузки]]))","v":0},{"$f":"IF(Таблица_Металлопроцессинг_детализированный[[#This Row],[Инициатор+исполнитель]],1,IF(Таблица_Металлопроцессинг_детализированный[[#This Row],[Оборот за месяц по контрагенту]]<1000000,0.5,0.7))","v":1},{"$f":"IF(Таблица_Металлопроцессинг_детализированный[[#This Row],[Инициатор+исполнитель]]=TRUE,0,IF(Таблица_Металлопроцессинг_детализированный[[#This Row],[Оборот за месяц по контрагенту]]<1000000,0.5,0.3))","v":0},{"$f":"Таблица_Металлопроцессинг_детализированный[[#This Row],[Сумма наценки]]*Таблица_Металлопроцессинг_детализированный[[#This Row],[Распределение выручки для Куратора договора]]","v":3500},{"$f":"IF(Таблица_Металлопроцессинг_детализированный[[#This Row],[Распределение выручки для Менеджера договора]]=1,\"\",Таблица_Металлопроцессинг_детализированный[[#This Row],[Сумма наценки]]*Таблица_Металлопроцессинг_детализированный[[#This Row],[Распределение выручки для Менеджера договора]])","v":0},"Процессинг","САНКТ-ПЕТЕРБУРГ","СФИНКС","ООО \"Сфинкс\"","Ленинградская обл.","Ленинградская обл.","Стройиндустрия","Уголок стальной г/к равнополочный, 160x10, С255 (ГОСТ 8509-93 / ГОСТ 27772-88)",null,0.22500000000000001,"т",7546.5,"Станок ленточнопильный","PEGASUS",3500,50,0.22,1,"САНКТ-ПЕТЕРБУРГ","Центр",0.22500000000000001]
[1,"САНКТ-ПЕТЕРБУРГ","Центр","Степура С.Н.","Степура С.Н.","Степура С.Н.",{"$f":"IF(Таблица_Металлопроцессинг_детализированный[[#This Row],[Куратор договора]]=Таблица_Металлопроцессинг_детализированный[[#This Row],[Менеджер]],TRUE,FALSE)","v":true},{"$f":"IF(COUNTIFS($A$1:$A138,Таблица_Металлопроцессинг_детализированный[[#This Row],[Месяц отгрузки]],$O$1:$O138,Таблица_Металлопроцессинг_детализированный[[#This Row],[Контрагент]])>0,0,SUMIFS($AA$2:$AA$177,$O$2:$O$177,Таблица_Металлопроцессинг_детализированный[[#This Row],[Контрагент]],$A$2:$A$177,Таблица_Металлопроцессинг_детализированный[[#This Row],[Месяц отгрузки]]))","v":0},{"$f":"IF(Таблица_Металлопроцессинг_детализированный[[#This Row],[Инициатор+исполнитель]],1,IF(Таблица_Металлопроцессинг_детализированный[[#This Row],[Оборот за месяц по контрагенту]]<1000000,0.5,0.7))","v":1},{"$f":"IF(Таблица_Металлопроцессинг_детализированный[[#This Row],[Инициатор+исполнитель]]=TRUE,0,IF(Таблица_Металлопроцессинг_детализированный[[#This Row],[Оборот за месяц по контрагенту]]<1000000,0.5,0.3))","v":0},{"$f":"Таблица_Металлопроцессинг_детализированный[[#This Row],[Сумма наценки]]*Таблица_Металлопроцессинг_детализированный[[#This Row],[Распределение выручки для Куратора договора]]","v":1650},{"$f":"IF(Таблица_Металлопроцессинг_детализированный[[#This Row],[Распределение выручки для Менеджера договора]]=1,\"\",Таблица_Металлопроцессинг_детализированный[[#This Row],[Сумма наценки]]*Таблица_Металлопроцессинг_детализированный[[#This Row],[Распределение выручки для Менеджера договора]])","v":0},"Процессинг","САНКТ-ПЕТЕРБУРГ","СФИНКС","ООО \"Сфинкс\"","Ленинградская обл.","Ленинградская обл.","Стройиндустрия","Уголок стальной г/к равнополочный, 50x5, Ст.сп/пс (ГОСТ 8509-93)",null,0.49,"т",13279,"Станок ленточнопильный","PEGASUS",1650,11,0.5,1,"САНКТ-ПЕТЕРБУРГ","Центр",0.49]
[1,"САНКТ-ПЕТЕРБУРГ","Центр","Степура С.Н.","Степура С.Н.","Райская Н.А.",{"$f":"IF(Таблица_Металлопроцессинг_детализированный[[#This Row],[Куратор договора]]=Таблица_Металлопроцессинг_детализированный[[#This Row],[Менеджер]],TRUE,FALSE)","v":false},{"$f":"IF(COUNTIFS($A$1:$A139,Таблица_Металлопроцессинг_детализированный[[#This Row],[Месяц отгрузки]],$O$1:$O139,Таблица_Металлопроцессинг_детализированный[[#This Row],[Контрагент]])>0,0,SUMIFS($AA$2:$AA$177,$O$2:$O$177,Таблица_Металлопроцессинг_детализированный[[#This Row],[Контрагент]],$A$2:$A$177,Таблица_Металлопроцессинг_детализированный[[#This Row],[Месяц отгрузки]]))","v":0},{"$f":"IF(Таблица_Металлопроцессинг_детализированный[[#This Row],[Инициатор+исполнитель]],1,IF(Таблица_Металлопроцессинг_детализированный[[#This Row],[Оборот за месяц по контрагенту]]<1000000,0.5,0.7))","v":0.5},{"$f":"IF(Таблица_Металлопроцессинг_детализированный[[#This Row],[Инициатор+исполнитель]]=TRUE,0,IF(Таблица_Металлопроцессинг_детализированный[[#This Row],[Оборот за месяц по контрагенту]]<1000000,0.5,0.3))","v":0.5},{"$f":"Таблица_Металлопроцессинг_детализированный[[#This Row],[Сумма наценки]]*Таблица_Металлопроцессинг_детализированный[[#This Row],[Распределение выручки для Куратора договора]]","v":160},{"$f":"IF(Таблица_Металлопроцессинг_детализированный[[#This Row],[Распределение выручки для Менеджера договора]]=1,\"\",Таблица_Металлопроцессинг_детализированный[[#This Row],[Сумма наценки]]*Таблица_Металлопроцессинг_детализированный[[#This Row],[Распределение выручки для Менеджера договора]])","v":160},"Процессинг","САНКТ-ПЕТЕРБУРГ","СФИНКС","ООО \"Сфинкс\"","Ленинградская обл.","Ленинградская обл.","Стройиндустрия","Уголок стальной г/к равнополочный, 75x6, Ст.сп/пс (ГОСТ 8509-93)",null,0.16,"т",4406.3999999999996,"Станок ленточнопильный","PEGASUS",320,2,0.16,1,"САНКТ-ПЕТЕРБУРГ","Центр",0.16]
[1,"САНКТ-ПЕТЕРБУРГ","Центр","Хабибуллов М.Р.","Хабибуллов М.Р.","Дауэнгауэр Н.Э.",{"$f":"IF(Таблица_Металлопроцессинг_детализированный[[#This Row],[Куратор договора]]=Таблица_Металлопроцессинг_детализированный[[#This Row],[Менеджер]],TRUE,FALSE)","v":false},{"$f":"IF(COUNTIFS($A$1:$A140,Таблица_Металлопроцессинг_детализированный[[#This Row],[Месяц отгрузки]],$O$1:$O140,Таблица_Металлопроцессинг_детализированный[[#This Row],[Контрагент]])>0,0,SUMIFS($AA$2:$AA$177,$O$2:$O$177,Таблица_Металлопроцессинг_детализированный[[#This Row],[Контрагент]],$A$2:$A$177,Таблица_Металлопроцессинг_детализированный[[#This Row],[Месяц отгрузки]]))","v":0},{"$f":"IF(Таблица_Металлопроцессинг_детализированный[[#This Row],[Инициатор+исполнитель]],1,IF(Таблица_Металлопроцессинг_детализированный[[#This Row],[Оборот за месяц по контрагенту]]<1000000,0.5,0.7))","v":0.5},{"$f":"IF(Таблица_Металлопроцессинг_детализированный[[#This Row],[Инициатор+исполнитель]]=TRUE,0,IF(Таблица_Металлопроцессинг_детализированный[[#This Row],[Оборот за месяц по контрагенту]]<1000000,0.5,0.3))","v":0.5},{"$f":"Таблица_Металлопроцессинг_детализированный[[#This Row],[Сумма наценки]]*Таблица_Металлопроцессинг_детализированный[[#This Row],[Распределение выручки для Куратора договора]]","v":14997.75},{"$f":"IF(Таблица_Металлопроцессинг_детализированный[[#This Row],[Распределение выручки для Менеджера договора]]=1,\"\",Таблица_Металлопроцессинг_детализированный[[#This Row],[Сумма наценки]]*Таблица_Металлопроцессинг_детализированный[[#This Row],[Распределение выручки для Менеджера договора]])","v":14997.75},"Процессинг","САНКТ-ПЕТЕРБУРГ","АртЛэнд","ООО \"Строительная компания \"АртЛэнд\"",null,null,"Стройиндустрия","Шпунт Ларсена Л5-УМ, С255 (ТУ 14-102-8-2003)",null,19.997,"т",789881.5,"Очистка и покраска проката (грунт ЭМЛАК 263)","ROSLER",29995.5,19.997,19.997,1,"САНКТ-ПЕТЕРБУРГ","Центр",19.997]
[1,"САНКТ-ПЕТЕРБУРГ","Центр","Зиновьев С.Ю.","Зиновьев С.Ю.","Райская Н.А.",{"$f":"IF(Таблица_Металлопроцессинг_детализированный[[#This Row],[Куратор договора]]=Таблица_Металлопроцессинг_детализированный[[#This Row],[Менеджер]],TRUE,FALSE)","v":false},{"$f":"IF(COUNTIFS($A$1:$A141,Таблица_Металлопроцессинг_детализированный[[#This Row],[Месяц отгрузки]],$O$1:$O141,Таблица_Металлопроцессинг_детализированный[[#This Row],[Контрагент]])>0,0,SUMIFS($AA$2:$AA$177,$O$2:$O$177,Таблица_Металлопроцессинг_детализированный[[#This Row],[Контрагент]],$A$2:$A$177,Таблица_Металлопроцессинг_детализированный[[#This Row],[Месяц отгрузки]]))","v":9300},{"$f":"IF(Таблица_Металлопроцессинг_детализированный[[#This Row],[Инициатор+исполнитель]],1,IF(Таблица_Металлопроцессинг_детализированный[[#This Row],[Оборот за месяц по контрагенту]]<1000000,0.5,0.7))","v":0.5},{"$f":"IF(Таблица_Металлопроцессинг_детализированный[[#This Row],[Инициатор+исполнитель]]=TRUE,0,IF(Таблица_Металлопроцессинг_детализированный[[#This Row],[Оборот за месяц по контрагенту]]<1000000,0.5,0.3))","v":0.5},{"$f":"Таблица_Металлопроцессинг_детализированный[[#This Row],[Сумма наценки]]*Таблица_Металлопроцессинг_детализированный[[#This Row],[Распределение выручки для Куратора договора]]","v":3150},{"$f":"IF(Таблица_Металлопроцессинг_детализированный[[#This Row],[Распределение выручки для Менеджера договора]]=1,\"\",Таблица_Металлопроцессинг_детализированный[[#This Row],[Сумма наценки]]*Таблица_Металлопроцессинг_детализированный[[#This Row],[Распределение выручки для Менеджера договора]])","v":3150},"Процессинг","САНКТ-ПЕТЕРБУРГ","Аспект Плюс СПб","ООО \"АСПЕКТ-ПЛЮС\"","г. Санкт-Петербург ","г. Санкт-Петербург ","Металлоторговля","Арматура класс АIII (А400), 8, Ст.35ГС, в бунтах (ГОСТ5781-82)",null,4.2,"т",107268,"Размотка/резка в типовой  размер арматурного проката","FORMAT-S",6300,1,4.5,1,"САНКТ-ПЕТЕРБУРГ","Центр",4.2]
[1,"САНКТ-ПЕТЕРБУРГ","Центр","Зиновьев С.Ю.","Зиновьев С.Ю.","Сафонеев С.А.",{"$f":"IF(Таблица_Металлопроцессинг_детализированный[[#This Row],[Куратор договора]]=Таблица_Металлопроцессинг_детализированный[[#This Row],[Менеджер]],TRUE,FALSE)","v":false},{"$f":"IF(COUNTIFS($A$1:$A142,Таблица_Металлопроцессинг_детализированный[[#This Row],[Месяц отгрузки]],$O$1:$O142,Таблица_Металлопроцессинг_детализированный[[#This Row],[Контрагент]])>0,0,SUMIFS($AA$2:$AA$177,$O$2:$O$177,Таблица_Металлопроцессинг_детализированный[[#This Row],[Контрагент]],$A$2:$A$177,Таблица_Металлопроцессинг_детализированный[[#This Row],[Месяц отгрузки]]))","v":0},{"$f":"IF(Таблица_Металлопроцессинг_детализированный[[#This Row],[Инициатор+исполнитель]],1,IF(Таблица_Металлопроцессинг_детализированный[[#This Row],[Оборот за месяц по контрагенту]]<1000000,0.5,0.7))","v":0.5},{"$f":"IF(Таблица_Металлопроцессинг_детализированный[[#This Row],[Инициатор+исполнитель]]=TRUE,0,IF(Таблица_Металлопроцессинг_детализированный[[#This Row],[Оборот за месяц по контрагенту]]<1000000,0.5,0.3))","v":0.5},{"$f":"Таблица_Металлопроцессинг_детализированный[[#This Row],[Сумма наценки]]*Таблица_Металлопроцессинг_детализированный[[#This Row],[Распределение выручки для Куратора договора]]","v":375},{"$f":"IF(Таблица_Металлопроцессинг_детализированный[[#This Row],[Распределение выручки для Менеджера договора]]=1,\"\",Таблица_Металлопроцессинг_детализированный[[#This Row],[Сумма наценки]]*Таблица_Металлопроцессинг_детализированный[[#This Row],[Распределение выручки для Менеджера договора]])","v":375},"Процессинг","САНКТ-ПЕТЕРБУРГ","Аспект Плюс СПб","ООО \"АСПЕКТ-ПЛЮС\"","г. Санкт-Петербург ","г. Санкт-Петербург ","Металлоторговля","Арматура класс АIII (А400), 8, Ст.35ГС, в бунтах (ГОСТ5781-82)",null,0.5,"т",12770,"Размотка/резка в типовой  размер арматурного проката","FORMAT-S",750,1,4.5,1,"САНКТ-ПЕТЕРБУРГ","Центр",0.5]
[1,"САНКТ-ПЕТЕРБУРГ","Центр","Молчанова Е.М.","Молчанова Е.М.","Молчанова Е.М.",{"$f":"IF(Таблица_Металлопроцессинг_детализированный[[#This Row],[Куратор договора]]=Таблица_Металлопроцессинг_детализированный[[#This Row],[Менеджер]],TRUE,FALSE)","v":true},{"$f":"IF(COUNTIFS($A$1:$A143,Таблица_Металлопроцессинг_детализированный[[#This Row],[Месяц отгрузки]],$O$1:$O143,Таблица_Металлопроцессинг_детализированный[[#This Row],[Контрагент]])>0,0,SUMIFS($AA$2:$AA$177,$O$2:$O$177,Таблица_Металлопроцессинг_детализированный[[#This Row],[Контрагент]],$A$2:$A$177,Таблица_Металлопроцессинг_детализированный[[#This Row],[Месяц отгрузки]]))","v":5460},{"$f":"IF(Таблица_Металлопроцессинг_детализированный[[#This Row],[Инициатор+исполнитель]],1,IF(Таблица_Металлопроцессинг_детализированный[[#This Row],[Оборот за месяц по контрагенту]]<1000000,0.5,0.7))","v":1},{"$f":"IF(Таблица_Металлопроцессинг_детализированный[[#This Row],[Инициатор+исполнитель]]=TRUE,0,IF(Таблица_Металлопроцессинг_детализированный[[#This Row],[Оборот за месяц по контрагенту]]<1000000,0.5,0.3))","v":0},{"$f":"Таблица_Металлопроцессинг_детализированный[[#This Row],[Сумма наценки]]*Таблица_Металлопроцессинг_детализированный[[#This Row],[Распределение выручки для Куратора договора]]","v":5460},{"$f":"IF(Таблица_Металлопроцессинг_детализированный[[#This Row],[Распределение выручки для Менеджера договора]]=1,\"\",Таблица_Металлопроцессинг_детализированный[[#This Row],[Сумма наценки]]*Таблица_Металлопроцессинг_детализированный[[#This Row],[Распределение выручки для Менеджера договора]])","v":0},"Процессинг","САНКТ-ПЕТЕРБУРГ","МГСЗ","ООО \"МеталлГрупп Северо-Запад\"",null,null,"Металлоторговля","Сталь рулонная Г/к., 2, 1250, Ст.сп/пс (19903)",null,0.35,"т",8589,"Порезка листового проката (ножницы)","COLGAR CI-34-TR",5460,42,0.35,1,"САНКТ-ПЕТЕРБУРГ","Центр",0.35]
[1,"САНКТ-ПЕТЕРБУРГ","Центр","Молчанова Е.М.","Молчанова Е.М.","Молчанова Е.М.",{"$f":"IF(Таблица_Металлопроцессинг_детализированный[[#This Row],[Куратор договора]]=Таблица_Металлопроцессинг_детализированный[[#This Row],[Менеджер]],TRUE,FALSE)","v":true},{"$f":"IF(COUNTIFS($A$1:$A144,Таблица_Металлопроцессинг_детализированный[[#This Row],[Месяц отгрузки]],$O$1:$O144,Таблица_Металлопроцессинг_детализированный[[#This Row],[Контрагент]])>0,0,SUMIFS($AA$2:$AA$177,$O$2:$O$177,Таблица_Металлопроцессинг_детализированный[[#This Row],[Контрагент]],$A$2:$A$177,Таблица_Металлопроцессинг_детализированный[[#This Row],[Месяц отгрузки]]))","v":0},{"$f":"IF(Таблица_Металлопроцессинг_детализированный[[#This Row],[Инициатор+исполнитель]],1,IF(Таблица_Металлопроцессинг_детализированный[[#This Row],[Оборот за месяц по контрагенту]]<1000000,0.5,0.7))","v":1},{"$f":"IF(Таблица_Металлопроцессинг_детализированный[[#This Row],[Инициатор+исполнитель]]=TRUE,0,IF(Таблица_Металлопроцессинг_детализированный[[#This Row],[Оборот за месяц по контрагенту]]<1000000,0.5,0.3))","v":0},{"$f":"Таблица_Металлопроцессинг_детализированный[[#This Row],[Сумма наценки]]*Таблица_Металлопроцессинг_детализированный[[#This Row],[Распределение выручки для Куратора договора]]","v":17820},{"$f":"IF(Таблица_Металлопроцессинг_детализированный[[#This Row],[Распределение выручки для Менеджера договора]]=1,\"\",Таблица_Металлопроцессинг_детализированный[[#This Row],[Сумма наценки]]*Таблица_Металлопроцессинг_детализированный[[#This Row],[Распределение выручки для Менеджера договора]])","v":0},"Из давальческого сырья","САНКТ-ПЕТЕРБУРГ","НЕВСКИЙ МЕТАЛЛ (СПб)","ООО \"НЕВСКИЙ МЕТАЛЛ\"",null,null,"Металлоторговля","Изделие","10г/к дробь, Эмлак",162,"м2",0,"Очистка и покраска проката (грунт ЭМЛАК 263)","ROSLER",17820,162,2.9,1,"САНКТ-ПЕТЕРБУРГ","Центр",6.3]
[1,"САНКТ-ПЕТЕРБУРГ","Центр","Молчанова Е.М.","Молчанова Е.М.","Молчанова Е.М.",{"$f":"IF(Таблица_Металлопроцессинг_детализированный[[#This Row],[Куратор договора]]=Таблица_Металлопроцессинг_детализированный[[#This Row],[Менеджер]],TRUE,FALSE)","v":true},{"$f":"IF(COUNTIFS($A$1:$A145,Таблица_Металлопроцессинг_детализированный[[#This Row],[Месяц отгрузки]],$O$1:$O145,Таблица_Металлопроцессинг_детализированный[[#This Row],[Контрагент]])>0,0,SUMIFS($AA$2:$AA$177,$O$2:$O$177,Таблица_Металлопроцессинг_детализированный[[#This Row],[Контрагент]],$A$2:$A$177,Таблица_Металлопроцессинг_детализированный[[#This Row],[Месяц отгрузки]]))","v":0},{"$f":"IF(Таблица_Металлопроцессинг_детализированный[[#This Row],[Инициатор+исполнитель]],1,IF(Таблица_Металлопроцессинг_детализированный[[#This Row],[Оборот за месяц по контрагенту]]<1000000,0.5,0.7))","v":1},{"$f":"IF(Таблица_Металлопроцессинг_детализированный[[#This Row],[Инициатор+исполнитель]]=TRUE,0,IF(Таблица_Металлопроцессинг_детализированный[[#This Row],[Оборот за месяц по контрагенту]]<1000000,0.5,0.3))","v":0},{"$f":"Таблица_Металлопроцессинг_детализированный[[#This Row],[Сумма наценки]]*Таблица_Металлопроцессинг_детализированный[[#This Row],[Распределение выручки для Куратора договора]]","v":7920},{"$f":"IF(Таблица_Металлопроцессинг_детализированный[[#This Row],[Распределение выручки для Менеджера договора]]=1,\"\",Таблица_Металлопроцессинг_детализированный[[#This Row],[Сумма наценки]]*Таблица_Металлопроцессинг_детализированный[[#This Row],[Распределение выручки для Менеджера договора]])","v":0},"Из давальческого сырья","САНКТ-ПЕТЕРБУРГ","НЕВСКИЙ МЕТАЛЛ (СПб)","ООО \"НЕВСКИЙ МЕТАЛЛ\"",null,null,"Металлоторговля","Изделие","16г/к дробь, Эмлак",72,"м2",0,"Очистка и покраска проката (грунт ЭМЛАК 263)","ROSLER",7920,72,72,1,"САНКТ-ПЕТЕРБУРГ","Центр",4.47]
[1,"САНКТ-ПЕТЕРБУРГ","Центр","Молчанова Е.М.","Молчанова Е.М.","Молчанова Е.М.",{"$f":"IF(Таблица_Металлопроцессинг_детализированный[[#This Row],[Куратор договора]]=Таблица_Металлопроцессинг_детализированный[[#This Row],[Менеджер]],TRUE,FALSE)","v":true},{"$f":"IF(COUNTIFS($A$1:$A146,Таблица_Металлопроцессинг_детализированный[[#This Row],[Месяц отгрузки]],$O$1:$O146,Таблица_Металлопроцессинг_детализированный[[#This Row],[Контрагент]])>0,0,SUMIFS($AA$2:$AA$177,$O$2:$O$177,Таблица_Металлопроцессинг_детализированный[[#This Row],[Контрагент]],$A$2:$A$177,Таблица_Металлопроцессинг_детализированный[[#This Row],[Месяц отгрузки]]))","v":0},{"$f":"IF(Таблица_Металлопроцессинг_детализированный[[#This Row],[Инициатор+исполнитель]],1,IF(Таблица_Металлопроцессинг_детализированный[[#This Row],[Оборот за месяц по контрагенту]]<1000000,0.5,0.7))","v":1},{"$f":"IF(Таблица_Металлопроцессинг_детализированный[[#This Row],[Инициатор+исполнитель]]=TRUE,0,IF(Таблица_Металлопроцессинг_детализированный[[#This Row],[Оборот за месяц по контрагенту]]<1000000,0.5,0.3))","v":0},{"$f":"Таблица_Металлопроцессинг_детализированный[[#This Row],[Сумма наценки]]*Таблица_Металлопроцессинг_детализированный[[#This Row],[Распределение выручки для Куратора договора]]","v":27720},{"$f":"IF(Таблица_Металлопроцессинг_детализированный[[#This Row],[Распределение выручки для Менеджера договора]]=1,\"\",Таблица_Металлопроцессинг_детализированный[[#This Row],[Сумма наценки]]*Таблица_Металлопроцессинг_детализированный[[#This Row],[Распределение выручки для Менеджера договора]])","v":0},"Из давальческого сырья","САНКТ-ПЕТЕРБУРГ","НЕВСКИЙ МЕТАЛЛ (СПб)","ООО \"НЕВСКИЙ МЕТАЛЛ\"",null,null,"Металлоторговля","Изделие","8г/к дробь, Эмлак",252,"м2",0,"Очистка и покраска проката (грунт ЭМЛАК 263)","ROSLER",27720,252,252,1,"САНКТ-ПЕТЕРБУРГ","Центр",7.72]
[1,"САНКТ-ПЕТЕРБУРГ","Центр","Молчанова Е.М.","Молчанова Е.М.","Молчанова Е.М.",{"$f":"IF(Таблица_Металлопроцессинг_детализированный[[#This Row],[Куратор договора]]=Таблица_Металлопроцессинг_детализированный[[#This Row],[Менеджер]],TRUE,FALSE)","v":true},{"$f":"IF(COUNTIFS($A$1:$A147,Таблица_Металлопроцессинг_детализированный[[#This Row],[Месяц отгрузки]],$O$1:$O147,Таблица_Металлопроцессинг_детализированный[[#This Row],[Контрагент]])>0,0,SUMIFS($AA$2:$AA$177,$O$2:$O$177,Таблица_Металлопроцессинг_детализированный[[#This Row],[Контрагент]],$A$2:$A$177,Таблица_Металлопроцессинг_детализированный[[#This Row],[Месяц отгрузки]]))","v":0},{"$f":"IF(Таблица_Металлопроцессинг_детализированный[[#This Row],[Инициатор+исполнитель]],1,IF(Таблица_Металлопроцессинг_детализированный[[#This Row],[Оборот за месяц по контрагенту]]<1000000,0.5,0.7))","v":1},{"$f":"IF(Таблица_Металлопроцессинг_детализированный[[#This Row],[Инициатор+исполнитель]]=TRUE,0,IF(Таблица_Металлопроцессинг_детализированный[[#This Row],[Оборот за месяц по контрагенту]]<1000000,0.5,0.3))","v":0},{"$f":"Таблица_Металлопроцессинг_детализированный[[#This Row],[Сумма наценки]]*Таблица_Металлопроцессинг_детализированный[[#This Row],[Распределение выручки для Куратора договора]]","v":11000},{"$f":"IF(Таблица_Металлопроцессинг_детализированный[[#This Row],[Распределение выручки для Менеджера договора]]=1,\"\",Таблица_Металлопроцессинг_детализированный[[#This Row],[Сумма наценки]]*Таблица_Металлопроцессинг_детализированный[[#This Row],[Распределение выручки для Менеджера договора]])","v":0},"Из давальческого сырья","САНКТ-ПЕТЕРБУРГ","НЕВСКИЙ МЕТАЛЛ (СПб)","ООО \"НЕВСКИЙ МЕТАЛЛ\"",null,null,"Металлоторговля","Изделие","лист ПВЛ дробь, Эмлак",100,"м2",0,"Очистка и покраска проката (грунт ЭМЛАК 263)","ROSLER",11000,100,100,1,"САНКТ-ПЕТЕРБУРГ","Центр",1.1000000000000001]
[1,"САНКТ-ПЕТЕРБУРГ","Центр","Степура С.Н.","Степура С.Н.","Степура С.Н.",{"$f":"IF(Таблица_Металлопроцессинг_детализированный[[#This Row],[Куратор договора]]=Таблица_Металлопроцессинг_детализированный[[#This Row],[Менеджер]],TRUE,FALSE)","v":true},{"$f":"IF(COUNTIFS($A$1:$A148,Таблица_Металлопроцессинг_детализированный[[#This Row],[Месяц отгрузки]],$O$1:$O148,Таблица_Металлопроцессинг_детализированный[[#This Row],[Контрагент]])>0,0,SUMIFS($AA$2:$AA$177,$O$2:$O$177,Таблица_Металлопроцессинг_детализированный[[#This Row],[Контрагент]],$A$2:$A$177,Таблица_Металлопроцессинг_детализированный[[#This Row],[Месяц отгрузки]]))","v":23680},{"$f":"IF(Таблица_Металлопроцессинг_детализированный[[#This Row],[Инициатор+исполнитель]],1,IF(Таблица_Металлопроцессинг_детализированный[[#This Row],[Оборот за месяц по контрагенту]]<1000000,0.5,0.7))","v":1},{"$f":"IF(Таблица_Металлопроцессинг_детализированный[[#This Row],[Инициатор+исполнитель]]=TRUE,0,IF(Таблица_Металлопроцессинг_детализированный[[#This Row],[Оборот за месяц по контрагенту]]<1000000,0.5,0.3))","v":0},{"$f":"Таблица_Металлопроцессинг_детализированный[[#This Row],[Сумма наценки]]*Таблица_Металлопроцессинг_детализированный[[#This Row],[Распределение выручки для Куратора договора]]","v":3240},{"$f":"IF(Таблица_Металлопроцессинг_детализированный[[#This Row],[Распределение выручки для Менеджера договора]]=1,\"\",Таблица_Металлопроцессинг_детализированный[[#This Row],[Сумма наценки]]*Таблица_Металлопроцессинг_детализированный[[#This Row],[Распределение выручки для Менеджера договора]])","v":0},"Заказное","САНКТ-ПЕТЕРБУРГ","УралСибТрейд-СПБ","ООО\"УралСибТрейд-СПБ\"","г. Санкт-Петербург ",null,"ТЭК","Изделие","Пластины 10х320х200 - 144 шт, изделия согласно эскизов 342 шт, допуск +/-2мм",1.39,"т",51574.963100000001,"Очистка проката (дробь 1,0мм, 0,8мм)","ROSLER",3240,36,1.39,1,"САНКТ-ПЕТЕРБУРГ","Центр",1.3900000000000001]
[1,"САНКТ-ПЕТЕРБУРГ","Центр","Степура С.Н.","Степура С.Н.","Степура С.Н.",{"$f":"IF(Таблица_Металлопроцессинг_детализированный[[#This Row],[Куратор договора]]=Таблица_Металлопроцессинг_детализированный[[#This Row],[Менеджер]],TRUE,FALSE)","v":true},{"$f":"IF(COUNTIFS($A$1:$A149,Таблица_Металлопроцессинг_детализированный[[#This Row],[Месяц отгрузки]],$O$1:$O149,Таблица_Металлопроцессинг_детализированный[[#This Row],[Контрагент]])>0,0,SUMIFS($AA$2:$AA$177,$O$2:$O$177,Таблица_Металлопроцессинг_детализированный[[#This Row],[Контрагент]],$A$2:$A$177,Таблица_Металлопроцессинг_детализированный[[#This Row],[Месяц отгрузки]]))","v":0},{"$f":"IF(Таблица_Металлопроцессинг_детализированный[[#This Row],[Инициатор+исполнитель]],1,IF(Таблица_Металлопроцессинг_детализированный[[#This Row],[Оборот за месяц по контрагенту]]<1000000,0.5,0.7))","v":1},{"$f":"IF(Таблица_Металлопроцессинг_детализированный[[#This Row],[Инициатор+исполнитель]]=TRUE,0,IF(Таблица_Металлопроцессинг_детализированный[[#This Row],[Оборот за месяц по контрагенту]]<1000000,0.5,0.3))","v":0},{"$f":"Таблица_Металлопроцессинг_детализированный[[#This Row],[Сумма наценки]]*Таблица_Металлопроцессинг_детализированный[[#This Row],[Распределение выручки для Куратора договора]]","v":20440},{"$f":"IF(Таблица_Металлопроцессинг_детализированный[[#This Row],[Распределение выручки для Менеджера договора]]=1,\"\",Таблица_Металлопроцессинг_детализированный[[#This Row],[Сумма наценки]]*Таблица_Металлопроцессинг_детализированный[[#This Row],[Распределение выручки для Менеджера договора]])","v":0},"Заказное","САНКТ-ПЕТЕРБУРГ","УралСибТрейд-СПБ","ООО\"УралСибТрейд-СПБ\"","г. Санкт-Петербург ",null,"ТЭК","Изделие","Пластины 10х320х200 - 144 шт, изделия согласно эскизов 342 шт, допуск +/-2мм",1.39,"т",51574.963100000001,"Порезка листового проката плазменная PLAZMA","LINEACORD PCL40",20440,292,1.39,1,"САНКТ-ПЕТЕРБУРГ","Центр",1.3900000000000001]
[1,"САНКТ-ПЕТЕРБУРГ","Центр","Молчанова Е.М.","Молчанова Е.М.","Молчанова Е.М.",{"$f":"IF(Таблица_Металлопроцессинг_детализированный[[#This Row],[Куратор договора]]=Таблица_Металлопроцессинг_детализированный[[#This Row],[Менеджер]],TRUE,FALSE)","v":true},{"$f":"IF(COUNTIFS($A$1:$A150,Таблица_Металлопроцессинг_детализированный[[#This Row],[Месяц отгрузки]],$O$1:$O150,Таблица_Металлопроцессинг_детализированный[[#This Row],[Контрагент]])>0,0,SUMIFS($AA$2:$AA$177,$O$2:$O$177,Таблица_Металлопроцессинг_детализированный[[#This Row],[Контрагент]],$A$2:$A$177,Таблица_Металлопроцессинг_детализированный[[#This Row],[Месяц отгрузки]]))","v":11425.7},{"$f":"IF(Таблица_Металлопроцессинг_детализированный[[#This Row],[Инициатор+исполнитель]],1,IF(Таблица_Металлопроцессинг_детализированный[[#This Row],[Оборот за месяц по контрагенту]]<1000000,0.5,0.7))","v":1},{"$f":"IF(Таблица_Металлопроцессинг_детализированный[[#This Row],[Инициатор+исполнитель]]=TRUE,0,IF(Таблица_Металлопроцессинг_детализированный[[#This Row],[Оборот за месяц по контрагенту]]<1000000,0.5,0.3))","v":0},{"$f":"Таблица_Металлопроцессинг_детализированный[[#This Row],[Сумма наценки]]*Таблица_Металлопроцессинг_детализированный[[#This Row],[Распределение выручки для Куратора договора]]","v":11425.7},{"$f":"IF(Таблица_Металлопроцессинг_детализированный[[#This Row],[Распределение выручки для Менеджера договора]]=1,\"\",Таблица_Металлопроцессинг_детализированный[[#This Row],[Сумма наценки]]*Таблица_Металлопроцессинг_детализированный[[#This Row],[Распределение выручки для Менеджера договора]])","v":0},"Процессинг","САНКТ-ПЕТЕРБУРГ","АБТ ГРУПП","ООО \"АБТ ГРУПП\"",null,null,"Металлоторговля","Сталь рулонная Г/к., 3, 1500, Ст.09Г2С (19903)",null,5.17,"т",143002.20000000001,"Порезка листового проката поперечная","CAMU RDC 1500/6",11425.7,1,4.24,1,"САНКТ-ПЕТЕРБУРГ","Центр",5.17]
[1,"САНКТ-ПЕТЕРБУРГ","Центр","Молчанова Е.М.","Молчанова Е.М.","Молчанова Е.М.",{"$f":"IF(Таблица_Металлопроцессинг_детализированный[[#This Row],[Куратор договора]]=Таблица_Металлопроцессинг_детализированный[[#This Row],[Менеджер]],TRUE,FALSE)","v":true},{"$f":"IF(COUNTIFS($A$1:$A151,Таблица_Металлопроцессинг_детализированный[[#This Row],[Месяц отгрузки]],$O$1:$O151,Таблица_Металлопроцессинг_детализированный[[#This Row],[Контрагент]])>0,0,SUMIFS($AA$2:$AA$177,$O$2:$O$177,Таблица_Металлопроцессинг_детализированный[[#This Row],[Контрагент]],$A$2:$A$177,Таблица_Металлопроцессинг_детализированный[[#This Row],[Месяц отгрузки]]))","v":23380},{"$f":"IF(Таблица_Металлопроцессинг_детализированный[[#This Row],[Инициатор+исполнитель]],1,IF(Таблица_Металлопроцессинг_детализированный[[#This Row],[Оборот за месяц по контрагенту]]<1000000,0.5,0.7))","v":1},{"$f":"IF(Таблица_Металлопроцессинг_детализированный[[#This Row],[Инициатор+исполнитель]]=TRUE,0,IF(Таблица_Металлопроцессинг_детализированный[[#This Row],[Оборот за месяц по контрагенту]]<1000000,0.5,0.3))","v":0},{"$f":"Таблица_Металлопроцессинг_детализированный[[#This Row],[Сумма наценки]]*Таблица_Металлопроцессинг_детализированный[[#This Row],[Распределение выручки для Куратора договора]]","v":23380},{"$f":"IF(Таблица_Металлопроцессинг_детализированный[[#This Row],[Распределение выручки для Менеджера договора]]=1,\"\",Таблица_Металлопроцессинг_детализированный[[#This Row],[Сумма наценки]]*Таблица_Металлопроцессинг_детализированный[[#This Row],[Распределение выручки для Менеджера договора]])","v":0},"Процессинг","САНКТ-ПЕТЕРБУРГ","ФРИРАЙДЕР СПБ","ООО \"Фрирайдер СПб\"","Санкт-Петербург ","Санкт-Петербург ","Металлоторговля","Уголок стальной г/к равнополочный, 100x10, Ст.сп/пс (ГОСТ 8509-93)",null,0.9,"т",25389,"Станок ленточнопильный","PEGASUS",23380,668,7.12,1,"САНКТ-ПЕТЕРБУРГ","Центр",0.9]
[1,"САНКТ-ПЕТЕРБУРГ","Центр","Петров А.Б. (уволен)","Петров(С.-П.) А.Б.","Петров А.Б. (уволен)",{"$f":"IF(Таблица_Металлопроцессинг_детализированный[[#This Row],[Куратор договора]]=Таблица_Металлопроцессинг_детализированный[[#This Row],[Менеджер]],TRUE,FALSE)","v":true},{"$f":"IF(COUNTIFS($A$1:$A152,Таблица_Металлопроцессинг_детализированный[[#This Row],[Месяц отгрузки]],$O$1:$O152,Таблица_Металлопроцессинг_детализированный[[#This Row],[Контрагент]])>0,0,SUMIFS($AA$2:$AA$177,$O$2:$O$177,Таблица_Металлопроцессинг_детализированный[[#This Row],[Контрагент]],$A$2:$A$177,Таблица_Металлопроцессинг_детализированный[[#This Row],[Месяц отгрузки]]))","v":0},{"$f":"IF(Таблица_Металлопроцессинг_детализированный[[#This Row],[Инициатор+исполнитель]],1,IF(Таблица_Металлопроцессинг_детализированный[[#This Row],[Оборот за месяц по контрагенту]]<1000000,0.5,0.7))","v":1},{"$f":"IF(Таблица_Металлопроцессинг_детализированный[[#This Row],[Инициатор+исполнитель]]=TRUE,0,IF(Таблица_Металлопроцессинг_детализированный[[#This Row],[Оборот за месяц по контрагенту]]<1000000,0.5,0.3))","v":0},{"$f":"Таблица_Металлопроцессинг_детализированный[[#This Row],[Сумма наценки]]*Таблица_Металлопроцессинг_детализированный[[#This Row],[Распределение выручки для Куратора договора]]","v":11892.8},{"$f":"IF(Таблица_Металлопроцессинг_детализированный[[#This Row],[Распределение выручки для Менеджера договора]]=1,\"\",Таблица_Металлопроцессинг_детализированный[[#This Row],[Сумма наценки]]*Таблица_Металлопроцессинг_детализированный[[#This Row],[Распределение выручки для Менеджера договора]])","v":0},"Из давальческого сырья","САНКТ-ПЕТЕРБУРГ","АСТ СПБ","ЗАО \"АСТ\"",null,null,"Стройиндустрия","Изделие","Каркас поддерживающий  Вариант 1(с изм 1)",160,"шт",41003.199999999997,"Изготовление металлоконструкций из давальческого сырья","Дуга 318МА",11892.8,160,160,1,"САНКТ-ПЕТЕРБУРГ","Центр",1.1619999999999999]
[1,"САНКТ-ПЕТЕРБУРГ","Центр","Петров А.Б. (уволен)","Петров(С.-П.) А.Б.","Петров А.Б. (уволен)",{"$f":"IF(Таблица_Металлопроцессинг_детализированный[[#This Row],[Куратор договора]]=Таблица_Металлопроцессинг_детализированный[[#This Row],[Менеджер]],TRUE,FALSE)","v":true},{"$f":"IF(COUNTIFS($A$1:$A153,Таблица_Металлопроцессинг_детализированный[[#This Row],[Месяц отгрузки]],$O$1:$O153,Таблица_Металлопроцессинг_детализированный[[#This Row],[Контрагент]])>0,0,SUMIFS($AA$2:$AA$177,$O$2:$O$177,Таблица_Металлопроцессинг_детализированный[[#This Row],[Контрагент]],$A$2:$A$177,Таблица_Металлопроцессинг_детализированный[[#This Row],[Месяц отгрузки]]))","v":0},{"$f":"IF(Таблица_Металлопроцессинг_детализированный[[#This Row],[Инициатор+исполнитель]],1,IF(Таблица_Металлопроцессинг_детализированный[[#This Row],[Оборот за месяц по контрагенту]]<1000000,0.5,0.7))","v":1},{"$f":"IF(Таблица_Металлопроцессинг_детализированный[[#This Row],[Инициатор+исполнитель]]=TRUE,0,IF(Таблица_Металлопроцессинг_детализированный[[#This Row],[Оборот за месяц по контрагенту]]<1000000,0.5,0.3))","v":0},{"$f":"Таблица_Металлопроцессинг_детализированный[[#This Row],[Сумма наценки]]*Таблица_Металлопроцессинг_детализированный[[#This Row],[Распределение выручки для Куратора договора]]","v":6000},{"$f":"IF(Таблица_Металлопроцессинг_детализированный[[#This Row],[Распределение выручки для Менеджера договора]]=1,\"\",Таблица_Металлопроцессинг_детализированный[[#This Row],[Сумма наценки]]*Таблица_Металлопроцессинг_детализированный[[#This Row],[Распределение выручки для Менеджера договора]])","v":0},"Из давальческого сырья","САНКТ-ПЕТЕРБУРГ","АСТ СПБ","ЗАО \"АСТ\"",null,null,"Стройиндустрия","Изделие","Каркас поддерживающий  Вариант 3 с изм.1",50,"шт",18729.5,"Изготовление металлоконструкций из давальческого сырья","Дуга 318МА",6000,50,50,1,"САНКТ-ПЕТЕРБУРГ","Центр",0.5]
[1,"САНКТ-ПЕТЕРБУРГ","Центр","Ипатова Е.Н.","Ипатова Е.Н.","Ипатова Е.Н.",{"$f":"IF(Таблица_Металлопроцессинг_детализированный[[#This Row],[Куратор договора]]=Таблица_Металлопроцессинг_детализированный[[#This Row],[Менеджер]],TRUE,FALSE)","v":true},{"$f":"IF(COUNTIFS($A$1:$A154,Таблица_Металлопроцессинг_детализированный[[#This Row],[Месяц отгрузки]],$O$1:$O154,Таблица_Металлопроцессинг_детализированный[[#This Row],[Контрагент]])>0,0,SUMIFS($AA$2:$AA$177,$O$2:$O$177,Таблица_Металлопроцессинг_детализированный[[#This Row],[Контрагент]],$A$2:$A$177,Таблица_Металлопроцессинг_детализированный[[#This Row],[Месяц отгрузки]]))","v":221356.04},{"$f":"IF(Таблица_Металлопроцессинг_детализированный[[#This Row],[Инициатор+исполнитель]],1,IF(Таблица_Металлопроцессинг_детализированный[[#This Row],[Оборот за месяц по контрагенту]]<1000000,0.5,0.7))","v":1},{"$f":"IF(Таблица_Металлопроцессинг_детализированный[[#This Row],[Инициатор+исполнитель]]=TRUE,0,IF(Таблица_Металлопроцессинг_детализированный[[#This Row],[Оборот за месяц по контрагенту]]<1000000,0.5,0.3))","v":0},{"$f":"Таблица_Металлопроцессинг_детализированный[[#This Row],[Сумма наценки]]*Таблица_Металлопроцессинг_детализированный[[#This Row],[Распределение выручки для Куратора договора]]","v":24210.82},{"$f":"IF(Таблица_Металлопроцессинг_детализированный[[#This Row],[Распределение выручки для Менеджера договора]]=1,\"\",Таблица_Металлопроцессинг_детализированный[[#This Row],[Сумма наценки]]*Таблица_Металлопроцессинг_детализированный[[#This Row],[Распределение выручки для Менеджера договора]])","v":0},"Из давальческого сырья","САНКТ-ПЕТЕРБУРГ","СНСЗ","ОАО \"СРЕДНЕ-НЕВСКИЙ СУДОСТРОИТЕЛЬНЫЙ ЗАВОД\"",null,null,"Машиностроение","Изделие","Лист 6*1600*6000 PCD ГОСТ19903 , ГОСТ5521-93",6.69,"т",0,"Очистка и покраска проката (грунт HEMPEL)","ROSLER",24210.82,268.8,268.8,1,"САНКТ-ПЕТЕРБУРГ","Центр",6.6899999999999995]
[1,"САНКТ-ПЕТЕРБУРГ","Центр","Ипатова Е.Н.","Ипатова Е.Н.","Ипатова Е.Н.",{"$f":"IF(Таблица_Металлопроцессинг_детализированный[[#This Row],[Куратор договора]]=Таблица_Металлопроцессинг_детализированный[[#This Row],[Менеджер]],TRUE,FALSE)","v":true},{"$f":"IF(COUNTIFS($A$1:$A155,Таблица_Металлопроцессинг_детализированный[[#This Row],[Месяц отгрузки]],$O$1:$O155,Таблица_Металлопроцессинг_детализированный[[#This Row],[Контрагент]])>0,0,SUMIFS($AA$2:$AA$177,$O$2:$O$177,Таблица_Металлопроцессинг_детализированный[[#This Row],[Контрагент]],$A$2:$A$177,Таблица_Металлопроцессинг_детализированный[[#This Row],[Месяц отгрузки]]))","v":0},{"$f":"IF(Таблица_Металлопроцессинг_детализированный[[#This Row],[Инициатор+исполнитель]],1,IF(Таблица_Металлопроцессинг_детализированный[[#This Row],[Оборот за месяц по контрагенту]]<1000000,0.5,0.7))","v":1},{"$f":"IF(Таблица_Металлопроцессинг_детализированный[[#This Row],[Инициатор+исполнитель]]=TRUE,0,IF(Таблица_Металлопроцессинг_детализированный[[#This Row],[Оборот за месяц по контрагенту]]<1000000,0.5,0.3))","v":0},{"$f":"Таблица_Металлопроцессинг_детализированный[[#This Row],[Сумма наценки]]*Таблица_Металлопроцессинг_детализированный[[#This Row],[Распределение выручки для Куратора договора]]","v":48457.66},{"$f":"IF(Таблица_Металлопроцессинг_детализированный[[#This Row],[Распределение выручки для Менеджера договора]]=1,\"\",Таблица_Металлопроцессинг_детализированный[[#This Row],[Сумма наценки]]*Таблица_Металлопроцессинг_детализированный[[#This Row],[Распределение выручки для Менеджера договора]])","v":0},"Из давальческого сырья","САНКТ-ПЕТЕРБУРГ","СНСЗ","ОАО \"СРЕДНЕ-НЕВСКИЙ СУДОСТРОИТЕЛЬНЫЙ ЗАВОД\"",null,null,"Машиностроение","Изделие","Лист 7*1600*6000 PCD ГОСТ19903 , ГОСТ5521-93",15.4,"т",0,"Очистка и покраска проката (грунт HEMPEL)","ROSLER",48457.66,538,538,1,"САНКТ-ПЕТЕРБУРГ","Центр",15.4]
[1,"САНКТ-ПЕТЕРБУРГ","Центр","Молчанова Е.М.","Молчанова Е.М.","Молчанова Е.М.",{"$f":"IF(Таблица_Металлопроцессинг_детализированный[[#This Row],[Куратор договора]]=Таблица_Металлопроцессинг_детализированный[[#This Row],[Менеджер]],TRUE,FALSE)","v":true},{"$f":"IF(COUNTIFS($A$1:$A156,Таблица_Металлопроцессинг_детализированный[[#This Row],[Месяц отгрузки]],$O$1:$O156,Таблица_Металлопроцессинг_детализированный[[#This Row],[Контрагент]])>0,0,SUMIFS($AA$2:$AA$177,$O$2:$O$177,Таблица_Металлопроцессинг_детализированный[[#This Row],[Контрагент]],$A$2:$A$177,Таблица_Металлопроцессинг_детализированный[[#This Row],[Месяц отгрузки]]))","v":28500},{"$f":"IF(Таблица_Металлопроцессинг_детализированный[[#This Row],[Инициатор+исполнитель]],1,IF(Таблица_Металлопроцессинг_детализированный[[#This Row],[Оборот за месяц по контрагенту]]<1000000,0.5,0.7))","v":1},{"$f":"IF(Таблица_Металлопроцессинг_детализированный[[#This Row],[Инициатор+исполнитель]]=TRUE,0,IF(Таблица_Металлопроцессинг_детализированный[[#This Row],[Оборот за месяц по контрагенту]]<1000000,0.5,0.3))","v":0},{"$f":"Таблица_Металлопроцессинг_детализированный[[#This Row],[Сумма наценки]]*Таблица_Металлопроцессинг_детализированный[[#This Row],[Распределение выручки для Куратора договора]]","v":21600},{"$f":"IF(Таблица_Металлопроцессинг_детализированный[[#This Row],[Распределение выручки для Менеджера договора]]=1,\"\",Таблица_Металлопроцессинг_детализированный[[#This Row],[Сумма наценки]]*Таблица_Металлопроцессинг_детализированный[[#This Row],[Распределение выручки для Менеджера договора]])","v":0},"Процессинг","САНКТ-ПЕТЕРБУРГ","ГРАНИТ ТД","ООО \"Торговый Дом \"ГРАНИТ\"",null,null,"Металлоторговля","Сталь листовая Г/к., 10, 1500x6000, Ст.сп/пс (ГОСТ 14637)",null,2.4700000000000002,"т",55402.1,"Порезка листового проката (ножницы)","COLGAR CI-34-TR",21600,146,1.8,2,"САНКТ-ПЕТЕРБУРГ","Центр",2.4700000000000002]
[1,"САНКТ-ПЕТЕРБУРГ","Центр","Молчанова Е.М.","Молчанова Е.М.","Молчанова Е.М.",{"$f":"IF(Таблица_Металлопроцессинг_детализированный[[#This Row],[Куратор договора]]=Таблица_Металлопроцессинг_детализированный[[#This Row],[Менеджер]],TRUE,FALSE)","v":true},{"$f":"IF(COUNTIFS($A$1:$A157,Таблица_Металлопроцессинг_детализированный[[#This Row],[Месяц отгрузки]],$O$1:$O157,Таблица_Металлопроцессинг_детализированный[[#This Row],[Контрагент]])>0,0,SUMIFS($AA$2:$AA$177,$O$2:$O$177,Таблица_Металлопроцессинг_детализированный[[#This Row],[Контрагент]],$A$2:$A$177,Таблица_Металлопроцессинг_детализированный[[#This Row],[Месяц отгрузки]]))","v":0},{"$f":"IF(Таблица_Металлопроцессинг_детализированный[[#This Row],[Инициатор+исполнитель]],1,IF(Таблица_Металлопроцессинг_детализированный[[#This Row],[Оборот за месяц по контрагенту]]<1000000,0.5,0.7))","v":1},{"$f":"IF(Таблица_Металлопроцессинг_детализированный[[#This Row],[Инициатор+исполнитель]]=TRUE,0,IF(Таблица_Металлопроцессинг_детализированный[[#This Row],[Оборот за месяц по контрагенту]]<1000000,0.5,0.3))","v":0},{"$f":"Таблица_Металлопроцессинг_детализированный[[#This Row],[Сумма наценки]]*Таблица_Металлопроцессинг_детализированный[[#This Row],[Распределение выручки для Куратора договора]]","v":2250},{"$f":"IF(Таблица_Металлопроцессинг_детализированный[[#This Row],[Распределение выручки для Менеджера договора]]=1,\"\",Таблица_Металлопроцессинг_детализированный[[#This Row],[Сумма наценки]]*Таблица_Металлопроцессинг_детализированный[[#This Row],[Распределение выручки для Менеджера договора]])","v":0},"Процессинг","САНКТ-ПЕТЕРБУРГ","ГРАНИТ ТД","ООО \"Торговый Дом \"ГРАНИТ\"",null,null,"Металлоторговля","Сталь листовая Г/к., 4, 1500x6000, Ст.сп/пс (ГОСТ 14637)",null,0.2,"т",4532,"Порезка листового проката (ножницы)","COLGAR CI-34-TR",2250,45,0.20300000000000001,1,"САНКТ-ПЕТЕРБУРГ","Центр",0.2]
[1,"САНКТ-ПЕТЕРБУРГ","Центр","Молчанова Е.М.","Молчанова Е.М.","Молчанова Е.М.",{"$f":"IF(Таблица_Металлопроцессинг_детализированный[[#This Row],[Куратор договора]]=Таблица_Металлопроцессинг_детализированный[[#This Row],[Менеджер]],TRUE,FALSE)","v":true},{"$f":"IF(COUNTIFS($A$1:$A158,Таблица_Металлопроцессинг_детализированный[[#This Row],[Месяц отгрузки]],$O$1:$O158,Таблица_Металлопроцессинг_детализированный[[#This Row],[Контрагент]])>0,0,SUMIFS($AA$2:$AA$177,$O$2:$O$177,Таблица_Металлопроцессинг_детализированный[[#This Row],[Контрагент]],$A$2:$A$177,Таблица_Металлопроцессинг_детализированный[[#This Row],[Месяц отгрузки]]))","v":0},{"$f":"IF(Таблица_Металлопроцессинг_детализированный[[#This Row],[Инициатор+исполнитель]],1,IF(Таблица_Металлопроцессинг_детализированный[[#This Row],[Оборот за месяц по контрагенту]]<1000000,0.5,0.7))","v":1},{"$f":"IF(Таблица_Металлопроцессинг_детализированный[[#This Row],[Инициатор+исполнитель]]=TRUE,0,IF(Таблица_Металлопроцессинг_детализированный[[#This Row],[Оборот за месяц по контрагенту]]<1000000,0.5,0.3))","v":0},{"$f":"Таблица_Металлопроцессинг_детализированный[[#This Row],[Сумма наценки]]*Таблица_Металлопроцессинг_детализированный[[#This Row],[Распределение выручки для Куратора договора]]","v":4650},{"$f":"IF(Таблица_Металлопроцессинг_детализированный[[#This Row],[Распределение выручки для Менеджера договора]]=1,\"\",Таблица_Металлопроцессинг_детализированный[[#This Row],[Сумма наценки]]*Таблица_Металлопроцессинг_детализированный[[#This Row],[Распределение выручки для Менеджера договора]])","v":0},"Процессинг","САНКТ-ПЕТЕРБУРГ","ГРАНИТ ТД","ООО \"Торговый Дом \"ГРАНИТ\"",null,null,"Металлоторговля","Сталь листовая Г/к., 8, 1500x6000, Ст.сп/пс (ГОСТ 14637)",null,0.56000000000000005,"т",12560.8,"Порезка листового проката (ножницы)","COLGAR CI-34-TR",4650,31,0.56000000000000005,1,"САНКТ-ПЕТЕРБУРГ","Центр",0.56000000000000005]
[1,"САНКТ-ПЕТЕРБУРГ","Центр","Зиновьев С.Ю.","Зиновьев С.Ю.","Зиновьев С.Ю.",{"$f":"IF(Таблица_Металлопроцессинг_детализированный[[#This Row],[Куратор договора]]=Таблица_Металлопроцессинг_детализированный[[#This Row],[Менеджер]],TRUE,FALSE)","v":true},{"$f":"IF(COUNTIFS($A$1:$A159,Таблица_Металлопроцессинг_детализированный[[#This Row],[Месяц отгрузки]],$O$1:$O159,Таблица_Металлопроцессинг_детализированный[[#This Row],[Контрагент]])>0,0,SUMIFS($AA$2:$AA$177,$O$2:$O$177,Таблица_Металлопроцессинг_детализированный[[#This Row],[Контрагент]],$A$2:$A$177,Таблица_Металлопроцессинг_детализированный[[#This Row],[Месяц отгрузки]]))","v":0},{"$f":"IF(Таблица_Металлопроцессинг_детализированный[[#This Row],[Инициатор+исполнитель]],1,IF(Таблица_Металлопроцессинг_детализированный[[#This Row],[Оборот за месяц по контрагенту]]<1000000,0.5,0.7))","v":1},{"$f":"IF(Таблица_Металлопроцессинг_детализированный[[#This Row],[Инициатор+исполнитель]]=TRUE,0,IF(Таблица_Металлопроцессинг_детализированный[[#This Row],[Оборот за месяц по контрагенту]]<1000000,0.5,0.3))","v":0},{"$f":"Таблица_Металлопроцессинг_детализированный[[#This Row],[Сумма наценки]]*Таблица_Металлопроцессинг_детализированный[[#This Row],[Распределение выручки для Куратора договора]]","v":2250},{"$f":"IF(Таблица_Металлопроцессинг_детализированный[[#This Row],[Распределение выручки для Менеджера договора]]=1,\"\",Таблица_Металлопроцессинг_детализированный[[#This Row],[Сумма наценки]]*Таблица_Металлопроцессинг_детализированный[[#This Row],[Распределение выручки для Менеджера договора]])","v":0},"Процессинг","САНКТ-ПЕТЕРБУРГ","Аспект Плюс СПб","ООО \"АСПЕКТ-ПЛЮС\"","г. Санкт-Петербург ","г. Санкт-Петербург ","Металлоторговля","Арматура класс АIII (А400), 8, Ст.35ГС, в бунтах (ГОСТ5781-82)",null,1.5,"т",38310,"Размотка/резка в типовой  размер арматурного проката","FORMAT-S",2250,1,4.5,1,"САНКТ-ПЕТЕРБУРГ","Центр",1.5]
[1,"САНКТ-ПЕТЕРБУРГ","Центр","Степура С.Н.","Степура С.Н.","Степура С.Н.",{"$f":"IF(Таблица_Металлопроцессинг_детализированный[[#This Row],[Куратор договора]]=Таблица_Металлопроцессинг_детализированный[[#This Row],[Менеджер]],TRUE,FALSE)","v":true},{"$f":"IF(COUNTIFS($A$1:$A160,Таблица_Металлопроцессинг_детализированный[[#This Row],[Месяц отгрузки]],$O$1:$O160,Таблица_Металлопроцессинг_детализированный[[#This Row],[Контрагент]])>0,0,SUMIFS($AA$2:$AA$177,$O$2:$O$177,Таблица_Металлопроцессинг_детализированный[[#This Row],[Контрагент]],$A$2:$A$177,Таблица_Металлопроцессинг_детализированный[[#This Row],[Месяц отгрузки]]))","v":1470},{"$f":"IF(Таблица_Металлопроцессинг_детализированный[[#This Row],[Инициатор+исполнитель]],1,IF(Таблица_Металлопроцессинг_детализированный[[#This Row],[Оборот за месяц по контрагенту]]<1000000,0.5,0.7))","v":1},{"$f":"IF(Таблица_Металлопроцессинг_детализированный[[#This Row],[Инициатор+исполнитель]]=TRUE,0,IF(Таблица_Металлопроцессинг_детализированный[[#This Row],[Оборот за месяц по контрагенту]]<1000000,0.5,0.3))","v":0},{"$f":"Таблица_Металлопроцессинг_детализированный[[#This Row],[Сумма наценки]]*Таблица_Металлопроцессинг_детализированный[[#This Row],[Распределение выручки для Куратора договора]]","v":1470},{"$f":"IF(Таблица_Металлопроцессинг_детализированный[[#This Row],[Распределение выручки для Менеджера договора]]=1,\"\",Таблица_Металлопроцессинг_детализированный[[#This Row],[Сумма наценки]]*Таблица_Металлопроцессинг_детализированный[[#This Row],[Распределение выручки для Менеджера договора]])","v":0},"Процессинг","САНКТ-ПЕТЕРБУРГ","ПРОМ-ЭНЕРГО СЕРВИС ООО","ООО \"Пром-Энерго Сервис\"","г. Санкт-Петербург ","г. Санкт-Петербург ","Металлоконструкции","Сталь рулонная Г/к., 5, 1500, Ст.сп/пс (19903)",null,1.4999999999999999E-2,"т",336.45,"Порезка листового проката (ножницы)","COLGAR CI-34-TR",1470,14,0.05,1,"САНКТ-ПЕТЕРБУРГ","Центр",1.4999999999999999E-2]
[1,"САНКТ-ПЕТЕРБУРГ","Центр","Ипатова Е.Н.","Ипатова Е.Н.","Ипатова Е.Н.",{"$f":"IF(Таблица_Металлопроцессинг_детализированный[[#This Row],[Куратор договора]]=Таблица_Металлопроцессинг_детализированный[[#This Row],[Менеджер]],TRUE,FALSE)","v":true},{"$f":"IF(COUNTIFS($A$1:$A161,Таблица_Металлопроцессинг_детализированный[[#This Row],[Месяц отгрузки]],$O$1:$O161,Таблица_Металлопроцессинг_детализированный[[#This Row],[Контрагент]])>0,0,SUMIFS($AA$2:$AA$177,$O$2:$O$177,Таблица_Металлопроцессинг_детализированный[[#This Row],[Контрагент]],$A$2:$A$177,Таблица_Металлопроцессинг_детализированный[[#This Row],[Месяц отгрузки]]))","v":0},{"$f":"IF(Таблица_Металлопроцессинг_детализированный[[#This Row],[Инициатор+исполнитель]],1,IF(Таблица_Металлопроцессинг_детализированный[[#This Row],[Оборот за месяц по контрагенту]]<1000000,0.5,0.7))","v":1},{"$f":"IF(Таблица_Металлопроцессинг_детализированный[[#This Row],[Инициатор+исполнитель]]=TRUE,0,IF(Таблица_Металлопроцессинг_детализированный[[#This Row],[Оборот за месяц по контрагенту]]<1000000,0.5,0.3))","v":0},{"$f":"Таблица_Металлопроцессинг_детализированный[[#This Row],[Сумма наценки]]*Таблица_Металлопроцессинг_детализированный[[#This Row],[Распределение выручки для Куратора договора]]","v":72587.41},{"$f":"IF(Таблица_Металлопроцессинг_детализированный[[#This Row],[Распределение выручки для Менеджера договора]]=1,\"\",Таблица_Металлопроцессинг_детализированный[[#This Row],[Сумма наценки]]*Таблица_Металлопроцессинг_детализированный[[#This Row],[Распределение выручки для Менеджера договора]])","v":0},"Из давальческого сырья","САНКТ-ПЕТЕРБУРГ","СНСЗ","ОАО \"СРЕДНЕ-НЕВСКИЙ СУДОСТРОИТЕЛЬНЫЙ ЗАВОД\"",null,null,"Машиностроение","Изделие","Лист 7*1600*6000 PCD ГОСТ19903 , ГОСТ5521-93",23.07,"т",0,"Очистка и покраска проката (грунт HEMPEL)","ROSLER",72587.41,805.9,805.9,1,"САНКТ-ПЕТЕРБУРГ","Центр",23.07]
[1,"САНКТ-ПЕТЕРБУРГ","Центр","Дауэнгауэр Н.Э.","Погорелов И.В.","Дауэнгауэр Н.Э.",{"$f":"IF(Таблица_Металлопроцессинг_детализированный[[#This Row],[Куратор договора]]=Таблица_Металлопроцессинг_детализированный[[#This Row],[Менеджер]],TRUE,FALSE)","v":true},{"$f":"IF(COUNTIFS($A$1:$A162,Таблица_Металлопроцессинг_детализированный[[#This Row],[Месяц отгрузки]],$O$1:$O162,Таблица_Металлопроцессинг_детализированный[[#This Row],[Контрагент]])>0,0,SUMIFS($AA$2:$AA$177,$O$2:$O$177,Таблица_Металлопроцессинг_детализированный[[#This Row],[Контрагент]],$A$2:$A$177,Таблица_Металлопроцессинг_детализированный[[#This Row],[Месяц отгрузки]]))","v":0},{"$f":"IF(Таблица_Металлопроцессинг_детализированный[[#This Row],[Инициатор+исполнитель]],1,IF(Таблица_Металлопроцессинг_детализированный[[#This Row],[Оборот за месяц по контрагенту]]<1000000,0.5,0.7))","v":1},{"$f":"IF(Таблица_Металлопроцессинг_детализированный[[#This Row],[Инициатор+исполнитель]]=TRUE,0,IF(Таблица_Металлопроцессинг_детализированный[[#This Row],[Оборот за месяц по контрагенту]]<1000000,0.5,0.3))","v":0},{"$f":"Таблица_Металлопроцессинг_детализированный[[#This Row],[Сумма наценки]]*Таблица_Металлопроцессинг_детализированный[[#This Row],[Распределение выручки для Куратора договора]]","v":8568},{"$f":"IF(Таблица_Металлопроцессинг_детализированный[[#This Row],[Распределение выручки для Менеджера договора]]=1,\"\",Таблица_Металлопроцессинг_детализированный[[#This Row],[Сумма наценки]]*Таблица_Металлопроцессинг_детализированный[[#This Row],[Распределение выручки для Менеджера договора]])","v":0},"Процессинг","САНКТ-ПЕТЕРБУРГ","АМИРА СК","ООО \"Амира-СтальКонструкция\"","Санкт-Петербург ","Санкт-Петербург ","Металлоконструкции","Сталь листовая Г/к., 20, 1500x6000, Ст.09Г2С (ГОСТ 19281)",null,4.2839999999999998,"т",109927.44,"Порезка листового проката (ножницы)",null,8568,1,4.22,null,"САНКТ-ПЕТЕРБУРГ","Центр",4.2839999999999998]
[1,"САНКТ-ПЕТЕРБУРГ","Центр","Дауэнгауэр Н.Э.","Дауэнгауэр Н.Э.","Дауэнгауэр Н.Э.",{"$f":"IF(Таблица_Металлопроцессинг_детализированный[[#This Row],[Куратор договора]]=Таблица_Металлопроцессинг_детализированный[[#This Row],[Менеджер]],TRUE,FALSE)","v":true},{"$f":"IF(COUNTIFS($A$1:$A163,Таблица_Металлопроцессинг_детализированный[[#This Row],[Месяц отгрузки]],$O$1:$O163,Таблица_Металлопроцессинг_детализированный[[#This Row],[Контрагент]])>0,0,SUMIFS($AA$2:$AA$177,$O$2:$O$177,Таблица_Металлопроцессинг_детализированный[[#This Row],[Контрагент]],$A$2:$A$177,Таблица_Металлопроцессинг_детализированный[[#This Row],[Месяц отгрузки]]))","v":0},{"$f":"IF(Таблица_Металлопроцессинг_детализированный[[#This Row],[Инициатор+исполнитель]],1,IF(Таблица_Металлопроцессинг_детализированный[[#This Row],[Оборот за месяц по контрагенту]]<1000000,0.5,0.7))","v":1},{"$f":"IF(Таблица_Металлопроцессинг_детализированный[[#This Row],[Инициатор+исполнитель]]=TRUE,0,IF(Таблица_Металлопроцессинг_детализированный[[#This Row],[Оборот за месяц по контрагенту]]<1000000,0.5,0.3))","v":0},{"$f":"Таблица_Металлопроцессинг_детализированный[[#This Row],[Сумма наценки]]*Таблица_Металлопроцессинг_детализированный[[#This Row],[Распределение выручки для Куратора договора]]","v":23424},{"$f":"IF(Таблица_Металлопроцессинг_детализированный[[#This Row],[Распределение выручки для Менеджера договора]]=1,\"\",Таблица_Металлопроцессинг_детализированный[[#This Row],[Сумма наценки]]*Таблица_Металлопроцессинг_детализированный[[#This Row],[Распределение выручки для Менеджера договора]])","v":0},"Процессинг","САНКТ-ПЕТЕРБУРГ","СКМ Фирма","ООО \"Фирма СКМ\"","Ленинградская обл.","Ленинградская обл.","Машиностроение","Сталь рулонная Х/к., 1.5, 1250, Ст.кп/пс (19904)",null,3.84,"т",100646.39999999999,"Порезка листового проката поперечная","CAMU RDC 1500/6",23424,1,4,1,"САНКТ-ПЕТЕРБУРГ","Центр",3.84]
[1,"САНКТ-ПЕТЕРБУРГ","Центр","Ипатова Е.Н.","Ипатова Е.Н.","Райская Н.А.",{"$f":"IF(Таблица_Металлопроцессинг_детализированный[[#This Row],[Куратор договора]]=Таблица_Металлопроцессинг_детализированный[[#This Row],[Менеджер]],TRUE,FALSE)","v":false},{"$f":"IF(COUNTIFS($A$1:$A164,Таблица_Металлопроцессинг_детализированный[[#This Row],[Месяц отгрузки]],$O$1:$O164,Таблица_Металлопроцессинг_детализированный[[#This Row],[Контрагент]])>0,0,SUMIFS($AA$2:$AA$177,$O$2:$O$177,Таблица_Металлопроцессинг_детализированный[[#This Row],[Контрагент]],$A$2:$A$177,Таблица_Металлопроцессинг_детализированный[[#This Row],[Месяц отгрузки]]))","v":0},{"$f":"IF(Таблица_Металлопроцессинг_детализированный[[#This Row],[Инициатор+исполнитель]],1,IF(Таблица_Металлопроцессинг_детализированный[[#This Row],[Оборот за месяц по контрагенту]]<1000000,0.5,0.7))","v":0.5},{"$f":"IF(Таблица_Металлопроцессинг_детализированный[[#This Row],[Инициатор+исполнитель]]=TRUE,0,IF(Таблица_Металлопроцессинг_детализированный[[#This Row],[Оборот за месяц по контрагенту]]<1000000,0.5,0.3))","v":0.5},{"$f":"Таблица_Металлопроцессинг_детализированный[[#This Row],[Сумма наценки]]*Таблица_Металлопроцессинг_детализированный[[#This Row],[Распределение выручки для Куратора договора]]","v":15573.105},{"$f":"IF(Таблица_Металлопроцессинг_детализированный[[#This Row],[Распределение выручки для Менеджера договора]]=1,\"\",Таблица_Металлопроцессинг_детализированный[[#This Row],[Сумма наценки]]*Таблица_Металлопроцессинг_детализированный[[#This Row],[Распределение выручки для Менеджера договора]])","v":15573.105},"Из давальческого сырья","САНКТ-ПЕТЕРБУРГ","СНСЗ","ОАО \"СРЕДНЕ-НЕВСКИЙ СУДОСТРОИТЕЛЬНЫЙ ЗАВОД\"",null,null,"Машиностроение","Изделие","Лист 7*1600*6000 PCD ГОСТ19903 , ГОСТ5521-93",9.9,"т",0,"Очистка и покраска проката (грунт HEMPEL)","ROSLER",31146.21,345.8,345.8,1,"САНКТ-ПЕТЕРБУРГ","Центр",9.9]
[1,"САНКТ-ПЕТЕРБУРГ","Центр","Дауэнгауэр Н.Э.","Погорелов И.В.","Дауэнгауэр Н.Э.",{"$f":"IF(Таблица_Металлопроцессинг_детализированный[[#This Row],[Куратор договора]]=Таблица_Металлопроцессинг_детализированный[[#This Row],[Менеджер]],TRUE,FALSE)","v":true},{"$f":"IF(COUNTIFS($A$1:$A165,Таблица_Металлопроцессинг_детализированный[[#This Row],[Месяц отгрузки]],$O$1:$O165,Таблица_Металлопроцессинг_детализированный[[#This Row],[Контрагент]])>0,0,SUMIFS($AA$2:$AA$177,$O$2:$O$177,Таблица_Металлопроцессинг_детализированный[[#This Row],[Контрагент]],$A$2:$A$177,Таблица_Металлопроцессинг_детализированный[[#This Row],[Месяц отгрузки]]))","v":0},{"$f":"IF(Таблица_Металлопроцессинг_детализированный[[#This Row],[Инициатор+исполнитель]],1,IF(Таблица_Металлопроцессинг_детализированный[[#This Row],[Оборот за месяц по контрагенту]]<1000000,0.5,0.7))","v":1},{"$f":"IF(Таблица_Металлопроцессинг_детализированный[[#This Row],[Инициатор+исполнитель]]=TRUE,0,IF(Таблица_Металлопроцессинг_детализированный[[#This Row],[Оборот за месяц по контрагенту]]<1000000,0.5,0.3))","v":0},{"$f":"Таблица_Металлопроцессинг_детализированный[[#This Row],[Сумма наценки]]*Таблица_Металлопроцессинг_детализированный[[#This Row],[Распределение выручки для Куратора договора]]","v":110840},{"$f":"IF(Таблица_Металлопроцессинг_детализированный[[#This Row],[Распределение выручки для Менеджера договора]]=1,\"\",Таблица_Металлопроцессинг_детализированный[[#This Row],[Сумма наценки]]*Таблица_Металлопроцессинг_детализированный[[#This Row],[Распределение выручки для Менеджера договора]])","v":0},"Процессинг","САНКТ-ПЕТЕРБУРГ","АМИРА СК","ООО \"Амира-СтальКонструкция\"","Санкт-Петербург ","Санкт-Петербург ","Металлоконструкции","Сталь рулонная Г/к., 3, 1500, Ст.сп/пс (19903)",null,13.04,"т",288184,"Порезка листового проката поперечная","CAMU RDC 1500/6",110840,1,9,1,"САНКТ-ПЕТЕРБУРГ","Центр",13.04]
[1,"САНКТ-ПЕТЕРБУРГ","Центр","Ипатова Е.Н.","Ипатова Е.Н.","Ипатова Е.Н.",{"$f":"IF(Таблица_Металлопроцессинг_детализированный[[#This Row],[Куратор договора]]=Таблица_Металлопроцессинг_детализированный[[#This Row],[Менеджер]],TRUE,FALSE)","v":true},{"$f":"IF(COUNTIFS($A$1:$A166,Таблица_Металлопроцессинг_детализированный[[#This Row],[Месяц отгрузки]],$O$1:$O166,Таблица_Металлопроцессинг_детализированный[[#This Row],[Контрагент]])>0,0,SUMIFS($AA$2:$AA$177,$O$2:$O$177,Таблица_Металлопроцессинг_детализированный[[#This Row],[Контрагент]],$A$2:$A$177,Таблица_Металлопроцессинг_детализированный[[#This Row],[Месяц отгрузки]]))","v":0},{"$f":"IF(Таблица_Металлопроцессинг_детализированный[[#This Row],[Инициатор+исполнитель]],1,IF(Таблица_Металлопроцессинг_детализированный[[#This Row],[Оборот за месяц по контрагенту]]<1000000,0.5,0.7))","v":1},{"$f":"IF(Таблица_Металлопроцессинг_детализированный[[#This Row],[Инициатор+исполнитель]]=TRUE,0,IF(Таблица_Металлопроцессинг_детализированный[[#This Row],[Оборот за месяц по контрагенту]]<1000000,0.5,0.3))","v":0},{"$f":"Таблица_Металлопроцессинг_детализированный[[#This Row],[Сумма наценки]]*Таблица_Металлопроцессинг_детализированный[[#This Row],[Распределение выручки для Куратора договора]]","v":44953.94},{"$f":"IF(Таблица_Металлопроцессинг_детализированный[[#This Row],[Распределение выручки для Менеджера договора]]=1,\"\",Таблица_Металлопроцессинг_детализированный[[#This Row],[Сумма наценки]]*Таблица_Металлопроцессинг_детализированный[[#This Row],[Распределение выручки для Менеджера договора]])","v":0},"Из давальческого сырья","САНКТ-ПЕТЕРБУРГ","СНСЗ","ОАО \"СРЕДНЕ-НЕВСКИЙ СУДОСТРОИТЕЛЬНЫЙ ЗАВОД\"",null,null,"Машиностроение","Изделие","Лист 7*1600*6000 PCD ГОСТ19903 , ГОСТ5521-93",14.25,"т",0,"Очистка и покраска проката (грунт HEMPEL)","ROSLER",44953.94,499.1,2188.8000000000002,1,"САНКТ-ПЕТЕРБУРГ","Центр",14.25]
[1,"САНКТ-ПЕТЕРБУРГ","Центр","Степура С.Н.","Хабибуллов М.Р.","Хабибуллов М.Р.",{"$f":"IF(Таблица_Металлопроцессинг_детализированный[[#This Row],[Куратор договора]]=Таблица_Металлопроцессинг_детализированный[[#This Row],[Менеджер]],TRUE,FALSE)","v":false},{"$f":"IF(COUNTIFS($A$1:$A167,Таблица_Металлопроцессинг_детализированный[[#This Row],[Месяц отгрузки]],$O$1:$O167,Таблица_Металлопроцессинг_детализированный[[#This Row],[Контрагент]])>0,0,SUMIFS($AA$2:$AA$177,$O$2:$O$177,Таблица_Металлопроцессинг_детализированный[[#This Row],[Контрагент]],$A$2:$A$177,Таблица_Металлопроцессинг_детализированный[[#This Row],[Месяц отгрузки]]))","v":0},{"$f":"IF(Таблица_Металлопроцессинг_детализированный[[#This Row],[Инициатор+исполнитель]],1,IF(Таблица_Металлопроцессинг_детализированный[[#This Row],[Оборот за месяц по контрагенту]]<1000000,0.5,0.7))","v":0.5},{"$f":"IF(Таблица_Металлопроцессинг_детализированный[[#This Row],[Инициатор+исполнитель]]=TRUE,0,IF(Таблица_Металлопроцессинг_детализированный[[#This Row],[Оборот за месяц по контрагенту]]<1000000,0.5,0.3))","v":0.5},{"$f":"Таблица_Металлопроцессинг_детализированный[[#This Row],[Сумма наценки]]*Таблица_Металлопроцессинг_детализированный[[#This Row],[Распределение выручки для Куратора договора]]","v":15002.25},{"$f":"IF(Таблица_Металлопроцессинг_детализированный[[#This Row],[Распределение выручки для Менеджера договора]]=1,\"\",Таблица_Металлопроцессинг_детализированный[[#This Row],[Сумма наценки]]*Таблица_Металлопроцессинг_детализированный[[#This Row],[Распределение выручки для Менеджера договора]])","v":15002.25},"Процессинг","САНКТ-ПЕТЕРБУРГ","АртЛэнд","ООО \"Строительная компания \"АртЛэнд\"",null,null,"Стройиндустрия","Шпунт Ларсена Л5-УМ, С255 (ТУ 14-102-8-2003)",null,20.003,"т",790118.5,"Очистка и покраска проката (грунт ЭМЛАК 263)","ROSLER",30004.5,20.003,20.003,1,"САНКТ-ПЕТЕРБУРГ","Центр",20.003]
[1,"САНКТ-ПЕТЕРБУРГ","Центр","Ипатова Е.Н.","Хабибуллов М.Р.","Хабибуллов М.Р.",{"$f":"IF(Таблица_Металлопроцессинг_детализированный[[#This Row],[Куратор договора]]=Таблица_Металлопроцессинг_детализированный[[#This Row],[Менеджер]],TRUE,FALSE)","v":false},{"$f":"IF(COUNTIFS($A$1:$A168,Таблица_Металлопроцессинг_детализированный[[#This Row],[Месяц отгрузки]],$O$1:$O168,Таблица_Металлопроцессинг_детализированный[[#This Row],[Контрагент]])>0,0,SUMIFS($AA$2:$AA$177,$O$2:$O$177,Таблица_Металлопроцессинг_детализированный[[#This Row],[Контрагент]],$A$2:$A$177,Таблица_Металлопроцессинг_детализированный[[#This Row],[Месяц отгрузки]]))","v":0},{"$f":"IF(Таблица_Металлопроцессинг_детализированный[[#This Row],[Инициатор+исполнитель]],1,IF(Таблица_Металлопроцессинг_детализированный[[#This Row],[Оборот за месяц по контрагенту]]<1000000,0.5,0.7))","v":0.5},{"$f":"IF(Таблица_Металлопроцессинг_детализированный[[#This Row],[Инициатор+исполнитель]]=TRUE,0,IF(Таблица_Металлопроцессинг_детализированный[[#This Row],[Оборот за месяц по контрагенту]]<1000000,0.5,0.3))","v":0.5},{"$f":"Таблица_Металлопроцессинг_детализированный[[#This Row],[Сумма наценки]]*Таблица_Металлопроцессинг_детализированный[[#This Row],[Распределение выручки для Куратора договора]]","v":14997},{"$f":"IF(Таблица_Металлопроцессинг_детализированный[[#This Row],[Распределение выручки для Менеджера договора]]=1,\"\",Таблица_Металлопроцессинг_детализированный[[#This Row],[Сумма наценки]]*Таблица_Металлопроцессинг_детализированный[[#This Row],[Распределение выручки для Менеджера договора]])","v":14997},"Процессинг","САНКТ-ПЕТЕРБУРГ","АртЛэнд","ООО \"Строительная компания \"АртЛэнд\"",null,null,"Стройиндустрия","Шпунт Ларсена Л5-УМ, С255 (ТУ 14-102-8-2003)",null,19.995999999999999,"т",789842,"Очистка и покраска проката (грунт ЭМЛАК 263)","ROSLER",29994,19.995999999999999,0,1,"САНКТ-ПЕТЕРБУРГ","Центр",19.995999999999999]
[1,"САНКТ-ПЕТЕРБУРГ","Центр","Погорелов И.В.","Хабибуллов М.Р.","Хабибуллов М.Р.",{"$f":"IF(Таблица_Металлопроцессинг_детализированный[[#This Row],[Куратор договора]]=Таблица_Металлопроцессинг_детализированный[[#This Row],[Менеджер]],TRUE,FALSE)","v":false},{"$f":"IF(COUNTIFS($A$1:$A169,Таблица_Металлопроцессинг_детализированный[[#This Row],[Месяц отгрузки]],$O$1:$O169,Таблица_Металлопроцессинг_детализированный[[#This Row],[Контрагент]])>0,0,SUMIFS($AA$2:$AA$177,$O$2:$O$177,Таблица_Металлопроцессинг_детализированный[[#This Row],[Контрагент]],$A$2:$A$177,Таблица_Металлопроцессинг_детализированный[[#This Row],[Месяц отгрузки]]))","v":0},{"$f":"IF(Таблица_Металлопроцессинг_детализированный[[#This Row],[Инициатор+исполнитель]],1,IF(Таблица_Металлопроцессинг_детализированный[[#This Row],[Оборот за месяц по контрагенту]]<1000000,0.5,0.7))","v":0.5},{"$f":"IF(Таблица_Металлопроцессинг_детализированный[[#This Row],[Инициатор+исполнитель]]=TRUE,0,IF(Таблица_Металлопроцессинг_детализированный[[#This Row],[Оборот за месяц по контрагенту]]<1000000,0.5,0.3))","v":0.5},{"$f":"Таблица_Металлопроцессинг_детализированный[[#This Row],[Сумма наценки]]*Таблица_Металлопроцессинг_детализированный[[#This Row],[Распределение выручки для Куратора договора]]","v":7491.75},{"$f":"IF(Таблица_Металлопроцессинг_детализированный[[#This Row],[Распределение выручки для Менеджера договора]]=1,\"\",Таблица_Металлопроцессинг_детализированный[[#This Row],[Сумма наценки]]*Таблица_Металлопроцессинг_детализированный[[#This Row],[Распределение выручки для Менеджера договора]])","v":7491.75},"Процессинг","САНКТ-ПЕТЕРБУРГ","АртЛэнд","ООО \"Строительная компания \"АртЛэнд\"",null,null,"Стройиндустрия","Шпунт Ларсена Л5-УМ, С255 (ТУ 14-102-8-2003)",null,19.981999999999999,"т",789289,"Очистка и покраска проката (грунт ЭМЛАК 263)","ROSLER",14983.5,9.9890000000000008,0,1,"САНКТ-ПЕТЕРБУРГ","Центр",19.981999999999999]
[1,"САНКТ-ПЕТЕРБУРГ","Центр","Дауэнгауэр Н.Э.","Хабибуллов М.Р.","Хабибуллов М.Р.",{"$f":"IF(Таблица_Металлопроцессинг_детализированный[[#This Row],[Куратор договора]]=Таблица_Металлопроцессинг_детализированный[[#This Row],[Менеджер]],TRUE,FALSE)","v":false},{"$f":"IF(COUNTIFS($A$1:$A170,Таблица_Металлопроцессинг_детализированный[[#This Row],[Месяц отгрузки]],$O$1:$O170,Таблица_Металлопроцессинг_детализированный[[#This Row],[Контрагент]])>0,0,SUMIFS($AA$2:$AA$177,$O$2:$O$177,Таблица_Металлопроцессинг_детализированный[[#This Row],[Контрагент]],$A$2:$A$177,Таблица_Металлопроцессинг_детализированный[[#This Row],[Месяц отгрузки]]))","v":0},{"$f":"IF(Таблица_Металлопроцессинг_детализированный[[#This Row],[Инициатор+исполнитель]],1,IF(Таблица_Металлопроцессинг_детализированный[[#This Row],[Оборот за месяц по контрагенту]]<1000000,0.5,0.7))","v":0.5},{"$f":"IF(Таблица_Металлопроцессинг_детализированный[[#This Row],[Инициатор+исполнитель]]=TRUE,0,IF(Таблица_Металлопроцессинг_детализированный[[#This Row],[Оборот за месяц по контрагенту]]<1000000,0.5,0.3))","v":0.5},{"$f":"Таблица_Металлопроцессинг_детализированный[[#This Row],[Сумма наценки]]*Таблица_Металлопроцессинг_детализированный[[#This Row],[Распределение выручки для Куратора договора]]","v":14994},{"$f":"IF(Таблица_Металлопроцессинг_детализированный[[#This Row],[Распределение выручки для Менеджера договора]]=1,\"\",Таблица_Металлопроцессинг_детализированный[[#This Row],[Сумма наценки]]*Таблица_Металлопроцессинг_детализированный[[#This Row],[Распределение выручки для Менеджера договора]])","v":14994},"Процессинг","САНКТ-ПЕТЕРБУРГ","АртЛэнд","ООО \"Строительная компания \"АртЛэнд\"",null,null,"Стройиндустрия","Шпунт Ларсена Л5-УМ, С255 (ТУ 14-102-8-2003)",null,19.992000000000001,"т",789684,"Очистка и покраска проката (грунт ЭМЛАК 263)","ROSLER",29988,19.992000000000001,0,1,"САНКТ-ПЕТЕРБУРГ","Центр",19.992000000000001]
[1,"САНКТ-ПЕТЕРБУРГ","Центр","Хабибуллов М.Р.","Хабибуллов М.Р.","Хабибуллов М.Р.",{"$f":"IF(Таблица_Металлопроцессинг_детализированный[[#This Row],[Куратор договора]]=Таблица_Металлопроцессинг_детализированный[[#This Row],[Менеджер]],TRUE,FALSE)","v":true},{"$f":"IF(COUNTIFS($A$1:$A171,Таблица_Металлопроцессинг_детализированный[[#This Row],[Месяц отгрузки]],$O$1:$O171,Таблица_Металлопроцессинг_детализированный[[#This Row],[Контрагент]])>0,0,SUMIFS($AA$2:$AA$177,$O$2:$O$177,Таблица_Металлопроцессинг_детализированный[[#This Row],[Контрагент]],$A$2:$A$177,Таблица_Металлопроцессинг_детализированный[[#This Row],[Месяц отгрузки]]))","v":0},{"$f":"IF(Таблица_Металлопроцессинг_детализированный[[#This Row],[Инициатор+исполнитель]],1,IF(Таблица_Металлопроцессинг_детализированный[[#This Row],[Оборот за месяц по контрагенту]]<1000000,0.5,0.7))","v":1},{"$f":"IF(Таблица_Металлопроцессинг_детализированный[[#This Row],[Инициатор+исполнитель]]=TRUE,0,IF(Таблица_Металлопроцессинг_детализированный[[#This Row],[Оборот за месяц по контрагенту]]<1000000,0.5,0.3))","v":0},{"$f":"Таблица_Металлопроцессинг_детализированный[[#This Row],[Сумма наценки]]*Таблица_Металлопроцессинг_детализированный[[#This Row],[Распределение выручки для Куратора договора]]","v":42032},{"$f":"IF(Таблица_Металлопроцессинг_детализированный[[#This Row],[Распределение выручки для Менеджера договора]]=1,\"\",Таблица_Металлопроцессинг_детализированный[[#This Row],[Сумма наценки]]*Таблица_Металлопроцессинг_детализированный[[#This Row],[Распределение выручки для Менеджера договора]])","v":0},"Процессинг","САНКТ-ПЕТЕРБУРГ","РОССИНКОМ","ООО \"Строительная инновационная компания \"РОССИНКОМ\"",null,null,"Стройиндустрия","Шпунт Ларсена Л5-УМ, С255 (ТУ 0925-008-00186269-2012)",null,21.015999999999998,"т",829921.84,"Очистка и покраска проката (грунт HEMPEL)","ROSLER",42032,21.015999999999998,21.015999999999998,1,"САНКТ-ПЕТЕРБУРГ","Центр",21.015999999999998]
[1,"САНКТ-ПЕТЕРБУРГ","Центр","Хабибуллов М.Р.","Хабибуллов М.Р.","Хабибуллов М.Р.",{"$f":"IF(Таблица_Металлопроцессинг_детализированный[[#This Row],[Куратор договора]]=Таблица_Металлопроцессинг_детализированный[[#This Row],[Менеджер]],TRUE,FALSE)","v":true},{"$f":"IF(COUNTIFS($A$1:$A172,Таблица_Металлопроцессинг_детализированный[[#This Row],[Месяц отгрузки]],$O$1:$O172,Таблица_Металлопроцессинг_детализированный[[#This Row],[Контрагент]])>0,0,SUMIFS($AA$2:$AA$177,$O$2:$O$177,Таблица_Металлопроцессинг_детализированный[[#This Row],[Контрагент]],$A$2:$A$177,Таблица_Металлопроцессинг_детализированный[[#This Row],[Месяц отгрузки]]))","v":0},{"$f":"IF(Таблица_Металлопроцессинг_детализированный[[#This Row],[Инициатор+исполнитель]],1,IF(Таблица_Металлопроцессинг_детализированный[[#This Row],[Оборот за месяц по контрагенту]]<1000000,0.5,0.7))","v":1},{"$f":"IF(Таблица_Металлопроцессинг_детализированный[[#This Row],[Инициатор+исполнитель]]=TRUE,0,IF(Таблица_Металлопроцессинг_детализированный[[#This Row],[Оборот за месяц по контрагенту]]<1000000,0.5,0.3))","v":0},{"$f":"Таблица_Металлопроцессинг_детализированный[[#This Row],[Сумма наценки]]*Таблица_Металлопроцессинг_детализированный[[#This Row],[Распределение выручки для Куратора договора]]","v":40608},{"$f":"IF(Таблица_Металлопроцессинг_детализированный[[#This Row],[Распределение выручки для Менеджера договора]]=1,\"\",Таблица_Металлопроцессинг_детализированный[[#This Row],[Сумма наценки]]*Таблица_Металлопроцессинг_детализированный[[#This Row],[Распределение выручки для Менеджера договора]])","v":0},"Процессинг","САНКТ-ПЕТЕРБУРГ","РОССИНКОМ","ООО \"Строительная инновационная компания \"РОССИНКОМ\"",null,null,"Стройиндустрия","Шпунт Ларсена Л5-УМ, С255 (ТУ 0925-008-00186269-2012)",null,20.303999999999998,"т",801804.96,"Очистка и покраска проката (грунт HEMPEL)","ROSLER",40608,20.303999999999998,20.303999999999998,1,"САНКТ-ПЕТЕРБУРГ","Центр",20.303999999999998]
[1,"САНКТ-ПЕТЕРБУРГ","Центр","Зиновьев С.Ю.","Зиновьев С.Ю.","Зиновьев С.Ю.",{"$f":"IF(Таблица_Металлопроцессинг_детализированный[[#This Row],[Куратор договора]]=Таблица_Металлопроцессинг_детализированный[[#This Row],[Менеджер]],TRUE,FALSE)","v":true},{"$f":"IF(COUNTIFS($A$1:$A173,Таблица_Металлопроцессинг_детализированный[[#This Row],[Месяц отгрузки]],$O$1:$O173,Таблица_Металлопроцессинг_детализированный[[#This Row],[Контрагент]])>0,0,SUMIFS($AA$2:$AA$177,$O$2:$O$177,Таблица_Металлопроцессинг_детализированный[[#This Row],[Контрагент]],$A$2:$A$177,Таблица_Металлопроцессинг_детализированный[[#This Row],[Месяц отгрузки]]))","v":1425},{"$f":"IF(Таблица_Металлопроцессинг_детализированный[[#This Row],[Инициатор+исполнитель]],1,IF(Таблица_Металлопроцессинг_детализированный[[#This Row],[Оборот за месяц по контрагенту]]<1000000,0.5,0.7))","v":1},{"$f":"IF(Таблица_Металлопроцессинг_детализированный[[#This Row],[Инициатор+исполнитель]]=TRUE,0,IF(Таблица_Металлопроцессинг_детализированный[[#This Row],[Оборот за месяц по контрагенту]]<1000000,0.5,0.3))","v":0},{"$f":"Таблица_Металлопроцессинг_детализированный[[#This Row],[Сумма наценки]]*Таблица_Металлопроцессинг_детализированный[[#This Row],[Распределение выручки для Куратора договора]]","v":1425},{"$f":"IF(Таблица_Металлопроцессинг_детализированный[[#This Row],[Распределение выручки для Менеджера договора]]=1,\"\",Таблица_Металлопроцессинг_детализированный[[#This Row],[Сумма наценки]]*Таблица_Металлопроцессинг_детализированный[[#This Row],[Распределение выручки для Менеджера договора]])","v":0},"Процессинг","САНКТ-ПЕТЕРБУРГ","МЕТАЛЛОБАЗА №5","ООО \"Металлобаза №5\"",null,null,"Металлоторговля","Арматура класс АIII (А400), 8, Ст.35ГС, в бунтах (ГОСТ5781-82)",null,0.95,"т",24263,"Размотка/резка в типовой  размер арматурного проката","FORMAT-S",1425,1,0.95,1,"САНКТ-ПЕТЕРБУРГ","Центр",0.95]
[1,"САНКТ-ПЕТЕРБУРГ","Центр","Погорелов И.В.","Погорелов И.В.","Погорелов И.В.",{"$f":"IF(Таблица_Металлопроцессинг_детализированный[[#This Row],[Куратор договора]]=Таблица_Металлопроцессинг_детализированный[[#This Row],[Менеджер]],TRUE,FALSE)","v":true},{"$f":"IF(COUNTIFS($A$1:$A174,Таблица_Металлопроцессинг_детализированный[[#This Row],[Месяц отгрузки]],$O$1:$O174,Таблица_Металлопроцессинг_детализированный[[#This Row],[Контрагент]])>0,0,SUMIFS($AA$2:$AA$177,$O$2:$O$177,Таблица_Металлопроцессинг_детализированный[[#This Row],[Контрагент]],$A$2:$A$177,Таблица_Металлопроцессинг_детализированный[[#This Row],[Месяц отгрузки]]))","v":21056},{"$f":"IF(Таблица_Металлопроцессинг_детализированный[[#This Row],[Инициатор+исполнитель]],1,IF(Таблица_Металлопроцессинг_детализированный[[#This Row],[Оборот за месяц по контрагенту]]<1000000,0.5,0.7))","v":1},{"$f":"IF(Таблица_Металлопроцессинг_детализированный[[#This Row],[Инициатор+исполнитель]]=TRUE,0,IF(Таблица_Металлопроцессинг_детализированный[[#This Row],[Оборот за месяц по контрагенту]]<1000000,0.5,0.3))","v":0},{"$f":"Таблица_Металлопроцессинг_детализированный[[#This Row],[Сумма наценки]]*Таблица_Металлопроцессинг_детализированный[[#This Row],[Распределение выручки для Куратора договора]]","v":4160},{"$f":"IF(Таблица_Металлопроцессинг_детализированный[[#This Row],[Распределение выручки для Менеджера договора]]=1,\"\",Таблица_Металлопроцессинг_детализированный[[#This Row],[Сумма наценки]]*Таблица_Металлопроцессинг_детализированный[[#This Row],[Распределение выручки для Менеджера договора]])","v":0},"Процессинг","САНКТ-ПЕТЕРБУРГ","СТК-СЕРВИС","ООО \"СТК-сервис\"",null,null,"Металлоторговля","Сталь листовая Г/к., 12, 1500x6000, Ст.сп/пс (ГОСТ 14637)",null,0.85,"т",19065.5,"Порезка листового проката плазменная PLAZMA","LINEACORD PCL40",4160,52,0.85,1,"САНКТ-ПЕТЕРБУРГ","Центр",0.85]
[1,"САНКТ-ПЕТЕРБУРГ","Центр","Погорелов И.В.","Погорелов И.В.","Погорелов И.В.",{"$f":"IF(Таблица_Металлопроцессинг_детализированный[[#This Row],[Куратор договора]]=Таблица_Металлопроцессинг_детализированный[[#This Row],[Менеджер]],TRUE,FALSE)","v":true},{"$f":"IF(COUNTIFS($A$1:$A175,Таблица_Металлопроцессинг_детализированный[[#This Row],[Месяц отгрузки]],$O$1:$O175,Таблица_Металлопроцессинг_детализированный[[#This Row],[Контрагент]])>0,0,SUMIFS($AA$2:$AA$177,$O$2:$O$177,Таблица_Металлопроцессинг_детализированный[[#This Row],[Контрагент]],$A$2:$A$177,Таблица_Металлопроцессинг_детализированный[[#This Row],[Месяц отгрузки]]))","v":0},{"$f":"IF(Таблица_Металлопроцессинг_детализированный[[#This Row],[Инициатор+исполнитель]],1,IF(Таблица_Металлопроцессинг_детализированный[[#This Row],[Оборот за месяц по контрагенту]]<1000000,0.5,0.7))","v":1},{"$f":"IF(Таблица_Металлопроцессинг_детализированный[[#This Row],[Инициатор+исполнитель]]=TRUE,0,IF(Таблица_Металлопроцессинг_детализированный[[#This Row],[Оборот за месяц по контрагенту]]<1000000,0.5,0.3))","v":0},{"$f":"Таблица_Металлопроцессинг_детализированный[[#This Row],[Сумма наценки]]*Таблица_Металлопроцессинг_детализированный[[#This Row],[Распределение выручки для Куратора договора]]","v":16896},{"$f":"IF(Таблица_Металлопроцессинг_детализированный[[#This Row],[Распределение выручки для Менеджера договора]]=1,\"\",Таблица_Металлопроцессинг_детализированный[[#This Row],[Сумма наценки]]*Таблица_Металлопроцессинг_детализированный[[#This Row],[Распределение выручки для Менеджера договора]])","v":0},"Из давальческого сырья","САНКТ-ПЕТЕРБУРГ","СТК-СЕРВИС","ООО \"СТК-сервис\"",null,null,"Металлоторговля","Изделие","из 16го листа",1,"шт",0,"Порезка листового проката плазменная PLAZMA","LINEACORD PCL40",16896,176,1,1,"САНКТ-ПЕТЕРБУРГ","Центр",1.5070000000000001]
[1,"САНКТ-ПЕТЕРБУРГ","Центр","Ипатова Е.Н.","Ипатова Е.Н.","Ипатова Е.Н.",{"$f":"IF(Таблица_Металлопроцессинг_детализированный[[#This Row],[Куратор договора]]=Таблица_Металлопроцессинг_детализированный[[#This Row],[Менеджер]],TRUE,FALSE)","v":true},{"$f":"IF(COUNTIFS($A$1:$A176,Таблица_Металлопроцессинг_детализированный[[#This Row],[Месяц отгрузки]],$O$1:$O176,Таблица_Металлопроцессинг_детализированный[[#This Row],[Контрагент]])>0,0,SUMIFS($AA$2:$AA$177,$O$2:$O$177,Таблица_Металлопроцессинг_детализированный[[#This Row],[Контрагент]],$A$2:$A$177,Таблица_Металлопроцессинг_детализированный[[#This Row],[Месяц отгрузки]]))","v":12110},{"$f":"IF(Таблица_Металлопроцессинг_детализированный[[#This Row],[Инициатор+исполнитель]],1,IF(Таблица_Металлопроцессинг_детализированный[[#This Row],[Оборот за месяц по контрагенту]]<1000000,0.5,0.7))","v":1},{"$f":"IF(Таблица_Металлопроцессинг_детализированный[[#This Row],[Инициатор+исполнитель]]=TRUE,0,IF(Таблица_Металлопроцессинг_детализированный[[#This Row],[Оборот за месяц по контрагенту]]<1000000,0.5,0.3))","v":0},{"$f":"Таблица_Металлопроцессинг_детализированный[[#This Row],[Сумма наценки]]*Таблица_Металлопроцессинг_детализированный[[#This Row],[Распределение выручки для Куратора договора]]","v":12110},{"$f":"IF(Таблица_Металлопроцессинг_детализированный[[#This Row],[Распределение выручки для Менеджера договора]]=1,\"\",Таблица_Металлопроцессинг_детализированный[[#This Row],[Сумма наценки]]*Таблица_Металлопроцессинг_детализированный[[#This Row],[Распределение выручки для Менеджера договора]])","v":0},"Процессинг","САНКТ-ПЕТЕРБУРГ","СЭС ЮГРА","ООО \"СЭС\"","Ханты-Мансийский Автономный округ-Югра","Ханты-Мансийский Автономный округ-Югра","ТЭК","Сталь рулонная Х/к., 1.5, 1250, Ст.кп/пс (19904)",null,8.65,"т",226716.5,"Порезка листового проката поперечная","CAMU RDC 1500/6",12110,1,9.32,1,"САНКТ-ПЕТЕРБУРГ","Центр",8.65]
[null,null,null,null,null,null,null,{"$f":"SUBTOTAL(109,Таблица_Металлопроцессинг_детализированный[Оборот за месяц по контрагенту])","v":2437514.21},null,null,{"$f":"SUM(Таблица_Металлопроцессинг_детализированный[Сумма выручки для начисления з/п для куратора, с НДС])","v":2159822.0299999993},{"$f":"SUM(Таблица_Металлопроцессинг_детализированный[Сумма выручки для начисления з/п для менеджера, с НДС])","v":277692.18000000005},null,null,null,null,null,null,null,null,null,null,null,null,null,null,{"$f":"SUBTOTAL(109,Таблица_Металлопроцессинг_детализированный[Сумма наценки])","v":2437514.2099999995}]
[]
[]
[]
[]
[]
[null,null,null,null,null,null,null,null,null,null,{"$f":"Таблица_Металлопроцессинг_детализированный[[#Totals],[Сумма выручки для начисления з/п для куратора, с НДС]]+Таблица_Металлопроцессинг_детализированный[[#Totals],[Сумма выручки для начисления з/п для менеджера, с НДС]]","v":2437514.2099999995}]